Workbook

Sheet Introduction
A1: Comprehensive Stock Price and Economic Series Database
B3: Sometimes it is best to re-start your computer before a new run
B5: Website Link Describing How to Use the Database | N5: Copy tickers
N6: Adjust the start and end tickers
B7: Video Describing Operation of the Stock Price Database
B9: Video Describing Use of the Database and Finding Tickers
B11: Video Describing Analysis with Database
B13: Powerpoint Slides Reference
B15: Link to Relevant Part of this Workbook
B18: General Information

Sheet Read Stocks
M1: Final Applied | N1: Final Applied | O1: Column | P1: Source | S1: Finance.yahoo Index | X1: FRED Index | AF1: Google Index | AN1: FRED Commodities | AV1: Yahoo Stock Prices | BD1: Google Stock Prices | BL1: FRED Exonomic Data
G2: Start Row | H2: Number | I2: Column | J2: Source | M2: Sheet Name | N2: Stock or Index Name | Q2: Counter | R2: Accum | S2: Sheet | T2: Name | U2: Column | V2: Source | X2: Counter | Y2: Counter 1 | Z2: Sheet | AA2: Re-ordered | AB2: Name | AC2: Re-ordered | AD2: Column | AE2: Source | AF2: Counter | AG2: Counter | AH2: Sheet | AI2: Re-ordered | AJ2: Name | AK2: Re-ordered | AL2: Column | AM2: Source | AN2: counter | AO2: Accum | AP2: Sheet | AQ2: Re-ordered | AR2: Name | AS2: Re-ordered | AT2: Column | AU2: Source | AV2: Counter | AW2: Counter 1 | AX2: Sheet | AY2: Re-ordered | AZ2: Name | BA2: Re-ordered | BB2: Column | BC2: Source | BD2: Counter | BE2: Counter 1 | BF2: Sheet | BG2: Re-ordered | BH2: Name | BI2: Re-ordered | BJ2: Column | BK2: Source | BL2: Counter | BM2: Counter 1 | BN2: Sheet | BO2: Re-ordered | BP2: Name | BQ2: Re-ordered | BR2: Column | BS2: Source
F3: TRUE | G3: 1 | H3: ='Yahoo Index'!Total_Tickers*F3 -> 6 | I3: F | J3: yahoo | L3: 1 | M3: =S3&AA3&AI3&AQ3&AY3&BG3&BO3 -> S&P 500 | N3: =T3&AC3&AK3&AS3&BA3&BI3&BQ3 -> US S&P 500 | O3: =U3&AD3&AL3&AT3&BB3&BJ3&BR3 -> F | P3: =V3&AE3&AM3&AU3&BC3&BK3&BS3 -> yahoo | Q3: =G3 -> 1 | R3: =IF(AND($F$3,Q3<=$H$3),Q3,0) -> 1 | S3: =IF(R3,'Yahoo Index'!E55,"") -> S&P 500 | T3: =IF(R3,'Yahoo Index'!F55,"") -> US S&P 500 | U3: =IF(R3,$I$3,"") -> F | V3: =IF(R3,$J$3,"") -> yahoo | X3: =G6 -> 7 | Y3: =IF(AND($F$6,X3<=$H$6),X3) -> 7 | Z3: =IF($F$6,'FRED Indicies'!E16) -> NASDAQ100 | AA3: =IFERROR(INDEX(Z:Z,MATCH(L3,Y:Y,0)),"") ->  | AB3: =IF($F$6,'FRED Indicies'!D16) -> Nasdaq 100 Index | AC3: =IFERROR(INDEX(AB:AB,MATCH(L3,Y:Y,0)),"") ->  | AD3: =IF(AA3<>"",$I$6,"") ->  | AE3: =IF(AA3<>"",$J$6,"") ->  | AF3: =G9 -> 8 | AG3: =IF(AND($F$9,AF3<=$H$9),AF3) -> FALSE | AH3: =IF(AG3,'Google Index'!E30) -> FALSE | AI3: =IFERROR(INDEX(AH:AH,MATCH(Q3,AG:AG,0)),"") ->  | AJ3: =IF(AF3,'Google Index'!F30) -> HT Media | AK3: =IFERROR(INDEX(AJ:AJ,MATCH(Q3,AG:AG,0)),"") ->  | AL3: =IF(AI3<>"",$I$6,"") ->  | AM3: =IF(AK3<>"",$J$6,"") ->  | AN3: =G12 -> 8 | AO3: =IF(AND($F$12,AN3<=$H$12),AN3) -> 8 | AP3: =IF(AO3,'Commodity Prices'!C16) -> DCOILBRENTEU | AQ3: =IFERROR(INDEX(AP:AP,MATCH(L3,AO:AO,0)),"") ->  | AR3: =IF(AO3,'Commodity Prices'!D16) -> Crude Oil Prices: Brent - Europe (DCOILBRENTEU) | AS3: =IFERROR(INDEX(AR:AR,MATCH(L3,AO:AO,0)),"") ->  | AT3: =IF(AQ3<>"",$I$12,"") ->  | AU3: =IF(AS3<>"",$J$12,"") ->  | AV3: =G15 -> 11 | AW3: =IF(AND($F$15,AV3<=$H$15),AV3) -> 11 | AX3: =IF(AW3,'Yahoo Stocks'!D30) -> HTMEDIA.NS | AY3: =IFERROR(INDEX(AX:AX,MATCH(L3,AW:AW,0)),"") ->  | AZ3: =IF(AW3,'Yahoo Stocks'!E30) -> HT Media | BA3: =IFERROR(INDEX(AZ:AZ,MATCH(L3,AW:AW,0)),"") ->  | BB3: =IF(AY3<>"",$I$15,"") ->  | BC3: =IF(BA3<>"",$J$15,"") ->  | BD3: =G18 -> 121 | BE3: =IF(AND($F$18,BD3<=$H$18),BD3) -> FALSE | BF3: =IF(BE3,'Google Finance Stocks'!D27) -> FALSE | BG3: =IFERROR(INDEX(BF:BF,MATCH(Q3,BE:BE,0)),"") ->  | BH3: =IF(BE3,'Google Finance Stocks'!E27) -> FALSE | BI3: =IFERROR(INDEX(BH:BH,MATCH(Q3,BE:BE,0)),"") ->  | BJ3: =IF(BI3<>"",$I$18,"") ->  | BK3: =IF(BI3<>"",$J$18,"") ->  | BL3: =G21 -> 121 | BM3: =IF(AND($F$21,BL3<=$H$21),BL3) -> 121 | BN3: ='Exchange Rates'!D13 -> GDP Inf | BO3: =IFERROR(INDEX(BN:BN,MATCH(L3,BM:BM,0)),"") ->  | BP3: =IF(BM3,'Exchange Rates'!E13) -> Implicit Price Deflator | BQ3: =IFERROR(INDEX(BP:BP,MATCH(L3,BM:BM,0)),"") ->  | BR3: =IF(BQ3<>"",$I$21,"") ->  | BS3: =IF(BQ3<>"",$J$21,"") -> 
L4: 2 | M4: =S4&AA4&AI4&AQ4&AY4&BG4&BO4 -> DAX | N4: =T4&AC4&AK4&AS4&BA4&BI4&BQ4 -> DAX in Euro | O4: =U4&AD4&AL4&AT4&BB4&BJ4&BR4 -> F | P4: =V4&AE4&AM4&AU4&BC4&BK4&BS4 -> yahoo | Q4: =Q3+1 -> 2 | R4: =IF(AND($F$3,Q4<=$H$3),Q4) -> 2 | S4: =IF(R4,'Yahoo Index'!E56,"") -> DAX | T4: =IF(R4,'Yahoo Index'!F56,"") -> DAX in Euro | U4: =IF(R4,$I$3,"") -> F | V4: =IF(R4,$J$3,"") -> yahoo | X4: =X3+1 -> 8 | Y4: FALSE | Z4: =IF($F$6,'FRED Indicies'!E17) -> 0 | AB4: =IF($F$6,'FRED Indicies'!D17) -> 0 | AD4: =IF(AA4<>"",$I$6,"") ->  | AE4: =IF(AA4<>"",$J$6,"") ->  | AF4: =AF3+1 -> 9 | AG4: =IF(AND($F$9,AF4<=$H$9),AF4) -> FALSE | AH4: =IF(AG4,'Google Index'!E31) -> FALSE | AJ4: =IF(AF4,'Google Index'!F31) -> 0 | AL4: =IF(AI4<>"",$I$6,"") ->  | AM4: =IF(AK4<>"",$J$6,"") ->  | AN4: =AN3+1 -> 9 | AO4: =IF(AND($F$12,AN4<=$H$12),AN4) -> 9 | AP4: =IF(AO4,'Commodity Prices'!C17) -> PCOPPUSDM | AQ4: =IFERROR(INDEX(AP:AP,MATCH(L4,AO:AO,0)),"") ->  | AR4: =IF(AO4,'Commodity Prices'!D17) -> Global price of Copper© (PCOPPUSDM) | AT4: =IF(AQ4<>"",$I$12,"") ->  | AU4: =IF(AS4<>"",$J$12,"") ->  | AV4: =AV3+1 -> 12 | AW4: =IF(AND($F$15,AV4<=$H$15),AV4) -> 12 | AX4: =IF(AW4,'Yahoo Stocks'!D31) -> AAPL | AY4: =IFERROR(INDEX(AX:AX,MATCH(L4,AW:AW,0)),"") ->  | AZ4: =IF(AW4,'Yahoo Stocks'!E31) -> Apple | BA4: =IFERROR(INDEX(AZ:AZ,MATCH(L4,AW:AW,0)),"") ->  | BB4: =IF(AY4<>"",$I$15,"") ->  | BC4: =IF(BA4<>"",$J$15,"") ->  | BD4: =BD3+1 -> 122 | BE4: =IF(AND($F$18,BD4<=$H$18),BD4) -> FALSE | BF4: =IF(BE4,'Google Finance Stocks'!D28) -> FALSE | BG4: =IFERROR(INDEX(BF:BF,MATCH(Q4,BE:BE,0)),"") ->  | BH4: =IF(BE4,'Google Finance Stocks'!E28) -> FALSE | BI4: =IFERROR(INDEX(BH:BH,MATCH(Q4,BE:BE,0)),"") ->  | BJ4: =IF(BI4<>"",$I$18,"") ->  | BK4: =IF(BI4<>"",$J$18,"") ->  | BL4: =BL3+1 -> 122 | BM4: =IF(AND($F$21,BL4<=$H$21),BL4) -> 122 | BN4: ='Exchange Rates'!D14 -> CPI US | BO4: =IFERROR(INDEX(BN:BN,MATCH(L4,BM:BM,0)),"") ->  | BP4: =IF(BM4,'Exchange Rates'!E14) -> Consumer Price Inflation | BQ4: =IFERROR(INDEX(BP:BP,MATCH(L4,BM:BM,0)),"") ->  | BR4: =IF(BQ4<>"",$I$21,"") ->  | BS4: =IF(BQ4<>"",$J$21,"") -> 
L5: 3 | M5: Nifty Fifty | N5: =T5&AC5&AK5&AS5&BA5&BI5&BQ5 -> Nifty Fifty | O5: F | P5: yahoo | Q5: =Q4+1 -> 3 | R5: 3 | S5: =IF(R5,'Yahoo Index'!E57,"") -> Nifty Fifty | T5: =IF(R5,'Yahoo Index'!F57,"") -> Nifty Fifty | U5: F | V5: yahoo | X5: =X4+1 -> 9 | Y5: FALSE | Z5: =IF($F$6,'FRED Indicies'!E18) -> 0 | AB5: =IF($F$6,'FRED Indicies'!D18) -> 0 | AF5: =AF4+1 -> 10 | AG5: FALSE | AH5: =IF(AG5,'Google Index'!E32) -> FALSE | AJ5: =IF(AF5,'Google Index'!F32) -> 0 | AN5: =AN4+1 -> 10 | AO5: 10 | AP5: =IF(AO5,'Commodity Prices'!C18) -> MHHNGSP | AR5: =IF(AO5,'Commodity Prices'!D18) -> Henry Hub Natural Gas Spot Price (MHHNGSP) | AV5: =AV4+1 -> 13 | AW5: 13 | AX5: =IF(AW5,'Yahoo Stocks'!D32) -> GOOG | AZ5: =IF(AW5,'Yahoo Stocks'!E32) -> Google | BD5: =BD4+1 -> 123 | BE5: FALSE | BF5: =IF(BE5,'Google Finance Stocks'!D29) -> FALSE | BH5: =IF(BE5,'Google Finance Stocks'!E29) -> FALSE | BL5: =BL4+1 -> 123 | BM5: 123 | BN5: ='Exchange Rates'!D15 -> Euro | BP5: =IF(BM5,'Exchange Rates'!E15) -> U.S. / Euro Foreign Exchange Rate (EXUSEU)
F6: TRUE | G6: =H3+1 -> 7 | H6: ='FRED Indicies'!Total_Index*F6+G6-1 -> 7 | I6: B | J6: FRED | L6: 4 | M6: BSESN Index | N6: BSESN Index | O6: F | P6: yahoo | Q6: 4 | R6: 4 | S6: =IF(R6,'Yahoo Index'!E58,"") -> BSESN Index | T6: =IF(R6,'Yahoo Index'!F58,"") -> BSESN Index | U6: F | V6: yahoo | X6: 10 | Y6: FALSE | Z6: =IF($F$6,'FRED Indicies'!E19) -> 0 | AB6: =IF($F$6,'FRED Indicies'!D19) -> 0 | AF6: 11 | AG6: FALSE | AH6: =IF(AG6,'Google Index'!E33) -> FALSE | AJ6: =IF(AF6,'Google Index'!F33) -> 0 | AN6: 11 | AO6: FALSE | AP6: =IF(AO6,'Commodity Prices'!C19) -> FALSE | AR6: =IF(AO6,'Commodity Prices'!D19) -> FALSE | AV6: 14 | AW6: 14 | AX6: =IF(AW6,'Yahoo Stocks'!D33) -> AMZN | AZ6: =IF(AW6,'Yahoo Stocks'!E33) -> Amazon | BD6: 124 | BE6: FALSE | BF6: =IF(BE6,'Google Finance Stocks'!D30) -> FALSE | BH6: =IF(BE6,'Google Finance Stocks'!E30) -> FALSE | BL6: 124 | BM6: 124 | BN6: ='Exchange Rates'!D16 -> INR | BP6: =IF(BM6,'Exchange Rates'!E16) -> India / U.S. Foreign Exchange Rate (DEXINUS)
L7: 5 | M7: Nasdaq 100 | N7: Nasdaq 100 | O7: F | P7: yahoo | Q7: 5 | R7: 5 | S7: =IF(R7,'Yahoo Index'!E59,"") -> Nasdaq 100 | T7: =IF(R7,'Yahoo Index'!F59,"") -> Nasdaq 100 | U7: F | V7: yahoo | X7: 11 | Y7: FALSE | Z7: =IF($F$6,'FRED Indicies'!E20) -> 0 | AB7: =IF($F$6,'FRED Indicies'!D20) -> 0 | AF7: 12 | AG7: FALSE | AH7: =IF(AG7,'Google Index'!E34) -> FALSE | AJ7: =IF(AF7,'Google Index'!F34) -> 0 | AN7: 12 | AO7: FALSE | AP7: =IF(AO7,'Commodity Prices'!C20) -> FALSE | AR7: =IF(AO7,'Commodity Prices'!D20) -> FALSE | AV7: 15 | AW7: 15 | AX7: =IF(AW7,'Yahoo Stocks'!D34) -> FB | AZ7: =IF(AW7,'Yahoo Stocks'!E34) -> Facebook | BD7: 125 | BE7: FALSE | BF7: =IF(BE7,'Google Finance Stocks'!D31) -> FALSE | BH7: =IF(BE7,'Google Finance Stocks'!E31) -> FALSE | BL7: 125 | BM7: 125 | BN7: ='Exchange Rates'!D17 -> UK | BP7: =IF(BM7,'Exchange Rates'!E17) -> U.S. / U.K. Foreign Exchange Rate (EXUSUK)
L8: 6 | M8: 30 Industrials | N8: Dow Jones 30 Industrials | O8: F | P8: yahoo | Q8: 6 | R8: 6 | S8: =IF(R8,'Yahoo Index'!E60,"") -> 30 Industrials | T8: =IF(R8,'Yahoo Index'!F60,"") -> Dow Jones 30 Industrials | U8: F | V8: yahoo | X8: 12 | Y8: FALSE | Z8: =IF($F$6,'FRED Indicies'!E21) -> 0 | AB8: =IF($F$6,'FRED Indicies'!D21) -> 0 | AF8: 13 | AG8: FALSE | AH8: =IF(AG8,'Google Index'!E35) -> FALSE | AJ8: =IF(AF8,'Google Index'!F35) -> 0 | AN8: 13 | AO8: FALSE | AP8: =IF(AO8,'Commodity Prices'!C21) -> FALSE | AR8: =IF(AO8,'Commodity Prices'!D21) -> FALSE | AV8: 16 | AW8: 16 | AX8: =IF(AW8,'Yahoo Stocks'!D35) -> DTE.DE | AZ8: =IF(AW8,'Yahoo Stocks'!E35) -> Deutsche Telekom AG (ADR) | BD8: 126 | BE8: FALSE | BF8: =IF(BE8,'Google Finance Stocks'!D32) -> FALSE | BH8: =IF(BE8,'Google Finance Stocks'!E32) -> FALSE | BL8: 126 | BM8: 126 | BN8: ='Exchange Rates'!D18 -> CFH | BP8: =IF(BM8,'Exchange Rates'!E18) -> Switzerland / U.S. Foreign Exchange Rate (DEXSZUS)
F9: FALSE | G9: =H6+1 -> 8 | H9: ='Google Index'!D20*F9+G9-1 -> 7 | I9: D | J9: Google | L9: 7 | M9: NASDAQ100 | N9: Nasdaq 100 Index | O9: B | P9: FRED | Q9: 7 | R9: FALSE | S9: =IF(R9,'Yahoo Index'!E61,"") ->  | T9: =IF(R9,'Yahoo Index'!F61,"") ->  | X9: 13 | Y9: FALSE | Z9: =IF($F$6,'FRED Indicies'!E22) -> 0 | AA9: NASDAQ100 | AB9: =IF($F$6,'FRED Indicies'!D22) -> 0 | AC9: Nasdaq 100 Index | AD9: B | AE9: FRED | AF9: 14 | AG9: FALSE | AH9: =IF(AG9,'Google Index'!E36) -> FALSE | AJ9: =IF(AF9,'Google Index'!F36) -> 0 | AN9: 14 | AO9: FALSE | AP9: =IF(AO9,'Commodity Prices'!C22) -> FALSE | AR9: =IF(AO9,'Commodity Prices'!D22) -> FALSE | AV9: 17 | AW9: 17 | AX9: =IF(AW9,'Yahoo Stocks'!D36) -> FTE | AZ9: =IF(AW9,'Yahoo Stocks'!E36) -> France Telecom SA (ADR) | BD9: 127 | BE9: FALSE | BF9: =IF(BE9,'Google Finance Stocks'!D33) -> FALSE | BH9: =IF(BE9,'Google Finance Stocks'!E33) -> FALSE | BL9: 127 | BM9: 127 | BN9: ='Exchange Rates'!D19 -> US NOM GNP | BP9: =IF(BM9,'Exchange Rates'!E19) -> Gross National Product (GNP)
A10: s | L10: 8 | M10: DCOILBRENTEU | N10: Crude Oil Prices: Brent - Europe (DCOILBRENTEU) | O10: B | P10: FRED | Q10: 8 | R10: FALSE | S10: =IF(R10,'Yahoo Index'!E62,"") ->  | T10: =IF(R10,'Yahoo Index'!F62,"") ->  | X10: 14 | Y10: FALSE | Z10: =IF($F$6,'FRED Indicies'!E23) -> 0 | AB10: =IF($F$6,'FRED Indicies'!D23) -> 0 | AF10: 15 | AG10: FALSE | AH10: =IF(AG10,'Google Index'!E37) -> FALSE | AJ10: =IF(AF10,'Google Index'!F37) -> 0 | AN10: 15 | AO10: FALSE | AP10: =IF(AO10,'Commodity Prices'!C23) -> FALSE | AQ10: DCOILBRENTEU | AR10: =IF(AO10,'Commodity Prices'!D23) -> FALSE | AS10: Crude Oil Prices: Brent - Europe (DCOILBRENTEU) | AT10: B | AU10: FRED | AV10: 18 | AW10: 18 | AX10: =IF(AW10,'Yahoo Stocks'!D37) -> BT | AZ10: =IF(AW10,'Yahoo Stocks'!E37) -> BT Group plc (ADR) (BT) | BD10: 128 | BE10: FALSE | BF10: =IF(BE10,'Google Finance Stocks'!D34) -> FALSE | BH10: =IF(BE10,'Google Finance Stocks'!E34) -> FALSE | BL10: 128 | BM10: 128 | BN10: ='Exchange Rates'!D20 -> India Disc Rate | BP10: =IF(BM10,'Exchange Rates'!E20) -> Interest Rates, Discount Rate for India (INTDSRINM193N)
L11: 9 | M11: PCOPPUSDM | N11: Global price of Copper© (PCOPPUSDM) | O11: B | P11: FRED | Q11: 9 | R11: FALSE | S11: =IF(R11,'Yahoo Index'!E63,"") ->  | T11: =IF(R11,'Yahoo Index'!F63,"") ->  | X11: 15 | Y11: FALSE | Z11: =IF($F$6,'FRED Indicies'!E24) -> 0 | AB11: =IF($F$6,'FRED Indicies'!D24) -> 0 | AF11: 16 | AG11: FALSE | AH11: =IF(AG11,'Google Index'!E38) -> FALSE | AJ11: =IF(AF11,'Google Index'!F38) -> 0 | AN11: 16 | AO11: FALSE | AP11: =IF(AO11,'Commodity Prices'!C24) -> FALSE | AQ11: PCOPPUSDM | AR11: =IF(AO11,'Commodity Prices'!D24) -> FALSE | AS11: Global price of Copper© (PCOPPUSDM) | AT11: B | AU11: FRED | AV11: 19 | AW11: 19 | AX11: =IF(AW11,'Yahoo Stocks'!D38) -> VOD | AZ11: =IF(AW11,'Yahoo Stocks'!E38) -> Vodafone Group plc | BD11: 129 | BE11: FALSE | BF11: =IF(BE11,'Google Finance Stocks'!D35) -> FALSE | BH11: =IF(BE11,'Google Finance Stocks'!E35) -> FALSE | BL11: 129 | BM11: 129 | BN11: ='Exchange Rates'!D21 -> India Gvt Bonds | BP11: =IF(BM11,'Exchange Rates'!E21) -> Interest Rates, Government Securities, Government Bonds for India (INTGSBINM193N)
F12: TRUE | G12: =H9+1 -> 8 | H12: =Total_Com*F12+G12-1 -> 10 | I12: B | J12: FRED | L12: 10 | M12: MHHNGSP | N12: Henry Hub Natural Gas Spot Price (MHHNGSP) | O12: B | P12: FRED | Q12: 10 | R12: FALSE | S12: =IF(R12,'Yahoo Index'!E64,"") ->  | T12: =IF(R12,'Yahoo Index'!F64,"") ->  | X12: 16 | Y12: FALSE | Z12: =IF($F$6,'FRED Indicies'!E25) -> 0 | AB12: =IF($F$6,'FRED Indicies'!D25) -> 0 | AF12: 17 | AG12: FALSE | AH12: =IF(AG12,'Google Index'!E39) -> FALSE | AJ12: =IF(AF12,'Google Index'!F39) -> 0 | AN12: 17 | AO12: FALSE | AP12: =IF(AO12,'Commodity Prices'!C25) -> FALSE | AQ12: MHHNGSP | AR12: =IF(AO12,'Commodity Prices'!D25) -> FALSE | AS12: Henry Hub Natural Gas Spot Price (MHHNGSP) | AT12: B | AU12: FRED | AV12: 20 | AW12: 20 | AX12: =IF(AW12,'Yahoo Stocks'!D39) -> VZ | AZ12: =IF(AW12,'Yahoo Stocks'!E39) -> Verizon Communications... | BD12: 130 | BE12: FALSE | BF12: =IF(BE12,'Google Finance Stocks'!D36) -> FALSE | BH12: =IF(BE12,'Google Finance Stocks'!E36) -> FALSE | BL12: 130 | BM12: 130 | BN12: ='Exchange Rates'!D22 -> India 10 Yr Main | BP12: =IF(BM12,'Exchange Rates'!E22) -> Interest Rates: Long-term government bond yields: 10-year: Main including benchmark for India (INDIRLTLT01STM)
L13: 11 | M13: HTMEDIA.NS | N13: HT Media | O13: F | P13: Yahoo | Q13: 11 | R13: FALSE | S13: =IF(R13,'Yahoo Index'!E65,"") ->  | T13: =IF(R13,'Yahoo Index'!F65,"") ->  | X13: 17 | Y13: FALSE | Z13: =IF($F$6,'FRED Indicies'!E26) -> 0 | AB13: =IF($F$6,'FRED Indicies'!D26) -> 0 | AF13: 18 | AG13: FALSE | AH13: =IF(AG13,'Google Index'!E40) -> FALSE | AJ13: =IF(AF13,'Google Index'!F40) -> 0 | AN13: 18 | AO13: FALSE | AP13: =IF(AO13,'Commodity Prices'!C26) -> FALSE | AR13: =IF(AO13,'Commodity Prices'!D26) -> FALSE | AV13: 21 | AW13: 21 | AX13: =IF(AW13,'Yahoo Stocks'!D40) -> S | AY13: HTMEDIA.NS | AZ13: =IF(AW13,'Yahoo Stocks'!E40) -> Sprint | BA13: HT Media | BB13: F | BC13: Yahoo | BD13: 131 | BE13: FALSE | BF13: =IF(BE13,'Google Finance Stocks'!D37) -> FALSE | BH13: =IF(BE13,'Google Finance Stocks'!E37) -> FALSE | BL13: 131 | BM13: 131 | BN13: ='Exchange Rates'!D23 -> India Inflation | BP13: =IF(BM13,'Exchange Rates'!E23) -> Consumer Price Index: Total All Items for India (CPALTT01INM659N)
L14: 12 | M14: AAPL | N14: Apple | O14: F | P14: Yahoo | Q14: 12 | R14: FALSE | S14: =IF(R14,'Yahoo Index'!E66,"") ->  | T14: =IF(R14,'Yahoo Index'!F66,"") ->  | X14: 18 | Y14: FALSE | Z14: =IF($F$6,'FRED Indicies'!E27) -> 0 | AB14: =IF($F$6,'FRED Indicies'!D27) -> 0 | AF14: 19 | AG14: FALSE | AH14: =IF(AG14,'Google Index'!E41) -> FALSE | AJ14: =IF(AF14,'Google Index'!F41) -> 0 | AN14: 19 | AO14: FALSE | AP14: =IF(AO14,'Commodity Prices'!C27) -> FALSE | AR14: =IF(AO14,'Commodity Prices'!D27) -> FALSE | AV14: 22 | AW14: 22 | AX14: =IF(AW14,'Yahoo Stocks'!D41) -> PHI | AY14: AAPL | AZ14: =IF(AW14,'Yahoo Stocks'!E41) -> Philippine Long Distance (PHI) | BA14: Apple | BB14: F | BC14: Yahoo | BD14: 132 | BE14: FALSE | BF14: =IF(BE14,'Google Finance Stocks'!D38) -> FALSE | BH14: =IF(BE14,'Google Finance Stocks'!E38) -> FALSE | BL14: 132 | BM14: 132 | BN14: ='Exchange Rates'!D24 -> 5 yr treasury | BP14: =IF(BM14,'Exchange Rates'!E24) -> 5-Year Treasury Constant Maturity Rate (GS5)
F15: TRUE | G15: =H12+1 -> 11 | H15: =Yahoo_Stock_Tickers*F15+G15-1 -> 120 | I15: F | J15: Yahoo | L15: 13 | M15: GOOG | N15: Google | O15: F | P15: Yahoo | Q15: 13 | R15: FALSE | S15: =IF(R15,'Yahoo Index'!E67,"") ->  | T15: =IF(R15,'Yahoo Index'!F67,"") ->  | X15: 19 | Y15: FALSE | Z15: =IF($F$6,'FRED Indicies'!E28) -> 0 | AB15: =IF($F$6,'FRED Indicies'!D28) -> 0 | AF15: 20 | AG15: FALSE | AH15: =IF(AG15,'Google Index'!E42) -> FALSE | AJ15: =IF(AF15,'Google Index'!F42) -> 0 | AN15: 20 | AO15: FALSE | AP15: =IF(AO15,'Commodity Prices'!C28) -> FALSE | AR15: =IF(AO15,'Commodity Prices'!D28) -> FALSE | AV15: 23 | AW15: 23 | AX15: =IF(AW15,'Yahoo Stocks'!D42) -> TKC | AY15: GOOG | AZ15: =IF(AW15,'Yahoo Stocks'!E42) -> Turkcell Iletisim Hizm... | BA15: Google | BB15: F | BC15: Yahoo | BD15: 133 | BE15: FALSE | BF15: =IF(BE15,'Google Finance Stocks'!D39) -> FALSE | BH15: =IF(BE15,'Google Finance Stocks'!E39) -> FALSE | BL15: 133 | BM15: 133 | BN15: ='Exchange Rates'!D25 -> 10 year treasury | BP15: =IF(BM15,'Exchange Rates'!E25) -> 10-Year Treasury Constant Maturity Rate (GS10)
L16: 14 | M16: AMZN | N16: Amazon | O16: F | P16: Yahoo | Q16: 14 | R16: FALSE | S16: =IF(R16,'Yahoo Index'!E68,"") ->  | T16: =IF(R16,'Yahoo Index'!F68,"") ->  | X16: 20 | Y16: FALSE | Z16: =IF($F$6,'FRED Indicies'!E29) -> 0 | AB16: =IF($F$6,'FRED Indicies'!D29) -> 0 | AF16: 21 | AG16: FALSE | AH16: =IF(AG16,'Google Index'!E43) -> FALSE | AJ16: =IF(AF16,'Google Index'!F43) -> 0 | AN16: 21 | AO16: FALSE | AP16: =IF(AO16,'Commodity Prices'!C29) -> FALSE | AR16: =IF(AO16,'Commodity Prices'!D29) -> FALSE | AV16: 24 | AW16: 24 | AX16: =IF(AW16,'Yahoo Stocks'!D43) -> JPM | AY16: AMZN | AZ16: =IF(AW16,'Yahoo Stocks'!E43) -> JP Morgan | BA16: Amazon | BB16: F | BC16: Yahoo | BD16: 134 | BE16: FALSE | BF16: =IF(BE16,'Google Finance Stocks'!D40) -> FALSE | BH16: =IF(BE16,'Google Finance Stocks'!E40) -> FALSE | BL16: 134 | BM16: 134 | BN16: ='Exchange Rates'!D26 -> US Med Inc Nom | BP16: =IF(BM16,'Exchange Rates'!E26) -> Median Household Income in the United States (MEHOINUSA646N)
L17: 15 | M17: FB | N17: Facebook | O17: F | P17: Yahoo | Q17: 15 | R17: FALSE | S17: =IF(R17,'Yahoo Index'!E69,"") ->  | T17: =IF(R17,'Yahoo Index'!F69,"") ->  | X17: 21 | Y17: FALSE | Z17: =IF($F$6,'FRED Indicies'!E30) -> 0 | AB17: =IF($F$6,'FRED Indicies'!D30) -> 0 | AF17: 22 | AG17: FALSE | AH17: =IF(AG17,'Google Index'!E44) -> FALSE | AJ17: =IF(AF17,'Google Index'!F44) -> 0 | AN17: 22 | AO17: FALSE | AP17: =IF(AO17,'Commodity Prices'!C30) -> FALSE | AR17: =IF(AO17,'Commodity Prices'!D30) -> FALSE | AV17: 25 | AW17: 25 | AX17: =IF(AW17,'Yahoo Stocks'!D44) -> MCD | AY17: FB | AZ17: =IF(AW17,'Yahoo Stocks'!E44) -> McDonalds | BA17: Facebook | BB17: F | BC17: Yahoo | BD17: 135 | BE17: FALSE | BF17: =IF(BE17,'Google Finance Stocks'!D41) -> FALSE | BH17: =IF(BE17,'Google Finance Stocks'!E41) -> FALSE | BL17: 135 | BM17: 135 | BN17: ='Exchange Rates'!D27 -> Median Income | BP17: =IF(BM17,'Exchange Rates'!E27) -> Employed full time: Median usual weekly real earnings: d over (LES1252881600Q)
F18: FALSE | G18: =H15+1 -> 121 | H18: =Google_Tickers*F18+G18-1 -> 120 | I18: D | J18: Google | L18: 16 | M18: DTE.DE | N18: Deutsche Telekom AG (ADR) | O18: F | P18: Yahoo | Q18: 16 | R18: FALSE | S18: =IF(R18,'Yahoo Index'!E70,"") ->  | T18: =IF(R18,'Yahoo Index'!F70,"") ->  | X18: 22 | Y18: FALSE | Z18: =IF($F$6,'FRED Indicies'!E31) -> 0 | AB18: =IF($F$6,'FRED Indicies'!D31) -> 0 | AF18: 23 | AG18: FALSE | AH18: =IF(AG18,'Google Index'!E45) -> FALSE | AJ18: =IF(AF18,'Google Index'!F45) -> 0 | AN18: 23 | AO18: FALSE | AP18: =IF(AO18,'Commodity Prices'!C31) -> FALSE | AR18: =IF(AO18,'Commodity Prices'!D31) -> FALSE | AV18: 26 | AW18: 26 | AX18: =IF(AW18,'Yahoo Stocks'!D45) -> WMT | AY18: DTE.DE | AZ18: =IF(AW18,'Yahoo Stocks'!E45) -> Wall Mart | BA18: Deutsche Telekom AG (ADR) | BB18: F | BC18: Yahoo | BD18: 136 | BE18: FALSE | BF18: =IF(BE18,'Google Finance Stocks'!D42) -> FALSE | BH18: =IF(BE18,'Google Finance Stocks'!E42) -> FALSE | BL18: 136 | BM18: 136 | BN18: ='Exchange Rates'!D28 -> Corp Profit | BP18: =IF(BM18,'Exchange Rates'!E28) -> Corporate Profits
L19: 17 | M19: FTE | N19: France Telecom SA (ADR) | O19: F | P19: Yahoo | Q19: 17 | R19: FALSE | S19: =IF(R19,'Yahoo Index'!E71,"") ->  | T19: =IF(R19,'Yahoo Index'!F71,"") ->  | X19: 23 | Y19: FALSE | Z19: =IF($F$6,'FRED Indicies'!E32) -> 0 | AB19: =IF($F$6,'FRED Indicies'!D32) -> 0 | AF19: 24 | AG19: FALSE | AH19: =IF(AG19,'Google Index'!E46) -> FALSE | AJ19: =IF(AF19,'Google Index'!F46) -> 0 | AN19: 24 | AO19: FALSE | AP19: =IF(AO19,'Commodity Prices'!C32) -> FALSE | AR19: =IF(AO19,'Commodity Prices'!D32) -> FALSE | AV19: 27 | AW19: 27 | AX19: =IF(AW19,'Yahoo Stocks'!D46) -> NG.L | AY19: FTE | AZ19: =IF(AW19,'Yahoo Stocks'!E46) -> National Grid | BA19: France Telecom SA (ADR) | BB19: F | BC19: Yahoo | BD19: 137 | BE19: FALSE | BF19: =IF(BE19,'Google Finance Stocks'!D43) -> FALSE | BH19: =IF(BE19,'Google Finance Stocks'!E43) -> FALSE | BL19: 137 | BM19: 137 | BN19: ='Exchange Rates'!D29 -> Corp Nonfin | BP19: =IF(BM19,'Exchange Rates'!E29) -> Non Financial Corporate Profits
L20: 18 | M20: BT | N20: BT Group plc (ADR) (BT) | O20: F | P20: Yahoo | Q20: 18 | R20: FALSE | S20: =IF(R20,'Yahoo Index'!E72,"") ->  | T20: =IF(R20,'Yahoo Index'!F72,"") ->  | X20: 24 | Y20: FALSE | Z20: =IF($F$6,'FRED Indicies'!E33) -> 0 | AB20: =IF($F$6,'FRED Indicies'!D33) -> 0 | AF20: 25 | AG20: FALSE | AH20: =IF(AG20,'Google Index'!E47) -> FALSE | AJ20: =IF(AF20,'Google Index'!F47) -> 0 | AN20: 25 | AO20: FALSE | AP20: =IF(AO20,'Commodity Prices'!C33) -> FALSE | AR20: =IF(AO20,'Commodity Prices'!D33) -> FALSE | AV20: 28 | AW20: 28 | AX20: =IF(AW20,'Yahoo Stocks'!D47) -> EXC | AY20: BT | AZ20: =IF(AW20,'Yahoo Stocks'!E47) -> Exelon | BA20: BT Group plc (ADR) (BT) | BB20: F | BC20: Yahoo | BD20: 138 | BE20: FALSE | BF20: =IF(BE20,'Google Finance Stocks'!D44) -> FALSE | BH20: =IF(BE20,'Google Finance Stocks'!E44) -> FALSE | BL20: 138 | BM20: 138 | BN20: ='Exchange Rates'!D30 -> Corp Aft Tax | BP20: =IF(BM20,'Exchange Rates'!E30) -> Corporate Profits After Tax
F21: TRUE | G21: =H18+1 -> 121 | H21: ='Exchange Rates'!D5*'Read Stocks'!F21+G21-1 -> 143 | I21: B | J21: FRED | L21: 19 | M21: VOD | N21: Vodafone Group plc | O21: F | P21: Yahoo | Q21: 19 | R21: FALSE | S21: =IF(R21,'Yahoo Index'!E73,"") ->  | T21: =IF(R21,'Yahoo Index'!F73,"") ->  | X21: 25 | Y21: FALSE | Z21: =IF($F$6,'FRED Indicies'!E34) -> 0 | AB21: =IF($F$6,'FRED Indicies'!D34) -> 0 | AF21: 26 | AG21: FALSE | AH21: =IF(AG21,'Google Index'!E48) -> FALSE | AJ21: =IF(AF21,'Google Index'!F48) -> 0 | AN21: 26 | AO21: FALSE | AP21: =IF(AO21,'Commodity Prices'!C34) -> FALSE | AR21: =IF(AO21,'Commodity Prices'!D34) -> FALSE | AV21: 29 | AW21: 29 | AX21: =IF(AW21,'Yahoo Stocks'!D48) -> ENGI.PA | AY21: VOD | AZ21: =IF(AW21,'Yahoo Stocks'!E48) -> GDF Suez | BA21: Vodafone Group plc | BB21: F | BC21: Yahoo | BD21: 139 | BE21: FALSE | BF21: =IF(BE21,'Google Finance Stocks'!D45) -> FALSE | BH21: =IF(BE21,'Google Finance Stocks'!E45) -> FALSE | BL21: 139 | BM21: 139 | BN21: ='Exchange Rates'!D31 -> Corp Inf Adjusted | BP21: =IF(BM21,'Exchange Rates'!E31) -> Corporate Profits with Inflation Adj
L22: 20 | M22: VZ | N22: Verizon Communications... | O22: F | P22: Yahoo | Q22: 20 | R22: FALSE | S22: =IF(R22,'Yahoo Index'!E74,"") ->  | T22: =IF(R22,'Yahoo Index'!F74,"") ->  | X22: 26 | Y22: FALSE | Z22: =IF($F$6,'FRED Indicies'!E35) -> 0 | AB22: =IF($F$6,'FRED Indicies'!D35) -> 0 | AF22: 27 | AG22: FALSE | AH22: =IF(AG22,'Google Index'!E49) -> FALSE | AJ22: =IF(AF22,'Google Index'!F49) -> 0 | AN22: 27 | AO22: FALSE | AP22: =IF(AO22,'Commodity Prices'!C35) -> FALSE | AR22: =IF(AO22,'Commodity Prices'!D35) -> FALSE | AV22: 30 | AW22: 30 | AX22: =IF(AW22,'Yahoo Stocks'!D49) -> EDF.PA | AY22: VZ | AZ22: =IF(AW22,'Yahoo Stocks'!E49) -> EDF | BA22: Verizon Communications... | BB22: F | BC22: Yahoo | BD22: 140 | BE22: FALSE | BF22: =IF(BE22,'Google Finance Stocks'!D46) -> FALSE | BH22: =IF(BE22,'Google Finance Stocks'!E46) -> FALSE | BL22: 140 | BM22: 140 | BN22: ='Exchange Rates'!D32 -> GDP Inflation Index | BP22: =IF(BM22,'Exchange Rates'!E32) -> GDP Inflation Index
L23: 21 | M23: S | N23: Sprint | O23: F | P23: Yahoo | Q23: 21 | R23: FALSE | S23: =IF(R23,'Yahoo Index'!E75,"") ->  | T23: =IF(R23,'Yahoo Index'!F75,"") ->  | X23: 27 | Y23: FALSE | Z23: =IF($F$6,'FRED Indicies'!E36) -> 0 | AB23: =IF($F$6,'FRED Indicies'!D36) -> 0 | AF23: 28 | AG23: FALSE | AH23: =IF(AG23,'Google Index'!E50) -> FALSE | AJ23: =IF(AF23,'Google Index'!F50) -> 0 | AN23: 28 | AO23: FALSE | AP23: =IF(AO23,'Commodity Prices'!C36) -> FALSE | AR23: =IF(AO23,'Commodity Prices'!D36) -> FALSE | AV23: 31 | AW23: 31 | AX23: =IF(AW23,'Yahoo Stocks'!D50) -> ED | AY23: S | AZ23: =IF(AW23,'Yahoo Stocks'!E50) -> Consolidated Edison | BA23: Sprint | BB23: F | BC23: Yahoo | BD23: 141 | BE23: FALSE | BF23: =IF(BE23,'Google Finance Stocks'!D47) -> FALSE | BH23: =IF(BE23,'Google Finance Stocks'!E47) -> FALSE | BL23: 141 | BM23: 141 | BN23: ='Exchange Rates'!D33 -> CPI US Index | BP23: =IF(BM23,'Exchange Rates'!E33) -> CPI US Index
L24: 22 | M24: PHI | N24: Philippine Long Distance (PHI) | O24: F | P24: Yahoo | Q24: 22 | R24: FALSE | S24: =IF(R24,'Yahoo Index'!E76,"") ->  | T24: =IF(R24,'Yahoo Index'!F76,"") ->  | X24: 28 | Y24: FALSE | Z24: =IF($F$6,'FRED Indicies'!E37) -> 0 | AB24: =IF($F$6,'FRED Indicies'!D37) -> 0 | AF24: 29 | AG24: FALSE | AH24: =IF(AG24,'Google Index'!E51) -> FALSE | AJ24: =IF(AF24,'Google Index'!F51) -> 0 | AN24: 29 | AO24: FALSE | AP24: =IF(AO24,'Commodity Prices'!C37) -> FALSE | AR24: =IF(AO24,'Commodity Prices'!D37) -> FALSE | AV24: 32 | AW24: 32 | AX24: =IF(AW24,'Yahoo Stocks'!D51) -> TENA.KL | AY24: PHI | AZ24: =IF(AW24,'Yahoo Stocks'!E51) -> Tenaga | BA24: Philippine Long Distance (PHI) | BB24: F | BC24: Yahoo | BD24: 142 | BE24: FALSE | BF24: =IF(BE24,'Google Finance Stocks'!D48) -> FALSE | BH24: =IF(BE24,'Google Finance Stocks'!E48) -> FALSE | BL24: 142 | BM24: 142 | BN24: ='Exchange Rates'!D34 -> US GDP | BP24: =IF(BM24,'Exchange Rates'!E34) -> US GDP Gross Domestic Product (GDP)
L25: 23 | M25: TKC | N25: Turkcell Iletisim Hizm... | O25: F | P25: Yahoo | Q25: 23 | R25: FALSE | S25: =IF(R25,'Yahoo Index'!E77,"") ->  | T25: =IF(R25,'Yahoo Index'!F77,"") ->  | X25: 29 | Y25: FALSE | Z25: =IF($F$6,'FRED Indicies'!E38) -> 0 | AB25: =IF($F$6,'FRED Indicies'!D38) -> 0 | AF25: 30 | AG25: FALSE | AH25: =IF(AG25,'Google Index'!E52) -> FALSE | AJ25: =IF(AF25,'Google Index'!F52) -> 0 | AN25: 30 | AO25: FALSE | AP25: =IF(AO25,'Commodity Prices'!C38) -> FALSE | AR25: =IF(AO25,'Commodity Prices'!D38) -> FALSE | AV25: 33 | AW25: 33 | AX25: =IF(AW25,'Yahoo Stocks'!D52) -> MAEOY | AY25: TKC | AZ25: =IF(AW25,'Yahoo Stocks'!E52) -> Meralco | BA25: Turkcell Iletisim Hizm... | BB25: F | BC25: Yahoo | BD25: 143 | BE25: FALSE | BF25: =IF(BE25,'Google Finance Stocks'!D49) -> FALSE | BH25: =IF(BE25,'Google Finance Stocks'!E49) -> FALSE | BL25: 143 | BM25: 143 | BN25: ='Exchange Rates'!D35 -> Median Family Income | BP25: =IF(BM25,'Exchange Rates'!E35) -> Median Family Income in the United States (MEFAINUSA646N)
L26: 24 | M26: JPM | N26: JP Morgan | O26: F | P26: Yahoo | Q26: 24 | R26: FALSE | S26: =IF(R26,'Yahoo Index'!E78,"") ->  | T26: =IF(R26,'Yahoo Index'!F78,"") ->  | X26: 30 | Y26: FALSE | Z26: =IF($F$6,'FRED Indicies'!E39) -> 0 | AB26: =IF($F$6,'FRED Indicies'!D39) -> 0 | AF26: 31 | AG26: FALSE | AH26: =IF(AG26,'Google Index'!E53) -> FALSE | AJ26: =IF(AF26,'Google Index'!F53) -> 0 | AN26: 31 | AO26: FALSE | AP26: =IF(AO26,'Commodity Prices'!C39) -> FALSE | AR26: =IF(AO26,'Commodity Prices'!D39) -> FALSE | AV26: 34 | AW26: 34 | AX26: =IF(AW26,'Yahoo Stocks'!D53) -> VWDRY | AY26: JPM | AZ26: =IF(AW26,'Yahoo Stocks'!E53) -> Vestas ADR | BA26: JP Morgan | BB26: F | BC26: Yahoo | BD26: 144 | BE26: FALSE | BF26: =IF(BE26,'Google Finance Stocks'!D50) -> FALSE | BH26: =IF(BE26,'Google Finance Stocks'!E50) -> FALSE | BL26: 144 | BM26: FALSE | BN26: ='Exchange Rates'!D36 -> 0 | BP26: =IF(BM26,'Exchange Rates'!E36) -> FALSE
L27: 25 | M27: MCD | N27: McDonalds | O27: F | P27: Yahoo | Q27: 25 | R27: FALSE | S27: =IF(R27,'Yahoo Index'!E79,"") ->  | T27: =IF(R27,'Yahoo Index'!F79,"") ->  | X27: 31 | Y27: FALSE | Z27: =IF($F$6,'FRED Indicies'!E40) -> 0 | AB27: =IF($F$6,'FRED Indicies'!D40) -> 0 | AF27: 32 | AG27: FALSE | AH27: =IF(AG27,'Google Index'!E54) -> FALSE | AJ27: =IF(AF27,'Google Index'!F54) -> 0 | AN27: 32 | AO27: FALSE | AP27: =IF(AO27,'Commodity Prices'!C40) -> FALSE | AR27: =IF(AO27,'Commodity Prices'!D40) -> FALSE | AV27: 35 | AW27: =IF(AND($F$15,AV27<=$H$15),AV27) -> 35 | AX27: =IF(AW27,'Yahoo Stocks'!D54) -> VWS.CO | AY27: =IFERROR(INDEX(AX:AX,MATCH(L27,AW:AW,0)),"") -> MCD | AZ27: =IF(AW27,'Yahoo Stocks'!E54) -> Vestas (Denmark) | BA27: =IFERROR(INDEX(AZ:AZ,MATCH(L27,AW:AW,0)),"") -> McDonalds | BB27: =IF(AY27<>"",$I$15,"") -> F | BC27: Yahoo | BD27: 145 | BE27: FALSE | BF27: =IF(BE27,'Google Finance Stocks'!D51) -> FALSE | BH27: =IF(BE27,'Google Finance Stocks'!E51) -> FALSE | BL27: 145 | BM27: FALSE | BN27: ='Exchange Rates'!D37 -> 0 | BP27: =IF(BM27,'Exchange Rates'!E37) -> FALSE
L28: 26 | M28: WMT | N28: Wall Mart | O28: F | P28: Yahoo | Q28: 26 | R28: FALSE | S28: =IF(R28,'Yahoo Index'!E80,"") ->  | T28: =IF(R28,'Yahoo Index'!F80,"") ->  | X28: 32 | Y28: FALSE | Z28: =IF($F$6,'FRED Indicies'!E41) -> 0 | AB28: =IF($F$6,'FRED Indicies'!D41) -> 0 | AF28: 33 | AG28: FALSE | AH28: =IF(AG28,'Google Index'!E55) -> FALSE | AJ28: =IF(AF28,'Google Index'!F55) -> 0 | AN28: 33 | AO28: FALSE | AP28: =IF(AO28,'Commodity Prices'!C41) -> FALSE | AR28: =IF(AO28,'Commodity Prices'!D41) -> FALSE | AV28: 36 | AW28: 36 | AX28: =IF(AW28,'Yahoo Stocks'!D55) -> GE | AY28: WMT | AZ28: =IF(AW28,'Yahoo Stocks'!E55) -> General Electric | BA28: Wall Mart | BB28: F | BC28: Yahoo | BD28: 146 | BE28: FALSE | BF28: =IF(BE28,'Google Finance Stocks'!D52) -> FALSE | BH28: =IF(BE28,'Google Finance Stocks'!E52) -> FALSE | BL28: 146 | BM28: FALSE | BN28: ='Exchange Rates'!D38 -> 0 | BP28: =IF(BM28,'Exchange Rates'!E38) -> FALSE
L29: 27 | M29: NG.L | N29: National Grid | O29: F | P29: Yahoo | Q29: 27 | R29: FALSE | S29: =IF(R29,'Yahoo Index'!E81,"") ->  | T29: =IF(R29,'Yahoo Index'!F81,"") ->  | X29: 33 | Y29: FALSE | Z29: =IF($F$6,'FRED Indicies'!E42) -> 0 | AB29: =IF($F$6,'FRED Indicies'!D42) -> 0 | AF29: 34 | AG29: FALSE | AH29: =IF(AG29,'Google Index'!E56) -> FALSE | AJ29: =IF(AF29,'Google Index'!F56) -> 0 | AN29: 34 | AO29: FALSE | AP29: =IF(AO29,'Commodity Prices'!C42) -> FALSE | AR29: =IF(AO29,'Commodity Prices'!D42) -> FALSE | AV29: 37 | AW29: 37 | AX29: =IF(AW29,'Yahoo Stocks'!D56) -> NDX1.DE | AY29: NG.L | AZ29: =IF(AW29,'Yahoo Stocks'!E56) -> Nordex Wind SE: German On-Shore Wind | BA29: National Grid | BB29: F | BC29: Yahoo | BD29: 147 | BE29: FALSE | BF29: =IF(BE29,'Google Finance Stocks'!D53) -> FALSE | BH29: =IF(BE29,'Google Finance Stocks'!E53) -> FALSE | BL29: 147 | BM29: FALSE | BN29: ='Exchange Rates'!D39 -> 0 | BP29: =IF(BM29,'Exchange Rates'!E39) -> FALSE
L30: 28 | M30: EXC | N30: Exelon | O30: F | P30: Yahoo | Q30: 28 | R30: FALSE | S30: =IF(R30,'Yahoo Index'!E82,"") ->  | T30: =IF(R30,'Yahoo Index'!F82,"") ->  | X30: 34 | Y30: FALSE | Z30: =IF($F$6,'FRED Indicies'!E43) -> 0 | AB30: =IF($F$6,'FRED Indicies'!D43) -> 0 | AF30: 35 | AG30: FALSE | AH30: =IF(AG30,'Google Index'!E57) -> FALSE | AJ30: =IF(AF30,'Google Index'!F57) -> 0 | AN30: 35 | AO30: FALSE | AP30: =IF(AO30,'Commodity Prices'!C43) -> FALSE | AR30: =IF(AO30,'Commodity Prices'!D43) -> FALSE | AV30: 38 | AW30: 38 | AX30: =IF(AW30,'Yahoo Stocks'!D57) -> 601558.SS | AY30: EXC | AZ30: =IF(AW30,'Yahoo Stocks'!E57) -> Sinovel Wind: Chinese Wind Manufactrer | BA30: Exelon | BB30: F | BC30: Yahoo | BD30: 148 | BE30: FALSE | BF30: =IF(BE30,'Google Finance Stocks'!D54) -> FALSE | BH30: =IF(BE30,'Google Finance Stocks'!E54) -> FALSE | BL30: 148 | BM30: FALSE | BN30: ='Exchange Rates'!D40 -> 0 | BP30: =IF(BM30,'Exchange Rates'!E40) -> FALSE
L31: 29 | M31: ENGI.PA | N31: GDF Suez | O31: F | P31: Yahoo | Q31: 29 | R31: FALSE | S31: =IF(R31,'Yahoo Index'!E83,"") ->  | T31: =IF(R31,'Yahoo Index'!F83,"") ->  | X31: 35 | Y31: FALSE | Z31: =IF($F$6,'FRED Indicies'!E44) -> 0 | AB31: =IF($F$6,'FRED Indicies'!D44) -> 0 | AF31: 36 | AG31: FALSE | AH31: =IF(AG31,'Google Index'!E58) -> FALSE | AJ31: =IF(AF31,'Google Index'!F58) -> 0 | AN31: 36 | AO31: FALSE | AP31: =IF(AO31,'Commodity Prices'!C44) -> FALSE | AR31: =IF(AO31,'Commodity Prices'!D44) -> FALSE | AV31: 39 | AW31: 39 | AX31: =IF(AW31,'Yahoo Stocks'!D58) -> SUZLON.NS | AY31: ENGI.PA | AZ31: =IF(AW31,'Yahoo Stocks'!E58) -> Suzlon: Indian Wind Manufacturer | BA31: GDF Suez | BB31: F | BC31: Yahoo | BD31: 149 | BE31: FALSE | BF31: =IF(BE31,'Google Finance Stocks'!D55) -> FALSE | BH31: =IF(BE31,'Google Finance Stocks'!E55) -> FALSE | BL31: 149 | BM31: FALSE | BN31: ='Exchange Rates'!D41 -> 0 | BP31: =IF(BM31,'Exchange Rates'!E41) -> FALSE
L32: 30 | M32: EDF.PA | N32: EDF | O32: F | P32: Yahoo | Q32: 30 | R32: FALSE | S32: =IF(R32,'Yahoo Index'!E84,"") ->  | T32: =IF(R32,'Yahoo Index'!F84,"") ->  | X32: 36 | Y32: FALSE | Z32: =IF($F$6,'FRED Indicies'!E45) -> 0 | AB32: =IF($F$6,'FRED Indicies'!D45) -> 0 | AF32: 37 | AG32: FALSE | AH32: =IF(AG32,'Google Index'!E59) -> FALSE | AJ32: =IF(AF32,'Google Index'!F59) -> 0 | AN32: 37 | AO32: FALSE | AP32: =IF(AO32,'Commodity Prices'!C45) -> FALSE | AR32: =IF(AO32,'Commodity Prices'!D45) -> FALSE | AV32: 40 | AW32: 40 | AX32: =IF(AW32,'Yahoo Stocks'!D59) -> 002202.SZ | AY32: EDF.PA | AZ32: =IF(AW32,'Yahoo Stocks'!E59) -> Goldwind: Chinese Wind Manufacturer | BA32: EDF | BB32: F | BC32: Yahoo | BD32: 150 | BE32: FALSE | BF32: =IF(BE32,'Google Finance Stocks'!D56) -> FALSE | BH32: =IF(BE32,'Google Finance Stocks'!E56) -> FALSE | BL32: 150 | BM32: FALSE | BN32: ='Exchange Rates'!D42 -> 0 | BP32: =IF(BM32,'Exchange Rates'!E42) -> FALSE
L33: 31 | M33: ED | N33: Consolidated Edison | O33: F | P33: Yahoo | Q33: 31 | R33: FALSE | S33: =IF(R33,'Yahoo Index'!E85,"") ->  | T33: =IF(R33,'Yahoo Index'!F85,"") ->  | X33: 37 | Y33: FALSE | Z33: =IF($F$6,'FRED Indicies'!E46) -> 0 | AB33: =IF($F$6,'FRED Indicies'!D46) -> 0 | AF33: 38 | AG33: FALSE | AH33: =IF(AG33,'Google Index'!E60) -> FALSE | AJ33: =IF(AF33,'Google Index'!F60) -> 0 | AN33: 38 | AO33: FALSE | AP33: =IF(AO33,'Commodity Prices'!C46) -> FALSE | AR33: =IF(AO33,'Commodity Prices'!D46) -> FALSE | AV33: 41 | AW33: 41 | AX33: =IF(AW33,'Yahoo Stocks'!D60) -> LB | AY33: ED | AZ33: =IF(AW33,'Yahoo Stocks'!E60) -> Victoria Secret | BA33: Consolidated Edison | BB33: F | BC33: Yahoo | BD33: 151 | BE33: FALSE | BF33: =IF(BE33,'Google Finance Stocks'!D57) -> FALSE | BH33: =IF(BE33,'Google Finance Stocks'!E57) -> FALSE | BL33: 151 | BM33: FALSE | BN33: ='Exchange Rates'!D43 -> 0 | BP33: =IF(BM33,'Exchange Rates'!E43) -> FALSE
L34: 32 | M34: TENA.KL | N34: Tenaga | O34: F | P34: Yahoo | Q34: 32 | R34: FALSE | S34: =IF(R34,'Yahoo Index'!E86,"") ->  | T34: =IF(R34,'Yahoo Index'!F86,"") ->  | X34: 38 | Y34: FALSE | Z34: =IF($F$6,'FRED Indicies'!E47) -> 0 | AB34: =IF($F$6,'FRED Indicies'!D47) -> 0 | AF34: 39 | AG34: FALSE | AH34: =IF(AG34,'Google Index'!E61) -> FALSE | AJ34: =IF(AF34,'Google Index'!F61) -> 0 | AN34: 39 | AO34: FALSE | AP34: =IF(AO34,'Commodity Prices'!C47) -> FALSE | AR34: =IF(AO34,'Commodity Prices'!D47) -> FALSE | AV34: 42 | AW34: 42 | AX34: =IF(AW34,'Yahoo Stocks'!D61) -> MY | AY34: TENA.KL | AZ34: =IF(AW34,'Yahoo Stocks'!E61) -> Ming Yang: Chinese Wind Manufacturer | BA34: Tenaga | BB34: F | BC34: Yahoo | BD34: 152 | BE34: FALSE | BF34: =IF(BE34,'Google Finance Stocks'!D58) -> FALSE | BH34: =IF(BE34,'Google Finance Stocks'!E58) -> FALSE | BL34: 152 | BM34: FALSE | BN34: ='Exchange Rates'!D44 -> 0 | BP34: =IF(BM34,'Exchange Rates'!E44) -> FALSE
L35: 33 | M35: MAEOY | N35: Meralco | O35: F | P35: Yahoo | Q35: 33 | R35: FALSE | S35: =IF(R35,'Yahoo Index'!E87,"") ->  | T35: =IF(R35,'Yahoo Index'!F87,"") ->  | X35: 39 | Y35: =IF(AND($F$6,X35<=$H$6),X35) -> FALSE | Z35: =IF($F$6,'FRED Indicies'!E48) -> 0 | AA35: =IFERROR(INDEX(Z:Z,MATCH(L35,Y:Y,0)),"") ->  | AB35: =IF($F$6,'FRED Indicies'!D48) -> 0 | AC35: =IFERROR(INDEX(AB:AB,MATCH(L35,Y:Y,0)),"") ->  | AF35: 40 | AG35: FALSE | AH35: =IF(AG35,'Google Index'!E62) -> FALSE | AI35: =IFERROR(INDEX(AH:AH,MATCH(Q35,AG:AG,0)),"") ->  | AJ35: =IF(AF35,'Google Index'!F62) -> 0 | AK35: =IFERROR(INDEX(AJ:AJ,MATCH(Q35,AG:AG,0)),"") ->  | AN35: 40 | AO35: FALSE | AP35: =IF(AO35,'Commodity Prices'!C48) -> FALSE | AQ35: =IFERROR(INDEX(AP:AP,MATCH(L35,AO:AO,0)),"") ->  | AR35: =IF(AO35,'Commodity Prices'!D48) -> FALSE | AS35: =IFERROR(INDEX(AR:AR,MATCH(L35,AO:AO,0)),"") ->  | AV35: 43 | AW35: 43 | AX35: =IF(AW35,'Yahoo Stocks'!D62) -> FSLR | AY35: MAEOY | AZ35: =IF(AW35,'Yahoo Stocks'!E62) -> First Solar (U.S.) | BA35: Meralco | BB35: F | BC35: Yahoo | BD35: 153 | BE35: FALSE | BF35: =IF(BE35,'Google Finance Stocks'!D59) -> FALSE | BH35: =IF(BE35,'Google Finance Stocks'!E59) -> FALSE | BL35: 153 | BM35: FALSE | BN35: ='Exchange Rates'!D45 -> 0 | BP35: =IF(BM35,'Exchange Rates'!E45) -> FALSE
L36: 34 | M36: VWDRY | N36: Vestas ADR | O36: F | P36: Yahoo | Q36: 34 | R36: FALSE | S36: =IF(R36,'Yahoo Index'!E88,"") ->  | T36: =IF(R36,'Yahoo Index'!F88,"") ->  | X36: 40 | Y36: FALSE | Z36: =IF($F$6,'FRED Indicies'!E49) -> 0 | AB36: =IF($F$6,'FRED Indicies'!D49) -> 0 | AF36: 41 | AG36: FALSE | AH36: =IF(AG36,'Google Index'!E63) -> FALSE | AJ36: =IF(AF36,'Google Index'!F63) -> 0 | AN36: 41 | AO36: FALSE | AP36: =IF(AO36,'Commodity Prices'!C49) -> FALSE | AR36: =IF(AO36,'Commodity Prices'!D49) -> FALSE | AV36: 44 | AW36: 44 | AX36: =IF(AW36,'Yahoo Stocks'!D63) -> RECSOL.OL | AY36: VWDRY | AZ36: =IF(AW36,'Yahoo Stocks'!E63) -> REC: Solar Manufacturer Norway | BA36: Vestas ADR | BB36: F | BC36: Yahoo | BD36: 154 | BE36: FALSE | BF36: =IF(BE36,'Google Finance Stocks'!D60) -> FALSE | BH36: =IF(BE36,'Google Finance Stocks'!E60) -> FALSE | BL36: 154 | BM36: FALSE | BN36: ='Exchange Rates'!D46 -> 0 | BP36: =IF(BM36,'Exchange Rates'!E46) -> FALSE
L37: 35 | M37: VWS.CO | N37: Vestas (Denmark) | O37: F | P37: Yahoo | Q37: 35 | R37: FALSE | S37: =IF(R37,'Yahoo Index'!E89,"") ->  | T37: =IF(R37,'Yahoo Index'!F89,"") ->  | X37: 41 | Y37: FALSE | Z37: =IF($F$6,'FRED Indicies'!E50) -> 0 | AB37: =IF($F$6,'FRED Indicies'!D50) -> 0 | AF37: 42 | AG37: FALSE | AH37: =IF(AG37,'Google Index'!E64) -> FALSE | AJ37: =IF(AF37,'Google Index'!F64) -> 0 | AN37: 42 | AO37: FALSE | AP37: =IF(AO37,'Commodity Prices'!C50) -> FALSE | AR37: =IF(AO37,'Commodity Prices'!D50) -> FALSE | AV37: 45 | AW37: 45 | AX37: =IF(AW37,'Yahoo Stocks'!D64) -> SPWR | AY37: VWS.CO | AZ37: =IF(AW37,'Yahoo Stocks'!E64) -> SunPower Corporation (U.S.) | BA37: Vestas (Denmark) | BB37: F | BC37: Yahoo | BD37: 155 | BE37: FALSE | BF37: =IF(BE37,'Google Finance Stocks'!D61) -> FALSE | BH37: =IF(BE37,'Google Finance Stocks'!E61) -> FALSE | BL37: 155 | BM37: FALSE | BN37: ='Exchange Rates'!D47 -> 0 | BP37: =IF(BM37,'Exchange Rates'!E47) -> FALSE
L38: 36 | M38: GE | N38: General Electric | O38: F | P38: Yahoo | Q38: 36 | R38: FALSE | S38: =IF(R38,'Yahoo Index'!E90,"") ->  | T38: =IF(R38,'Yahoo Index'!F90,"") ->  | X38: 42 | Y38: FALSE | Z38: =IF($F$6,'FRED Indicies'!E51) -> 0 | AB38: =IF($F$6,'FRED Indicies'!D51) -> 0 | AF38: 43 | AG38: FALSE | AH38: =IF(AG38,'Google Index'!E65) -> FALSE | AJ38: =IF(AF38,'Google Index'!F65) -> 0 | AN38: 43 | AO38: FALSE | AP38: =IF(AO38,'Commodity Prices'!C51) -> FALSE | AR38: =IF(AO38,'Commodity Prices'!D51) -> FALSE | AV38: 46 | AW38: 46 | AX38: =IF(AW38,'Yahoo Stocks'!D65) -> TSL | AY38: GE | AZ38: =IF(AW38,'Yahoo Stocks'!E65) -> Trina Solar Limited (China) | BA38: General Electric | BB38: F | BC38: Yahoo | BD38: 156 | BE38: FALSE | BF38: =IF(BE38,'Google Finance Stocks'!D62) -> FALSE | BH38: =IF(BE38,'Google Finance Stocks'!E62) -> FALSE | BL38: 156 | BM38: FALSE | BN38: ='Exchange Rates'!D48 -> 0 | BP38: =IF(BM38,'Exchange Rates'!E48) -> FALSE
L39: 37 | M39: NDX1.DE | N39: Nordex Wind SE: German On-Shore Wind | O39: F | P39: Yahoo | Q39: 37 | R39: FALSE | S39: =IF(R39,'Yahoo Index'!E91,"") ->  | T39: =IF(R39,'Yahoo Index'!F91,"") ->  | X39: 43 | Y39: FALSE | Z39: =IF($F$6,'FRED Indicies'!E52) -> 0 | AB39: =IF($F$6,'FRED Indicies'!D52) -> 0 | AF39: 44 | AG39: FALSE | AH39: =IF(AG39,'Google Index'!E66) -> FALSE | AJ39: =IF(AF39,'Google Index'!F66) -> 0 | AN39: 44 | AO39: FALSE | AP39: =IF(AO39,'Commodity Prices'!C52) -> FALSE | AR39: =IF(AO39,'Commodity Prices'!D52) -> FALSE | AV39: 47 | AW39: 47 | AX39: =IF(AW39,'Yahoo Stocks'!D66) -> SCTY | AY39: NDX1.DE | AZ39: =IF(AW39,'Yahoo Stocks'!E66) -> Solar City | BA39: Nordex Wind SE: German On-Shore Wind | BB39: F | BC39: Yahoo | BD39: 157 | BE39: FALSE | BF39: =IF(BE39,'Google Finance Stocks'!D63) -> FALSE | BH39: =IF(BE39,'Google Finance Stocks'!E63) -> FALSE | BL39: 157 | BM39: FALSE | BN39: ='Exchange Rates'!D49 -> 0 | BP39: =IF(BM39,'Exchange Rates'!E49) -> FALSE
L40: 38 | M40: 601558.SS | N40: Sinovel Wind: Chinese Wind Manufactrer | O40: F | P40: Yahoo | Q40: 38 | R40: FALSE | S40: =IF(R40,'Yahoo Index'!E92,"") ->  | T40: =IF(R40,'Yahoo Index'!F92,"") ->  | X40: 44 | Y40: FALSE | Z40: =IF($F$6,'FRED Indicies'!E53) -> 0 | AB40: =IF($F$6,'FRED Indicies'!D53) -> 0 | AF40: 45 | AG40: FALSE | AH40: =IF(AG40,'Google Index'!E67) -> FALSE | AJ40: =IF(AF40,'Google Index'!F67) -> 0 | AN40: 45 | AO40: FALSE | AP40: =IF(AO40,'Commodity Prices'!C53) -> FALSE | AR40: =IF(AO40,'Commodity Prices'!D53) -> FALSE | AV40: 48 | AW40: 48 | AX40: =IF(AW40,'Yahoo Stocks'!D67) -> BN.PA | AY40: 601558.SS | AZ40: =IF(AW40,'Yahoo Stocks'!E67) -> Dannone | BA40: Sinovel Wind: Chinese Wind Manufactrer | BB40: F | BC40: Yahoo | BD40: 158 | BE40: FALSE | BF40: =IF(BE40,'Google Finance Stocks'!D64) -> FALSE | BH40: =IF(BE40,'Google Finance Stocks'!E64) -> FALSE | BL40: 158 | BM40: FALSE | BN40: ='Exchange Rates'!D50 -> 0 | BP40: =IF(BM40,'Exchange Rates'!E50) -> FALSE
L41: 39 | M41: SUZLON.NS | N41: Suzlon: Indian Wind Manufacturer | O41: F | P41: Yahoo | Q41: 39 | R41: FALSE | S41: =IF(R41,'Yahoo Index'!E93,"") ->  | T41: =IF(R41,'Yahoo Index'!F93,"") ->  | X41: 45 | Y41: FALSE | Z41: =IF($F$6,'FRED Indicies'!E54) -> 0 | AB41: =IF($F$6,'FRED Indicies'!D54) -> 0 | AF41: 46 | AG41: FALSE | AH41: =IF(AG41,'Google Index'!E68) -> FALSE | AJ41: =IF(AF41,'Google Index'!F68) -> 0 | AN41: 46 | AO41: FALSE | AP41: =IF(AO41,'Commodity Prices'!C54) -> FALSE | AR41: =IF(AO41,'Commodity Prices'!D54) -> FALSE | AV41: 49 | AW41: 49 | AX41: =IF(AW41,'Yahoo Stocks'!D68) -> PEP | AY41: SUZLON.NS | AZ41: =IF(AW41,'Yahoo Stocks'!E68) -> Pepsi Co | BA41: Suzlon: Indian Wind Manufacturer | BB41: F | BC41: Yahoo | BD41: 159 | BE41: FALSE | BF41: =IF(BE41,'Google Finance Stocks'!D65) -> FALSE | BH41: =IF(BE41,'Google Finance Stocks'!E65) -> FALSE | BL41: 159 | BM41: FALSE | BN41: ='Exchange Rates'!D51 -> 0 | BP41: =IF(BM41,'Exchange Rates'!E51) -> FALSE
L42: 40 | M42: 002202.SZ | N42: Goldwind: Chinese Wind Manufacturer | O42: F | P42: Yahoo | Q42: 40 | R42: FALSE | S42: =IF(R42,'Yahoo Index'!E94,"") ->  | T42: =IF(R42,'Yahoo Index'!F94,"") ->  | X42: 46 | Y42: FALSE | Z42: =IF($F$6,'FRED Indicies'!E55) -> 0 | AB42: =IF($F$6,'FRED Indicies'!D55) -> 0 | AF42: 47 | AG42: FALSE | AH42: =IF(AG42,'Google Index'!E69) -> FALSE | AJ42: =IF(AF42,'Google Index'!F69) -> 0 | AN42: 47 | AO42: FALSE | AP42: =IF(AO42,'Commodity Prices'!C55) -> FALSE | AR42: =IF(AO42,'Commodity Prices'!D55) -> FALSE | AV42: 50 | AW42: 50 | AX42: =IF(AW42,'Yahoo Stocks'!D69) -> CCE | AY42: 002202.SZ | AZ42: =IF(AW42,'Yahoo Stocks'!E69) -> Coca Cola | BA42: Goldwind: Chinese Wind Manufacturer | BB42: F | BC42: Yahoo | BD42: 160 | BE42: FALSE | BF42: =IF(BE42,'Google Finance Stocks'!D66) -> FALSE | BH42: =IF(BE42,'Google Finance Stocks'!E66) -> FALSE | BL42: 160 | BM42: FALSE | BN42: ='Exchange Rates'!D52 -> 0 | BP42: =IF(BM42,'Exchange Rates'!E52) -> FALSE
L43: 41 | M43: LB | N43: Victoria Secret | O43: F | P43: Yahoo | Q43: 41 | R43: FALSE | S43: =IF(R43,'Yahoo Index'!E95,"") ->  | T43: =IF(R43,'Yahoo Index'!F95,"") ->  | X43: 47 | Y43: FALSE | Z43: =IF($F$6,'FRED Indicies'!E56) -> 0 | AB43: =IF($F$6,'FRED Indicies'!D56) -> 0 | AF43: 48 | AG43: FALSE | AH43: =IF(AG43,'Google Index'!E70) -> FALSE | AJ43: =IF(AF43,'Google Index'!F70) -> 0 | AN43: 48 | AO43: FALSE | AP43: =IF(AO43,'Commodity Prices'!C56) -> FALSE | AR43: =IF(AO43,'Commodity Prices'!D56) -> FALSE | AV43: 51 | AW43: 51 | AX43: =IF(AW43,'Yahoo Stocks'!D70) -> K | AY43: LB | AZ43: =IF(AW43,'Yahoo Stocks'!E70) -> Kellog | BA43: Victoria Secret | BB43: F | BC43: Yahoo | BD43: 161 | BE43: FALSE | BF43: =IF(BE43,'Google Finance Stocks'!D67) -> FALSE | BH43: =IF(BE43,'Google Finance Stocks'!E67) -> FALSE | BL43: 161 | BM43: FALSE | BN43: ='Exchange Rates'!D53 -> 0 | BP43: =IF(BM43,'Exchange Rates'!E53) -> FALSE
L44: 42 | M44: MY | N44: Ming Yang: Chinese Wind Manufacturer | O44: F | P44: Yahoo | Q44: 42 | R44: FALSE | S44: =IF(R44,'Yahoo Index'!E96,"") ->  | T44: =IF(R44,'Yahoo Index'!F96,"") ->  | X44: 48 | Y44: FALSE | Z44: =IF($F$6,'FRED Indicies'!E57) -> 0 | AB44: =IF($F$6,'FRED Indicies'!D57) -> 0 | AF44: 49 | AG44: FALSE | AH44: =IF(AG44,'Google Index'!E71) -> FALSE | AJ44: =IF(AF44,'Google Index'!F71) -> 0 | AN44: 49 | AO44: FALSE | AP44: =IF(AO44,'Commodity Prices'!C57) -> FALSE | AR44: =IF(AO44,'Commodity Prices'!D57) -> FALSE | AV44: 52 | AW44: 52 | AX44: =IF(AW44,'Yahoo Stocks'!D71) -> GIS | AY44: MY | AZ44: =IF(AW44,'Yahoo Stocks'!E71) -> General Mills | BA44: Ming Yang: Chinese Wind Manufacturer | BB44: F | BC44: Yahoo | BD44: 162 | BE44: FALSE | BF44: =IF(BE44,'Google Finance Stocks'!D68) -> FALSE | BH44: =IF(BE44,'Google Finance Stocks'!E68) -> FALSE | BL44: 162 | BM44: FALSE | BN44: ='Exchange Rates'!D54 -> 0 | BP44: =IF(BM44,'Exchange Rates'!E54) -> FALSE
L45: 43 | M45: FSLR | N45: First Solar (U.S.) | O45: F | P45: Yahoo | Q45: 43 | R45: FALSE | S45: =IF(R45,'Yahoo Index'!E97,"") ->  | T45: =IF(R45,'Yahoo Index'!F97,"") ->  | X45: 49 | Y45: FALSE | Z45: =IF($F$6,'FRED Indicies'!E58) -> 0 | AB45: =IF($F$6,'FRED Indicies'!D58) -> 0 | AF45: 50 | AG45: FALSE | AH45: =IF(AG45,'Google Index'!E72) -> FALSE | AJ45: =IF(AF45,'Google Index'!F72) -> 0 | AN45: 50 | AO45: FALSE | AP45: =IF(AO45,'Commodity Prices'!C58) -> FALSE | AR45: =IF(AO45,'Commodity Prices'!D58) -> FALSE | AV45: 53 | AW45: 53 | AX45: =IF(AW45,'Yahoo Stocks'!D72) -> CAG | AY45: FSLR | AZ45: =IF(AW45,'Yahoo Stocks'!E72) -> ConAgra | BA45: First Solar (U.S.) | BB45: F | BC45: Yahoo | BD45: 163 | BE45: FALSE | BF45: =IF(BE45,'Google Finance Stocks'!D69) -> FALSE | BH45: =IF(BE45,'Google Finance Stocks'!E69) -> FALSE | BL45: 163 | BM45: FALSE | BN45: ='Exchange Rates'!D55 -> 0 | BP45: =IF(BM45,'Exchange Rates'!E55) -> FALSE
L46: 44 | M46: RECSOL.OL | N46: REC: Solar Manufacturer Norway | O46: F | P46: Yahoo | Q46: 44 | R46: FALSE | S46: =IF(R46,'Yahoo Index'!E98,"") ->  | T46: =IF(R46,'Yahoo Index'!F98,"") ->  | X46: 50 | Y46: FALSE | Z46: =IF($F$6,'FRED Indicies'!E59) -> 0 | AB46: =IF($F$6,'FRED Indicies'!D59) -> 0 | AF46: 51 | AG46: FALSE | AH46: =IF(AG46,'Google Index'!E73) -> FALSE | AJ46: =IF(AF46,'Google Index'!F73) -> 0 | AN46: 51 | AO46: FALSE | AP46: =IF(AO46,'Commodity Prices'!C59) -> FALSE | AR46: =IF(AO46,'Commodity Prices'!D59) -> FALSE | AV46: 54 | AW46: 54 | AX46: =IF(AW46,'Yahoo Stocks'!D73) -> HNZ | AY46: RECSOL.OL | AZ46: =IF(AW46,'Yahoo Stocks'!E73) -> Heinz | BA46: REC: Solar Manufacturer Norway | BB46: F | BC46: Yahoo | BD46: 164 | BE46: FALSE | BF46: =IF(BE46,'Google Finance Stocks'!D70) -> FALSE | BH46: =IF(BE46,'Google Finance Stocks'!E70) -> FALSE | BL46: 164 | BM46: FALSE | BN46: ='Exchange Rates'!D56 -> 0 | BP46: =IF(BM46,'Exchange Rates'!E56) -> FALSE
L47: 45 | M47: SPWR | N47: SunPower Corporation (U.S.) | O47: F | P47: Yahoo | Q47: 45 | R47: FALSE | S47: =IF(R47,'Yahoo Index'!E99,"") ->  | T47: =IF(R47,'Yahoo Index'!F99,"") ->  | X47: 51 | Y47: FALSE | Z47: =IF($F$6,'FRED Indicies'!E60) -> 0 | AB47: =IF($F$6,'FRED Indicies'!D60) -> 0 | AF47: 52 | AG47: FALSE | AH47: =IF(AG47,'Google Index'!E74) -> FALSE | AJ47: =IF(AF47,'Google Index'!F74) -> 0 | AN47: 52 | AO47: FALSE | AP47: =IF(AO47,'Commodity Prices'!C60) -> FALSE | AR47: =IF(AO47,'Commodity Prices'!D60) -> FALSE | AV47: 55 | AW47: 55 | AX47: =IF(AW47,'Yahoo Stocks'!D74) -> SLE | AY47: SPWR | AZ47: =IF(AW47,'Yahoo Stocks'!E74) -> Sara Lee | BA47: SunPower Corporation (U.S.) | BB47: F | BC47: Yahoo | BD47: 165 | BE47: FALSE | BF47: =IF(BE47,'Google Finance Stocks'!D71) -> FALSE | BH47: =IF(BE47,'Google Finance Stocks'!E71) -> FALSE | BL47: 165 | BM47: FALSE | BN47: ='Exchange Rates'!D57 -> 0 | BP47: =IF(BM47,'Exchange Rates'!E57) -> FALSE
L48: 46 | M48: TSL | N48: Trina Solar Limited (China) | O48: F | P48: Yahoo | Q48: 46 | R48: FALSE | S48: =IF(R48,'Yahoo Index'!E100,"") ->  | T48: =IF(R48,'Yahoo Index'!F100,"") ->  | X48: 52 | Y48: FALSE | Z48: =IF($F$6,'FRED Indicies'!E61) -> 0 | AB48: =IF($F$6,'FRED Indicies'!D61) -> 0 | AF48: 53 | AG48: FALSE | AH48: =IF(AG48,'Google Index'!E75) -> FALSE | AJ48: =IF(AF48,'Google Index'!F75) -> 0 | AN48: 53 | AO48: FALSE | AP48: =IF(AO48,'Commodity Prices'!C61) -> FALSE | AR48: =IF(AO48,'Commodity Prices'!D61) -> FALSE | AV48: 56 | AW48: 56 | AX48: =IF(AW48,'Yahoo Stocks'!D75) -> CHK | AY48: TSL | AZ48: =IF(AW48,'Yahoo Stocks'!E75) -> Cheasapeak Energy | BA48: Trina Solar Limited (China) | BB48: F | BC48: Yahoo | BD48: 166 | BE48: FALSE | BF48: =IF(BE48,'Google Finance Stocks'!D72) -> FALSE | BH48: =IF(BE48,'Google Finance Stocks'!E72) -> FALSE | BL48: 166 | BM48: FALSE | BN48: ='Exchange Rates'!D58 -> 0 | BP48: =IF(BM48,'Exchange Rates'!E58) -> FALSE
L49: 47 | M49: SCTY | N49: Solar City | O49: F | P49: Yahoo | Q49: 47 | R49: FALSE | S49: =IF(R49,'Yahoo Index'!E101,"") ->  | T49: =IF(R49,'Yahoo Index'!F101,"") ->  | X49: 53 | Y49: FALSE | Z49: =IF($F$6,'FRED Indicies'!E62) -> 0 | AB49: =IF($F$6,'FRED Indicies'!D62) -> 0 | AF49: 54 | AG49: FALSE | AH49: =IF(AG49,'Google Index'!E76) -> FALSE | AJ49: =IF(AF49,'Google Index'!F76) -> 0 | AN49: 54 | AO49: FALSE | AP49: =IF(AO49,'Commodity Prices'!C62) -> FALSE | AR49: =IF(AO49,'Commodity Prices'!D62) -> FALSE | AV49: 57 | AW49: 57 | AX49: =IF(AW49,'Yahoo Stocks'!D76) -> RRC | AY49: SCTY | AZ49: =IF(AW49,'Yahoo Stocks'!E76) -> Range Resources | BA49: Solar City | BB49: F | BC49: Yahoo | BD49: 167 | BE49: FALSE | BF49: =IF(BE49,'Google Finance Stocks'!D73) -> FALSE | BH49: =IF(BE49,'Google Finance Stocks'!E73) -> FALSE | BL49: 167 | BM49: FALSE | BN49: ='Exchange Rates'!D59 -> 0 | BP49: =IF(BM49,'Exchange Rates'!E59) -> FALSE
L50: 48 | M50: BN.PA | N50: Dannone | O50: F | P50: Yahoo | Q50: 48 | R50: FALSE | S50: =IF(R50,'Yahoo Index'!E102,"") ->  | T50: =IF(R50,'Yahoo Index'!F102,"") ->  | X50: 54 | Y50: FALSE | Z50: =IF($F$6,'FRED Indicies'!E63) -> 0 | AB50: =IF($F$6,'FRED Indicies'!D63) -> 0 | AF50: 55 | AG50: FALSE | AH50: =IF(AG50,'Google Index'!E77) -> FALSE | AJ50: =IF(AF50,'Google Index'!F77) -> 0 | AN50: 55 | AO50: FALSE | AP50: =IF(AO50,'Commodity Prices'!C63) -> FALSE | AR50: =IF(AO50,'Commodity Prices'!D63) -> FALSE | AV50: 58 | AW50: 58 | AX50: =IF(AW50,'Yahoo Stocks'!D77) -> CLR | AY50: BN.PA | AZ50: =IF(AW50,'Yahoo Stocks'!E77) -> Contential Resources | BA50: Dannone | BB50: F | BC50: Yahoo | BD50: 168 | BE50: FALSE | BF50: =IF(BE50,'Google Finance Stocks'!D74) -> FALSE | BH50: =IF(BE50,'Google Finance Stocks'!E74) -> FALSE | BL50: 168 | BM50: FALSE | BN50: ='Exchange Rates'!D60 -> 0 | BP50: =IF(BM50,'Exchange Rates'!E60) -> FALSE
L51: 49 | M51: PEP | N51: Pepsi Co | O51: F | P51: Yahoo | Q51: 49 | R51: FALSE | S51: =IF(R51,'Yahoo Index'!E103,"") ->  | T51: =IF(R51,'Yahoo Index'!F103,"") ->  | X51: 55 | Y51: FALSE | Z51: =IF($F$6,'FRED Indicies'!E64) -> 0 | AB51: =IF($F$6,'FRED Indicies'!D64) -> 0 | AF51: 56 | AG51: FALSE | AH51: =IF(AG51,'Google Index'!E78) -> FALSE | AJ51: =IF(AF51,'Google Index'!F78) -> 0 | AN51: 56 | AO51: FALSE | AP51: =IF(AO51,'Commodity Prices'!C64) -> FALSE | AR51: =IF(AO51,'Commodity Prices'!D64) -> FALSE | AV51: 59 | AW51: 59 | AX51: =IF(AW51,'Yahoo Stocks'!D78) -> SD | AY51: PEP | AZ51: =IF(AW51,'Yahoo Stocks'!E78) -> Sandy Ridge | BA51: Pepsi Co | BB51: F | BC51: Yahoo | BD51: 169 | BE51: FALSE | BF51: =IF(BE51,'Google Finance Stocks'!D75) -> FALSE | BH51: =IF(BE51,'Google Finance Stocks'!E75) -> FALSE | BL51: 169 | BM51: FALSE | BN51: ='Exchange Rates'!D61 -> 0 | BP51: =IF(BM51,'Exchange Rates'!E61) -> FALSE
L52: 50 | M52: CCE | N52: Coca Cola | O52: F | P52: Yahoo | Q52: 50 | R52: FALSE | S52: =IF(R52,'Yahoo Index'!E104,"") ->  | T52: =IF(R52,'Yahoo Index'!F104,"") ->  | X52: 56 | Y52: FALSE | Z52: =IF($F$6,'FRED Indicies'!E65) -> 0 | AB52: =IF($F$6,'FRED Indicies'!D65) -> 0 | AF52: 57 | AG52: FALSE | AH52: =IF(AG52,'Google Index'!E79) -> FALSE | AJ52: =IF(AF52,'Google Index'!F79) -> 0 | AN52: 57 | AO52: FALSE | AP52: =IF(AO52,'Commodity Prices'!C65) -> FALSE | AR52: =IF(AO52,'Commodity Prices'!D65) -> FALSE | AV52: 60 | AW52: 60 | AX52: =IF(AW52,'Yahoo Stocks'!D79) -> MPO | AY52: CCE | AZ52: =IF(AW52,'Yahoo Stocks'!E79) -> Midstates Petroleum | BA52: Coca Cola | BB52: F | BC52: Yahoo | BD52: 170 | BE52: FALSE | BF52: =IF(BE52,'Google Finance Stocks'!D76) -> FALSE | BH52: =IF(BE52,'Google Finance Stocks'!E76) -> FALSE | BL52: 170 | BM52: FALSE | BN52: ='Exchange Rates'!D62 -> 0 | BP52: =IF(BM52,'Exchange Rates'!E62) -> FALSE
L53: 51 | M53: =S53&AA53&AI53&AQ53&AY53&BG53&BO53 -> K | N53: =T53&AC53&AK53&AS53&BA53&BI53&BQ53 -> Kellog | O53: =U53&AD53&AL53&AT53&BB53&BJ53&BR53 -> F | P53: =V53&AE53&AM53&AU53&BC53&BK53&BS53 -> Yahoo | Q53: 51 | R53: =IF(AND($F$3,Q53<=$H$3),Q53) -> FALSE | S53: =IF(R53,'Yahoo Index'!E105,"") ->  | T53: =IF(R53,'Yahoo Index'!F105,"") ->  | U53: =IF(R53,$I$3,"") ->  | V53: =IF(R53,$J$3,"") ->  | X53: 57 | Y53: =IF(AND($F$6,X53<=$H$6),X53) -> FALSE | Z53: =IF($F$6,'FRED Indicies'!E66) -> 0 | AA53: =IFERROR(INDEX(Z:Z,MATCH(L53,Y:Y,0)),"") ->  | AB53: =IF($F$6,'FRED Indicies'!D66) -> 0 | AC53: =IFERROR(INDEX(AB:AB,MATCH(L53,Y:Y,0)),"") ->  | AD53: =IF(AA53<>"",$I$6,"") ->  | AE53: =IF(AA53<>"",$J$6,"") ->  | AF53: 58 | AG53: =IF(AND($F$9,AF53<=$H$9),AF53) -> FALSE | AH53: =IF(AG53,'Google Index'!E80) -> FALSE | AI53: =IFERROR(INDEX(AH:AH,MATCH(Q53,AG:AG,0)),"") ->  | AJ53: =IF(AF53,'Google Index'!F80) -> 0 | AK53: =IFERROR(INDEX(AJ:AJ,MATCH(Q53,AG:AG,0)),"") ->  | AL53: =IF(AI53<>"",$I$6,"") ->  | AM53: =IF(AK53<>"",$J$6,"") ->  | AN53: 58 | AO53: =IF(AND($F$12,AN53<=$H$12),AN53) -> FALSE | AP53: =IF(AO53,'Commodity Prices'!C66) -> FALSE | AQ53: =IFERROR(INDEX(AP:AP,MATCH(L53,AO:AO,0)),"") ->  | AR53: =IF(AO53,'Commodity Prices'!D66) -> FALSE | AS53: =IFERROR(INDEX(AR:AR,MATCH(L53,AO:AO,0)),"") ->  | AT53: =IF(AQ53<>"",$I$12,"") ->  | AU53: =IF(AS53<>"",$J$12,"") ->  | AV53: 61 | AW53: 61 | AX53: =IF(AW53,'Yahoo Stocks'!D80) -> RDS-B | AY53: K | AZ53: =IF(AW53,'Yahoo Stocks'!E80) -> Shell Oil | BA53: Kellog | BB53: F | BC53: Yahoo | BD53: 171 | BE53: =IF(AND($F$18,BD53<=$H$18),BD53) -> FALSE | BF53: =IF(BE53,'Google Finance Stocks'!D77) -> FALSE | BG53: =IFERROR(INDEX(BF:BF,MATCH(Q53,BE:BE,0)),"") ->  | BH53: =IF(BE53,'Google Finance Stocks'!E77) -> FALSE | BI53: =IFERROR(INDEX(BH:BH,MATCH(Q53,BE:BE,0)),"") ->  | BJ53: =IF(BI53<>"",$I$18,"") ->  | BK53: =IF(BI53<>"",$J$18,"") ->  | BL53: 171 | BM53: =IF(AND($F$21,BL53<=$H$21),BL53) -> FALSE | BN53: ='Exchange Rates'!D63 -> 0 | BO53: =IFERROR(INDEX(BN:BN,MATCH(L53,BM:BM,0)),"") ->  | BP53: =IF(BM53,'Exchange Rates'!E63) -> FALSE | BQ53: =IFERROR(INDEX(BP:BP,MATCH(L53,BM:BM,0)),"") ->  | BR53: =IF(BQ53<>"",$I$21,"") ->  | BS53: =IF(BQ53<>"",$J$21,"") -> 
L54: 52 | M54: GIS | N54: General Mills | O54: F | P54: Yahoo | Q54: 52 | R54: FALSE | S54: =IF(R54,'Yahoo Index'!E106,"") ->  | T54: =IF(R54,'Yahoo Index'!F106,"") ->  | X54: 58 | Y54: FALSE | Z54: =IF($F$6,'FRED Indicies'!E67) -> 0 | AB54: =IF($F$6,'FRED Indicies'!D67) -> 0 | AF54: 59 | AG54: FALSE | AH54: =IF(AG54,'Google Index'!E81) -> FALSE | AJ54: =IF(AF54,'Google Index'!F81) -> 0 | AN54: 59 | AO54: FALSE | AP54: =IF(AO54,'Commodity Prices'!C67) -> FALSE | AR54: =IF(AO54,'Commodity Prices'!D67) -> FALSE | AV54: 62 | AW54: 62 | AX54: =IF(AW54,'Yahoo Stocks'!D81) -> XOM | AY54: GIS | AZ54: =IF(AW54,'Yahoo Stocks'!E81) -> Exxon Mobil | BA54: General Mills | BB54: F | BC54: Yahoo | BD54: 172 | BE54: FALSE | BF54: =IF(BE54,'Google Finance Stocks'!D78) -> FALSE | BH54: =IF(BE54,'Google Finance Stocks'!E78) -> FALSE | BL54: 172 | BM54: FALSE | BN54: ='Exchange Rates'!D64 -> 0 | BP54: =IF(BM54,'Exchange Rates'!E64) -> FALSE
L55: 53 | M55: CAG | N55: ConAgra | O55: F | P55: Yahoo | Q55: 53 | R55: FALSE | S55: =IF(R55,'Yahoo Index'!E107,"") ->  | T55: =IF(R55,'Yahoo Index'!F107,"") ->  | X55: 59 | Y55: FALSE | Z55: =IF($F$6,'FRED Indicies'!E68) -> 0 | AB55: =IF($F$6,'FRED Indicies'!D68) -> 0 | AF55: 60 | AG55: FALSE | AH55: =IF(AG55,'Google Index'!E82) -> FALSE | AJ55: =IF(AF55,'Google Index'!F82) -> 0 | AN55: 60 | AO55: FALSE | AP55: =IF(AO55,'Commodity Prices'!C68) -> FALSE | AR55: =IF(AO55,'Commodity Prices'!D68) -> FALSE | AV55: 63 | AW55: 63 | AX55: =IF(AW55,'Yahoo Stocks'!D82) -> CVX | AY55: CAG | AZ55: =IF(AW55,'Yahoo Stocks'!E82) -> Chevron | BA55: ConAgra | BB55: F | BC55: Yahoo | BD55: 173 | BE55: FALSE | BF55: =IF(BE55,'Google Finance Stocks'!D79) -> FALSE | BH55: =IF(BE55,'Google Finance Stocks'!E79) -> FALSE | BL55: 173 | BM55: FALSE | BN55: ='Exchange Rates'!D65 -> 0 | BP55: =IF(BM55,'Exchange Rates'!E65) -> FALSE
L56: 54 | M56: HNZ | N56: Heinz | O56: F | P56: Yahoo | Q56: 54 | R56: FALSE | S56: =IF(R56,'Yahoo Index'!E108,"") ->  | T56: =IF(R56,'Yahoo Index'!F108,"") ->  | X56: 60 | Y56: FALSE | Z56: =IF($F$6,'FRED Indicies'!E69) -> 0 | AB56: =IF($F$6,'FRED Indicies'!D69) -> 0 | AF56: 61 | AG56: FALSE | AH56: =IF(AG56,'Google Index'!E83) -> FALSE | AJ56: =IF(AF56,'Google Index'!F83) -> 0 | AN56: 61 | AO56: FALSE | AP56: =IF(AO56,'Commodity Prices'!C69) -> FALSE | AR56: =IF(AO56,'Commodity Prices'!D69) -> FALSE | AV56: 64 | AW56: 64 | AX56: =IF(AW56,'Yahoo Stocks'!D83) -> TOT | AY56: HNZ | AZ56: =IF(AW56,'Yahoo Stocks'!E83) -> Total | BA56: Heinz | BB56: F | BC56: Yahoo | BD56: 174 | BE56: FALSE | BF56: =IF(BE56,'Google Finance Stocks'!D80) -> FALSE | BH56: =IF(BE56,'Google Finance Stocks'!E80) -> FALSE | BL56: 174 | BM56: FALSE | BN56: ='Exchange Rates'!D74 -> 0 | BP56: =IF(BM56,'Exchange Rates'!E74) -> FALSE
L57: 55 | M57: SLE | N57: Sara Lee | O57: F | P57: Yahoo | Q57: 55 | R57: FALSE | S57: =IF(R57,'Yahoo Index'!E109,"") ->  | T57: =IF(R57,'Yahoo Index'!F109,"") ->  | X57: 61 | Y57: FALSE | Z57: =IF($F$6,'FRED Indicies'!E70) -> 0 | AB57: =IF($F$6,'FRED Indicies'!D70) -> 0 | AF57: 62 | AG57: FALSE | AH57: =IF(AG57,'Google Index'!E84) -> FALSE | AJ57: =IF(AF57,'Google Index'!F84) -> 0 | AN57: 62 | AO57: FALSE | AP57: =IF(AO57,'Commodity Prices'!C70) -> FALSE | AR57: =IF(AO57,'Commodity Prices'!D70) -> FALSE | AV57: 65 | AW57: 65 | AX57: =IF(AW57,'Yahoo Stocks'!D84) -> BP | AY57: SLE | AZ57: =IF(AW57,'Yahoo Stocks'!E84) -> BP | BA57: Sara Lee | BB57: F | BC57: Yahoo | BD57: 175 | BE57: FALSE | BF57: =IF(BE57,'Google Finance Stocks'!D81) -> FALSE | BH57: =IF(BE57,'Google Finance Stocks'!E81) -> FALSE | BL57: 175 | BM57: FALSE | BN57: ='Exchange Rates'!D75 -> 0 | BP57: =IF(BM57,'Exchange Rates'!E75) -> FALSE
L58: 56 | M58: CHK | N58: Cheasapeak Energy | O58: F | P58: Yahoo | Q58: 56 | R58: FALSE | S58: =IF(R58,'Yahoo Index'!E110,"") ->  | T58: =IF(R58,'Yahoo Index'!F110,"") ->  | X58: 62 | Y58: FALSE | Z58: =IF($F$6,'FRED Indicies'!E71) -> 0 | AB58: =IF($F$6,'FRED Indicies'!D71) -> 0 | AF58: 63 | AG58: FALSE | AH58: =IF(AG58,'Google Index'!E85) -> FALSE | AJ58: =IF(AF58,'Google Index'!F85) -> 0 | AN58: 63 | AO58: FALSE | AP58: =IF(AO58,'Commodity Prices'!C71) -> FALSE | AR58: =IF(AO58,'Commodity Prices'!D71) -> FALSE | AV58: 66 | AW58: 66 | AX58: =IF(AW58,'Yahoo Stocks'!D85) -> GDP | AY58: CHK | AZ58: =IF(AW58,'Yahoo Stocks'!E85) -> Goodrich Petroleum Corp. | BA58: Cheasapeak Energy | BB58: F | BC58: Yahoo | BD58: 176 | BE58: FALSE | BF58: =IF(BE58,'Google Finance Stocks'!D82) -> FALSE | BH58: =IF(BE58,'Google Finance Stocks'!E82) -> FALSE | BL58: 176 | BM58: FALSE | BN58: ='Exchange Rates'!D76 -> 0 | BP58: =IF(BM58,'Exchange Rates'!E76) -> FALSE
L59: 57 | M59: RRC | N59: Range Resources | O59: F | P59: Yahoo | Q59: 57 | R59: FALSE | S59: =IF(R59,'Yahoo Index'!E111,"") ->  | T59: =IF(R59,'Yahoo Index'!F111,"") ->  | X59: 63 | Y59: FALSE | Z59: =IF($F$6,'FRED Indicies'!E72) -> 0 | AB59: =IF($F$6,'FRED Indicies'!D72) -> 0 | AF59: 64 | AG59: FALSE | AH59: =IF(AG59,'Google Index'!E86) -> FALSE | AJ59: =IF(AF59,'Google Index'!F86) -> 0 | AN59: 64 | AO59: FALSE | AP59: =IF(AO59,'Commodity Prices'!C72) -> FALSE | AR59: =IF(AO59,'Commodity Prices'!D72) -> FALSE | AV59: 67 | AW59: 67 | AX59: =IF(AW59,'Yahoo Stocks'!D86) -> SN | AY59: RRC | AZ59: =IF(AW59,'Yahoo Stocks'!E86) -> Sanchez Energy Corp. | BA59: Range Resources | BB59: F | BC59: Yahoo | BD59: 177 | BE59: FALSE | BF59: =IF(BE59,'Google Finance Stocks'!D83) -> FALSE | BH59: =IF(BE59,'Google Finance Stocks'!E83) -> FALSE | BL59: 177 | BM59: FALSE | BN59: ='Exchange Rates'!D77 -> 0 | BP59: =IF(BM59,'Exchange Rates'!E77) -> FALSE
L60: 58 | M60: CLR | N60: Contential Resources | O60: F | P60: Yahoo | Q60: 58 | R60: FALSE | S60: =IF(R60,'Yahoo Index'!E112,"") ->  | T60: =IF(R60,'Yahoo Index'!F112,"") ->  | X60: 64 | Y60: FALSE | Z60: =IF($F$6,'FRED Indicies'!E73) -> 0 | AB60: =IF($F$6,'FRED Indicies'!D73) -> 0 | AF60: 65 | AG60: FALSE | AH60: =IF(AG60,'Google Index'!E87) -> FALSE | AJ60: =IF(AF60,'Google Index'!F87) -> 0 | AN60: 65 | AO60: FALSE | AP60: =IF(AO60,'Commodity Prices'!C73) -> FALSE | AR60: =IF(AO60,'Commodity Prices'!D73) -> FALSE | AV60: 68 | AW60: 68 | AX60: =IF(AW60,'Yahoo Stocks'!D87) -> CWEI | AY60: CLR | AZ60: =IF(AW60,'Yahoo Stocks'!E87) -> Clayton Williams Energy Inc. | BA60: Contential Resources | BB60: F | BC60: Yahoo | BD60: 178 | BE60: FALSE | BF60: =IF(BE60,'Google Finance Stocks'!D84) -> FALSE | BH60: =IF(BE60,'Google Finance Stocks'!E84) -> FALSE | BL60: 178 | BM60: FALSE | BN60: ='Exchange Rates'!D78 -> 0 | BP60: =IF(BM60,'Exchange Rates'!E78) -> FALSE
L61: 59 | M61: SD | N61: Sandy Ridge | O61: F | P61: Yahoo | Q61: 59 | R61: FALSE | S61: =IF(R61,'Yahoo Index'!E113,"") ->  | T61: =IF(R61,'Yahoo Index'!F113,"") ->  | X61: 65 | Y61: FALSE | Z61: =IF($F$6,'FRED Indicies'!E74) -> 0 | AB61: =IF($F$6,'FRED Indicies'!D74) -> 0 | AF61: 66 | AG61: FALSE | AH61: =IF(AG61,'Google Index'!E88) -> FALSE | AJ61: =IF(AF61,'Google Index'!F88) -> 0 | AN61: 66 | AO61: FALSE | AP61: =IF(AO61,'Commodity Prices'!C74) -> FALSE | AR61: =IF(AO61,'Commodity Prices'!D74) -> FALSE | AV61: 69 | AW61: 69 | AX61: =IF(AW61,'Yahoo Stocks'!D88) -> CPE | AY61: SD | AZ61: =IF(AW61,'Yahoo Stocks'!E88) -> Callon Petroleum Co. | BA61: Sandy Ridge | BB61: F | BC61: Yahoo | BD61: 179 | BE61: FALSE | BF61: =IF(BE61,'Google Finance Stocks'!D85) -> FALSE | BH61: =IF(BE61,'Google Finance Stocks'!E85) -> FALSE | BL61: 179 | BM61: FALSE | BN61: ='Exchange Rates'!D79 -> 0 | BP61: =IF(BM61,'Exchange Rates'!E79) -> FALSE
L62: 60 | M62: MPO | N62: Midstates Petroleum | O62: F | P62: Yahoo | Q62: 60 | R62: FALSE | S62: =IF(R62,'Yahoo Index'!E114,"") ->  | T62: =IF(R62,'Yahoo Index'!F114,"") ->  | X62: 66 | Y62: FALSE | Z62: =IF($F$6,'FRED Indicies'!E75) -> 0 | AB62: =IF($F$6,'FRED Indicies'!D75) -> 0 | AF62: 67 | AG62: FALSE | AH62: =IF(AG62,'Google Index'!E89) -> FALSE | AJ62: =IF(AF62,'Google Index'!F89) -> 0 | AN62: 67 | AO62: FALSE | AP62: =IF(AO62,'Commodity Prices'!C75) -> FALSE | AR62: =IF(AO62,'Commodity Prices'!D75) -> FALSE | AV62: 70 | AW62: 70 | AX62: =IF(AW62,'Yahoo Stocks'!D89) -> C | AY62: MPO | AZ62: =IF(AW62,'Yahoo Stocks'!E89) -> Citibank | BA62: Midstates Petroleum | BB62: F | BC62: Yahoo | BD62: 180 | BE62: FALSE | BF62: =IF(BE62,'Google Finance Stocks'!D86) -> FALSE | BH62: =IF(BE62,'Google Finance Stocks'!E86) -> FALSE | BL62: 180 | BM62: FALSE | BN62: ='Exchange Rates'!D80 -> 0 | BP62: =IF(BM62,'Exchange Rates'!E80) -> FALSE
L63: 61 | M63: RDS-B | N63: Shell Oil | O63: F | P63: Yahoo | Q63: 61 | R63: FALSE | S63: =IF(R63,'Yahoo Index'!E115,"") ->  | T63: =IF(R63,'Yahoo Index'!F115,"") ->  | X63: 67 | Y63: FALSE | Z63: =IF($F$6,'FRED Indicies'!E76) -> 0 | AB63: =IF($F$6,'FRED Indicies'!D76) -> 0 | AF63: 68 | AG63: FALSE | AH63: =IF(AG63,'Google Index'!E90) -> FALSE | AJ63: =IF(AF63,'Google Index'!F90) -> 0 | AN63: 68 | AO63: FALSE | AP63: =IF(AO63,'Commodity Prices'!C76) -> FALSE | AR63: =IF(AO63,'Commodity Prices'!D76) -> FALSE | AV63: 71 | AW63: 71 | AX63: =IF(AW63,'Yahoo Stocks'!D90) -> HEINY | AY63: RDS-B | AZ63: =IF(AW63,'Yahoo Stocks'!E90) -> Heineken | BA63: Shell Oil | BB63: F | BC63: Yahoo | BD63: 181 | BE63: FALSE | BF63: =IF(BE63,'Google Finance Stocks'!D87) -> FALSE | BH63: =IF(BE63,'Google Finance Stocks'!E87) -> FALSE | BL63: 181 | BM63: FALSE | BN63: ='Exchange Rates'!D81 -> 0 | BP63: =IF(BM63,'Exchange Rates'!E81) -> FALSE
L64: 62 | M64: XOM | N64: Exxon Mobil | O64: F | P64: Yahoo | Q64: 62 | R64: FALSE | S64: =IF(R64,'Yahoo Index'!E116,"") ->  | T64: =IF(R64,'Yahoo Index'!F116,"") ->  | X64: 68 | Y64: FALSE | Z64: =IF($F$6,'FRED Indicies'!E77) -> 0 | AB64: =IF($F$6,'FRED Indicies'!D77) -> 0 | AF64: 69 | AG64: FALSE | AH64: =IF(AG64,'Google Index'!E91) -> FALSE | AJ64: =IF(AF64,'Google Index'!F91) -> 0 | AN64: 69 | AO64: FALSE | AP64: =IF(AO64,'Commodity Prices'!C77) -> FALSE | AR64: =IF(AO64,'Commodity Prices'!D77) -> FALSE | AV64: 72 | AW64: 72 | AX64: =IF(AW64,'Yahoo Stocks'!D91) -> NYT | AY64: XOM | AZ64: =IF(AW64,'Yahoo Stocks'!E91) -> New York Times | BA64: Exxon Mobil | BB64: F | BC64: Yahoo | BD64: 182 | BE64: FALSE | BF64: =IF(BE64,'Google Finance Stocks'!D88) -> FALSE | BH64: =IF(BE64,'Google Finance Stocks'!E88) -> FALSE | BL64: 182 | BM64: FALSE | BN64: ='Exchange Rates'!D82 -> 0 | BP64: =IF(BM64,'Exchange Rates'!E82) -> FALSE
L65: 63 | M65: CVX | N65: Chevron | O65: F | P65: Yahoo | Q65: 63 | R65: FALSE | S65: =IF(R65,'Yahoo Index'!E117,"") ->  | T65: =IF(R65,'Yahoo Index'!F117,"") ->  | X65: 69 | Y65: FALSE | Z65: =IF($F$6,'FRED Indicies'!E78) -> 0 | AB65: =IF($F$6,'FRED Indicies'!D78) -> 0 | AF65: 70 | AG65: FALSE | AH65: =IF(AG65,'Google Index'!E92) -> FALSE | AJ65: =IF(AF65,'Google Index'!F92) -> 0 | AN65: 70 | AO65: FALSE | AP65: =IF(AO65,'Commodity Prices'!C78) -> FALSE | AR65: =IF(AO65,'Commodity Prices'!D78) -> FALSE | AV65: 73 | AW65: 73 | AX65: =IF(AW65,'Yahoo Stocks'!D92) -> BUD | AY65: CVX | AZ65: =IF(AW65,'Yahoo Stocks'!E92) -> Anheuser-Busch Inbev SA (USD) | BA65: Chevron | BB65: F | BC65: Yahoo | BD65: 183 | BE65: FALSE | BF65: =IF(BE65,'Google Finance Stocks'!D89) -> FALSE | BH65: =IF(BE65,'Google Finance Stocks'!E89) -> FALSE | BL65: 183 | BM65: FALSE | BN65: ='Exchange Rates'!D83 -> 0 | BP65: =IF(BM65,'Exchange Rates'!E83) -> FALSE
L66: 64 | M66: TOT | N66: Total | O66: F | P66: Yahoo | Q66: 64 | R66: FALSE | S66: =IF(R66,'Yahoo Index'!E118,"") ->  | T66: =IF(R66,'Yahoo Index'!F118,"") ->  | X66: 70 | Y66: FALSE | Z66: =IF($F$6,'FRED Indicies'!E79) -> 0 | AB66: =IF($F$6,'FRED Indicies'!D79) -> 0 | AF66: 71 | AG66: FALSE | AH66: =IF(AG66,'Google Index'!E93) -> FALSE | AJ66: =IF(AF66,'Google Index'!F93) -> 0 | AN66: 71 | AO66: FALSE | AP66: =IF(AO66,'Commodity Prices'!C79) -> FALSE | AR66: =IF(AO66,'Commodity Prices'!D79) -> FALSE | AV66: 74 | AW66: 74 | AX66: =IF(AW66,'Yahoo Stocks'!D93) -> KOF | AY66: TOT | AZ66: =IF(AW66,'Yahoo Stocks'!E93) -> Coca Cola | BA66: Total | BB66: F | BC66: Yahoo | BD66: 184 | BE66: FALSE | BF66: =IF(BE66,'Google Finance Stocks'!D90) -> FALSE | BH66: =IF(BE66,'Google Finance Stocks'!E90) -> FALSE | BL66: 184 | BM66: FALSE | BN66: ='Exchange Rates'!D84 -> 0 | BP66: =IF(BM66,'Exchange Rates'!E84) -> FALSE
L67: 65 | M67: BP | N67: BP | O67: F | P67: Yahoo | Q67: 65 | R67: FALSE | S67: =IF(R67,'Yahoo Index'!E119,"") ->  | T67: =IF(R67,'Yahoo Index'!F119,"") ->  | X67: 71 | Y67: FALSE | Z67: =IF($F$6,'FRED Indicies'!E80) -> 0 | AB67: =IF($F$6,'FRED Indicies'!D80) -> 0 | AF67: 72 | AG67: FALSE | AH67: =IF(AG67,'Google Index'!E94) -> FALSE | AJ67: =IF(AF67,'Google Index'!F94) -> 0 | AN67: 72 | AO67: FALSE | AP67: =IF(AO67,'Commodity Prices'!C80) -> FALSE | AR67: =IF(AO67,'Commodity Prices'!D80) -> FALSE | AV67: 75 | AW67: 75 | AX67: =IF(AW67,'Yahoo Stocks'!D94) -> DEO | AY67: BP | AZ67: =IF(AW67,'Yahoo Stocks'!E94) -> Diageo | BA67: BP | BB67: F | BC67: Yahoo | BD67: 185 | BE67: FALSE | BF67: =IF(BE67,'Google Finance Stocks'!D91) -> FALSE | BH67: =IF(BE67,'Google Finance Stocks'!E91) -> FALSE | BL67: 185 | BM67: FALSE | BN67: ='Exchange Rates'!D85 -> 0 | BP67: =IF(BM67,'Exchange Rates'!E85) -> FALSE
L68: 66 | M68: GDP | N68: Goodrich Petroleum Corp. | O68: F | P68: Yahoo | Q68: 66 | R68: FALSE | S68: =IF(R68,'Yahoo Index'!E120,"") ->  | T68: =IF(R68,'Yahoo Index'!F120,"") ->  | X68: 72 | Y68: FALSE | Z68: =IF($F$6,'FRED Indicies'!E81) -> 0 | AB68: =IF($F$6,'FRED Indicies'!D81) -> 0 | AF68: 73 | AG68: FALSE | AH68: =IF(AG68,'Google Index'!E95) -> FALSE | AJ68: =IF(AF68,'Google Index'!F95) -> 0 | AN68: 73 | AO68: FALSE | AP68: =IF(AO68,'Commodity Prices'!C81) -> FALSE | AR68: =IF(AO68,'Commodity Prices'!D81) -> FALSE | AV68: 76 | AW68: 76 | AX68: =IF(AW68,'Yahoo Stocks'!D95) -> ECL | AY68: GDP | AZ68: =IF(AW68,'Yahoo Stocks'!E95) -> Eco Lab | BA68: Goodrich Petroleum Corp. | BB68: F | BC68: =IF(BA68<>"",$J$15,"") -> Yahoo | BD68: 186 | BE68: FALSE | BF68: =IF(BE68,'Google Finance Stocks'!D92) -> FALSE | BH68: =IF(BE68,'Google Finance Stocks'!E92) -> FALSE | BL68: 186 | BM68: FALSE | BN68: ='Exchange Rates'!D86 -> 0 | BP68: =IF(BM68,'Exchange Rates'!E86) -> FALSE
L69: 67 | M69: SN | N69: Sanchez Energy Corp. | O69: F | P69: Yahoo | Q69: =Q68+1 -> 67 | R69: FALSE | S69: =IF(R69,'Yahoo Index'!E121,"") ->  | T69: =IF(R69,'Yahoo Index'!F121,"") ->  | X69: =X68+1 -> 73 | Y69: FALSE | Z69: =IF($F$6,'FRED Indicies'!E82) -> 0 | AB69: =IF($F$6,'FRED Indicies'!D82) -> 0 | AF69: =AF68+1 -> 74 | AG69: FALSE | AH69: =IF(AG69,'Google Index'!E96) -> FALSE | AJ69: =IF(AF69,'Google Index'!F96) -> 0 | AN69: =AN68+1 -> 74 | AO69: FALSE | AP69: =IF(AO69,'Commodity Prices'!C82) -> FALSE | AR69: =IF(AO69,'Commodity Prices'!D82) -> FALSE | AV69: =AV68+1 -> 77 | AW69: 77 | AX69: =IF(AW69,'Yahoo Stocks'!D96) -> LNT | AY69: SN | AZ69: =IF(AW69,'Yahoo Stocks'!E96) -> Alliant Energy | BA69: Sanchez Energy Corp. | BB69: F | BC69: Yahoo | BD69: =BD68+1 -> 187 | BE69: FALSE | BF69: =IF(BE69,'Google Finance Stocks'!D93) -> FALSE | BH69: =IF(BE69,'Google Finance Stocks'!E93) -> FALSE | BL69: =BL68+1 -> 187 | BM69: FALSE | BN69: ='Exchange Rates'!D87 -> 0 | BP69: =IF(BM69,'Exchange Rates'!E87) -> FALSE
L70: 68 | M70: CWEI | N70: Clayton Williams Energy Inc. | O70: F | P70: Yahoo | Q70: 68 | R70: FALSE | S70: =IF(R70,'Yahoo Index'!E122,"") ->  | T70: =IF(R70,'Yahoo Index'!F122,"") ->  | X70: 74 | Y70: FALSE | Z70: =IF($F$6,'FRED Indicies'!E83) -> 0 | AB70: =IF($F$6,'FRED Indicies'!D83) -> 0 | AF70: 75 | AG70: FALSE | AH70: =IF(AG70,'Google Index'!E97) -> FALSE | AJ70: =IF(AF70,'Google Index'!F97) -> 0 | AN70: 75 | AO70: FALSE | AP70: =IF(AO70,'Commodity Prices'!C83) -> FALSE | AR70: =IF(AO70,'Commodity Prices'!D83) -> FALSE | AV70: 78 | AW70: 78 | AX70: =IF(AW70,'Yahoo Stocks'!D97) -> IBE.MC | AY70: CWEI | AZ70: =IF(AW70,'Yahoo Stocks'!E97) -> Ibdrola | BA70: Clayton Williams Energy Inc. | BB70: F | BC70: Yahoo | BD70: 188 | BE70: FALSE | BF70: =IF(BE70,'Google Finance Stocks'!D94) -> FALSE | BH70: =IF(BE70,'Google Finance Stocks'!E94) -> FALSE | BL70: 188 | BM70: FALSE | BN70: ='Exchange Rates'!D88 -> 0 | BP70: =IF(BM70,'Exchange Rates'!E88) -> FALSE
L71: 69 | M71: CPE | N71: Callon Petroleum Co. | O71: F | P71: Yahoo | Q71: 69 | R71: FALSE | S71: =IF(R71,'Yahoo Index'!E123,"") ->  | T71: =IF(R71,'Yahoo Index'!F123,"") ->  | X71: 75 | Y71: FALSE | Z71: =IF($F$6,'FRED Indicies'!E84) -> 0 | AB71: =IF($F$6,'FRED Indicies'!D84) -> 0 | AF71: 76 | AG71: FALSE | AH71: =IF(AG71,'Google Index'!E98) -> FALSE | AJ71: =IF(AF71,'Google Index'!F98) -> 0 | AN71: 76 | AO71: FALSE | AP71: =IF(AO71,'Commodity Prices'!C84) -> FALSE | AR71: =IF(AO71,'Commodity Prices'!D84) -> FALSE | AV71: 79 | AW71: 79 | AX71: =IF(AW71,'Yahoo Stocks'!D98) -> TENA.KL | AY71: CPE | AZ71: =IF(AW71,'Yahoo Stocks'!E98) -> Tenaga | BA71: Callon Petroleum Co. | BB71: F | BC71: Yahoo | BD71: 189 | BE71: FALSE | BF71: =IF(BE71,'Google Finance Stocks'!D95) -> FALSE | BH71: =IF(BE71,'Google Finance Stocks'!E95) -> FALSE | BL71: 189 | BM71: FALSE | BN71: ='Exchange Rates'!D89 -> 0 | BP71: =IF(BM71,'Exchange Rates'!E89) -> FALSE
L72: 70 | M72: C | N72: Citibank | O72: F | P72: Yahoo | Q72: 70 | R72: FALSE | S72: =IF(R72,'Yahoo Index'!E124,"") ->  | T72: =IF(R72,'Yahoo Index'!F124,"") ->  | X72: 76 | Y72: FALSE | Z72: =IF($F$6,'FRED Indicies'!E85) -> 0 | AB72: =IF($F$6,'FRED Indicies'!D85) -> 0 | AF72: 77 | AG72: FALSE | AH72: =IF(AG72,'Google Index'!E99) -> FALSE | AJ72: =IF(AF72,'Google Index'!F99) -> 0 | AN72: 77 | AO72: FALSE | AP72: =IF(AO72,'Commodity Prices'!C85) -> FALSE | AR72: =IF(AO72,'Commodity Prices'!D85) -> FALSE | AV72: 80 | AW72: 80 | AX72: =IF(AW72,'Yahoo Stocks'!D99) -> MAEOY | AY72: C | AZ72: =IF(AW72,'Yahoo Stocks'!E99) -> Meralco | BA72: Citibank | BB72: F | BC72: Yahoo | BD72: 190 | BE72: FALSE | BF72: =IF(BE72,'Google Finance Stocks'!D96) -> FALSE | BH72: =IF(BE72,'Google Finance Stocks'!E96) -> FALSE | BL72: 190 | BM72: FALSE | BN72: ='Exchange Rates'!D90 -> 0 | BP72: =IF(BM72,'Exchange Rates'!E90) -> FALSE
L73: 71 | M73: HEINY | N73: Heineken | O73: F | P73: Yahoo | Q73: 71 | R73: FALSE | S73: =IF(R73,'Yahoo Index'!E125,"") ->  | T73: =IF(R73,'Yahoo Index'!F125,"") ->  | X73: 77 | Y73: FALSE | Z73: =IF($F$6,'FRED Indicies'!E86) -> 0 | AB73: =IF($F$6,'FRED Indicies'!D86) -> 0 | AF73: 78 | AG73: FALSE | AH73: =IF(AG73,'Google Index'!E100) -> FALSE | AJ73: =IF(AF73,'Google Index'!F100) -> 0 | AN73: 78 | AO73: FALSE | AP73: =IF(AO73,'Commodity Prices'!C86) -> FALSE | AR73: =IF(AO73,'Commodity Prices'!D86) -> FALSE | AV73: 81 | AW73: 81 | AX73: =IF(AW73,'Yahoo Stocks'!D100) -> ED | AY73: HEINY | AZ73: =IF(AW73,'Yahoo Stocks'!E100) -> ConEd | BA73: Heineken | BB73: F | BC73: Yahoo | BD73: 191 | BE73: FALSE | BF73: =IF(BE73,'Google Finance Stocks'!D97) -> FALSE | BH73: =IF(BE73,'Google Finance Stocks'!E97) -> FALSE | BL73: 191 | BM73: FALSE | BN73: ='Exchange Rates'!D91 -> 0 | BP73: =IF(BM73,'Exchange Rates'!E91) -> FALSE
L74: 72 | M74: NYT | N74: New York Times | O74: F | P74: Yahoo | Q74: 72 | R74: FALSE | S74: =IF(R74,'Yahoo Index'!E126,"") ->  | T74: =IF(R74,'Yahoo Index'!F126,"") ->  | X74: 78 | Y74: FALSE | Z74: =IF($F$6,'FRED Indicies'!E87) -> 0 | AB74: =IF($F$6,'FRED Indicies'!D87) -> 0 | AF74: 79 | AG74: FALSE | AH74: =IF(AG74,'Google Index'!E101) -> FALSE | AJ74: =IF(AF74,'Google Index'!F101) -> 0 | AN74: 79 | AO74: FALSE | AP74: =IF(AO74,'Commodity Prices'!C87) -> FALSE | AR74: =IF(AO74,'Commodity Prices'!D87) -> FALSE | AV74: 82 | AW74: 82 | AX74: =IF(AW74,'Yahoo Stocks'!D101) -> 015760.KS | AY74: NYT | AZ74: =IF(AW74,'Yahoo Stocks'!E101) -> Kepco | BA74: New York Times | BB74: F | BC74: Yahoo | BD74: 192 | BE74: FALSE | BF74: =IF(BE74,'Google Finance Stocks'!D98) -> FALSE | BH74: =IF(BE74,'Google Finance Stocks'!E98) -> FALSE | BL74: 192 | BM74: FALSE | BN74: ='Exchange Rates'!D92 -> 0 | BP74: =IF(BM74,'Exchange Rates'!E92) -> FALSE
L75: 73 | M75: BUD | N75: Anheuser-Busch Inbev SA (USD) | O75: F | P75: Yahoo | Q75: 73 | R75: FALSE | S75: =IF(R75,'Yahoo Index'!E127,"") ->  | T75: =IF(R75,'Yahoo Index'!F127,"") ->  | X75: 79 | Y75: FALSE | Z75: =IF($F$6,'FRED Indicies'!E88) -> 0 | AB75: =IF($F$6,'FRED Indicies'!D88) -> 0 | AF75: 80 | AG75: FALSE | AH75: =IF(AG75,'Google Index'!E102) -> FALSE | AJ75: =IF(AF75,'Google Index'!F102) -> 0 | AN75: 80 | AO75: FALSE | AP75: =IF(AO75,'Commodity Prices'!C88) -> FALSE | AR75: =IF(AO75,'Commodity Prices'!D88) -> FALSE | AV75: 83 | AW75: 83 | AX75: =IF(AW75,'Yahoo Stocks'!D102) -> TKECF | AY75: BUD | AZ75: =IF(AW75,'Yahoo Stocks'!E102) -> Tepco | BA75: Anheuser-Busch Inbev SA (USD) | BB75: F | BC75: Yahoo | BD75: 193 | BE75: FALSE | BF75: =IF(BE75,'Google Finance Stocks'!D99) -> FALSE | BH75: =IF(BE75,'Google Finance Stocks'!E99) -> FALSE | BL75: 193 | BM75: FALSE | BN75: ='Exchange Rates'!D93 -> 0 | BP75: =IF(BM75,'Exchange Rates'!E93) -> FALSE
L76: 74 | M76: KOF | N76: Coca Cola | O76: F | P76: Yahoo | Q76: 74 | R76: FALSE | S76: =IF(R76,'Yahoo Index'!E128,"") ->  | T76: =IF(R76,'Yahoo Index'!F128,"") ->  | X76: 80 | Y76: FALSE | Z76: =IF($F$6,'FRED Indicies'!E89) -> 0 | AB76: =IF($F$6,'FRED Indicies'!D89) -> 0 | AF76: 81 | AG76: FALSE | AH76: =IF(AG76,'Google Index'!E103) -> FALSE | AJ76: =IF(AF76,'Google Index'!F103) -> 0 | AN76: 81 | AO76: FALSE | AP76: =IF(AO76,'Commodity Prices'!C89) -> FALSE | AR76: =IF(AO76,'Commodity Prices'!D89) -> FALSE | AV76: 84 | AW76: 84 | AX76: =IF(AW76,'Yahoo Stocks'!D103) -> SO | AY76: KOF | AZ76: =IF(AW76,'Yahoo Stocks'!E103) -> Southern Companies | BA76: Coca Cola | BB76: F | BC76: Yahoo | BD76: 194 | BE76: FALSE | BF76: =IF(BE76,'Google Finance Stocks'!D100) -> FALSE | BH76: =IF(BE76,'Google Finance Stocks'!E100) -> FALSE | BL76: 194 | BM76: FALSE | BN76: ='Exchange Rates'!D94 -> 0 | BP76: =IF(BM76,'Exchange Rates'!E94) -> FALSE
L77: 75 | M77: DEO | N77: Diageo | O77: F | P77: Yahoo | Q77: 75 | R77: FALSE | S77: =IF(R77,'Yahoo Index'!E129,"") ->  | T77: =IF(R77,'Yahoo Index'!F129,"") ->  | X77: 81 | Y77: FALSE | Z77: =IF($F$6,'FRED Indicies'!E90) -> 0 | AB77: =IF($F$6,'FRED Indicies'!D90) -> 0 | AF77: 82 | AG77: FALSE | AH77: =IF(AG77,'Google Index'!E104) -> FALSE | AJ77: =IF(AF77,'Google Index'!F104) -> 0 | AN77: 82 | AO77: FALSE | AP77: =IF(AO77,'Commodity Prices'!C90) -> FALSE | AR77: =IF(AO77,'Commodity Prices'!D90) -> FALSE | AV77: 85 | AW77: 85 | AX77: =IF(AW77,'Yahoo Stocks'!D104) -> EDF.PA | AY77: DEO | AZ77: =IF(AW77,'Yahoo Stocks'!E104) -> EDF | BA77: Diageo | BB77: F | BC77: Yahoo | BD77: 195 | BE77: FALSE | BF77: =IF(BE77,'Google Finance Stocks'!D101) -> FALSE | BH77: =IF(BE77,'Google Finance Stocks'!E101) -> FALSE | BL77: 195 | BM77: FALSE | BN77: ='Exchange Rates'!D95 -> 0 | BP77: =IF(BM77,'Exchange Rates'!E95) -> FALSE
L78: 76 | M78: ECL | N78: Eco Lab | O78: F | P78: Yahoo | Q78: 76 | R78: FALSE | S78: =IF(R78,'Yahoo Index'!E130,"") ->  | T78: =IF(R78,'Yahoo Index'!F130,"") ->  | X78: 82 | Y78: FALSE | Z78: =IF($F$6,'FRED Indicies'!E91) -> 0 | AB78: =IF($F$6,'FRED Indicies'!D91) -> 0 | AF78: 83 | AG78: FALSE | AH78: =IF(AG78,'Google Index'!E105) -> FALSE | AJ78: =IF(AF78,'Google Index'!F105) -> 0 | AN78: 83 | AO78: FALSE | AP78: =IF(AO78,'Commodity Prices'!C91) -> FALSE | AR78: =IF(AO78,'Commodity Prices'!D91) -> FALSE | AV78: 86 | AW78: 86 | AX78: =IF(AW78,'Yahoo Stocks'!D105) -> ENGI.PA | AY78: ECL | AZ78: =IF(AW78,'Yahoo Stocks'!E105) -> Engie | BA78: Eco Lab | BB78: F | BC78: Yahoo | BD78: 196 | BE78: FALSE | BF78: =IF(BE78,'Google Finance Stocks'!D102) -> FALSE | BH78: =IF(BE78,'Google Finance Stocks'!E102) -> FALSE | BL78: 196 | BM78: FALSE | BN78: ='Exchange Rates'!D96 -> 0 | BP78: =IF(BM78,'Exchange Rates'!E96) -> FALSE
L79: 77 | M79: LNT | N79: Alliant Energy | O79: F | P79: Yahoo | Q79: 77 | R79: FALSE | S79: =IF(R79,'Yahoo Index'!E131,"") ->  | T79: =IF(R79,'Yahoo Index'!F131,"") ->  | X79: 83 | Y79: FALSE | Z79: =IF($F$6,'FRED Indicies'!E92) -> 0 | AB79: =IF($F$6,'FRED Indicies'!D92) -> 0 | AF79: 84 | AG79: FALSE | AH79: =IF(AG79,'Google Index'!E106) -> FALSE | AJ79: =IF(AF79,'Google Index'!F106) -> 0 | AN79: 84 | AO79: FALSE | AP79: =IF(AO79,'Commodity Prices'!C92) -> FALSE | AR79: =IF(AO79,'Commodity Prices'!D92) -> FALSE | AV79: 87 | AW79: 87 | AX79: =IF(AW79,'Yahoo Stocks'!D106) -> NG.L | AY79: LNT | AZ79: =IF(AW79,'Yahoo Stocks'!E106) -> National Grid | BA79: Alliant Energy | BB79: F | BC79: Yahoo | BD79: 197 | BE79: FALSE | BF79: =IF(BE79,'Google Finance Stocks'!D103) -> FALSE | BH79: =IF(BE79,'Google Finance Stocks'!E103) -> FALSE | BL79: 197 | BM79: FALSE | BN79: ='Exchange Rates'!D97 -> 0 | BP79: =IF(BM79,'Exchange Rates'!E97) -> FALSE
L80: 78 | M80: IBE.MC | N80: Ibdrola | O80: F | P80: Yahoo | Q80: 78 | R80: FALSE | S80: =IF(R80,'Yahoo Index'!E132,"") ->  | T80: =IF(R80,'Yahoo Index'!F132,"") ->  | X80: 84 | Y80: FALSE | Z80: =IF($F$6,'FRED Indicies'!E93) -> 0 | AB80: =IF($F$6,'FRED Indicies'!D93) -> 0 | AF80: 85 | AG80: FALSE | AH80: =IF(AG80,'Google Index'!E107) -> FALSE | AJ80: =IF(AF80,'Google Index'!F107) -> 0 | AN80: 85 | AO80: FALSE | AP80: =IF(AO80,'Commodity Prices'!C93) -> FALSE | AR80: =IF(AO80,'Commodity Prices'!D93) -> FALSE | AV80: 88 | AW80: 88 | AX80: =IF(AW80,'Yahoo Stocks'!D107) -> ENEL.MI | AY80: IBE.MC | AZ80: =IF(AW80,'Yahoo Stocks'!E107) -> Enel | BA80: Ibdrola | BB80: F | BC80: Yahoo | BD80: 198 | BE80: FALSE | BF80: =IF(BE80,'Google Finance Stocks'!D104) -> FALSE | BH80: =IF(BE80,'Google Finance Stocks'!E104) -> FALSE | BL80: 198 | BM80: FALSE | BN80: ='Exchange Rates'!D98 -> 0 | BP80: =IF(BM80,'Exchange Rates'!E98) -> FALSE
L81: 79 | M81: TENA.KL | N81: Tenaga | O81: F | P81: Yahoo | Q81: 79 | R81: FALSE | S81: =IF(R81,'Yahoo Index'!E133,"") ->  | T81: =IF(R81,'Yahoo Index'!F133,"") ->  | X81: 85 | Y81: FALSE | Z81: =IF($F$6,'FRED Indicies'!E94) -> 0 | AB81: =IF($F$6,'FRED Indicies'!D94) -> 0 | AF81: 86 | AG81: FALSE | AH81: =IF(AG81,'Google Index'!E108) -> FALSE | AJ81: =IF(AF81,'Google Index'!F108) -> 0 | AN81: 86 | AO81: FALSE | AP81: =IF(AO81,'Commodity Prices'!C94) -> FALSE | AR81: =IF(AO81,'Commodity Prices'!D94) -> FALSE | AV81: 89 | AW81: 89 | AX81: =IF(AW81,'Yahoo Stocks'!D108) -> EOAN.DE | AY81: TENA.KL | AZ81: =IF(AW81,'Yahoo Stocks'!E108) -> E.on | BA81: Tenaga | BB81: F | BC81: Yahoo | BD81: 199 | BE81: FALSE | BF81: =IF(BE81,'Google Finance Stocks'!D105) -> FALSE | BH81: =IF(BE81,'Google Finance Stocks'!E105) -> FALSE | BL81: 199 | BM81: FALSE | BN81: ='Exchange Rates'!D99 -> 0 | BP81: =IF(BM81,'Exchange Rates'!E99) -> FALSE
L82: 80 | M82: MAEOY | N82: Meralco | O82: F | P82: Yahoo | Q82: 80 | R82: FALSE | S82: =IF(R82,'Yahoo Index'!E134,"") ->  | T82: =IF(R82,'Yahoo Index'!F134,"") ->  | X82: 86 | Y82: FALSE | Z82: =IF($F$6,'FRED Indicies'!E95) -> 0 | AB82: =IF($F$6,'FRED Indicies'!D95) -> 0 | AF82: 87 | AG82: FALSE | AH82: =IF(AG82,'Google Index'!E109) -> FALSE | AJ82: =IF(AF82,'Google Index'!F109) -> 0 | AN82: 87 | AO82: FALSE | AP82: =IF(AO82,'Commodity Prices'!C95) -> FALSE | AR82: =IF(AO82,'Commodity Prices'!D95) -> FALSE | AV82: 90 | AW82: 90 | AX82: =IF(AW82,'Yahoo Stocks'!D109) -> EXC | AY82: MAEOY | AZ82: =IF(AW82,'Yahoo Stocks'!E109) -> Exelon | BA82: Meralco | BB82: F | BC82: Yahoo | BD82: 200 | BE82: FALSE | BF82: =IF(BE82,'Google Finance Stocks'!D106) -> FALSE | BH82: =IF(BE82,'Google Finance Stocks'!E106) -> FALSE | BL82: 200 | BM82: FALSE | BN82: ='Exchange Rates'!D100 -> 0 | BP82: =IF(BM82,'Exchange Rates'!E100) -> FALSE
L83: 81 | M83: ED | N83: ConEd | O83: F | P83: Yahoo | Q83: 81 | R83: FALSE | S83: =IF(R83,'Yahoo Index'!E135,"") ->  | T83: =IF(R83,'Yahoo Index'!F135,"") ->  | X83: 87 | Y83: FALSE | Z83: =IF($F$6,'FRED Indicies'!E96) -> 0 | AB83: =IF($F$6,'FRED Indicies'!D96) -> 0 | AF83: 88 | AG83: FALSE | AH83: =IF(AG83,'Google Index'!E110) -> FALSE | AJ83: =IF(AF83,'Google Index'!F110) -> 0 | AN83: 88 | AO83: FALSE | AP83: =IF(AO83,'Commodity Prices'!C96) -> FALSE | AR83: =IF(AO83,'Commodity Prices'!D96) -> FALSE | AV83: 91 | AW83: 91 | AX83: =IF(AW83,'Yahoo Stocks'!D110) -> DTE | AY83: ED | AZ83: =IF(AW83,'Yahoo Stocks'!E110) -> Detroit Edison | BA83: ConEd | BB83: F | BC83: Yahoo | BD83: 201 | BE83: FALSE | BF83: =IF(BE83,'Google Finance Stocks'!D107) -> FALSE | BH83: =IF(BE83,'Google Finance Stocks'!E107) -> FALSE | BL83: 201 | BM83: FALSE | BN83: ='Exchange Rates'!D101 -> 0 | BP83: =IF(BM83,'Exchange Rates'!E101) -> FALSE
L84: 82 | M84: 015760.KS | N84: Kepco | O84: F | P84: Yahoo | Q84: 82 | R84: FALSE | S84: =IF(R84,'Yahoo Index'!E136,"") ->  | T84: =IF(R84,'Yahoo Index'!F136,"") ->  | X84: 88 | Y84: FALSE | Z84: =IF($F$6,'FRED Indicies'!E97) -> 0 | AB84: =IF($F$6,'FRED Indicies'!D97) -> 0 | AF84: 89 | AG84: FALSE | AH84: =IF(AG84,'Google Index'!E111) -> FALSE | AJ84: =IF(AF84,'Google Index'!F111) -> 0 | AN84: 89 | AO84: FALSE | AP84: =IF(AO84,'Commodity Prices'!C97) -> FALSE | AR84: =IF(AO84,'Commodity Prices'!D97) -> FALSE | AV84: 92 | AW84: 92 | AX84: =IF(AW84,'Yahoo Stocks'!D111) -> AES | AY84: 015760.KS | AZ84: =IF(AW84,'Yahoo Stocks'!E111) -> AES | BA84: Kepco | BB84: F | BC84: Yahoo | BD84: 202 | BE84: FALSE | BF84: =IF(BE84,'Google Finance Stocks'!D108) -> FALSE | BH84: =IF(BE84,'Google Finance Stocks'!E108) -> FALSE | BL84: 202 | BM84: FALSE | BN84: ='Exchange Rates'!D102 -> 0 | BP84: =IF(BM84,'Exchange Rates'!E102) -> FALSE
L85: 83 | M85: TKECF | N85: Tepco | O85: F | P85: Yahoo | Q85: 83 | R85: FALSE | S85: =IF(R85,'Yahoo Index'!E137,"") ->  | T85: =IF(R85,'Yahoo Index'!F137,"") ->  | X85: 89 | Y85: FALSE | Z85: =IF($F$6,'FRED Indicies'!E98) -> 0 | AB85: =IF($F$6,'FRED Indicies'!D98) -> 0 | AF85: 90 | AG85: FALSE | AH85: =IF(AG85,'Google Index'!E112) -> FALSE | AJ85: =IF(AF85,'Google Index'!F112) -> 0 | AN85: 90 | AO85: FALSE | AP85: =IF(AO85,'Commodity Prices'!C98) -> FALSE | AR85: =IF(AO85,'Commodity Prices'!D98) -> FALSE | AV85: 93 | AW85: 93 | AX85: =IF(AW85,'Yahoo Stocks'!D112) -> NRG | AY85: TKECF | AZ85: =IF(AW85,'Yahoo Stocks'!E112) -> NRG Energy | BA85: Tepco | BB85: F | BC85: Yahoo | BD85: 203 | BE85: FALSE | BF85: =IF(BE85,'Google Finance Stocks'!D109) -> FALSE | BH85: =IF(BE85,'Google Finance Stocks'!E109) -> FALSE | BL85: 203 | BM85: FALSE | BN85: ='Exchange Rates'!D103 -> 0 | BP85: =IF(BM85,'Exchange Rates'!E103) -> FALSE
L86: 84 | M86: SO | N86: Southern Companies | O86: F | P86: Yahoo | Q86: 84 | R86: FALSE | S86: =IF(R86,'Yahoo Index'!E138,"") ->  | T86: =IF(R86,'Yahoo Index'!F138,"") ->  | X86: 90 | Y86: FALSE | Z86: =IF($F$6,'FRED Indicies'!E99) -> 0 | AB86: =IF($F$6,'FRED Indicies'!D99) -> 0 | AF86: 91 | AG86: FALSE | AH86: =IF(AG86,'Google Index'!E113) -> FALSE | AJ86: =IF(AF86,'Google Index'!F113) -> 0 | AN86: 91 | AO86: FALSE | AP86: =IF(AO86,'Commodity Prices'!C99) -> FALSE | AR86: =IF(AO86,'Commodity Prices'!D99) -> FALSE | AV86: 94 | AW86: 94 | AX86: =IF(AW86,'Yahoo Stocks'!D113) -> PCG | AY86: SO | AZ86: =IF(AW86,'Yahoo Stocks'!E113) -> PG&E | BA86: Southern Companies | BB86: F | BC86: Yahoo | BD86: 204 | BE86: FALSE | BF86: =IF(BE86,'Google Finance Stocks'!D110) -> FALSE | BH86: =IF(BE86,'Google Finance Stocks'!E110) -> FALSE | BL86: 204 | BM86: FALSE | BN86: ='Exchange Rates'!D104 -> 0 | BP86: =IF(BM86,'Exchange Rates'!E104) -> FALSE
L87: 85 | M87: EDF.PA | N87: EDF | O87: F | P87: Yahoo | Q87: 85 | R87: FALSE | S87: =IF(R87,'Yahoo Index'!E139,"") ->  | T87: =IF(R87,'Yahoo Index'!F139,"") ->  | X87: 91 | Y87: FALSE | Z87: =IF($F$6,'FRED Indicies'!E100) -> 0 | AB87: =IF($F$6,'FRED Indicies'!D100) -> 0 | AF87: 92 | AG87: FALSE | AH87: =IF(AG87,'Google Index'!E114) -> FALSE | AJ87: =IF(AF87,'Google Index'!F114) -> 0 | AN87: 92 | AO87: FALSE | AP87: =IF(AO87,'Commodity Prices'!C100) -> FALSE | AR87: =IF(AO87,'Commodity Prices'!D100) -> FALSE | AV87: 95 | AW87: 95 | AX87: =IF(AW87,'Yahoo Stocks'!D114) -> RWE.DE | AY87: EDF.PA | AZ87: =IF(AW87,'Yahoo Stocks'!E114) -> RWE | BA87: EDF | BB87: F | BC87: Yahoo | BD87: 205 | BE87: FALSE | BF87: =IF(BE87,'Google Finance Stocks'!D111) -> FALSE | BH87: =IF(BE87,'Google Finance Stocks'!E111) -> FALSE | BL87: 205 | BM87: FALSE | BN87: ='Exchange Rates'!D105 -> 0 | BP87: =IF(BM87,'Exchange Rates'!E105) -> FALSE
L88: 86 | M88: ENGI.PA | N88: Engie | O88: F | P88: Yahoo | Q88: 86 | R88: FALSE | S88: =IF(R88,'Yahoo Index'!E140,"") ->  | T88: =IF(R88,'Yahoo Index'!F140,"") ->  | X88: 92 | Y88: FALSE | Z88: =IF($F$6,'FRED Indicies'!E101) -> 0 | AB88: =IF($F$6,'FRED Indicies'!D101) -> 0 | AF88: 93 | AG88: FALSE | AH88: =IF(AG88,'Google Index'!E115) -> FALSE | AJ88: =IF(AF88,'Google Index'!F115) -> 0 | AN88: 93 | AO88: FALSE | AP88: =IF(AO88,'Commodity Prices'!C101) -> FALSE | AR88: =IF(AO88,'Commodity Prices'!D101) -> FALSE | AV88: 96 | AW88: 96 | AX88: =IF(AW88,'Yahoo Stocks'!D115) -> MGEE | AY88: ENGI.PA | AZ88: =IF(AW88,'Yahoo Stocks'!E115) -> Madison Gas and Electric | BA88: Engie | BB88: F | BC88: Yahoo | BD88: 206 | BE88: FALSE | BF88: =IF(BE88,'Google Finance Stocks'!D112) -> FALSE | BH88: =IF(BE88,'Google Finance Stocks'!E112) -> FALSE | BL88: 206 | BM88: FALSE | BN88: ='Exchange Rates'!D106 -> 0 | BP88: =IF(BM88,'Exchange Rates'!E106) -> FALSE
L89: 87 | M89: NG.L | N89: National Grid | O89: F | P89: Yahoo | Q89: 87 | R89: FALSE | S89: =IF(R89,'Yahoo Index'!E141,"") ->  | T89: =IF(R89,'Yahoo Index'!F141,"") ->  | X89: 93 | Y89: FALSE | Z89: =IF($F$6,'FRED Indicies'!E102) -> 0 | AB89: =IF($F$6,'FRED Indicies'!D102) -> 0 | AF89: 94 | AG89: FALSE | AH89: =IF(AG89,'Google Index'!E116) -> FALSE | AJ89: =IF(AF89,'Google Index'!F116) -> 0 | AN89: 94 | AO89: FALSE | AP89: =IF(AO89,'Commodity Prices'!C102) -> FALSE | AR89: =IF(AO89,'Commodity Prices'!D102) -> FALSE | AV89: 97 | AW89: 97 | AX89: =IF(AW89,'Yahoo Stocks'!D116) -> WEC | AY89: NG.L | AZ89: =IF(AW89,'Yahoo Stocks'!E116) -> Wisconsin Public Service | BA89: National Grid | BB89: F | BC89: Yahoo | BD89: 207 | BE89: FALSE | BF89: =IF(BE89,'Google Finance Stocks'!D113) -> FALSE | BH89: =IF(BE89,'Google Finance Stocks'!E113) -> FALSE | BL89: 207 | BM89: FALSE | BN89: ='Exchange Rates'!D107 -> 0 | BP89: =IF(BM89,'Exchange Rates'!E107) -> FALSE
L90: 88 | M90: ENEL.MI | N90: Enel | O90: F | P90: Yahoo | Q90: 88 | R90: FALSE | S90: =IF(R90,'Yahoo Index'!E142,"") ->  | T90: =IF(R90,'Yahoo Index'!F142,"") ->  | X90: 94 | Y90: FALSE | Z90: =IF($F$6,'FRED Indicies'!E103) -> 0 | AB90: =IF($F$6,'FRED Indicies'!D103) -> 0 | AF90: 95 | AG90: FALSE | AH90: =IF(AG90,'Google Index'!E117) -> FALSE | AJ90: =IF(AF90,'Google Index'!F117) -> 0 | AN90: 95 | AO90: FALSE | AP90: =IF(AO90,'Commodity Prices'!C103) -> FALSE | AR90: =IF(AO90,'Commodity Prices'!D103) -> FALSE | AV90: 98 | AW90: 98 | AX90: =IF(AW90,'Yahoo Stocks'!D117) -> AEE | AY90: ENEL.MI | AZ90: =IF(AW90,'Yahoo Stocks'!E117) -> Ameren | BA90: Enel | BB90: F | BC90: Yahoo | BD90: 208 | BE90: FALSE | BF90: =IF(BE90,'Google Finance Stocks'!D114) -> FALSE | BH90: =IF(BE90,'Google Finance Stocks'!E114) -> FALSE | BL90: 208 | BM90: FALSE | BN90: ='Exchange Rates'!D108 -> 0 | BP90: =IF(BM90,'Exchange Rates'!E108) -> FALSE
L91: 89 | M91: EOAN.DE | N91: E.on | O91: F | P91: Yahoo | Q91: 89 | R91: FALSE | S91: =IF(R91,'Yahoo Index'!E143,"") ->  | T91: =IF(R91,'Yahoo Index'!F143,"") ->  | X91: 95 | Y91: FALSE | Z91: =IF($F$6,'FRED Indicies'!E104) -> 0 | AB91: =IF($F$6,'FRED Indicies'!D104) -> 0 | AF91: 96 | AG91: FALSE | AH91: =IF(AG91,'Google Index'!E118) -> FALSE | AJ91: =IF(AF91,'Google Index'!F118) -> 0 | AN91: 96 | AO91: FALSE | AP91: =IF(AO91,'Commodity Prices'!C104) -> FALSE | AR91: =IF(AO91,'Commodity Prices'!D104) -> FALSE | AV91: 99 | AW91: =IF(AND($F$15,AV91<=$H$15),AV91) -> 99 | AX91: =IF(AW91,'Yahoo Stocks'!D118) -> CMS | AY91: =IFERROR(INDEX(AX:AX,MATCH(L91,AW:AW,0)),"") -> EOAN.DE | AZ91: =IF(AW91,'Yahoo Stocks'!E118) -> CMS Energy | BA91: =IFERROR(INDEX(AZ:AZ,MATCH(L91,AW:AW,0)),"") -> E.on | BB91: =IF(AY91<>"",$I$15,"") -> F | BC91: Yahoo | BD91: 209 | BE91: FALSE | BF91: =IF(BE91,'Google Finance Stocks'!D115) -> FALSE | BH91: =IF(BE91,'Google Finance Stocks'!E115) -> FALSE | BL91: 209 | BM91: FALSE | BN91: ='Exchange Rates'!D109 -> 0 | BP91: =IF(BM91,'Exchange Rates'!E109) -> FALSE
L92: 90 | M92: EXC | N92: Exelon | O92: F | P92: Yahoo | Q92: 90 | R92: FALSE | S92: =IF(R92,'Yahoo Index'!E144,"") ->  | T92: =IF(R92,'Yahoo Index'!F144,"") ->  | X92: 96 | Y92: FALSE | Z92: =IF($F$6,'FRED Indicies'!E105) -> 0 | AB92: =IF($F$6,'FRED Indicies'!D105) -> 0 | AF92: 97 | AG92: FALSE | AH92: =IF(AG92,'Google Index'!E119) -> FALSE | AJ92: =IF(AF92,'Google Index'!F119) -> 0 | AN92: 97 | AO92: FALSE | AP92: =IF(AO92,'Commodity Prices'!C105) -> FALSE | AR92: =IF(AO92,'Commodity Prices'!D105) -> FALSE | AV92: 100 | AW92: 100 | AX92: =IF(AW92,'Yahoo Stocks'!D119) -> MMM | AY92: EXC | AZ92: =IF(AW92,'Yahoo Stocks'!E119) -> 3M | BA92: Exelon | BB92: F | BC92: Yahoo | BD92: 210 | BE92: FALSE | BF92: =IF(BE92,'Google Finance Stocks'!D116) -> FALSE | BH92: =IF(BE92,'Google Finance Stocks'!E116) -> FALSE | BL92: 210 | BM92: FALSE | BN92: ='Exchange Rates'!D110 -> 0 | BP92: =IF(BM92,'Exchange Rates'!E110) -> FALSE
L93: 91 | M93: DTE | N93: Detroit Edison | O93: F | P93: Yahoo | Q93: 91 | R93: FALSE | S93: =IF(R93,'Yahoo Index'!E145,"") ->  | T93: =IF(R93,'Yahoo Index'!F145,"") ->  | X93: 97 | Y93: FALSE | Z93: =IF($F$6,'FRED Indicies'!E106) -> 0 | AB93: =IF($F$6,'FRED Indicies'!D106) -> 0 | AF93: 98 | AG93: FALSE | AH93: =IF(AG93,'Google Index'!E120) -> FALSE | AJ93: =IF(AF93,'Google Index'!F120) -> 0 | AN93: 98 | AO93: FALSE | AP93: =IF(AO93,'Commodity Prices'!C106) -> FALSE | AR93: =IF(AO93,'Commodity Prices'!D106) -> FALSE | AV93: 101 | AW93: 101 | AX93: =IF(AW93,'Yahoo Stocks'!D120) -> AAPL | AY93: DTE | AZ93: =IF(AW93,'Yahoo Stocks'!E120) -> Apple | BA93: Detroit Edison | BB93: F | BC93: Yahoo | BD93: 211 | BE93: FALSE | BF93: =IF(BE93,'Google Finance Stocks'!D117) -> FALSE | BH93: =IF(BE93,'Google Finance Stocks'!E117) -> FALSE | BL93: 211 | BM93: FALSE | BN93: ='Exchange Rates'!D111 -> 0 | BP93: =IF(BM93,'Exchange Rates'!E111) -> FALSE
L94: 92 | M94: AES | N94: AES | O94: F | P94: Yahoo | Q94: 92 | R94: FALSE | S94: =IF(R94,'Yahoo Index'!E146,"") ->  | T94: =IF(R94,'Yahoo Index'!F146,"") ->  | X94: 98 | Y94: FALSE | Z94: =IF($F$6,'FRED Indicies'!E107) -> 0 | AB94: =IF($F$6,'FRED Indicies'!D107) -> 0 | AF94: 99 | AG94: FALSE | AH94: =IF(AG94,'Google Index'!E121) -> FALSE | AJ94: =IF(AF94,'Google Index'!F121) -> 0 | AN94: 99 | AO94: FALSE | AP94: =IF(AO94,'Commodity Prices'!C107) -> FALSE | AR94: =IF(AO94,'Commodity Prices'!D107) -> FALSE | AV94: 102 | AW94: 102 | AX94: =IF(AW94,'Yahoo Stocks'!D121) -> BA | AY94: AES | AZ94: =IF(AW94,'Yahoo Stocks'!E121) -> Boeing | BA94: AES | BB94: F | BC94: Yahoo | BD94: 212 | BE94: FALSE | BF94: =IF(BE94,'Google Finance Stocks'!D118) -> FALSE | BH94: =IF(BE94,'Google Finance Stocks'!E118) -> FALSE | BL94: 212 | BM94: FALSE | BN94: ='Exchange Rates'!D112 -> 0 | BP94: =IF(BM94,'Exchange Rates'!E112) -> FALSE
L95: 93 | M95: NRG | N95: NRG Energy | O95: F | P95: Yahoo | Q95: 93 | R95: FALSE | S95: =IF(R95,'Yahoo Index'!E147,"") ->  | T95: =IF(R95,'Yahoo Index'!F147,"") ->  | X95: 99 | Y95: FALSE | Z95: =IF($F$6,'FRED Indicies'!E108) -> 0 | AB95: =IF($F$6,'FRED Indicies'!D108) -> 0 | AF95: 100 | AG95: FALSE | AH95: =IF(AG95,'Google Index'!E122) -> FALSE | AJ95: =IF(AF95,'Google Index'!F122) -> 0 | AN95: 100 | AO95: FALSE | AP95: =IF(AO95,'Commodity Prices'!C108) -> FALSE | AR95: =IF(AO95,'Commodity Prices'!D108) -> FALSE | AV95: 103 | AW95: 103 | AX95: =IF(AW95,'Yahoo Stocks'!D122) -> CAT | AY95: NRG | AZ95: =IF(AW95,'Yahoo Stocks'!E122) -> Caterpillar | BA95: NRG Energy | BB95: F | BC95: Yahoo | BD95: 213 | BE95: FALSE | BF95: =IF(BE95,'Google Finance Stocks'!D119) -> FALSE | BH95: =IF(BE95,'Google Finance Stocks'!E119) -> FALSE | BL95: 213 | BM95: FALSE | BN95: ='Exchange Rates'!D113 -> 0 | BP95: =IF(BM95,'Exchange Rates'!E113) -> FALSE
L96: 94 | M96: PCG | N96: PG&E | O96: F | P96: Yahoo | Q96: 94 | R96: FALSE | S96: =IF(R96,'Yahoo Index'!E148,"") ->  | T96: =IF(R96,'Yahoo Index'!F148,"") ->  | X96: 100 | Y96: FALSE | Z96: =IF($F$6,'FRED Indicies'!E109) -> 0 | AB96: =IF($F$6,'FRED Indicies'!D109) -> 0 | AF96: 101 | AG96: FALSE | AH96: =IF(AG96,'Google Index'!E123) -> FALSE | AJ96: =IF(AF96,'Google Index'!F123) -> 0 | AN96: 101 | AO96: FALSE | AP96: =IF(AO96,'Commodity Prices'!C109) -> FALSE | AR96: =IF(AO96,'Commodity Prices'!D109) -> FALSE | AV96: 104 | AW96: 104 | AX96: =IF(AW96,'Yahoo Stocks'!D123) -> CVX | AY96: PCG | AZ96: =IF(AW96,'Yahoo Stocks'!E123) -> Chevron | BA96: PG&E | BB96: F | BC96: Yahoo | BD96: 214 | BE96: FALSE | BF96: =IF(BE96,'Google Finance Stocks'!D120) -> FALSE | BH96: =IF(BE96,'Google Finance Stocks'!E120) -> FALSE | BL96: 214 | BM96: FALSE | BN96: ='Exchange Rates'!D114 -> 0 | BP96: =IF(BM96,'Exchange Rates'!E114) -> FALSE
L97: 95 | M97: RWE.DE | N97: RWE | O97: F | P97: Yahoo | Q97: 95 | R97: FALSE | S97: =IF(R97,'Yahoo Index'!E149,"") ->  | T97: =IF(R97,'Yahoo Index'!F149,"") ->  | X97: 101 | Y97: FALSE | Z97: =IF($F$6,'FRED Indicies'!E110) -> 0 | AB97: =IF($F$6,'FRED Indicies'!D110) -> 0 | AF97: 102 | AG97: FALSE | AH97: =IF(AG97,'Google Index'!E124) -> FALSE | AJ97: =IF(AF97,'Google Index'!F124) -> 0 | AN97: 102 | AO97: FALSE | AP97: =IF(AO97,'Commodity Prices'!C110) -> FALSE | AR97: =IF(AO97,'Commodity Prices'!D110) -> FALSE | AV97: 105 | AW97: 105 | AX97: =IF(AW97,'Yahoo Stocks'!D124) -> CSCO | AY97: RWE.DE | AZ97: =IF(AW97,'Yahoo Stocks'!E124) -> Cisco | BA97: RWE | BB97: F | BC97: Yahoo | BD97: 215 | BE97: FALSE | BF97: =IF(BE97,'Google Finance Stocks'!D121) -> FALSE | BH97: =IF(BE97,'Google Finance Stocks'!E121) -> FALSE | BL97: 215 | BM97: FALSE | BN97: ='Exchange Rates'!D115 -> 0 | BP97: =IF(BM97,'Exchange Rates'!E115) -> FALSE
L98: 96 | M98: MGEE | N98: Madison Gas and Electric | O98: F | P98: Yahoo | Q98: 96 | R98: FALSE | S98: =IF(R98,'Yahoo Index'!E150,"") ->  | T98: =IF(R98,'Yahoo Index'!F150,"") ->  | X98: 102 | Y98: FALSE | Z98: =IF($F$6,'FRED Indicies'!E111) -> 0 | AB98: =IF($F$6,'FRED Indicies'!D111) -> 0 | AF98: 103 | AG98: FALSE | AH98: =IF(AG98,'Google Index'!E125) -> FALSE | AJ98: =IF(AF98,'Google Index'!F125) -> 0 | AN98: 103 | AO98: FALSE | AP98: =IF(AO98,'Commodity Prices'!C111) -> FALSE | AR98: =IF(AO98,'Commodity Prices'!D111) -> FALSE | AV98: 106 | AW98: 106 | AX98: =IF(AW98,'Yahoo Stocks'!D125) -> KO | AY98: MGEE | AZ98: =IF(AW98,'Yahoo Stocks'!E125) -> Coca-Cola | BA98: Madison Gas and Electric | BB98: F | BC98: Yahoo | BD98: 216 | BE98: FALSE | BF98: =IF(BE98,'Google Finance Stocks'!D122) -> FALSE | BH98: =IF(BE98,'Google Finance Stocks'!E122) -> FALSE | BL98: 216 | BM98: FALSE | BN98: ='Exchange Rates'!D116 -> 0 | BP98: =IF(BM98,'Exchange Rates'!E116) -> FALSE
L99: 97 | M99: WEC | N99: Wisconsin Public Service | O99: F | P99: Yahoo | Q99: 97 | R99: FALSE | S99: =IF(R99,'Yahoo Index'!E151,"") ->  | T99: =IF(R99,'Yahoo Index'!F151,"") ->  | X99: 103 | Y99: FALSE | Z99: =IF($F$6,'FRED Indicies'!E112) -> 0 | AB99: =IF($F$6,'FRED Indicies'!D112) -> 0 | AF99: 104 | AG99: FALSE | AH99: =IF(AG99,'Google Index'!E126) -> FALSE | AJ99: =IF(AF99,'Google Index'!F126) -> 0 | AN99: 104 | AO99: FALSE | AP99: =IF(AO99,'Commodity Prices'!C112) -> FALSE | AR99: =IF(AO99,'Commodity Prices'!D112) -> FALSE | AV99: 107 | AW99: 107 | AX99: =IF(AW99,'Yahoo Stocks'!D126) -> DIS | AY99: WEC | AZ99: =IF(AW99,'Yahoo Stocks'!E126) -> Disney | BA99: Wisconsin Public Service | BB99: F | BC99: Yahoo | BD99: 217 | BE99: FALSE | BF99: =IF(BE99,'Google Finance Stocks'!D123) -> FALSE | BH99: =IF(BE99,'Google Finance Stocks'!E123) -> FALSE | BL99: 217 | BM99: FALSE | BN99: ='Exchange Rates'!D117 -> 0 | BP99: =IF(BM99,'Exchange Rates'!E117) -> FALSE
L100: 98 | M100: AEE | N100: Ameren | O100: F | P100: Yahoo | Q100: 98 | R100: FALSE | S100: =IF(R100,'Yahoo Index'!E152,"") ->  | T100: =IF(R100,'Yahoo Index'!F152,"") ->  | X100: 104 | Y100: FALSE | Z100: =IF($F$6,'FRED Indicies'!E113) -> 0 | AB100: =IF($F$6,'FRED Indicies'!D113) -> 0 | AF100: 105 | AG100: FALSE | AH100: =IF(AG100,'Google Index'!E127) -> FALSE | AJ100: =IF(AF100,'Google Index'!F127) -> 0 | AN100: 105 | AO100: FALSE | AP100: =IF(AO100,'Commodity Prices'!C113) -> FALSE | AR100: =IF(AO100,'Commodity Prices'!D113) -> FALSE | AV100: 108 | AW100: 108 | AX100: =IF(AW100,'Yahoo Stocks'!D127) -> DWDP | AY100: AEE | AZ100: =IF(AW100,'Yahoo Stocks'!E127) -> E I du Pont de Nemours and Co | BA100: Ameren | BB100: F | BC100: Yahoo | BD100: 218 | BE100: FALSE | BF100: =IF(BE100,'Google Finance Stocks'!D124) -> FALSE | BH100: =IF(BE100,'Google Finance Stocks'!E124) -> FALSE | BL100: 218 | BM100: FALSE | BN100: ='Exchange Rates'!D118 -> 0 | BP100: =IF(BM100,'Exchange Rates'!E118) -> FALSE
L101: 99 | M101: CMS | N101: CMS Energy | O101: F | P101: Yahoo | Q101: 99 | R101: FALSE | S101: =IF(R101,'Yahoo Index'!E153,"") ->  | T101: =IF(R101,'Yahoo Index'!F153,"") ->  | X101: 105 | Y101: FALSE | Z101: =IF($F$6,'FRED Indicies'!E114) -> 0 | AB101: =IF($F$6,'FRED Indicies'!D114) -> 0 | AF101: 106 | AG101: FALSE | AH101: =IF(AG101,'Google Index'!E128) -> FALSE | AJ101: =IF(AF101,'Google Index'!F128) -> 0 | AN101: 106 | AO101: FALSE | AP101: =IF(AO101,'Commodity Prices'!C114) -> FALSE | AR101: =IF(AO101,'Commodity Prices'!D114) -> FALSE | AV101: 109 | AW101: 109 | AX101: =IF(AW101,'Yahoo Stocks'!D128) -> XOM | AY101: CMS | AZ101: =IF(AW101,'Yahoo Stocks'!E128) -> Exxon Mobil | BA101: CMS Energy | BB101: F | BC101: Yahoo | BD101: 219 | BE101: FALSE | BF101: =IF(BE101,'Google Finance Stocks'!D125) -> FALSE | BH101: =IF(BE101,'Google Finance Stocks'!E125) -> FALSE | BL101: 219 | BM101: FALSE | BN101: ='Exchange Rates'!D119 -> 0 | BP101: =IF(BM101,'Exchange Rates'!E119) -> FALSE
L102: 100 | M102: MMM | N102: 3M | O102: F | P102: Yahoo | Q102: 100 | R102: FALSE | S102: =IF(R102,'Yahoo Index'!E154,"") ->  | T102: =IF(R102,'Yahoo Index'!F154,"") ->  | X102: 106 | Y102: FALSE | Z102: =IF($F$6,'FRED Indicies'!E115) -> 0 | AB102: =IF($F$6,'FRED Indicies'!D115) -> 0 | AF102: 107 | AG102: FALSE | AH102: =IF(AG102,'Google Index'!E129) -> FALSE | AJ102: =IF(AF102,'Google Index'!F129) -> 0 | AN102: 107 | AO102: FALSE | AP102: =IF(AO102,'Commodity Prices'!C115) -> FALSE | AR102: =IF(AO102,'Commodity Prices'!D115) -> FALSE | AV102: 110 | AW102: 110 | AX102: =IF(AW102,'Yahoo Stocks'!D129) -> GE | AY102: MMM | AZ102: =IF(AW102,'Yahoo Stocks'!E129) -> General Electric | BA102: 3M | BB102: F | BC102: Yahoo | BD102: 220 | BE102: FALSE | BF102: =IF(BE102,'Google Finance Stocks'!D126) -> FALSE | BH102: =IF(BE102,'Google Finance Stocks'!E126) -> FALSE | BL102: 220 | BM102: FALSE | BN102: ='Exchange Rates'!D120 -> 0 | BP102: =IF(BM102,'Exchange Rates'!E120) -> FALSE
L103: 101 | M103: AAPL | N103: Apple | O103: F | P103: Yahoo | Q103: 101 | R103: FALSE | S103: =IF(R103,'Yahoo Index'!E155,"") ->  | T103: =IF(R103,'Yahoo Index'!F155,"") ->  | X103: 107 | Y103: FALSE | Z103: =IF($F$6,'FRED Indicies'!E116) -> 0 | AB103: =IF($F$6,'FRED Indicies'!D116) -> 0 | AF103: 108 | AG103: FALSE | AH103: =IF(AG103,'Google Index'!E130) -> FALSE | AJ103: =IF(AF103,'Google Index'!F130) -> 0 | AN103: 108 | AO103: FALSE | AP103: =IF(AO103,'Commodity Prices'!C116) -> FALSE | AR103: =IF(AO103,'Commodity Prices'!D116) -> FALSE | AV103: 111 | AW103: 111 | AX103: =IF(AW103,'Yahoo Stocks'!D130) -> HD | AY103: AAPL | AZ103: =IF(AW103,'Yahoo Stocks'!E130) -> Home Depot | BA103: Apple | BB103: F | BC103: Yahoo | BD103: 221 | BE103: FALSE | BF103: =IF(BE103,'Google Finance Stocks'!D127) -> FALSE | BH103: =IF(BE103,'Google Finance Stocks'!E127) -> FALSE | BL103: 221 | BM103: FALSE | BN103: ='Exchange Rates'!D121 -> 0 | BP103: =IF(BM103,'Exchange Rates'!E121) -> FALSE
L104: 102 | M104: BA | N104: Boeing | O104: F | P104: Yahoo | Q104: 102 | R104: FALSE | S104: =IF(R104,'Yahoo Index'!E156,"") ->  | T104: =IF(R104,'Yahoo Index'!F156,"") ->  | X104: 108 | Y104: FALSE | Z104: =IF($F$6,'FRED Indicies'!E117) -> 0 | AB104: =IF($F$6,'FRED Indicies'!D117) -> 0 | AF104: 109 | AG104: FALSE | AH104: =IF(AG104,'Google Index'!E131) -> FALSE | AJ104: =IF(AF104,'Google Index'!F131) -> 0 | AN104: 109 | AO104: FALSE | AP104: =IF(AO104,'Commodity Prices'!C117) -> FALSE | AR104: =IF(AO104,'Commodity Prices'!D117) -> FALSE | AV104: 112 | AW104: 112 | AX104: =IF(AW104,'Yahoo Stocks'!D131) -> IBM | AY104: BA | AZ104: =IF(AW104,'Yahoo Stocks'!E131) -> IBM | BA104: Boeing | BB104: F | BC104: Yahoo | BD104: 222 | BE104: FALSE | BF104: =IF(BE104,'Google Finance Stocks'!D128) -> FALSE | BH104: =IF(BE104,'Google Finance Stocks'!E128) -> FALSE | BL104: 222 | BM104: FALSE | BN104: ='Exchange Rates'!D122 -> 0 | BP104: =IF(BM104,'Exchange Rates'!E122) -> FALSE
L105: 103 | M105: CAT | N105: Caterpillar | O105: F | P105: Yahoo | Q105: 103 | R105: FALSE | S105: =IF(R105,'Yahoo Index'!E157,"") ->  | T105: =IF(R105,'Yahoo Index'!F157,"") ->  | X105: 109 | Y105: FALSE | Z105: =IF($F$6,'FRED Indicies'!E118) -> 0 | AB105: =IF($F$6,'FRED Indicies'!D118) -> 0 | AF105: 110 | AG105: FALSE | AH105: =IF(AG105,'Google Index'!E132) -> FALSE | AJ105: =IF(AF105,'Google Index'!F132) -> 0 | AN105: 110 | AO105: FALSE | AP105: =IF(AO105,'Commodity Prices'!C118) -> FALSE | AR105: =IF(AO105,'Commodity Prices'!D118) -> FALSE | AV105: 113 | AW105: 113 | AX105: =IF(AW105,'Yahoo Stocks'!D132) -> INTC | AY105: CAT | AZ105: =IF(AW105,'Yahoo Stocks'!E132) -> Intel | BA105: Caterpillar | BB105: F | BC105: Yahoo | BD105: 223 | BE105: FALSE | BF105: =IF(BE105,'Google Finance Stocks'!D129) -> FALSE | BH105: =IF(BE105,'Google Finance Stocks'!E129) -> FALSE | BL105: 223 | BM105: FALSE | BN105: ='Exchange Rates'!D123 -> 0 | BP105: =IF(BM105,'Exchange Rates'!E123) -> FALSE
L106: 104 | M106: CVX | N106: Chevron | O106: F | P106: Yahoo | Q106: 104 | R106: FALSE | S106: =IF(R106,'Yahoo Index'!E158,"") ->  | T106: =IF(R106,'Yahoo Index'!F158,"") ->  | X106: 110 | Y106: FALSE | Z106: =IF($F$6,'FRED Indicies'!E119) -> 0 | AB106: =IF($F$6,'FRED Indicies'!D119) -> 0 | AF106: 111 | AG106: FALSE | AH106: =IF(AG106,'Google Index'!E133) -> FALSE | AJ106: =IF(AF106,'Google Index'!F133) -> 0 | AN106: 111 | AO106: FALSE | AP106: =IF(AO106,'Commodity Prices'!C119) -> FALSE | AR106: =IF(AO106,'Commodity Prices'!D119) -> FALSE | AV106: 114 | AW106: 114 | AX106: =IF(AW106,'Yahoo Stocks'!D133) -> JNJ | AY106: CVX | AZ106: =IF(AW106,'Yahoo Stocks'!E133) -> Johnson & Johnson | BA106: Chevron | BB106: F | BC106: Yahoo | BD106: 224 | BE106: FALSE | BF106: =IF(BE106,'Google Finance Stocks'!D130) -> FALSE | BH106: =IF(BE106,'Google Finance Stocks'!E130) -> FALSE | BL106: 224 | BM106: FALSE | BN106: ='Exchange Rates'!D124 -> 0 | BP106: =IF(BM106,'Exchange Rates'!E124) -> FALSE
L107: 105 | M107: CSCO | N107: Cisco | O107: F | P107: Yahoo | Q107: 105 | R107: FALSE | S107: =IF(R107,'Yahoo Index'!E159,"") ->  | T107: =IF(R107,'Yahoo Index'!F159,"") ->  | X107: 111 | Y107: FALSE | Z107: =IF($F$6,'FRED Indicies'!E120) -> 0 | AB107: =IF($F$6,'FRED Indicies'!D120) -> 0 | AF107: 112 | AG107: FALSE | AH107: =IF(AG107,'Google Index'!E134) -> FALSE | AJ107: =IF(AF107,'Google Index'!F134) -> 0 | AN107: 112 | AO107: FALSE | AP107: =IF(AO107,'Commodity Prices'!C120) -> FALSE | AR107: =IF(AO107,'Commodity Prices'!D120) -> FALSE | AV107: 115 | AW107: 115 | AX107: =IF(AW107,'Yahoo Stocks'!D134) -> MCD | AY107: CSCO | AZ107: =IF(AW107,'Yahoo Stocks'!E134) -> McDonald's | BA107: Cisco | BB107: F | BC107: Yahoo | BD107: 225 | BE107: FALSE | BF107: =IF(BE107,'Google Finance Stocks'!D131) -> FALSE | BH107: =IF(BE107,'Google Finance Stocks'!E131) -> FALSE | BL107: 225 | BM107: FALSE | BN107: ='Exchange Rates'!D125 -> 0 | BP107: =IF(BM107,'Exchange Rates'!E125) -> FALSE
L108: 106 | M108: KO | N108: Coca-Cola | O108: F | P108: Yahoo | Q108: 106 | R108: FALSE | S108: =IF(R108,'Yahoo Index'!E160,"") ->  | T108: =IF(R108,'Yahoo Index'!F160,"") ->  | X108: 112 | Y108: FALSE | Z108: =IF($F$6,'FRED Indicies'!E121) -> 0 | AB108: =IF($F$6,'FRED Indicies'!D121) -> 0 | AF108: 113 | AG108: FALSE | AH108: =IF(AG108,'Google Index'!E135) -> FALSE | AJ108: =IF(AF108,'Google Index'!F135) -> 0 | AN108: 113 | AO108: FALSE | AP108: =IF(AO108,'Commodity Prices'!C121) -> FALSE | AR108: =IF(AO108,'Commodity Prices'!D121) -> FALSE | AV108: 116 | AW108: 116 | AX108: =IF(AW108,'Yahoo Stocks'!D135) -> MRK | AY108: KO | AZ108: =IF(AW108,'Yahoo Stocks'!E135) -> Merck | BA108: Coca-Cola | BB108: F | BC108: Yahoo | BD108: 226 | BE108: FALSE | BF108: =IF(BE108,'Google Finance Stocks'!D132) -> FALSE | BH108: =IF(BE108,'Google Finance Stocks'!E132) -> FALSE | BL108: 226 | BM108: FALSE | BN108: ='Exchange Rates'!D126 -> 0 | BP108: =IF(BM108,'Exchange Rates'!E126) -> FALSE
L109: 107 | M109: DIS | N109: Disney | O109: F | P109: Yahoo | Q109: 107 | R109: FALSE | S109: =IF(R109,'Yahoo Index'!E161,"") ->  | T109: =IF(R109,'Yahoo Index'!F161,"") ->  | X109: 113 | Y109: FALSE | Z109: =IF($F$6,'FRED Indicies'!E122) -> 0 | AB109: =IF($F$6,'FRED Indicies'!D122) -> 0 | AF109: 114 | AG109: FALSE | AH109: =IF(AG109,'Google Index'!E136) -> FALSE | AJ109: =IF(AF109,'Google Index'!F136) -> 0 | AN109: 114 | AO109: FALSE | AP109: =IF(AO109,'Commodity Prices'!C122) -> FALSE | AR109: =IF(AO109,'Commodity Prices'!D122) -> FALSE | AV109: 117 | AW109: 117 | AX109: =IF(AW109,'Yahoo Stocks'!D136) -> MSFT | AY109: DIS | AZ109: =IF(AW109,'Yahoo Stocks'!E136) -> Microsoft | BA109: Disney | BB109: F | BC109: Yahoo | BD109: 227 | BE109: FALSE | BF109: =IF(BE109,'Google Finance Stocks'!D133) -> FALSE | BH109: =IF(BE109,'Google Finance Stocks'!E133) -> FALSE | BL109: 227 | BM109: FALSE | BN109: ='Exchange Rates'!D127 -> 0 | BP109: =IF(BM109,'Exchange Rates'!E127) -> FALSE
L110: 108 | M110: DWDP | N110: E I du Pont de Nemours and Co | O110: F | P110: Yahoo | Q110: 108 | R110: FALSE | S110: =IF(R110,'Yahoo Index'!E162,"") ->  | T110: =IF(R110,'Yahoo Index'!F162,"") ->  | X110: 114 | Y110: FALSE | Z110: =IF($F$6,'FRED Indicies'!E123) -> 0 | AB110: =IF($F$6,'FRED Indicies'!D123) -> 0 | AF110: 115 | AG110: FALSE | AH110: =IF(AG110,'Google Index'!E137) -> FALSE | AJ110: =IF(AF110,'Google Index'!F137) -> 0 | AN110: 115 | AO110: FALSE | AP110: =IF(AO110,'Commodity Prices'!C123) -> FALSE | AR110: =IF(AO110,'Commodity Prices'!D123) -> FALSE | AV110: 118 | AW110: 118 | AX110: =IF(AW110,'Yahoo Stocks'!D137) -> NKE | AY110: DWDP | AZ110: =IF(AW110,'Yahoo Stocks'!E137) -> Nike | BA110: E I du Pont de Nemours and Co | BB110: F | BC110: Yahoo | BD110: 228 | BE110: FALSE | BF110: =IF(BE110,'Google Finance Stocks'!D134) -> FALSE | BH110: =IF(BE110,'Google Finance Stocks'!E134) -> FALSE | BL110: 228 | BM110: FALSE | BN110: ='Exchange Rates'!D128 -> 0 | BP110: =IF(BM110,'Exchange Rates'!E128) -> FALSE
L111: 109 | M111: XOM | N111: Exxon Mobil | O111: F | P111: Yahoo | Q111: 109 | R111: FALSE | S111: =IF(R111,'Yahoo Index'!E163,"") ->  | T111: =IF(R111,'Yahoo Index'!F163,"") ->  | X111: 115 | Y111: FALSE | Z111: =IF($F$6,'FRED Indicies'!E124) -> 0 | AB111: =IF($F$6,'FRED Indicies'!D124) -> 0 | AF111: 116 | AG111: FALSE | AH111: =IF(AG111,'Google Index'!E138) -> FALSE | AJ111: =IF(AF111,'Google Index'!F138) -> 0 | AN111: 116 | AO111: FALSE | AP111: =IF(AO111,'Commodity Prices'!C124) -> FALSE | AR111: =IF(AO111,'Commodity Prices'!D124) -> FALSE | AV111: 119 | AW111: 119 | AX111: =IF(AW111,'Yahoo Stocks'!D138) -> PFE | AY111: XOM | AZ111: =IF(AW111,'Yahoo Stocks'!E138) -> Pfizer | BA111: Exxon Mobil | BB111: F | BC111: Yahoo | BD111: 229 | BE111: FALSE | BF111: =IF(BE111,'Google Finance Stocks'!D135) -> FALSE | BH111: =IF(BE111,'Google Finance Stocks'!E135) -> FALSE | BL111: 229 | BM111: FALSE | BN111: ='Exchange Rates'!D129 -> 0 | BP111: =IF(BM111,'Exchange Rates'!E129) -> FALSE
L112: 110 | M112: GE | N112: General Electric | O112: F | P112: Yahoo | Q112: 110 | R112: FALSE | S112: =IF(R112,'Yahoo Index'!E164,"") ->  | T112: =IF(R112,'Yahoo Index'!F164,"") ->  | X112: 116 | Y112: FALSE | Z112: =IF($F$6,'FRED Indicies'!E125) -> 0 | AB112: =IF($F$6,'FRED Indicies'!D125) -> 0 | AF112: 117 | AG112: FALSE | AH112: =IF(AG112,'Google Index'!E139) -> FALSE | AJ112: =IF(AF112,'Google Index'!F139) -> 0 | AN112: 117 | AO112: FALSE | AP112: =IF(AO112,'Commodity Prices'!C125) -> FALSE | AR112: =IF(AO112,'Commodity Prices'!D125) -> FALSE | AV112: 120 | AW112: 120 | AX112: =IF(AW112,'Yahoo Stocks'!D139) -> PG | AY112: GE | AZ112: =IF(AW112,'Yahoo Stocks'!E139) -> Procter & Gamble | BA112: General Electric | BB112: F | BC112: Yahoo | BD112: 230 | BE112: FALSE | BF112: =IF(BE112,'Google Finance Stocks'!D136) -> FALSE | BH112: =IF(BE112,'Google Finance Stocks'!E136) -> FALSE | BL112: 230 | BM112: FALSE | BN112: ='Exchange Rates'!D130 -> 0 | BP112: =IF(BM112,'Exchange Rates'!E130) -> FALSE
L113: 111 | M113: HD | N113: Home Depot | O113: F | P113: Yahoo | Q113: 111 | R113: FALSE | S113: =IF(R113,'Yahoo Index'!E165,"") ->  | T113: =IF(R113,'Yahoo Index'!F165,"") ->  | X113: 117 | Y113: FALSE | Z113: =IF($F$6,'FRED Indicies'!E126) -> 0 | AB113: =IF($F$6,'FRED Indicies'!D126) -> 0 | AF113: 118 | AG113: FALSE | AH113: =IF(AG113,'Google Index'!E140) -> FALSE | AJ113: =IF(AF113,'Google Index'!F140) -> 0 | AN113: 118 | AO113: FALSE | AP113: =IF(AO113,'Commodity Prices'!C126) -> FALSE | AR113: =IF(AO113,'Commodity Prices'!D126) -> FALSE | AV113: 121 | AW113: FALSE | AX113: =IF(AW113,'Yahoo Stocks'!D140) -> FALSE | AY113: HD | AZ113: =IF(AW113,'Yahoo Stocks'!E140) -> FALSE | BA113: Home Depot | BB113: F | BC113: Yahoo | BD113: 231 | BE113: FALSE | BF113: =IF(BE113,'Google Finance Stocks'!D137) -> FALSE | BH113: =IF(BE113,'Google Finance Stocks'!E137) -> FALSE | BL113: 231 | BM113: FALSE | BN113: ='Exchange Rates'!D131 -> 0 | BP113: =IF(BM113,'Exchange Rates'!E131) -> FALSE
L114: 112 | M114: IBM | N114: IBM | O114: F | P114: Yahoo | Q114: 112 | R114: FALSE | S114: =IF(R114,'Yahoo Index'!E166,"") ->  | T114: =IF(R114,'Yahoo Index'!F166,"") ->  | X114: 118 | Y114: FALSE | Z114: =IF($F$6,'FRED Indicies'!E127) -> 0 | AB114: =IF($F$6,'FRED Indicies'!D127) -> 0 | AF114: 119 | AG114: FALSE | AH114: =IF(AG114,'Google Index'!E141) -> FALSE | AJ114: =IF(AF114,'Google Index'!F141) -> 0 | AN114: 119 | AO114: FALSE | AP114: =IF(AO114,'Commodity Prices'!C127) -> FALSE | AR114: =IF(AO114,'Commodity Prices'!D127) -> FALSE | AV114: 122 | AW114: FALSE | AX114: =IF(AW114,'Yahoo Stocks'!D141) -> FALSE | AY114: IBM | AZ114: =IF(AW114,'Yahoo Stocks'!E141) -> FALSE | BA114: IBM | BB114: F | BC114: Yahoo | BD114: 232 | BE114: FALSE | BF114: =IF(BE114,'Google Finance Stocks'!D138) -> FALSE | BH114: =IF(BE114,'Google Finance Stocks'!E138) -> FALSE | BL114: 232 | BM114: FALSE | BN114: ='Exchange Rates'!D132 -> 0 | BP114: =IF(BM114,'Exchange Rates'!E132) -> FALSE
L115: 113 | M115: INTC | N115: Intel | O115: F | P115: Yahoo | Q115: 113 | R115: FALSE | S115: =IF(R115,'Yahoo Index'!E167,"") ->  | T115: =IF(R115,'Yahoo Index'!F167,"") ->  | X115: 119 | Y115: FALSE | Z115: =IF($F$6,'FRED Indicies'!E128) -> 0 | AB115: =IF($F$6,'FRED Indicies'!D128) -> 0 | AF115: 120 | AG115: FALSE | AH115: =IF(AG115,'Google Index'!E142) -> FALSE | AJ115: =IF(AF115,'Google Index'!F142) -> 0 | AN115: 120 | AO115: FALSE | AP115: =IF(AO115,'Commodity Prices'!C128) -> FALSE | AR115: =IF(AO115,'Commodity Prices'!D128) -> FALSE | AV115: 123 | AW115: FALSE | AX115: =IF(AW115,'Yahoo Stocks'!D142) -> FALSE | AY115: INTC | AZ115: =IF(AW115,'Yahoo Stocks'!E142) -> FALSE | BA115: Intel | BB115: F | BC115: Yahoo | BD115: 233 | BE115: FALSE | BF115: =IF(BE115,'Google Finance Stocks'!D139) -> FALSE | BH115: =IF(BE115,'Google Finance Stocks'!E139) -> FALSE | BL115: 233 | BM115: FALSE | BN115: ='Exchange Rates'!D133 -> 0 | BP115: =IF(BM115,'Exchange Rates'!E133) -> FALSE
L116: 114 | M116: JNJ | N116: Johnson & Johnson | O116: F | P116: Yahoo | Q116: 114 | R116: FALSE | S116: =IF(R116,'Yahoo Index'!E168,"") ->  | T116: =IF(R116,'Yahoo Index'!F168,"") ->  | X116: 120 | Y116: FALSE | Z116: =IF($F$6,'FRED Indicies'!E129) -> 0 | AB116: =IF($F$6,'FRED Indicies'!D129) -> 0 | AF116: 121 | AG116: FALSE | AH116: =IF(AG116,'Google Index'!E143) -> FALSE | AJ116: =IF(AF116,'Google Index'!F143) -> 0 | AN116: 121 | AO116: FALSE | AP116: =IF(AO116,'Commodity Prices'!C129) -> FALSE | AR116: =IF(AO116,'Commodity Prices'!D129) -> FALSE | AV116: 124 | AW116: FALSE | AX116: =IF(AW116,'Yahoo Stocks'!D143) -> FALSE | AY116: JNJ | AZ116: =IF(AW116,'Yahoo Stocks'!E143) -> FALSE | BA116: Johnson & Johnson | BB116: F | BC116: Yahoo | BD116: 234 | BE116: FALSE | BF116: =IF(BE116,'Google Finance Stocks'!D140) -> FALSE | BH116: =IF(BE116,'Google Finance Stocks'!E140) -> FALSE | BL116: 234 | BM116: FALSE | BN116: ='Exchange Rates'!D134 -> 0 | BP116: =IF(BM116,'Exchange Rates'!E134) -> FALSE
L117: 115 | M117: =S117&AA117&AI117&AQ117&AY117&BG117&BO117 -> MCD | N117: =T117&AC117&AK117&AS117&BA117&BI117&BQ117 -> McDonald's | O117: =U117&AD117&AL117&AT117&BB117&BJ117&BR117 -> F | P117: =V117&AE117&AM117&AU117&BC117&BK117&BS117 -> Yahoo | Q117: 115 | R117: =IF(AND($F$3,Q117<=$H$3),Q117) -> FALSE | S117: =IF(R117,'Yahoo Index'!E169,"") ->  | T117: =IF(R117,'Yahoo Index'!F169,"") ->  | U117: =IF(R117,$I$3,"") ->  | V117: =IF(R117,$J$3,"") ->  | X117: 121 | Y117: =IF(AND($F$6,X117<=$H$6),X117) -> FALSE | Z117: =IF($F$6,'FRED Indicies'!E130) -> 0 | AA117: =IFERROR(INDEX(Z:Z,MATCH(L117,Y:Y,0)),"") ->  | AB117: =IF($F$6,'FRED Indicies'!D130) -> 0 | AC117: =IFERROR(INDEX(AB:AB,MATCH(L117,Y:Y,0)),"") ->  | AD117: =IF(AA117<>"",$I$6,"") ->  | AE117: =IF(AA117<>"",$J$6,"") ->  | AF117: 122 | AG117: =IF(AND($F$9,AF117<=$H$9),AF117) -> FALSE | AH117: =IF(AG117,'Google Index'!E144) -> FALSE | AI117: =IFERROR(INDEX(AH:AH,MATCH(Q117,AG:AG,0)),"") ->  | AJ117: =IF(AF117,'Google Index'!F144) -> 0 | AK117: =IFERROR(INDEX(AJ:AJ,MATCH(Q117,AG:AG,0)),"") ->  | AL117: =IF(AI117<>"",$I$6,"") ->  | AM117: =IF(AK117<>"",$J$6,"") ->  | AN117: 122 | AO117: =IF(AND($F$12,AN117<=$H$12),AN117) -> FALSE | AP117: =IF(AO117,'Commodity Prices'!C130) -> FALSE | AQ117: =IFERROR(INDEX(AP:AP,MATCH(L117,AO:AO,0)),"") ->  | AR117: =IF(AO117,'Commodity Prices'!D130) -> FALSE | AS117: =IFERROR(INDEX(AR:AR,MATCH(L117,AO:AO,0)),"") ->  | AT117: =IF(AQ117<>"",$I$12,"") ->  | AU117: =IF(AS117<>"",$J$12,"") ->  | AV117: 125 | AW117: FALSE | AX117: =IF(AW117,'Yahoo Stocks'!D144) -> FALSE | AY117: MCD | AZ117: =IF(AW117,'Yahoo Stocks'!E144) -> FALSE | BA117: McDonald's | BB117: F | BC117: Yahoo | BD117: 235 | BE117: =IF(AND($F$18,BD117<=$H$18),BD117) -> FALSE | BF117: =IF(BE117,'Google Finance Stocks'!D141) -> FALSE | BG117: =IFERROR(INDEX(BF:BF,MATCH(Q117,BE:BE,0)),"") ->  | BH117: =IF(BE117,'Google Finance Stocks'!E141) -> FALSE | BI117: =IFERROR(INDEX(BH:BH,MATCH(Q117,BE:BE,0)),"") ->  | BJ117: =IF(BI117<>"",$I$18,"") ->  | BK117: =IF(BI117<>"",$J$18,"") ->  | BL117: 235 | BM117: =IF(AND($F$21,BL117<=$H$21),BL117) -> FALSE | BN117: ='Exchange Rates'!D135 -> 0 | BO117: =IFERROR(INDEX(BN:BN,MATCH(L117,BM:BM,0)),"") ->  | BP117: =IF(BM117,'Exchange Rates'!E135) -> FALSE | BQ117: =IFERROR(INDEX(BP:BP,MATCH(L117,BM:BM,0)),"") ->  | BR117: =IF(BQ117<>"",$I$21,"") ->  | BS117: =IF(BQ117<>"",$J$21,"") -> 
L118: 116 | M118: MRK | N118: Merck | O118: F | P118: Yahoo | Q118: 116 | R118: FALSE | S118: =IF(R118,'Yahoo Index'!E170,"") ->  | T118: =IF(R118,'Yahoo Index'!F170,"") ->  | X118: 122 | Y118: FALSE | Z118: =IF($F$6,'FRED Indicies'!E131) -> 0 | AB118: =IF($F$6,'FRED Indicies'!D131) -> 0 | AF118: 123 | AG118: FALSE | AH118: =IF(AG118,'Google Index'!E145) -> FALSE | AJ118: =IF(AF118,'Google Index'!F145) -> 0 | AN118: 123 | AO118: FALSE | AP118: =IF(AO118,'Commodity Prices'!C131) -> FALSE | AR118: =IF(AO118,'Commodity Prices'!D131) -> FALSE | AV118: 126 | AW118: FALSE | AX118: =IF(AW118,'Yahoo Stocks'!D145) -> FALSE | AY118: MRK | AZ118: =IF(AW118,'Yahoo Stocks'!E145) -> FALSE | BA118: Merck | BB118: F | BC118: Yahoo | BD118: 236 | BE118: FALSE | BF118: =IF(BE118,'Google Finance Stocks'!D142) -> FALSE | BH118: =IF(BE118,'Google Finance Stocks'!E142) -> FALSE | BL118: 236 | BM118: FALSE | BN118: ='Exchange Rates'!D136 -> 0 | BP118: =IF(BM118,'Exchange Rates'!E136) -> FALSE
L119: 117 | M119: MSFT | N119: Microsoft | O119: F | P119: Yahoo | Q119: 117 | R119: FALSE | S119: =IF(R119,'Yahoo Index'!E171,"") ->  | T119: =IF(R119,'Yahoo Index'!F171,"") ->  | X119: 123 | Y119: FALSE | Z119: =IF($F$6,'FRED Indicies'!E132) -> 0 | AB119: =IF($F$6,'FRED Indicies'!D132) -> 0 | AF119: 124 | AG119: FALSE | AH119: =IF(AG119,'Google Index'!E146) -> FALSE | AJ119: =IF(AF119,'Google Index'!F146) -> 0 | AN119: 124 | AO119: FALSE | AP119: =IF(AO119,'Commodity Prices'!C132) -> FALSE | AR119: =IF(AO119,'Commodity Prices'!D132) -> FALSE | AV119: 127 | AW119: FALSE | AX119: =IF(AW119,'Yahoo Stocks'!D146) -> FALSE | AY119: MSFT | AZ119: =IF(AW119,'Yahoo Stocks'!E146) -> FALSE | BA119: Microsoft | BB119: F | BC119: Yahoo | BD119: 237 | BE119: FALSE | BF119: =IF(BE119,'Google Finance Stocks'!D143) -> FALSE | BH119: =IF(BE119,'Google Finance Stocks'!E143) -> FALSE | BL119: 237 | BM119: FALSE | BN119: ='Exchange Rates'!D137 -> 0 | BP119: =IF(BM119,'Exchange Rates'!E137) -> FALSE
L120: 118 | M120: NKE | N120: Nike | O120: F | P120: Yahoo | Q120: 118 | R120: FALSE | S120: =IF(R120,'Yahoo Index'!E172,"") ->  | T120: =IF(R120,'Yahoo Index'!F172,"") ->  | X120: 124 | Y120: FALSE | Z120: =IF($F$6,'FRED Indicies'!E133) -> 0 | AB120: =IF($F$6,'FRED Indicies'!D133) -> 0 | AF120: 125 | AG120: FALSE | AH120: =IF(AG120,'Google Index'!E147) -> FALSE | AJ120: =IF(AF120,'Google Index'!F147) -> 0 | AN120: 125 | AO120: FALSE | AP120: =IF(AO120,'Commodity Prices'!C133) -> FALSE | AR120: =IF(AO120,'Commodity Prices'!D133) -> FALSE | AV120: 128 | AW120: FALSE | AX120: =IF(AW120,'Yahoo Stocks'!D147) -> FALSE | AY120: NKE | AZ120: =IF(AW120,'Yahoo Stocks'!E147) -> FALSE | BA120: Nike | BB120: F | BC120: Yahoo | BD120: 238 | BE120: FALSE | BF120: =IF(BE120,'Google Finance Stocks'!D144) -> FALSE | BH120: =IF(BE120,'Google Finance Stocks'!E144) -> FALSE | BL120: 238 | BM120: FALSE | BN120: ='Exchange Rates'!D138 -> 0 | BP120: =IF(BM120,'Exchange Rates'!E138) -> FALSE
L121: 119 | M121: PFE | N121: Pfizer | O121: F | P121: Yahoo | Q121: 119 | R121: FALSE | S121: =IF(R121,'Yahoo Index'!E173,"") ->  | T121: =IF(R121,'Yahoo Index'!F173,"") ->  | X121: 125 | Y121: FALSE | Z121: =IF($F$6,'FRED Indicies'!E134) -> 0 | AB121: =IF($F$6,'FRED Indicies'!D134) -> 0 | AF121: 126 | AG121: FALSE | AH121: =IF(AG121,'Google Index'!E148) -> FALSE | AJ121: =IF(AF121,'Google Index'!F148) -> 0 | AN121: 126 | AO121: FALSE | AP121: =IF(AO121,'Commodity Prices'!C134) -> FALSE | AR121: =IF(AO121,'Commodity Prices'!D134) -> FALSE | AV121: 129 | AW121: FALSE | AX121: =IF(AW121,'Yahoo Stocks'!D148) -> FALSE | AY121: PFE | AZ121: =IF(AW121,'Yahoo Stocks'!E148) -> FALSE | BA121: Pfizer | BB121: F | BC121: Yahoo | BD121: 239 | BE121: FALSE | BF121: =IF(BE121,'Google Finance Stocks'!D145) -> FALSE | BH121: =IF(BE121,'Google Finance Stocks'!E145) -> FALSE | BL121: 239 | BM121: FALSE | BN121: ='Exchange Rates'!D139 -> 0 | BP121: =IF(BM121,'Exchange Rates'!E139) -> FALSE
L122: 120 | M122: PG | N122: Procter & Gamble | O122: F | P122: Yahoo | Q122: 120 | R122: FALSE | S122: =IF(R122,'Yahoo Index'!E174,"") ->  | T122: =IF(R122,'Yahoo Index'!F174,"") ->  | X122: 126 | Y122: FALSE | Z122: =IF($F$6,'FRED Indicies'!E135) -> 0 | AB122: =IF($F$6,'FRED Indicies'!D135) -> 0 | AF122: 127 | AG122: FALSE | AH122: =IF(AG122,'Google Index'!E149) -> FALSE | AJ122: =IF(AF122,'Google Index'!F149) -> 0 | AN122: 127 | AO122: FALSE | AP122: =IF(AO122,'Commodity Prices'!C135) -> FALSE | AR122: =IF(AO122,'Commodity Prices'!D135) -> FALSE | AV122: 130 | AW122: FALSE | AX122: =IF(AW122,'Yahoo Stocks'!D149) -> FALSE | AY122: PG | AZ122: =IF(AW122,'Yahoo Stocks'!E149) -> FALSE | BA122: Procter & Gamble | BB122: F | BC122: Yahoo | BD122: 240 | BE122: FALSE | BF122: =IF(BE122,'Google Finance Stocks'!D146) -> FALSE | BH122: =IF(BE122,'Google Finance Stocks'!E146) -> FALSE | BL122: 240 | BM122: FALSE | BN122: ='Exchange Rates'!D140 -> 0 | BP122: =IF(BM122,'Exchange Rates'!E140) -> FALSE
L123: 121 | M123: GDP Inf | N123: Implicit Price Deflator | O123: B | P123: FRED | Q123: 121 | R123: FALSE | S123: =IF(R123,'Yahoo Index'!E175,"") ->  | T123: =IF(R123,'Yahoo Index'!F175,"") ->  | X123: 127 | Y123: FALSE | Z123: =IF($F$6,'FRED Indicies'!E136) -> 0 | AB123: =IF($F$6,'FRED Indicies'!D136) -> 0 | AF123: 128 | AG123: FALSE | AH123: =IF(AG123,'Google Index'!E150) -> FALSE | AJ123: =IF(AF123,'Google Index'!F150) -> 0 | AN123: 128 | AO123: FALSE | AP123: =IF(AO123,'Commodity Prices'!C136) -> FALSE | AR123: =IF(AO123,'Commodity Prices'!D136) -> FALSE | AV123: 131 | AW123: FALSE | AX123: =IF(AW123,'Yahoo Stocks'!D150) -> FALSE | AZ123: =IF(AW123,'Yahoo Stocks'!E150) -> FALSE | BD123: 241 | BE123: FALSE | BF123: =IF(BE123,'Google Finance Stocks'!D147) -> FALSE | BH123: =IF(BE123,'Google Finance Stocks'!E147) -> FALSE | BL123: 241 | BM123: FALSE | BN123: ='Exchange Rates'!D141 -> 0 | BO123: GDP Inf | BP123: =IF(BM123,'Exchange Rates'!E141) -> FALSE | BQ123: Implicit Price Deflator | BR123: B | BS123: FRED
L124: 122 | M124: CPI US | N124: Consumer Price Inflation | O124: B | P124: FRED | Q124: 122 | R124: FALSE | S124: =IF(R124,'Yahoo Index'!E176,"") ->  | T124: =IF(R124,'Yahoo Index'!F176,"") ->  | X124: 128 | Y124: FALSE | Z124: =IF($F$6,'FRED Indicies'!E137) -> 0 | AB124: =IF($F$6,'FRED Indicies'!D137) -> 0 | AF124: 129 | AG124: FALSE | AH124: =IF(AG124,'Google Index'!E151) -> FALSE | AJ124: =IF(AF124,'Google Index'!F151) -> 0 | AN124: 129 | AO124: FALSE | AP124: =IF(AO124,'Commodity Prices'!C137) -> FALSE | AR124: =IF(AO124,'Commodity Prices'!D137) -> FALSE | AV124: 132 | AW124: FALSE | AX124: =IF(AW124,'Yahoo Stocks'!D151) -> FALSE | AZ124: =IF(AW124,'Yahoo Stocks'!E151) -> FALSE | BD124: 242 | BE124: FALSE | BF124: =IF(BE124,'Google Finance Stocks'!D148) -> FALSE | BH124: =IF(BE124,'Google Finance Stocks'!E148) -> FALSE | BL124: 242 | BM124: FALSE | BN124: ='Exchange Rates'!D142 -> 0 | BO124: CPI US | BP124: =IF(BM124,'Exchange Rates'!E142) -> FALSE | BQ124: Consumer Price Inflation | BR124: B | BS124: FRED
L125: 123 | M125: Euro | N125: U.S. / Euro Foreign Exchange Rate (EXUSEU) | O125: B | P125: FRED | Q125: 123 | R125: FALSE | S125: =IF(R125,'Yahoo Index'!E177,"") ->  | T125: =IF(R125,'Yahoo Index'!F177,"") ->  | X125: 129 | Y125: FALSE | Z125: =IF($F$6,'FRED Indicies'!E138) -> 0 | AB125: =IF($F$6,'FRED Indicies'!D138) -> 0 | AF125: 130 | AG125: FALSE | AH125: =IF(AG125,'Google Index'!E152) -> FALSE | AJ125: =IF(AF125,'Google Index'!F152) -> 0 | AN125: 130 | AO125: FALSE | AP125: =IF(AO125,'Commodity Prices'!C138) -> FALSE | AR125: =IF(AO125,'Commodity Prices'!D138) -> FALSE | AV125: 133 | AW125: FALSE | AX125: =IF(AW125,'Yahoo Stocks'!D152) -> FALSE | AZ125: =IF(AW125,'Yahoo Stocks'!E152) -> FALSE | BD125: 243 | BE125: FALSE | BF125: =IF(BE125,'Google Finance Stocks'!D149) -> FALSE | BH125: =IF(BE125,'Google Finance Stocks'!E149) -> FALSE | BL125: 243 | BM125: FALSE | BN125: ='Exchange Rates'!D143 -> 0 | BO125: Euro | BP125: =IF(BM125,'Exchange Rates'!E143) -> FALSE | BQ125: U.S. / Euro Foreign Exchange Rate (EXUSEU) | BR125: B | BS125: FRED
L126: 124 | M126: INR | N126: India / U.S. Foreign Exchange Rate (DEXINUS) | O126: B | P126: FRED | Q126: 124 | R126: FALSE | S126: =IF(R126,'Yahoo Index'!E178,"") ->  | T126: =IF(R126,'Yahoo Index'!F178,"") ->  | X126: 130 | Y126: FALSE | Z126: =IF($F$6,'FRED Indicies'!E139) -> 0 | AB126: =IF($F$6,'FRED Indicies'!D139) -> 0 | AF126: 131 | AG126: FALSE | AH126: =IF(AG126,'Google Index'!E153) -> FALSE | AJ126: =IF(AF126,'Google Index'!F153) -> 0 | AN126: 131 | AO126: FALSE | AP126: =IF(AO126,'Commodity Prices'!C139) -> FALSE | AR126: =IF(AO126,'Commodity Prices'!D139) -> FALSE | AV126: 134 | AW126: FALSE | AX126: =IF(AW126,'Yahoo Stocks'!D153) -> FALSE | AZ126: =IF(AW126,'Yahoo Stocks'!E153) -> FALSE | BD126: 244 | BE126: FALSE | BF126: =IF(BE126,'Google Finance Stocks'!D150) -> FALSE | BH126: =IF(BE126,'Google Finance Stocks'!E150) -> FALSE | BL126: 244 | BM126: FALSE | BN126: ='Exchange Rates'!D144 -> 0 | BO126: =IFERROR(INDEX(BN:BN,MATCH(L126,BM:BM,0)),"") -> INR | BP126: =IF(BM126,'Exchange Rates'!E144) -> FALSE | BQ126: India / U.S. Foreign Exchange Rate (DEXINUS) | BR126: B | BS126: FRED
L127: 125 | M127: UK | N127: U.S. / U.K. Foreign Exchange Rate (EXUSUK) | O127: B | P127: FRED | Q127: 125 | R127: FALSE | S127: =IF(R127,'Yahoo Index'!E179,"") ->  | T127: =IF(R127,'Yahoo Index'!F179,"") ->  | X127: 131 | Y127: FALSE | Z127: =IF($F$6,'FRED Indicies'!E140) -> 0 | AB127: =IF($F$6,'FRED Indicies'!D140) -> 0 | AF127: 132 | AG127: FALSE | AH127: =IF(AG127,'Google Index'!E154) -> FALSE | AJ127: =IF(AF127,'Google Index'!F154) -> 0 | AN127: 132 | AO127: FALSE | AP127: =IF(AO127,'Commodity Prices'!C140) -> FALSE | AR127: =IF(AO127,'Commodity Prices'!D140) -> FALSE | AV127: 135 | AW127: FALSE | AX127: =IF(AW127,'Yahoo Stocks'!D154) -> FALSE | AZ127: =IF(AW127,'Yahoo Stocks'!E154) -> FALSE | BD127: 245 | BE127: FALSE | BF127: =IF(BE127,'Google Finance Stocks'!D151) -> FALSE | BH127: =IF(BE127,'Google Finance Stocks'!E151) -> FALSE | BL127: 245 | BM127: FALSE | BN127: ='Exchange Rates'!D145 -> 0 | BO127: =IFERROR(INDEX(BN:BN,MATCH(L127,BM:BM,0)),"") -> UK | BP127: =IF(BM127,'Exchange Rates'!E145) -> FALSE | BQ127: U.S. / U.K. Foreign Exchange Rate (EXUSUK) | BR127: B | BS127: FRED
L128: 126 | M128: =S128&AA128&AI128&AQ128&AY128&BG128&BO128 -> CFH | N128: =T128&AC128&AK128&AS128&BA128&BI128&BQ128 -> Switzerland / U.S. Foreign Exchange Rate (DEXSZUS) | O128: =U128&AD128&AL128&AT128&BB128&BJ128&BR128 -> B | P128: =V128&AE128&AM128&AU128&BC128&BK128&BS128 -> FRED | Q128: 126 | R128: =IF(AND($F$3,Q128<=$H$3),Q128) -> FALSE | X128: 132 | Y128: =IF(AND($F$6,X128<=$H$6),X128) -> FALSE | Z128: =IF($F$6,'FRED Indicies'!E141) -> 0 | AA128: =IFERROR(INDEX(Z:Z,MATCH(L128,Y:Y,0)),"") ->  | AB128: =IF($F$6,'FRED Indicies'!D141) -> 0 | AC128: =IFERROR(INDEX(AB:AB,MATCH(L128,Y:Y,0)),"") ->  | AD128: =IF(AA128<>"",$I$6,"") ->  | AE128: =IF(AA128<>"",$J$6,"") ->  | AF128: 133 | AG128: =IF(AND($F$9,AF128<=$H$9),AF128) -> FALSE | AH128: =IF(AG128,'Google Index'!E155) -> FALSE | AI128: =IFERROR(INDEX(AH:AH,MATCH(Q128,AG:AG,0)),"") ->  | AJ128: =IF(AF128,'Google Index'!F155) -> 0 | AK128: =IFERROR(INDEX(AJ:AJ,MATCH(Q128,AG:AG,0)),"") ->  | AL128: =IF(AI128<>"",$I$6,"") ->  | AM128: =IF(AK128<>"",$J$6,"") ->  | AN128: 133 | AO128: =IF(AND($F$12,AN128<=$H$12),AN128) -> FALSE | AP128: =IF(AO128,'Commodity Prices'!C141) -> FALSE | AQ128: =IFERROR(INDEX(AP:AP,MATCH(L128,AO:AO,0)),"") ->  | AR128: =IF(AO128,'Commodity Prices'!D141) -> FALSE | AS128: =IFERROR(INDEX(AR:AR,MATCH(L128,AO:AO,0)),"") ->  | AT128: =IF(AQ128<>"",$I$12,"") ->  | AU128: =IF(AS128<>"",$J$12,"") ->  | AV128: 136 | AW128: FALSE | AX128: =IF(AW128,'Yahoo Stocks'!D155) -> FALSE | AZ128: =IF(AW128,'Yahoo Stocks'!E155) -> FALSE | BD128: 246 | BE128: =IF(AND($F$18,BD128<=$H$18),BD128) -> FALSE | BF128: =IF(BE128,'Google Finance Stocks'!D152) -> FALSE | BG128: =IFERROR(INDEX(BF:BF,MATCH(Q128,BE:BE,0)),"") ->  | BH128: =IF(BE128,'Google Finance Stocks'!E152) -> FALSE | BI128: =IFERROR(INDEX(BH:BH,MATCH(Q128,BE:BE,0)),"") ->  | BJ128: =IF(BI128<>"",$I$18,"") ->  | BK128: =IF(BI128<>"",$J$18,"") ->  | BL128: 246 | BM128: =IF(AND($F$21,BL128<=$H$21),BL128) -> FALSE | BN128: ='Exchange Rates'!D146 -> 0 | BO128: =IFERROR(INDEX(BN:BN,MATCH(L128,BM:BM,0)),"") -> CFH | BP128: =IF(BM128,'Exchange Rates'!E146) -> FALSE | BQ128: =IFERROR(INDEX(BP:BP,MATCH(L128,BM:BM,0)),"") -> Switzerland / U.S. Foreign Exchange Rate (DEXSZUS) | BR128: =IF(BQ128<>"",$I$21,"") -> B | BS128: =IF(BQ128<>"",$J$21,"") -> FRED
L129: 127 | M129: US NOM GNP | N129: Gross National Product (GNP) | O129: B | P129: FRED | Q129: 127 | R129: FALSE | X129: 133 | Y129: FALSE | Z129: =IF($F$6,'FRED Indicies'!E142) -> 0 | AB129: =IF($F$6,'FRED Indicies'!D142) -> 0 | AF129: 134 | AG129: FALSE | AH129: =IF(AG129,'Google Index'!E156) -> FALSE | AJ129: =IF(AF129,'Google Index'!F156) -> 0 | AN129: 134 | AO129: FALSE | AP129: =IF(AO129,'Commodity Prices'!C142) -> FALSE | AR129: =IF(AO129,'Commodity Prices'!D142) -> FALSE | AV129: 137 | AW129: FALSE | AX129: =IF(AW129,'Yahoo Stocks'!D156) -> FALSE | AZ129: =IF(AW129,'Yahoo Stocks'!E156) -> FALSE | BD129: 247 | BE129: FALSE | BF129: =IF(BE129,'Google Finance Stocks'!D153) -> FALSE | BH129: =IF(BE129,'Google Finance Stocks'!E153) -> FALSE | BL129: 247 | BM129: FALSE | BN129: ='Exchange Rates'!D147 -> 0 | BO129: =IFERROR(INDEX(BN:BN,MATCH(L129,BM:BM,0)),"") -> US NOM GNP | BP129: =IF(BM129,'Exchange Rates'!E147) -> FALSE | BQ129: Gross National Product (GNP) | BR129: B | BS129: FRED
L130: 128 | M130: India Disc Rate | N130: Interest Rates, Discount Rate for India (INTDSRINM193N) | O130: B | P130: FRED | Q130: 128 | R130: FALSE | X130: 134 | Y130: FALSE | Z130: =IF($F$6,'FRED Indicies'!E143) -> 0 | AB130: =IF($F$6,'FRED Indicies'!D143) -> 0 | AF130: 135 | AG130: FALSE | AH130: =IF(AG130,'Google Index'!E157) -> FALSE | AJ130: =IF(AF130,'Google Index'!F157) -> 0 | AN130: 135 | AO130: FALSE | AP130: =IF(AO130,'Commodity Prices'!C143) -> FALSE | AR130: =IF(AO130,'Commodity Prices'!D143) -> FALSE | AV130: 138 | AW130: FALSE | AX130: =IF(AW130,'Yahoo Stocks'!D157) -> FALSE | AZ130: =IF(AW130,'Yahoo Stocks'!E157) -> FALSE | BD130: 248 | BE130: FALSE | BF130: =IF(BE130,'Google Finance Stocks'!D154) -> FALSE | BH130: =IF(BE130,'Google Finance Stocks'!E154) -> FALSE | BL130: 248 | BM130: FALSE | BN130: ='Exchange Rates'!D148 -> 0 | BO130: India Disc Rate | BP130: =IF(BM130,'Exchange Rates'!E148) -> FALSE | BQ130: Interest Rates, Discount Rate for India (INTDSRINM193N) | BR130: B | BS130: FRED
L131: 129 | M131: India Gvt Bonds | N131: Interest Rates, Government Securities, Government Bonds for India (INTGSBINM193N) | O131: B | P131: FRED | Q131: 129 | R131: FALSE | X131: 135 | Y131: FALSE | Z131: =IF($F$6,'FRED Indicies'!E144) -> 0 | AB131: =IF($F$6,'FRED Indicies'!D144) -> 0 | AF131: 136 | AG131: FALSE | AH131: =IF(AG131,'Google Index'!E158) -> FALSE | AJ131: =IF(AF131,'Google Index'!F158) -> 0 | AN131: 136 | AO131: FALSE | AP131: =IF(AO131,'Commodity Prices'!C144) -> FALSE | AR131: =IF(AO131,'Commodity Prices'!D144) -> FALSE | AV131: 139 | AW131: FALSE | AX131: =IF(AW131,'Yahoo Stocks'!D158) -> FALSE | AZ131: =IF(AW131,'Yahoo Stocks'!E158) -> FALSE | BD131: 249 | BE131: FALSE | BF131: =IF(BE131,'Google Finance Stocks'!D155) -> FALSE | BH131: =IF(BE131,'Google Finance Stocks'!E155) -> FALSE | BL131: 249 | BM131: FALSE | BN131: ='Exchange Rates'!D149 -> 0 | BO131: India Gvt Bonds | BP131: =IF(BM131,'Exchange Rates'!E149) -> FALSE | BQ131: Interest Rates, Government Securities, Government Bonds for India (INTGSBINM193N) | BR131: B | BS131: FRED
L132: 130 | M132: India 10 Yr Main | N132: Interest Rates: Long-term government bond yields: 10-year: Main including benchmark for India (INDIRLTLT01STM) | O132: B | P132: FRED | Q132: 130 | R132: FALSE | X132: 136 | Y132: FALSE | Z132: =IF($F$6,'FRED Indicies'!E145) -> 0 | AB132: =IF($F$6,'FRED Indicies'!D145) -> 0 | AF132: 137 | AG132: FALSE | AH132: =IF(AG132,'Google Index'!E159) -> FALSE | AJ132: =IF(AF132,'Google Index'!F159) -> 0 | AN132: 137 | AO132: FALSE | AP132: =IF(AO132,'Commodity Prices'!C145) -> FALSE | AR132: =IF(AO132,'Commodity Prices'!D145) -> FALSE | AV132: 140 | AW132: FALSE | AX132: =IF(AW132,'Yahoo Stocks'!D159) -> FALSE | AZ132: =IF(AW132,'Yahoo Stocks'!E159) -> FALSE | BC132: =IF(BA132<>"",$J$15,"") ->  | BD132: 250 | BE132: FALSE | BF132: =IF(BE132,'Google Finance Stocks'!D156) -> FALSE | BH132: =IF(BE132,'Google Finance Stocks'!E156) -> FALSE | BL132: 250 | BM132: FALSE | BN132: ='Exchange Rates'!D150 -> 0 | BO132: India 10 Yr Main | BP132: =IF(BM132,'Exchange Rates'!E150) -> FALSE | BQ132: Interest Rates: Long-term government bond yields: 10-year: Main including benchmark for India (INDIRLTLT01STM) | BR132: B | BS132: FRED
L133: 131 | M133: India Inflation | N133: Consumer Price Index: Total All Items for India (CPALTT01INM659N) | O133: B | P133: FRED | Q133: =Q132+1 -> 131 | R133: FALSE | X133: =X132+1 -> 137 | Y133: FALSE | Z133: =IF($F$6,'FRED Indicies'!E146) -> 0 | AB133: =IF($F$6,'FRED Indicies'!D146) -> 0 | AF133: =AF132+1 -> 138 | AG133: FALSE | AH133: =IF(AG133,'Google Index'!E160) -> FALSE | AJ133: =IF(AF133,'Google Index'!F160) -> 0 | AN133: =AN132+1 -> 138 | AO133: FALSE | AP133: =IF(AO133,'Commodity Prices'!C146) -> FALSE | AR133: =IF(AO133,'Commodity Prices'!D146) -> FALSE | AV133: =AV132+1 -> 141 | AW133: FALSE | AX133: =IF(AW133,'Yahoo Stocks'!D160) -> FALSE | AZ133: =IF(AW133,'Yahoo Stocks'!E160) -> FALSE | BD133: =BD132+1 -> 251 | BE133: FALSE | BF133: =IF(BE133,'Google Finance Stocks'!D157) -> FALSE | BH133: =IF(BE133,'Google Finance Stocks'!E157) -> FALSE | BL133: =BL132+1 -> 251 | BM133: FALSE | BN133: ='Exchange Rates'!D151 -> 0 | BO133: India Inflation | BP133: =IF(BM133,'Exchange Rates'!E151) -> FALSE | BQ133: Consumer Price Index: Total All Items for India (CPALTT01INM659N) | BR133: B | BS133: FRED
L134: 132 | M134: 5 yr treasury | N134: 5-Year Treasury Constant Maturity Rate (GS5) | O134: B | P134: FRED | Q134: 132 | R134: FALSE | X134: 138 | Y134: FALSE | Z134: =IF($F$6,'FRED Indicies'!E147) -> 0 | AB134: =IF($F$6,'FRED Indicies'!D147) -> 0 | AF134: 139 | AG134: FALSE | AH134: =IF(AG134,'Google Index'!E161) -> FALSE | AJ134: =IF(AF134,'Google Index'!F161) -> 0 | AN134: 139 | AO134: FALSE | AP134: =IF(AO134,'Commodity Prices'!C147) -> FALSE | AR134: =IF(AO134,'Commodity Prices'!D147) -> FALSE | AV134: 142 | AW134: FALSE | AX134: =IF(AW134,'Yahoo Stocks'!D161) -> FALSE | AZ134: =IF(AW134,'Yahoo Stocks'!E161) -> FALSE | BD134: 252 | BE134: FALSE | BF134: =IF(BE134,'Google Finance Stocks'!D158) -> FALSE | BH134: =IF(BE134,'Google Finance Stocks'!E158) -> FALSE | BL134: 252 | BM134: FALSE | BN134: ='Exchange Rates'!D152 -> 0 | BO134: 5 yr treasury | BP134: =IF(BM134,'Exchange Rates'!E152) -> FALSE | BQ134: 5-Year Treasury Constant Maturity Rate (GS5) | BR134: B | BS134: FRED
L135: 133 | M135: =S135&AA135&AI135&AQ135&AY135&BG135&BO135 -> 10 year treasury | N135: =T135&AC135&AK135&AS135&BA135&BI135&BQ135 -> 10-Year Treasury Constant Maturity Rate (GS10) | O135: =U135&AD135&AL135&AT135&BB135&BJ135&BR135 -> B | P135: =V135&AE135&AM135&AU135&BC135&BK135&BS135 -> FRED | Q135: 133 | R135: =IF(AND($F$3,Q135<=$H$3),Q135) -> FALSE | X135: 139 | Y135: FALSE | Z135: =IF($F$6,'FRED Indicies'!E148) -> 0 | AB135: =IF($F$6,'FRED Indicies'!D148) -> 0 | AF135: 140 | AG135: FALSE | AH135: =IF(AG135,'Google Index'!E162) -> FALSE | AJ135: =IF(AF135,'Google Index'!F162) -> 0 | AN135: 140 | AO135: FALSE | AP135: =IF(AO135,'Commodity Prices'!C148) -> FALSE | AR135: =IF(AO135,'Commodity Prices'!D148) -> FALSE | AV135: 143 | AW135: FALSE | AX135: =IF(AW135,'Yahoo Stocks'!D162) -> FALSE | AZ135: =IF(AW135,'Yahoo Stocks'!E162) -> FALSE | BD135: 253 | BE135: FALSE | BF135: =IF(BE135,'Google Finance Stocks'!D159) -> FALSE | BH135: =IF(BE135,'Google Finance Stocks'!E159) -> FALSE | BL135: 253 | BM135: FALSE | BN135: ='Exchange Rates'!D153 -> 0 | BO135: 10 year treasury | BP135: =IF(BM135,'Exchange Rates'!E153) -> FALSE | BQ135: 10-Year Treasury Constant Maturity Rate (GS10) | BR135: B | BS135: FRED
L136: 134 | M136: US Med Inc Nom | N136: Median Household Income in the United States (MEHOINUSA646N) | O136: B | P136: FRED | Q136: 134 | R136: FALSE | X136: 140 | Y136: FALSE | Z136: =IF($F$6,'FRED Indicies'!E149) -> 0 | AB136: =IF($F$6,'FRED Indicies'!D149) -> 0 | AF136: 141 | AG136: FALSE | AH136: =IF(AG136,'Google Index'!E163) -> FALSE | AJ136: =IF(AF136,'Google Index'!F163) -> 0 | AN136: 141 | AO136: FALSE | AP136: =IF(AO136,'Commodity Prices'!C149) -> FALSE | AR136: =IF(AO136,'Commodity Prices'!D149) -> FALSE | AV136: 144 | AW136: FALSE | AX136: =IF(AW136,'Yahoo Stocks'!D163) -> FALSE | AZ136: =IF(AW136,'Yahoo Stocks'!E163) -> FALSE | BD136: 254 | BE136: FALSE | BF136: =IF(BE136,'Google Finance Stocks'!D160) -> FALSE | BH136: =IF(BE136,'Google Finance Stocks'!E160) -> FALSE | BL136: 254 | BM136: FALSE | BN136: ='Exchange Rates'!D154 -> 0 | BO136: US Med Inc Nom | BP136: =IF(BM136,'Exchange Rates'!E154) -> FALSE | BQ136: Median Household Income in the United States (MEHOINUSA646N) | BR136: B | BS136: FRED
L137: 135 | M137: Median Income | N137: Employed full time: Median usual weekly real earnings: d over (LES1252881600Q) | O137: B | P137: FRED | Q137: 135 | R137: FALSE | X137: 141 | Y137: FALSE | Z137: =IF($F$6,'FRED Indicies'!E150) -> 0 | AB137: =IF($F$6,'FRED Indicies'!D150) -> 0 | AF137: 142 | AG137: FALSE | AH137: =IF(AG137,'Google Index'!E164) -> FALSE | AJ137: =IF(AF137,'Google Index'!F164) -> 0 | AN137: 142 | AO137: FALSE | AP137: =IF(AO137,'Commodity Prices'!C150) -> FALSE | AR137: =IF(AO137,'Commodity Prices'!D150) -> FALSE | AV137: 145 | AW137: FALSE | AX137: =IF(AW137,'Yahoo Stocks'!D164) -> FALSE | AZ137: =IF(AW137,'Yahoo Stocks'!E164) -> FALSE | BD137: 255 | BE137: FALSE | BF137: =IF(BE137,'Google Finance Stocks'!D161) -> FALSE | BH137: =IF(BE137,'Google Finance Stocks'!E161) -> FALSE | BL137: 255 | BM137: FALSE | BN137: ='Exchange Rates'!D155 -> 0 | BO137: Median Income | BP137: =IF(BM137,'Exchange Rates'!E155) -> FALSE | BQ137: Employed full time: Median usual weekly real earnings: d over (LES1252881600Q) | BR137: B | BS137: FRED
L138: 136 | M138: Corp Profit | N138: Corporate Profits | O138: B | P138: FRED | Q138: 136 | R138: FALSE | X138: 142 | Y138: FALSE | Z138: =IF($F$6,'FRED Indicies'!E151) -> 0 | AB138: =IF($F$6,'FRED Indicies'!D151) -> 0 | AF138: 143 | AG138: FALSE | AH138: =IF(AG138,'Google Index'!E165) -> FALSE | AJ138: =IF(AF138,'Google Index'!F165) -> 0 | AN138: 143 | AO138: FALSE | AP138: =IF(AO138,'Commodity Prices'!C151) -> FALSE | AR138: =IF(AO138,'Commodity Prices'!D151) -> FALSE | AV138: 146 | AW138: FALSE | AX138: =IF(AW138,'Yahoo Stocks'!D165) -> FALSE | AZ138: =IF(AW138,'Yahoo Stocks'!E165) -> FALSE | BD138: 256 | BE138: FALSE | BF138: =IF(BE138,'Google Finance Stocks'!D162) -> FALSE | BH138: =IF(BE138,'Google Finance Stocks'!E162) -> FALSE | BL138: 256 | BM138: FALSE | BN138: ='Exchange Rates'!D156 -> 0 | BO138: Corp Profit | BP138: =IF(BM138,'Exchange Rates'!E156) -> FALSE | BQ138: Corporate Profits | BR138: B | BS138: FRED
L139: 137 | M139: Corp Nonfin | N139: Non Financial Corporate Profits | O139: B | P139: FRED | Q139: 137 | R139: FALSE | X139: 143 | Y139: FALSE | Z139: =IF($F$6,'FRED Indicies'!E152) -> 0 | AB139: =IF($F$6,'FRED Indicies'!D152) -> 0 | AF139: 144 | AG139: FALSE | AH139: =IF(AG139,'Google Index'!E166) -> FALSE | AJ139: =IF(AF139,'Google Index'!F166) -> 0 | AN139: 144 | AO139: FALSE | AP139: =IF(AO139,'Commodity Prices'!C152) -> FALSE | AR139: =IF(AO139,'Commodity Prices'!D152) -> FALSE | AV139: 147 | AW139: FALSE | AX139: =IF(AW139,'Yahoo Stocks'!D166) -> FALSE | AZ139: =IF(AW139,'Yahoo Stocks'!E166) -> FALSE | BD139: 257 | BE139: FALSE | BF139: =IF(BE139,'Google Finance Stocks'!D163) -> FALSE | BH139: =IF(BE139,'Google Finance Stocks'!E163) -> FALSE | BL139: 257 | BM139: FALSE | BN139: ='Exchange Rates'!D157 -> 0 | BO139: Corp Nonfin | BP139: =IF(BM139,'Exchange Rates'!E157) -> FALSE | BQ139: Non Financial Corporate Profits | BR139: B | BS139: FRED
L140: 138 | M140: Corp Aft Tax | N140: Corporate Profits After Tax | O140: B | P140: FRED | Q140: 138 | R140: FALSE | X140: 144 | Y140: FALSE | Z140: =IF($F$6,'FRED Indicies'!E153) -> 0 | AB140: =IF($F$6,'FRED Indicies'!D153) -> 0 | AF140: 145 | AG140: FALSE | AH140: =IF(AG140,'Google Index'!E167) -> FALSE | AJ140: =IF(AF140,'Google Index'!F167) -> 0 | AN140: 145 | AO140: FALSE | AP140: =IF(AO140,'Commodity Prices'!C153) -> FALSE | AR140: =IF(AO140,'Commodity Prices'!D153) -> FALSE | AV140: 148 | AW140: FALSE | AX140: =IF(AW140,'Yahoo Stocks'!D167) -> FALSE | AZ140: =IF(AW140,'Yahoo Stocks'!E167) -> FALSE | BD140: 258 | BE140: FALSE | BF140: =IF(BE140,'Google Finance Stocks'!D164) -> FALSE | BH140: =IF(BE140,'Google Finance Stocks'!E164) -> FALSE | BL140: 258 | BM140: FALSE | BN140: ='Exchange Rates'!D158 -> 0 | BO140: Corp Aft Tax | BP140: =IF(BM140,'Exchange Rates'!E158) -> FALSE | BQ140: Corporate Profits After Tax | BR140: B | BS140: FRED
L141: 139 | M141: =S141&AA141&AI141&AQ141&AY141&BG141&BO141 -> Corp Inf Adjusted | N141: =T141&AC141&AK141&AS141&BA141&BI141&BQ141 -> Corporate Profits with Inflation Adj | O141: =U141&AD141&AL141&AT141&BB141&BJ141&BR141 -> B | P141: =V141&AE141&AM141&AU141&BC141&BK141&BS141 -> FRED | Q141: 139 | R141: FALSE | X141: 145 | Y141: FALSE | Z141: =IF($F$6,'FRED Indicies'!E154) -> 0 | AB141: =IF($F$6,'FRED Indicies'!D154) -> 0 | AF141: 146 | AG141: FALSE | AH141: =IF(AG141,'Google Index'!E168) -> FALSE | AJ141: =IF(AF141,'Google Index'!F168) -> 0 | AN141: 146 | AO141: FALSE | AP141: =IF(AO141,'Commodity Prices'!C154) -> FALSE | AR141: =IF(AO141,'Commodity Prices'!D154) -> FALSE | AV141: 149 | AW141: FALSE | AX141: =IF(AW141,'Yahoo Stocks'!D168) -> FALSE | AZ141: =IF(AW141,'Yahoo Stocks'!E168) -> FALSE | BD141: 259 | BE141: FALSE | BF141: =IF(BE141,'Google Finance Stocks'!D165) -> FALSE | BH141: =IF(BE141,'Google Finance Stocks'!E165) -> FALSE | BL141: 259 | BM141: FALSE | BN141: ='Exchange Rates'!D159 -> 0 | BO141: Corp Inf Adjusted | BP141: =IF(BM141,'Exchange Rates'!E159) -> FALSE | BQ141: Corporate Profits with Inflation Adj | BR141: B | BS141: FRED
L142: 140 | M142: GDP Inflation Index | N142: GDP Inflation Index | O142: B | P142: FRED | Q142: 140 | R142: FALSE | X142: 146 | Y142: FALSE | Z142: =IF($F$6,'FRED Indicies'!E155) -> 0 | AB142: =IF($F$6,'FRED Indicies'!D155) -> 0 | AF142: 147 | AG142: FALSE | AH142: =IF(AG142,'Google Index'!E169) -> FALSE | AJ142: =IF(AF142,'Google Index'!F169) -> 0 | AN142: 147 | AO142: FALSE | AP142: =IF(AO142,'Commodity Prices'!C155) -> FALSE | AR142: =IF(AO142,'Commodity Prices'!D155) -> FALSE | AV142: 150 | AW142: FALSE | AX142: =IF(AW142,'Yahoo Stocks'!D169) -> FALSE | AZ142: =IF(AW142,'Yahoo Stocks'!E169) -> FALSE | BD142: 260 | BE142: FALSE | BF142: =IF(BE142,'Google Finance Stocks'!D166) -> FALSE | BH142: =IF(BE142,'Google Finance Stocks'!E166) -> FALSE | BL142: 260 | BM142: FALSE | BN142: ='Exchange Rates'!D160 -> 0 | BO142: GDP Inflation Index | BP142: =IF(BM142,'Exchange Rates'!E160) -> FALSE | BQ142: GDP Inflation Index | BR142: B | BS142: FRED
L143: 141 | M143: CPI US Index | N143: CPI US Index | O143: B | P143: FRED | Q143: 141 | R143: FALSE | X143: 147 | Y143: FALSE | Z143: =IF($F$6,'FRED Indicies'!E156) -> 0 | AB143: =IF($F$6,'FRED Indicies'!D156) -> 0 | AF143: 148 | AG143: FALSE | AH143: =IF(AG143,'Google Index'!E170) -> FALSE | AJ143: =IF(AF143,'Google Index'!F170) -> 0 | AN143: 148 | AO143: FALSE | AP143: =IF(AO143,'Commodity Prices'!C156) -> FALSE | AR143: =IF(AO143,'Commodity Prices'!D156) -> FALSE | AV143: 151 | AW143: FALSE | AX143: =IF(AW143,'Yahoo Stocks'!D170) -> FALSE | AZ143: =IF(AW143,'Yahoo Stocks'!E170) -> FALSE | BD143: 261 | BE143: FALSE | BF143: =IF(BE143,'Google Finance Stocks'!D167) -> FALSE | BH143: =IF(BE143,'Google Finance Stocks'!E167) -> FALSE | BL143: 261 | BM143: FALSE | BN143: ='Exchange Rates'!D161 -> 0 | BO143: CPI US Index | BP143: =IF(BM143,'Exchange Rates'!E161) -> FALSE | BQ143: CPI US Index | BR143: B | BS143: FRED
L144: 142 | M144: US GDP | N144: US GDP Gross Domestic Product (GDP) | O144: B | P144: FRED | Q144: 142 | R144: FALSE | X144: 148 | Y144: FALSE | Z144: =IF($F$6,'FRED Indicies'!E157) -> 0 | AB144: =IF($F$6,'FRED Indicies'!D157) -> 0 | AF144: 149 | AG144: FALSE | AH144: =IF(AG144,'Google Index'!E171) -> FALSE | AJ144: =IF(AF144,'Google Index'!F171) -> 0 | AN144: 149 | AO144: FALSE | AP144: =IF(AO144,'Commodity Prices'!C157) -> FALSE | AR144: =IF(AO144,'Commodity Prices'!D157) -> FALSE | AV144: 152 | AW144: FALSE | AX144: =IF(AW144,'Yahoo Stocks'!D171) -> FALSE | AZ144: =IF(AW144,'Yahoo Stocks'!E171) -> FALSE | BD144: 262 | BE144: FALSE | BF144: =IF(BE144,'Google Finance Stocks'!D168) -> FALSE | BH144: =IF(BE144,'Google Finance Stocks'!E168) -> FALSE | BL144: 262 | BM144: FALSE | BN144: ='Exchange Rates'!D162 -> 0 | BO144: US GDP | BP144: =IF(BM144,'Exchange Rates'!E162) -> FALSE | BQ144: US GDP Gross Domestic Product (GDP) | BR144: B | BS144: FRED
L145: 143 | M145: Median Family Income | N145: Median Family Income in the United States (MEFAINUSA646N) | O145: B | P145: FRED | Q145: 143 | R145: FALSE | X145: 149 | Y145: FALSE | Z145: =IF($F$6,'FRED Indicies'!E158) -> 0 | AB145: =IF($F$6,'FRED Indicies'!D158) -> 0 | AF145: 150 | AG145: FALSE | AH145: =IF(AG145,'Google Index'!E172) -> FALSE | AJ145: =IF(AF145,'Google Index'!F172) -> 0 | AN145: 150 | AO145: FALSE | AP145: =IF(AO145,'Commodity Prices'!C158) -> FALSE | AR145: =IF(AO145,'Commodity Prices'!D158) -> FALSE | AV145: 153 | AW145: FALSE | AX145: =IF(AW145,'Yahoo Stocks'!D172) -> FALSE | AZ145: =IF(AW145,'Yahoo Stocks'!E172) -> FALSE | BD145: 263 | BE145: FALSE | BF145: =IF(BE145,'Google Finance Stocks'!D169) -> FALSE | BH145: =IF(BE145,'Google Finance Stocks'!E169) -> FALSE | BL145: 263 | BM145: FALSE | BN145: ='Exchange Rates'!D163 -> 0 | BO145: Median Family Income | BP145: =IF(BM145,'Exchange Rates'!E163) -> FALSE | BQ145: Median Family Income in the United States (MEFAINUSA646N) | BR145: B | BS145: FRED
L146: 144 | Q146: 144 | R146: FALSE | X146: 150 | Y146: FALSE | Z146: =IF($F$6,'FRED Indicies'!E159) -> 0 | AB146: =IF($F$6,'FRED Indicies'!D159) -> 0 | AF146: 151 | AG146: FALSE | AH146: =IF(AG146,'Google Index'!E173) -> FALSE | AJ146: =IF(AF146,'Google Index'!F173) -> 0 | AN146: 151 | AO146: FALSE | AP146: =IF(AO146,'Commodity Prices'!C159) -> FALSE | AR146: =IF(AO146,'Commodity Prices'!D159) -> FALSE | AV146: 154 | AW146: FALSE | AX146: =IF(AW146,'Yahoo Stocks'!D173) -> FALSE | AZ146: =IF(AW146,'Yahoo Stocks'!E173) -> FALSE | BD146: 264 | BE146: FALSE | BF146: =IF(BE146,'Google Finance Stocks'!D170) -> FALSE | BH146: =IF(BE146,'Google Finance Stocks'!E170) -> FALSE | BL146: 264 | BM146: FALSE | BN146: ='Exchange Rates'!D164 -> 0 | BP146: =IF(BM146,'Exchange Rates'!E164) -> FALSE
L147: 145 | Q147: 145 | R147: FALSE | X147: 151 | Y147: FALSE | Z147: =IF($F$6,'FRED Indicies'!E160) -> 0 | AB147: =IF($F$6,'FRED Indicies'!D160) -> 0 | AF147: 152 | AG147: FALSE | AH147: =IF(AG147,'Google Index'!E174) -> FALSE | AJ147: =IF(AF147,'Google Index'!F174) -> 0 | AN147: 152 | AO147: FALSE | AP147: =IF(AO147,'Commodity Prices'!C160) -> FALSE | AR147: =IF(AO147,'Commodity Prices'!D160) -> FALSE | AV147: 155 | AW147: FALSE | AX147: =IF(AW147,'Yahoo Stocks'!D174) -> FALSE | AZ147: =IF(AW147,'Yahoo Stocks'!E174) -> FALSE | BD147: 265 | BE147: FALSE | BF147: =IF(BE147,'Google Finance Stocks'!D171) -> FALSE | BH147: =IF(BE147,'Google Finance Stocks'!E171) -> FALSE | BL147: 265 | BM147: FALSE | BN147: ='Exchange Rates'!D165 -> 0 | BP147: =IF(BM147,'Exchange Rates'!E165) -> FALSE
L148: 146 | Q148: 146 | R148: FALSE | X148: 152 | Y148: FALSE | Z148: =IF($F$6,'FRED Indicies'!E161) -> 0 | AB148: =IF($F$6,'FRED Indicies'!D161) -> 0 | AF148: 153 | AG148: FALSE | AH148: =IF(AG148,'Google Index'!E175) -> FALSE | AJ148: =IF(AF148,'Google Index'!F175) -> 0 | AN148: 153 | AO148: FALSE | AP148: =IF(AO148,'Commodity Prices'!C161) -> FALSE | AR148: =IF(AO148,'Commodity Prices'!D161) -> FALSE | AV148: 156 | AW148: FALSE | AX148: =IF(AW148,'Yahoo Stocks'!D175) -> FALSE | AZ148: =IF(AW148,'Yahoo Stocks'!E175) -> FALSE | BD148: 266 | BE148: FALSE | BF148: =IF(BE148,'Google Finance Stocks'!D172) -> FALSE | BH148: =IF(BE148,'Google Finance Stocks'!E172) -> FALSE | BL148: 266 | BM148: FALSE | BN148: ='Exchange Rates'!D166 -> 0 | BP148: =IF(BM148,'Exchange Rates'!E166) -> FALSE
L149: 147 | Q149: 147 | R149: FALSE | X149: 153 | Y149: FALSE | Z149: =IF($F$6,'FRED Indicies'!E162) -> 0 | AB149: =IF($F$6,'FRED Indicies'!D162) -> 0 | AF149: 154 | AG149: FALSE | AH149: =IF(AG149,'Google Index'!E176) -> FALSE | AJ149: =IF(AF149,'Google Index'!F176) -> 0 | AN149: 154 | AO149: FALSE | AP149: =IF(AO149,'Commodity Prices'!C162) -> FALSE | AR149: =IF(AO149,'Commodity Prices'!D162) -> FALSE | AV149: 157 | AW149: FALSE | AX149: =IF(AW149,'Yahoo Stocks'!D176) -> FALSE | AZ149: =IF(AW149,'Yahoo Stocks'!E176) -> FALSE | BD149: 267 | BE149: FALSE | BF149: =IF(BE149,'Google Finance Stocks'!D173) -> FALSE | BH149: =IF(BE149,'Google Finance Stocks'!E173) -> FALSE | BL149: 267 | BM149: FALSE | BN149: ='Exchange Rates'!D167 -> 0 | BP149: =IF(BM149,'Exchange Rates'!E167) -> FALSE
L150: 148 | Q150: 148 | R150: FALSE | X150: 154 | Y150: FALSE | Z150: =IF($F$6,'FRED Indicies'!E163) -> 0 | AB150: =IF($F$6,'FRED Indicies'!D163) -> 0 | AF150: 155 | AG150: FALSE | AH150: =IF(AG150,'Google Index'!E177) -> FALSE | AJ150: =IF(AF150,'Google Index'!F177) -> 0 | AN150: 155 | AO150: FALSE | AP150: =IF(AO150,'Commodity Prices'!C163) -> FALSE | AR150: =IF(AO150,'Commodity Prices'!D163) -> FALSE | AV150: 158 | AW150: FALSE | AX150: =IF(AW150,'Yahoo Stocks'!D177) -> FALSE | AZ150: =IF(AW150,'Yahoo Stocks'!E177) -> FALSE | BD150: 268 | BE150: FALSE | BF150: =IF(BE150,'Google Finance Stocks'!D174) -> FALSE | BH150: =IF(BE150,'Google Finance Stocks'!E174) -> FALSE | BL150: 268 | BM150: FALSE | BN150: ='Exchange Rates'!D168 -> 0 | BP150: =IF(BM150,'Exchange Rates'!E168) -> FALSE
L151: 149 | Q151: 149 | R151: FALSE | X151: 155 | Y151: FALSE | Z151: =IF($F$6,'FRED Indicies'!E164) -> 0 | AB151: =IF($F$6,'FRED Indicies'!D164) -> 0 | AF151: 156 | AG151: FALSE | AH151: =IF(AG151,'Google Index'!E178) -> FALSE | AJ151: =IF(AF151,'Google Index'!F178) -> 0 | AN151: 156 | AO151: FALSE | AP151: =IF(AO151,'Commodity Prices'!C164) -> FALSE | AR151: =IF(AO151,'Commodity Prices'!D164) -> FALSE | AV151: 159 | AW151: FALSE | AX151: =IF(AW151,'Yahoo Stocks'!D178) -> FALSE | AZ151: =IF(AW151,'Yahoo Stocks'!E178) -> FALSE | BD151: 269 | BE151: FALSE | BF151: =IF(BE151,'Google Finance Stocks'!D175) -> FALSE | BH151: =IF(BE151,'Google Finance Stocks'!E175) -> FALSE | BL151: 269 | BM151: FALSE | BN151: ='Exchange Rates'!D169 -> 0 | BP151: =IF(BM151,'Exchange Rates'!E169) -> FALSE
L152: 150 | Q152: 150 | R152: FALSE | X152: 156 | Y152: FALSE | Z152: =IF($F$6,'FRED Indicies'!E165) -> 0 | AB152: =IF($F$6,'FRED Indicies'!D165) -> 0 | AF152: 157 | AG152: FALSE | AH152: =IF(AG152,'Google Index'!E179) -> FALSE | AJ152: =IF(AF152,'Google Index'!F179) -> 0 | AN152: 157 | AO152: FALSE | AP152: =IF(AO152,'Commodity Prices'!C165) -> FALSE | AR152: =IF(AO152,'Commodity Prices'!D165) -> FALSE | AV152: 160 | AW152: FALSE | AX152: =IF(AW152,'Yahoo Stocks'!D179) -> FALSE | AZ152: =IF(AW152,'Yahoo Stocks'!E179) -> FALSE | BD152: 270 | BE152: FALSE | BF152: =IF(BE152,'Google Finance Stocks'!D176) -> FALSE | BH152: =IF(BE152,'Google Finance Stocks'!E176) -> FALSE | BL152: 270 | BM152: FALSE | BN152: ='Exchange Rates'!D170 -> 0 | BP152: =IF(BM152,'Exchange Rates'!E170) -> FALSE
L153: 151 | Q153: 151 | R153: FALSE | X153: 157 | Y153: FALSE | Z153: =IF($F$6,'FRED Indicies'!E166) -> 0 | AB153: =IF($F$6,'FRED Indicies'!D166) -> 0 | AF153: 158 | AG153: FALSE | AH153: =IF(AG153,'Google Index'!E180) -> FALSE | AJ153: =IF(AF153,'Google Index'!F180) -> 0 | AN153: 158 | AO153: FALSE | AP153: =IF(AO153,'Commodity Prices'!C166) -> FALSE | AR153: =IF(AO153,'Commodity Prices'!D166) -> FALSE | AV153: 161 | AW153: FALSE | AX153: =IF(AW153,'Yahoo Stocks'!D180) -> FALSE | AZ153: =IF(AW153,'Yahoo Stocks'!E180) -> FALSE | BD153: 271 | BE153: FALSE | BF153: =IF(BE153,'Google Finance Stocks'!D177) -> FALSE | BH153: =IF(BE153,'Google Finance Stocks'!E177) -> FALSE | BL153: 271 | BM153: FALSE | BN153: ='Exchange Rates'!D171 -> 0 | BP153: =IF(BM153,'Exchange Rates'!E171) -> FALSE
L154: 152 | X154: 158 | Y154: FALSE | Z154: =IF($F$6,'FRED Indicies'!E167) -> 0 | AB154: =IF($F$6,'FRED Indicies'!D167) -> 0 | AF154: 159 | AG154: FALSE | AH154: =IF(AG154,'Google Index'!E181) -> FALSE | AJ154: =IF(AF154,'Google Index'!F181) -> 0 | AN154: 159 | AO154: FALSE | AP154: =IF(AO154,'Commodity Prices'!C167) -> FALSE | AR154: =IF(AO154,'Commodity Prices'!D167) -> FALSE | AV154: 162 | AW154: FALSE | AX154: =IF(AW154,'Yahoo Stocks'!D181) -> FALSE | AZ154: =IF(AW154,'Yahoo Stocks'!E181) -> FALSE | BD154: 272 | BE154: FALSE | BF154: =IF(BE154,'Google Finance Stocks'!D178) -> FALSE | BH154: =IF(BE154,'Google Finance Stocks'!E178) -> FALSE | BL154: 272 | BM154: FALSE | BN154: ='Exchange Rates'!D172 -> 0 | BP154: =IF(BM154,'Exchange Rates'!E172) -> FALSE
L155: 153 | X155: 159 | Y155: FALSE | Z155: =IF($F$6,'FRED Indicies'!E168) -> 0 | AB155: =IF($F$6,'FRED Indicies'!D168) -> 0 | AF155: 160 | AG155: FALSE | AH155: =IF(AG155,'Google Index'!E182) -> FALSE | AJ155: =IF(AF155,'Google Index'!F182) -> 0 | AN155: 160 | AO155: FALSE | AP155: =IF(AO155,'Commodity Prices'!C168) -> FALSE | AR155: =IF(AO155,'Commodity Prices'!D168) -> FALSE | AV155: 163 | AW155: =IF(AND($F$15,AV155<=$H$15),AV155) -> FALSE | AX155: =IF(AW155,'Yahoo Stocks'!D182) -> FALSE | AY155: =IFERROR(INDEX(AX:AX,MATCH(L155,AW:AW,0)),"") ->  | AZ155: =IF(AW155,'Yahoo Stocks'!E182) -> FALSE | BA155: =IFERROR(INDEX(AZ:AZ,MATCH(L155,AW:AW,0)),"") ->  | BB155: =IF(AY155<>"",$I$15,"") ->  | BD155: 273 | BE155: FALSE | BF155: =IF(BE155,'Google Finance Stocks'!D179) -> FALSE | BH155: =IF(BE155,'Google Finance Stocks'!E179) -> FALSE | BL155: 273 | BM155: FALSE | BN155: ='Exchange Rates'!D173 -> 0 | BP155: =IF(BM155,'Exchange Rates'!E173) -> FALSE
L156: 154 | X156: 160 | Y156: FALSE | Z156: =IF($F$6,'FRED Indicies'!E169) -> 0 | AB156: =IF($F$6,'FRED Indicies'!D169) -> 0 | AF156: 161 | AG156: FALSE | AH156: =IF(AG156,'Google Index'!E183) -> FALSE | AJ156: =IF(AF156,'Google Index'!F183) -> 0 | AN156: 161 | AO156: FALSE | AP156: =IF(AO156,'Commodity Prices'!C169) -> FALSE | AR156: =IF(AO156,'Commodity Prices'!D169) -> FALSE | AV156: 164 | AW156: FALSE | AX156: =IF(AW156,'Yahoo Stocks'!D183) -> FALSE | AZ156: =IF(AW156,'Yahoo Stocks'!E183) -> FALSE | BD156: 274 | BE156: FALSE | BF156: =IF(BE156,'Google Finance Stocks'!D180) -> FALSE | BH156: =IF(BE156,'Google Finance Stocks'!E180) -> FALSE | BL156: 274 | BM156: FALSE | BN156: ='Exchange Rates'!D174 -> 0 | BP156: =IF(BM156,'Exchange Rates'!E174) -> FALSE
L157: 155 | X157: 161 | Y157: FALSE | Z157: =IF($F$6,'FRED Indicies'!E170) -> 0 | AB157: =IF($F$6,'FRED Indicies'!D170) -> 0 | AF157: 162 | AG157: FALSE | AH157: =IF(AG157,'Google Index'!E184) -> FALSE | AJ157: =IF(AF157,'Google Index'!F184) -> 0 | AN157: 162 | AO157: FALSE | AP157: =IF(AO157,'Commodity Prices'!C170) -> FALSE | AR157: =IF(AO157,'Commodity Prices'!D170) -> FALSE | AV157: 165 | AW157: FALSE | AX157: =IF(AW157,'Yahoo Stocks'!D184) -> FALSE | AZ157: =IF(AW157,'Yahoo Stocks'!E184) -> FALSE | BD157: 275 | BE157: FALSE | BF157: =IF(BE157,'Google Finance Stocks'!D181) -> FALSE | BH157: =IF(BE157,'Google Finance Stocks'!E181) -> FALSE | BL157: 275 | BM157: FALSE | BN157: ='Exchange Rates'!D175 -> 0 | BP157: =IF(BM157,'Exchange Rates'!E175) -> FALSE
L158: 156 | X158: 162 | Y158: FALSE | Z158: =IF($F$6,'FRED Indicies'!E171) -> 0 | AB158: =IF($F$6,'FRED Indicies'!D171) -> 0 | AF158: 163 | AG158: FALSE | AH158: =IF(AG158,'Google Index'!E185) -> FALSE | AJ158: =IF(AF158,'Google Index'!F185) -> 0 | AN158: 163 | AO158: FALSE | AP158: =IF(AO158,'Commodity Prices'!C171) -> FALSE | AR158: =IF(AO158,'Commodity Prices'!D171) -> FALSE | AV158: 166 | AW158: FALSE | AX158: =IF(AW158,'Yahoo Stocks'!D185) -> FALSE | AZ158: =IF(AW158,'Yahoo Stocks'!E185) -> FALSE | BD158: 276 | BE158: FALSE | BF158: =IF(BE158,'Google Finance Stocks'!D182) -> FALSE | BH158: =IF(BE158,'Google Finance Stocks'!E182) -> FALSE | BL158: 276 | BM158: FALSE | BN158: ='Exchange Rates'!D176 -> 0 | BP158: =IF(BM158,'Exchange Rates'!E176) -> FALSE
L159: 157 | X159: 163 | Y159: FALSE | Z159: =IF($F$6,'FRED Indicies'!E172) -> 0 | AB159: =IF($F$6,'FRED Indicies'!D172) -> 0 | AF159: 164 | AG159: FALSE | AH159: =IF(AG159,'Google Index'!E186) -> FALSE | AJ159: =IF(AF159,'Google Index'!F186) -> 0 | AN159: 164 | AO159: FALSE | AP159: =IF(AO159,'Commodity Prices'!C172) -> FALSE | AR159: =IF(AO159,'Commodity Prices'!D172) -> FALSE | AV159: 167 | AW159: FALSE | AX159: =IF(AW159,'Yahoo Stocks'!D186) -> FALSE | AZ159: =IF(AW159,'Yahoo Stocks'!E186) -> FALSE | BD159: 277 | BE159: FALSE | BF159: =IF(BE159,'Google Finance Stocks'!D183) -> FALSE | BH159: =IF(BE159,'Google Finance Stocks'!E183) -> FALSE | BL159: 277 | BM159: FALSE | BN159: ='Exchange Rates'!D177 -> 0 | BP159: =IF(BM159,'Exchange Rates'!E177) -> FALSE
L160: 158 | X160: 164 | Y160: FALSE | Z160: =IF($F$6,'FRED Indicies'!E173) -> 0 | AB160: =IF($F$6,'FRED Indicies'!D173) -> 0 | AF160: 165 | AG160: FALSE | AH160: =IF(AG160,'Google Index'!E187) -> FALSE | AJ160: =IF(AF160,'Google Index'!F187) -> 0 | AN160: 165 | AO160: FALSE | AP160: =IF(AO160,'Commodity Prices'!C173) -> FALSE | AR160: =IF(AO160,'Commodity Prices'!D173) -> FALSE | AV160: 168 | AW160: FALSE | AX160: =IF(AW160,'Yahoo Stocks'!D187) -> FALSE | AZ160: =IF(AW160,'Yahoo Stocks'!E187) -> FALSE | BD160: 278 | BE160: FALSE | BF160: =IF(BE160,'Google Finance Stocks'!D184) -> FALSE | BH160: =IF(BE160,'Google Finance Stocks'!E184) -> FALSE | BL160: 278 | BM160: FALSE | BN160: ='Exchange Rates'!D178 -> 0 | BP160: =IF(BM160,'Exchange Rates'!E178) -> FALSE
L161: 159 | X161: 165 | Y161: FALSE | Z161: =IF($F$6,'FRED Indicies'!E174) -> 0 | AB161: =IF($F$6,'FRED Indicies'!D174) -> 0 | AF161: 166 | AG161: FALSE | AH161: =IF(AG161,'Google Index'!E188) -> FALSE | AJ161: =IF(AF161,'Google Index'!F188) -> 0 | AN161: 166 | AO161: FALSE | AP161: =IF(AO161,'Commodity Prices'!C174) -> FALSE | AR161: =IF(AO161,'Commodity Prices'!D174) -> FALSE | AV161: 169 | AW161: FALSE | AX161: =IF(AW161,'Yahoo Stocks'!D188) -> FALSE | AZ161: =IF(AW161,'Yahoo Stocks'!E188) -> FALSE | BD161: 279 | BE161: FALSE | BF161: =IF(BE161,'Google Finance Stocks'!D185) -> FALSE | BH161: =IF(BE161,'Google Finance Stocks'!E185) -> FALSE | BL161: 279 | BM161: FALSE | BN161: ='Exchange Rates'!D179 -> 0 | BP161: =IF(BM161,'Exchange Rates'!E179) -> FALSE
L162: 160 | X162: 166 | Y162: FALSE | Z162: =IF($F$6,'FRED Indicies'!E175) -> 0 | AB162: =IF($F$6,'FRED Indicies'!D175) -> 0 | AF162: 167 | AG162: FALSE | AH162: =IF(AG162,'Google Index'!E189) -> FALSE | AJ162: =IF(AF162,'Google Index'!F189) -> 0 | AN162: 167 | AO162: FALSE | AP162: =IF(AO162,'Commodity Prices'!C175) -> FALSE | AR162: =IF(AO162,'Commodity Prices'!D175) -> FALSE | AV162: 170 | AW162: FALSE | AX162: =IF(AW162,'Yahoo Stocks'!D189) -> FALSE | AZ162: =IF(AW162,'Yahoo Stocks'!E189) -> FALSE | BD162: 280 | BE162: FALSE | BF162: =IF(BE162,'Google Finance Stocks'!D186) -> FALSE | BH162: =IF(BE162,'Google Finance Stocks'!E186) -> FALSE | BL162: 280 | BM162: FALSE | BN162: ='Exchange Rates'!D180 -> 0 | BP162: =IF(BM162,'Exchange Rates'!E180) -> FALSE
L163: 161 | X163: 167 | Y163: FALSE | Z163: =IF($F$6,'FRED Indicies'!E176) -> 0 | AB163: =IF($F$6,'FRED Indicies'!D176) -> 0 | AF163: 168 | AG163: FALSE | AH163: =IF(AG163,'Google Index'!E190) -> FALSE | AJ163: =IF(AF163,'Google Index'!F190) -> 0 | AN163: 168 | AO163: FALSE | AP163: =IF(AO163,'Commodity Prices'!C176) -> FALSE | AR163: =IF(AO163,'Commodity Prices'!D176) -> FALSE | AV163: 171 | AW163: FALSE | AX163: =IF(AW163,'Yahoo Stocks'!D190) -> FALSE | AZ163: =IF(AW163,'Yahoo Stocks'!E190) -> FALSE | BD163: 281 | BE163: FALSE | BF163: =IF(BE163,'Google Finance Stocks'!D187) -> FALSE | BH163: =IF(BE163,'Google Finance Stocks'!E187) -> FALSE | BL163: 281 | BM163: FALSE | BN163: ='Exchange Rates'!D181 -> 0 | BP163: =IF(BM163,'Exchange Rates'!E181) -> FALSE
L164: 162 | X164: 168 | Y164: FALSE | Z164: =IF($F$6,'FRED Indicies'!E177) -> 0 | AB164: =IF($F$6,'FRED Indicies'!D177) -> 0 | AF164: 169 | AG164: FALSE | AH164: =IF(AG164,'Google Index'!E191) -> FALSE | AJ164: =IF(AF164,'Google Index'!F191) -> 0 | AN164: 169 | AO164: FALSE | AP164: =IF(AO164,'Commodity Prices'!C177) -> FALSE | AR164: =IF(AO164,'Commodity Prices'!D177) -> FALSE | AV164: 172 | AW164: FALSE | AX164: =IF(AW164,'Yahoo Stocks'!D191) -> FALSE | AZ164: =IF(AW164,'Yahoo Stocks'!E191) -> FALSE | BD164: 282 | BE164: FALSE | BF164: =IF(BE164,'Google Finance Stocks'!D188) -> FALSE | BH164: =IF(BE164,'Google Finance Stocks'!E188) -> FALSE | BL164: 282 | BM164: FALSE | BN164: ='Exchange Rates'!D182 -> 0 | BP164: =IF(BM164,'Exchange Rates'!E182) -> FALSE
L165: 163 | X165: 169 | Y165: FALSE | Z165: =IF($F$6,'FRED Indicies'!E178) -> 0 | AB165: =IF($F$6,'FRED Indicies'!D178) -> 0 | AF165: 170 | AG165: FALSE | AH165: =IF(AG165,'Google Index'!E192) -> FALSE | AJ165: =IF(AF165,'Google Index'!F192) -> 0 | AN165: 170 | AO165: FALSE | AP165: =IF(AO165,'Commodity Prices'!C178) -> FALSE | AR165: =IF(AO165,'Commodity Prices'!D178) -> FALSE | AV165: 173 | AW165: FALSE | AX165: =IF(AW165,'Yahoo Stocks'!D192) -> FALSE | AZ165: =IF(AW165,'Yahoo Stocks'!E192) -> FALSE | BD165: 283 | BE165: FALSE | BF165: =IF(BE165,'Google Finance Stocks'!D189) -> FALSE | BH165: =IF(BE165,'Google Finance Stocks'!E189) -> FALSE | BL165: 283 | BM165: FALSE | BN165: ='Exchange Rates'!D183 -> 0 | BP165: =IF(BM165,'Exchange Rates'!E183) -> FALSE
L166: 164 | X166: 170 | Y166: FALSE | Z166: =IF($F$6,'FRED Indicies'!E179) -> 0 | AB166: =IF($F$6,'FRED Indicies'!D179) -> 0 | AF166: 171 | AG166: FALSE | AH166: =IF(AG166,'Google Index'!E193) -> FALSE | AJ166: =IF(AF166,'Google Index'!F193) -> 0 | AN166: 171 | AO166: FALSE | AP166: =IF(AO166,'Commodity Prices'!C179) -> FALSE | AR166: =IF(AO166,'Commodity Prices'!D179) -> FALSE | AV166: 174 | AW166: FALSE | AX166: =IF(AW166,'Yahoo Stocks'!D193) -> FALSE | AZ166: =IF(AW166,'Yahoo Stocks'!E193) -> FALSE | BD166: 284 | BE166: FALSE | BF166: =IF(BE166,'Google Finance Stocks'!D190) -> FALSE | BH166: =IF(BE166,'Google Finance Stocks'!E190) -> FALSE | BL166: 284 | BM166: FALSE | BN166: ='Exchange Rates'!D184 -> 0 | BP166: =IF(BM166,'Exchange Rates'!E184) -> FALSE
L167: 165 | X167: 171 | Y167: FALSE | Z167: =IF($F$6,'FRED Indicies'!E180) -> 0 | AB167: =IF($F$6,'FRED Indicies'!D180) -> 0 | AF167: 172 | AG167: FALSE | AH167: =IF(AG167,'Google Index'!E194) -> FALSE | AJ167: =IF(AF167,'Google Index'!F194) -> 0 | AN167: 172 | AO167: FALSE | AP167: =IF(AO167,'Commodity Prices'!C180) -> FALSE | AR167: =IF(AO167,'Commodity Prices'!D180) -> FALSE | AV167: 175 | AW167: FALSE | AX167: =IF(AW167,'Yahoo Stocks'!D194) -> FALSE | AZ167: =IF(AW167,'Yahoo Stocks'!E194) -> FALSE | BD167: 285 | BE167: FALSE | BF167: =IF(BE167,'Google Finance Stocks'!D191) -> FALSE | BH167: =IF(BE167,'Google Finance Stocks'!E191) -> FALSE | BL167: 285 | BM167: FALSE | BN167: ='Exchange Rates'!D185 -> 0 | BP167: =IF(BM167,'Exchange Rates'!E185) -> FALSE
L168: 166 | X168: 172 | Y168: FALSE | Z168: =IF($F$6,'FRED Indicies'!E181) -> 0 | AB168: =IF($F$6,'FRED Indicies'!D181) -> 0 | AF168: 173 | AG168: FALSE | AH168: =IF(AG168,'Google Index'!E195) -> FALSE | AJ168: =IF(AF168,'Google Index'!F195) -> 0 | AN168: 173 | AO168: FALSE | AP168: =IF(AO168,'Commodity Prices'!C181) -> FALSE | AR168: =IF(AO168,'Commodity Prices'!D181) -> FALSE | AV168: 176 | AW168: FALSE | AX168: =IF(AW168,'Yahoo Stocks'!D195) -> FALSE | AZ168: =IF(AW168,'Yahoo Stocks'!E195) -> FALSE | BD168: 286 | BE168: FALSE | BF168: =IF(BE168,'Google Finance Stocks'!D192) -> FALSE | BH168: =IF(BE168,'Google Finance Stocks'!E192) -> FALSE | BL168: 286 | BM168: FALSE | BN168: ='Exchange Rates'!D186 -> 0 | BP168: =IF(BM168,'Exchange Rates'!E186) -> FALSE
L169: 167 | X169: 173 | Y169: FALSE | Z169: =IF($F$6,'FRED Indicies'!E182) -> 0 | AB169: =IF($F$6,'FRED Indicies'!D182) -> 0 | AF169: 174 | AG169: FALSE | AH169: =IF(AG169,'Google Index'!E196) -> FALSE | AJ169: =IF(AF169,'Google Index'!F196) -> 0 | AN169: 174 | AO169: FALSE | AP169: =IF(AO169,'Commodity Prices'!C182) -> FALSE | AR169: =IF(AO169,'Commodity Prices'!D182) -> FALSE | AV169: 177 | AW169: FALSE | AX169: =IF(AW169,'Yahoo Stocks'!D196) -> FALSE | AZ169: =IF(AW169,'Yahoo Stocks'!E196) -> FALSE | BD169: 287 | BE169: FALSE | BF169: =IF(BE169,'Google Finance Stocks'!D193) -> FALSE | BH169: =IF(BE169,'Google Finance Stocks'!E193) -> FALSE | BL169: 287 | BM169: FALSE | BN169: ='Exchange Rates'!D187 -> 0 | BP169: =IF(BM169,'Exchange Rates'!E187) -> FALSE
L170: 168 | X170: 174 | Y170: FALSE | Z170: =IF($F$6,'FRED Indicies'!E183) -> 0 | AB170: =IF($F$6,'FRED Indicies'!D183) -> 0 | AF170: 175 | AG170: FALSE | AH170: =IF(AG170,'Google Index'!E197) -> FALSE | AJ170: =IF(AF170,'Google Index'!F197) -> 0 | AN170: 175 | AO170: FALSE | AP170: =IF(AO170,'Commodity Prices'!C183) -> FALSE | AR170: =IF(AO170,'Commodity Prices'!D183) -> FALSE | AV170: 178 | AW170: FALSE | AX170: =IF(AW170,'Yahoo Stocks'!D197) -> FALSE | AZ170: =IF(AW170,'Yahoo Stocks'!E197) -> FALSE | BD170: 288 | BE170: FALSE | BF170: =IF(BE170,'Google Finance Stocks'!D194) -> FALSE | BH170: =IF(BE170,'Google Finance Stocks'!E194) -> FALSE | BL170: 288 | BM170: FALSE | BN170: ='Exchange Rates'!D188 -> 0 | BP170: =IF(BM170,'Exchange Rates'!E188) -> FALSE
L171: 169 | X171: 175 | Y171: FALSE | Z171: =IF($F$6,'FRED Indicies'!E184) -> 0 | AB171: =IF($F$6,'FRED Indicies'!D184) -> 0 | AF171: 176 | AG171: FALSE | AH171: =IF(AG171,'Google Index'!E198) -> FALSE | AJ171: =IF(AF171,'Google Index'!F198) -> 0 | AN171: 176 | AO171: FALSE | AP171: =IF(AO171,'Commodity Prices'!C184) -> FALSE | AR171: =IF(AO171,'Commodity Prices'!D184) -> FALSE | AV171: 179 | AW171: FALSE | AX171: =IF(AW171,'Yahoo Stocks'!D198) -> FALSE | AZ171: =IF(AW171,'Yahoo Stocks'!E198) -> FALSE | BD171: 289 | BE171: FALSE | BF171: =IF(BE171,'Google Finance Stocks'!D195) -> FALSE | BH171: =IF(BE171,'Google Finance Stocks'!E195) -> FALSE | BL171: 289 | BM171: FALSE | BN171: ='Exchange Rates'!D189 -> 0 | BP171: =IF(BM171,'Exchange Rates'!E189) -> FALSE
L172: 170 | BD172: 290 | BE172: =IF(AND($F$18,BD172<=$H$18),BD172) -> FALSE | BF172: =IF(BE172,'Google Finance Stocks'!D196) -> FALSE | BG172: =IFERROR(INDEX(BF:BF,MATCH(Q172,BE:BE,0)),"") ->  | BH172: =IF(BE172,'Google Finance Stocks'!E196) -> FALSE | BI172: =IFERROR(INDEX(BH:BH,MATCH(Q172,BE:BE,0)),"") ->  | BJ172: =IF(BI172<>"",$I$18,"") ->  | BK172: =IF(BI172<>"",$J$18,"") ->  | BL172: 290 | BM172: =IF(AND($F$21,BL172<=$H$21),BL172) -> FALSE | BN172: ='Exchange Rates'!D190 -> 0 | BO172: =IFERROR(INDEX(BN:BN,MATCH(L172,BM:BM,0)),"") ->  | BP172: =IF(BM172,'Exchange Rates'!E190) -> FALSE | BQ172: =IFERROR(INDEX(BP:BP,MATCH(L172,BM:BM,0)),"") ->  | BR172: =IF(BQ172<>"",$I$21,"") ->  | BS172: =IF(BQ172<>"",$J$21,"") -> 
L173: 171 | BD173: 291 | BE173: FALSE | BF173: =IF(BE173,'Google Finance Stocks'!D197) -> FALSE | BH173: =IF(BE173,'Google Finance Stocks'!E197) -> FALSE | BL173: 291 | BM173: FALSE | BN173: ='Exchange Rates'!D191 -> 0 | BP173: =IF(BM173,'Exchange Rates'!E191) -> FALSE
L174: 172 | BD174: 292 | BE174: FALSE | BF174: =IF(BE174,'Google Finance Stocks'!D198) -> FALSE | BH174: =IF(BE174,'Google Finance Stocks'!E198) -> FALSE | BL174: 292 | BM174: FALSE | BN174: ='Exchange Rates'!D192 -> 0 | BP174: =IF(BM174,'Exchange Rates'!E192) -> FALSE
L175: 173 | BD175: 293 | BE175: FALSE | BF175: =IF(BE175,'Google Finance Stocks'!D199) -> FALSE | BH175: =IF(BE175,'Google Finance Stocks'!E199) -> FALSE | BL175: 293 | BM175: FALSE | BN175: ='Exchange Rates'!D193 -> 0 | BP175: =IF(BM175,'Exchange Rates'!E193) -> FALSE
L176: 174 | BD176: 294 | BE176: FALSE | BF176: =IF(BE176,'Google Finance Stocks'!D200) -> FALSE | BH176: =IF(BE176,'Google Finance Stocks'!E200) -> FALSE | BL176: 294 | BM176: FALSE | BN176: ='Exchange Rates'!D194 -> 0 | BP176: =IF(BM176,'Exchange Rates'!E194) -> FALSE
BD177: 295 | BE177: FALSE | BF177: =IF(BE177,'Google Finance Stocks'!D201) -> FALSE | BH177: =IF(BE177,'Google Finance Stocks'!E201) -> FALSE | BL177: 295 | BM177: FALSE | BN177: ='Exchange Rates'!D195 -> 0 | BP177: =IF(BM177,'Exchange Rates'!E195) -> FALSE
BD178: 296 | BE178: FALSE | BF178: =IF(BE178,'Google Finance Stocks'!D202) -> FALSE | BH178: =IF(BE178,'Google Finance Stocks'!E202) -> FALSE | BL178: 296 | BM178: FALSE | BN178: ='Exchange Rates'!D196 -> 0 | BP178: =IF(BM178,'Exchange Rates'!E196) -> FALSE
BD179: 297 | BE179: FALSE | BF179: =IF(BE179,'Google Finance Stocks'!D203) -> FALSE | BH179: =IF(BE179,'Google Finance Stocks'!E203) -> FALSE | BL179: 297 | BM179: FALSE | BN179: ='Exchange Rates'!D197 -> 0 | BP179: =IF(BM179,'Exchange Rates'!E197) -> FALSE
BD180: 298 | BE180: FALSE | BF180: =IF(BE180,'Google Finance Stocks'!D204) -> FALSE | BH180: =IF(BE180,'Google Finance Stocks'!E204) -> FALSE | BL180: 298 | BM180: FALSE | BN180: ='Exchange Rates'!D198 -> 0 | BP180: =IF(BM180,'Exchange Rates'!E198) -> FALSE
BD181: 299 | BE181: FALSE | BF181: =IF(BE181,'Google Finance Stocks'!D205) -> FALSE | BH181: =IF(BE181,'Google Finance Stocks'!E205) -> FALSE | BL181: 299 | BM181: FALSE | BN181: ='Exchange Rates'!D199 -> 0 | BP181: =IF(BM181,'Exchange Rates'!E199) -> FALSE
BD182: 300 | BE182: FALSE | BF182: =IF(BE182,'Google Finance Stocks'!D206) -> FALSE | BH182: =IF(BE182,'Google Finance Stocks'!E206) -> FALSE | BL182: 300 | BM182: FALSE | BN182: ='Exchange Rates'!D200 -> 0 | BP182: =IF(BM182,'Exchange Rates'!E200) -> FALSE
BD183: 301 | BE183: FALSE | BF183: =IF(BE183,'Google Finance Stocks'!D207) -> FALSE | BH183: =IF(BE183,'Google Finance Stocks'!E207) -> FALSE | BL183: 301 | BM183: FALSE | BN183: ='Exchange Rates'!D201 -> 0 | BP183: =IF(BM183,'Exchange Rates'!E201) -> FALSE
BD184: 302 | BE184: FALSE | BF184: =IF(BE184,'Google Finance Stocks'!D208) -> FALSE | BH184: =IF(BE184,'Google Finance Stocks'!E208) -> FALSE | BL184: 302 | BM184: FALSE | BN184: ='Exchange Rates'!D202 -> 0 | BP184: =IF(BM184,'Exchange Rates'!E202) -> FALSE
BD185: 303 | BE185: FALSE | BF185: =IF(BE185,'Google Finance Stocks'!D209) -> FALSE | BH185: =IF(BE185,'Google Finance Stocks'!E209) -> FALSE | BL185: 303 | BM185: FALSE | BN185: ='Exchange Rates'!D203 -> 0 | BP185: =IF(BM185,'Exchange Rates'!E203) -> FALSE
BD186: 304 | BE186: FALSE | BF186: =IF(BE186,'Google Finance Stocks'!D210) -> FALSE | BH186: =IF(BE186,'Google Finance Stocks'!E210) -> FALSE | BL186: 304 | BM186: FALSE | BN186: ='Exchange Rates'!D204 -> 0 | BP186: =IF(BM186,'Exchange Rates'!E204) -> FALSE
BD187: 305 | BE187: FALSE | BF187: =IF(BE187,'Google Finance Stocks'!D211) -> FALSE | BH187: =IF(BE187,'Google Finance Stocks'!E211) -> FALSE | BL187: 305 | BM187: FALSE | BN187: ='Exchange Rates'!D205 -> 0 | BP187: =IF(BM187,'Exchange Rates'!E205) -> FALSE
BD188: 306 | BE188: FALSE | BF188: =IF(BE188,'Google Finance Stocks'!D212) -> FALSE | BH188: =IF(BE188,'Google Finance Stocks'!E212) -> FALSE | BL188: 306 | BM188: FALSE | BN188: ='Exchange Rates'!D206 -> 0 | BP188: =IF(BM188,'Exchange Rates'!E206) -> FALSE
BD189: 307 | BE189: FALSE | BF189: =IF(BE189,'Google Finance Stocks'!D213) -> FALSE | BH189: =IF(BE189,'Google Finance Stocks'!E213) -> FALSE | BL189: 307 | BM189: FALSE | BN189: ='Exchange Rates'!D207 -> 0 | BP189: =IF(BM189,'Exchange Rates'!E207) -> FALSE
BD190: 308 | BE190: FALSE | BF190: =IF(BE190,'Google Finance Stocks'!D214) -> FALSE | BH190: =IF(BE190,'Google Finance Stocks'!E214) -> FALSE | BL190: 308 | BM190: FALSE | BN190: ='Exchange Rates'!D208 -> 0 | BP190: =IF(BM190,'Exchange Rates'!E208) -> FALSE
BD191: 309 | BE191: FALSE | BF191: =IF(BE191,'Google Finance Stocks'!D215) -> FALSE | BH191: =IF(BE191,'Google Finance Stocks'!E215) -> FALSE | BL191: 309 | BM191: FALSE | BN191: ='Exchange Rates'!D209 -> 0 | BP191: =IF(BM191,'Exchange Rates'!E209) -> FALSE
BD192: 310 | BE192: FALSE | BF192: =IF(BE192,'Google Finance Stocks'!D216) -> FALSE | BH192: =IF(BE192,'Google Finance Stocks'!E216) -> FALSE | BL192: 310 | BM192: FALSE | BN192: ='Exchange Rates'!D210 -> 0 | BP192: =IF(BM192,'Exchange Rates'!E210) -> FALSE
BD193: 311 | BE193: FALSE | BF193: =IF(BE193,'Google Finance Stocks'!D217) -> FALSE | BH193: =IF(BE193,'Google Finance Stocks'!E217) -> FALSE | BL193: 311 | BM193: FALSE | BN193: ='Exchange Rates'!D211 -> 0 | BP193: =IF(BM193,'Exchange Rates'!E211) -> FALSE
BD194: 312 | BE194: FALSE | BF194: =IF(BE194,'Google Finance Stocks'!D218) -> FALSE | BH194: =IF(BE194,'Google Finance Stocks'!E218) -> FALSE | BL194: 312 | BM194: FALSE | BN194: ='Exchange Rates'!D212 -> 0 | BP194: =IF(BM194,'Exchange Rates'!E212) -> FALSE
BD195: 313 | BE195: FALSE | BF195: =IF(BE195,'Google Finance Stocks'!D219) -> FALSE | BH195: =IF(BE195,'Google Finance Stocks'!E219) -> FALSE | BL195: 313 | BM195: FALSE | BN195: ='Exchange Rates'!D213 -> 0 | BP195: =IF(BM195,'Exchange Rates'!E213) -> FALSE
BD196: 314 | BE196: FALSE | BF196: =IF(BE196,'Google Finance Stocks'!D220) -> FALSE | BH196: =IF(BE196,'Google Finance Stocks'!E220) -> FALSE | BL196: 314 | BM196: FALSE | BN196: ='Exchange Rates'!D214 -> 0 | BP196: =IF(BM196,'Exchange Rates'!E214) -> FALSE
BD197: =BD196+1 -> 315 | BE197: FALSE | BF197: =IF(BE197,'Google Finance Stocks'!D221) -> FALSE | BH197: =IF(BE197,'Google Finance Stocks'!E221) -> FALSE | BL197: =BL196+1 -> 315 | BM197: FALSE | BN197: ='Exchange Rates'!D215 -> 0 | BP197: =IF(BM197,'Exchange Rates'!E215) -> FALSE
BD198: 316 | BE198: FALSE | BF198: =IF(BE198,'Google Finance Stocks'!D222) -> FALSE | BH198: =IF(BE198,'Google Finance Stocks'!E222) -> FALSE | BL198: 316 | BM198: FALSE | BN198: ='Exchange Rates'!D216 -> 0 | BP198: =IF(BM198,'Exchange Rates'!E216) -> FALSE
BD199: 317 | BE199: FALSE | BF199: =IF(BE199,'Google Finance Stocks'!D223) -> FALSE | BH199: =IF(BE199,'Google Finance Stocks'!E223) -> FALSE | BL199: 317 | BM199: FALSE | BN199: ='Exchange Rates'!D217 -> 0 | BP199: =IF(BM199,'Exchange Rates'!E217) -> FALSE
BD200: 318 | BE200: FALSE | BF200: =IF(BE200,'Google Finance Stocks'!D224) -> FALSE | BH200: =IF(BE200,'Google Finance Stocks'!E224) -> FALSE | BL200: 318 | BM200: FALSE | BN200: ='Exchange Rates'!D218 -> 0 | BP200: =IF(BM200,'Exchange Rates'!E218) -> FALSE
... 6 more rows

Sheet Contents
C1: Go to Charts by Pressing Shift and Enter on Menu Item
C3: Sheet Tab | D3: Description | E3: Author
B4: 1 | C4: Introduction
B5: 2 | C5: Read Stocks
B6: 3 | C6: Contents
B7: 4 | C7: Errors
B8: 5 | C8: Multiple Stock Graph
B9: 6 | C9: Summary
B10: 7 | C10: Yahoo Index | J10: Questions: e-mail edwardbodmer@gmail.com
B11: 8 | C11: FRED Indicies
B12: 9 | C12: Exchange Rates | J12: Explanation at:
B13: 10 | C13: Commodity Prices | J13: http://edbodmer.com/comprehensive-stock-price-analysis/
B14: 11 | C14: Yahoo Stocks
B15: 12 | C15: Google Finance Stocks
B16: 13 | C16: Google Index
B17: 14 | C17: International Indicies
B18: 15 | C18: General Points
B19: 16 | C19: Forms
B20: 17 | C20: BREAK
B21: 18 | C21: S&P 500 | J21: Notes: Error and still makes sheets
B22: 19 | C22: DAX
B23: 20 | C23: Nifty Fifty
B24: 21 | C24: BSESN Index
B25: 22 | C25: Nasdaq 100
B26: 23 | C26: NASDAQ100
B27: 24 | C27: DCOILBRENTEU
B28: 25 | C28: PCOPPUSDM
B29: 26 | C29: MHHNGSP
B30: 27 | C30: HTMEDIA.NS
B31: 28 | C31: AAPL
B32: 29 | C32: GOOG
B33: 30 | C33: AMZN
B34: 31 | C34: FB
B35: 32 | C35: DTE.DE
B36: 33 | C36: FTE
B37: 34 | C37: BT
B38: 35 | C38: VOD
B39: 36 | C39: VZ
B40: 37 | C40: S
B41: 38 | C41: PHI
B42: 39 | C42: TKC
B43: 40 | C43: JPM
B44: 41 | C44: MCD
B45: 42 | C45: WMT
B46: 43 | C46: NG.L
B47: 44 | C47: EXC
B48: 45 | C48: ENGI.PA
B49: 46 | C49: EDF.PA
B50: 47 | C50: ED
B51: 48 | C51: 5347.KL
B52: 49 | C52: MAEOY
B53: 50 | C53: VWDRY
B54: 51 | C54: VWS.CO
B55: 52 | C55: GE
B56: 53 | C56: NDX1.DE
B57: 54 | C57: 601558.SS
B58: 55 | C58: SUZLON.NS
B59: 56 | C59: 002202.SZ
B60: 57 | C60: LB
B61: 58 | C61: Sheet157
B62: 59 | C62: FSLR
B63: 60 | C63: Sheet159
B64: 61 | C64: SPWR
B65: 62 | C65: Sheet161
B66: 63 | C66: Sheet162
B67: 64 | C67: RELIANCE.NS
B68: 65 | C68: ICICIBANK.NS
B69: 66 | C69: TATAMOTORS.NS
B70: 67 | C70: WIPRO.NS
B71: 68 | C71: DRREDDY.NS
B72: 69 | C72: WNS
B73: 70 | C73: SIFY
B74: 71 | C74: REDFY
B75: 72 | C75: VEDL.NS
B76: 73 | C76: AZRE
B77: 74 | C77: Sheet175
B78: 75 | C78: MTENY
B79: 76 | C79: MMYT
B80: 77 | C80: YTRA
B81: 78 | C81: TCS.NS
B82: 79 | C82: HDFCBANK.NS
B83: 80 | C83: HINDUNILVR.NS
B84: 81 | C84: ITC.NS
B85: 82 | C85: HDFC.NS
B86: 83 | C86: INFY.NS
B87: 84 | C87: SBIN.NS
B88: 85 | C88: HEINY
B89: 86 | C89: NYT
B90: 87 | C90: BUD
B91: 88 | C91: KOF
B92: 89 | C92: DEO
B93: 90 | C93: ECL
B94: 91 | C94: GDP Inf
B95: 92 | C95: CPI US
B96: 93 | C96: Euro
B97: 94 | C97: INR
B98: 95 | C98: UK
B99: 96 | C99: CFH
B100: 97 | C100: US NOM GNP
B101: 98 | C101: India Disc Rate
B102: 99 | C102: India Gvt Bonds
B103: 100 | C103: India 10 Yr Main
B104: 101 | C104: India Inflation
B105: 102 | C105: 5 yr treasury
B106: 103 | C106: 10 year treasury
B107: 104 | C107: US Med Inc Nom
B108: 105 | C108: Median Income
B109: 106 | C109: Corp Profit
B110: 107 | C110: Corp Nonfin
B111: 108 | C111: Corp Aft Tax
B112: 109 | C112: Corp Inf Adjusted
B113: 110 | C113: GDP Inflation Index
B114: 111 | C114: CPI US Index
B115: 112 | C115: US GDP
B116: 113 | C116: Median Family Income
B117: 114 | C117: GDPDEF
B118: 115 | C118: CPIAUCSL
B119: 116 | C119: EXUSEU
B120: 117 | C120: DEXINUS
B121: 118 | C121: EXUSUK
B122: 119 | C122: DEXSZUS
B123: 120 | C123: GNP
B124: 121 | C124: INTDSRINM193N
B125: 122 | C125: INTGSBINM193N
B126: 123 | C126: INDIRLTLT01STM
B127: 124 | C127: CPALTT01INM659N
B128: 125 | C128: GS5
B129: 126 | C129: GS10
B130: 127 | C130: MEHOINUSA646N
B131: 128 | C131: LES1252881600Q
B132: 129 | C132: CP
B133: 130 | C133: NFCPATAX
B134: 131 | C134: A055RC0A144NBEA
B135: 132 | C135: A445RC1Q027SBEA
B136: 133 | C136: GDPDEF (2)
B137: 134 | C137: CPIAUCSL (2)
B138: 135 | C138: GDP
B139: 136 | C139: MEFAINUSA646N

Sheet Errors
A1: https://query1.finance.yahoo.com/v7/finance/download/MY?period1=-631152000&period2=1566086400&interval=1mo&events=history&crumb=XWmDe.9z5ft | E1: https://research.stlouisfed.org/fred2/data/INTDSRINM193N.txt
A2: https://query1.finance.yahoo.com/v7/finance/download/RECSOL.OL?period1=-631152000&period2=1566086400&interval=1mo&events=history&crumb=XWmDe.9z5ft | E2: https://research.stlouisfed.org/fred2/data/INTGSBINM193N.txt
A3: https://query1.finance.yahoo.com/v7/finance/download/TSL?period1=-631152000&period2=1566086400&interval=1mo&events=history&crumb=XWmDe.9z5ft | E3: https://research.stlouisfed.org/fred2/data/INDIRLTLT01STM.txt
A4: https://query1.finance.yahoo.com/v7/finance/download/SCTY?period1=-631152000&period2=1566086400&interval=1mo&events=history&crumb=XWmDe.9z5ft | E4: https://research.stlouisfed.org/fred2/data/CPALTT01INM659N.txt
A5: https://query1.finance.yahoo.com/v7/finance/download/CCE?period1=-631152000&period2=1566086400&interval=1mo&events=history&crumb=XWmDe.9z5ft | E5: https://research.stlouisfed.org/fred2/data/GS5.txt
A6: https://query1.finance.yahoo.com/v7/finance/download/ CHK ?period1=-631152000&period2=1566086400&interval=1mo&events=history&crumb=XWmDe.9z5ft | E6: https://research.stlouisfed.org/fred2/data/GS10.txt
A7: https://query1.finance.yahoo.com/v7/finance/download/CWEI?period1=-631152000&period2=1566086400&interval=1mo&events=history&crumb=XWmDe.9z5ft | E7: https://research.stlouisfed.org/fred2/data/GDPDEF.txt
E8: https://research.stlouisfed.org/fred2/data/CPIAUCSL.txt

Sheet Multiple Stock Graph
C1: Index | K1: IRR | L1: Vol | M1: Beta | AA1: Start | AB1: Final | AC1: Years
J2: =O26 -> US S&P 500 | K2: =Summary!K3 -> 0.06640339041 | L2: =Summary!AT5 -> 0.1449524021 | M2: =Summary!AT3 -> 1 | Y2: =J2 -> US S&P 500 | AA2: =Summary!D3 -> 1950-01-01 | AB2: =Summary!K2 -> 2.256640234 | AC2: =Summary!K4 -> 13.65913758
B3: Comparison vs Base | G3: Counter | H3: Match | I3: Selection
A4: 1 | B4: ='Read Stocks'!M3 -> S&P 500 | C4: ='Read Stocks'!N3 -> US S&P 500 | D4: FALSE | F4: =D4*1 -> 0 | G4: 1 | H4: =MATCH(G4,F$1:F$555,0) -> 82 | I4: =INDEX(B:B,H4) -> TENA.KL | J4: =INDEX(C:C,H4) -> Tenaga | K4: =IFERROR(TRANSPOSE(Summary!BA4:BF4),"") -> 0.07981936379 | L4: =IFERROR(TRANSPOSE(Summary!AU5:AZ5),"") -> 0.1930343097 | M4: =IFERROR(TRANSPOSE(Summary!AU3:AZ3),"") -> 0.3869344386 | Y4: =J4 -> Tenaga | AA4: =IFERROR(TRANSPOSE(Summary!AB2:AG2),"") -> 2006-05-01 | AB4: =TRANSPOSE(Summary!BA3:BF3) -> 2.643603417
A5: 2 | B5: ='Read Stocks'!M4 -> DAX | C5: ='Read Stocks'!N4 -> DAX in Euro | D5: FALSE | F5: =F4+D5 -> 0 | G5: 2 | H5: =MATCH(G5,F$1:F$555,0) ->  | I5: =INDEX(B:B,H5) ->  | J5: =INDEX(C:C,H5) ->  | L5: 0 | M5: 0 | Y5: =J5 ->  | AB5: 1
A6: 3 | B6: ='Read Stocks'!M5 -> Nifty Fifty | C6: ='Read Stocks'!N5 -> Nifty Fifty | D6: FALSE | F6: 0 | G6: 3 | L6: 0 | M6: 0 | AB6: 1
A7: 4 | B7: ='Read Stocks'!M6 -> BSESN Index | C7: ='Read Stocks'!N6 -> BSESN Index | D7: FALSE | F7: 0 | G7: 4 | L7: 0 | M7: 0 | AB7: 1
A8: 5 | B8: ='Read Stocks'!M7 -> Nasdaq 100 | C8: ='Read Stocks'!N7 -> Nasdaq 100 | D8: FALSE | F8: 0 | G8: 5 | L8: 0 | M8: 0 | AB8: 1
A9: 6 | B9: ='Read Stocks'!M8 -> 30 Industrials | C9: ='Read Stocks'!N8 -> Dow Jones 30 Industrials | D9: FALSE | F9: 0 | G9: 6 | L9: 0 | M9: 0 | AB9: 1
A10: 7 | B10: ='Read Stocks'!M9 -> NASDAQ100 | C10: ='Read Stocks'!N9 -> Nasdaq 100 Index | D10: FALSE | F10: 0 | G10: 7
A11: 8 | B11: ='Read Stocks'!M10 -> DCOILBRENTEU | C11: ='Read Stocks'!N10 -> Crude Oil Prices: Brent - Europe (DCOILBRENTEU) | D11: FALSE | F11: 0 | G11: 8
A12: 9 | B12: ='Read Stocks'!M11 -> PCOPPUSDM | C12: ='Read Stocks'!N11 -> Global price of Copper© (PCOPPUSDM) | D12: FALSE | F12: 0 | G12: 9 | Y12: Final Date | AA12: =Summary!D2 -> 2019-08-31
A13: 10 | B13: ='Read Stocks'!M12 -> MHHNGSP | C13: ='Read Stocks'!N12 -> Henry Hub Natural Gas Spot Price (MHHNGSP) | D13: FALSE | F13: 0 | G13: 10
A14: 11 | B14: ='Read Stocks'!M13 -> HTMEDIA.NS | C14: ='Read Stocks'!N13 -> HT Media | D14: FALSE | F14: 0 | G14: 11
A15: 12 | B15: ='Read Stocks'!M14 -> AAPL | C15: ='Read Stocks'!N14 -> Apple | D15: FALSE | F15: 0 | G15: 12 | J15: =J2 -> US S&P 500 | K15: 0 | L15: =IFERROR(INDEX('Read Stocks'!$BN$3:$BN$11,'Multiple Stock Graph'!K15),"USD") -> USD | Y15: Instructions at www.edbodmer.com
A16: 13 | B16: ='Read Stocks'!M15 -> GOOG | C16: ='Read Stocks'!N15 -> Google | D16: FALSE | F16: 0 | G16: 13 | J16: =J4 -> Tenaga | K16: 0 | L16: =IFERROR(INDEX('Read Stocks'!$BN$3:$BN$11,'Multiple Stock Graph'!K16),"USD") -> USD | Y16: Questions: e-mail edwardbodmer@gmail.com
A17: 14 | B17: ='Read Stocks'!M16 -> AMZN | C17: ='Read Stocks'!N16 -> Amazon | D17: FALSE | F17: 0 | G17: 14 | J17: =J5 ->  | K17: 0 | L17: =IFERROR(INDEX('Read Stocks'!$BN$3:$BN$11,'Multiple Stock Graph'!K17),"USD") -> USD
A18: 15 | B18: ='Read Stocks'!M17 -> FB | C18: ='Read Stocks'!N17 -> Facebook | D18: FALSE | F18: 0 | G18: 15 | K18: 0 | L18: =IFERROR(INDEX('Read Stocks'!$BN$3:$BN$11,'Multiple Stock Graph'!K18),"USD") -> USD
A19: 16 | B19: ='Read Stocks'!M18 -> DTE.DE | C19: ='Read Stocks'!N18 -> Deutsche Telekom AG (ADR) | D19: FALSE | F19: 0 | G19: 16 | K19: 0 | L19: =IFERROR(INDEX('Read Stocks'!$BN$3:$BN$11,'Multiple Stock Graph'!K19),"USD") -> USD
A20: 17 | B20: ='Read Stocks'!M19 -> FTE | C20: ='Read Stocks'!N19 -> France Telecom SA (ADR) | D20: FALSE | F20: 0 | G20: 17 | K20: 0 | L20: =IFERROR(INDEX('Read Stocks'!$BN$3:$BN$11,'Multiple Stock Graph'!K20),"USD") -> USD
A21: 18 | B21: ='Read Stocks'!M20 -> BT | C21: ='Read Stocks'!N20 -> BT Group plc (ADR) (BT) | D21: FALSE | F21: 0 | G21: 18 | K21: 0 | L21: =IFERROR(INDEX('Read Stocks'!$BN$3:$BN$11,'Multiple Stock Graph'!K21),"USD") -> USD
A22: 19 | B22: ='Read Stocks'!M21 -> VOD | C22: ='Read Stocks'!N21 -> Vodafone Group plc | D22: FALSE | F22: 0 | G22: 19
A23: 20 | B23: ='Read Stocks'!M22 -> VZ | C23: ='Read Stocks'!N22 -> Verizon Communications... | D23: FALSE | F23: 0 | G23: 20
A24: 21 | B24: ='Read Stocks'!M23 -> S | C24: ='Read Stocks'!N23 -> Sprint | D24: FALSE | F24: 0 | G24: 21
A25: 22 | B25: ='Read Stocks'!M24 -> PHI | C25: ='Read Stocks'!N24 -> Philippine Long Distance (PHI) | D25: FALSE | F25: 0 | G25: 22
A26: 23 | B26: ='Read Stocks'!M25 -> TKC | C26: ='Read Stocks'!N25 -> Turkcell Iletisim Hizm... | D26: FALSE | F26: 0 | G26: 23 | L26: Primary Stock | N26: =Forms!J4 -> 1 | O26: =INDEX(C4:C195,Forms!J4) -> US S&P 500
A27: 24 | B27: ='Read Stocks'!M26 -> JPM | C27: ='Read Stocks'!N26 -> JP Morgan | D27: FALSE | F27: 0 | G27: 24 | L27: Use the Drop Down Box for Selecting the Stock
A28: 25 | B28: ='Read Stocks'!M27 -> MCD | C28: ='Read Stocks'!N27 -> McDonalds | D28: FALSE | F28: 0 | G28: 25 | L28: Use the check boxes for comparison
A29: 26 | B29: ='Read Stocks'!M28 -> WMT | C29: ='Read Stocks'!N28 -> Wall Mart | D29: FALSE | F29: 0 | G29: 26 | L29: Use the first check box for index in computing beta and other statistics
A30: 27 | B30: ='Read Stocks'!M29 -> NG.L | C30: ='Read Stocks'!N29 -> National Grid | D30: FALSE | F30: 0 | G30: 27
A31: 28 | B31: ='Read Stocks'!M30 -> EXC | C31: ='Read Stocks'!N30 -> Exelon | D31: FALSE | F31: 0 | G31: 28
A32: 29 | B32: ='Read Stocks'!M31 -> ENGI.PA | C32: ='Read Stocks'!N31 -> GDF Suez | D32: FALSE | F32: 0 | G32: 29 | K32: =TRANSPOSE(Summary!BN6:BT6) -> GDP Inf | L32: Divide
A33: 30 | B33: ='Read Stocks'!M32 -> EDF.PA | C33: ='Read Stocks'!N32 -> EDF | D33: FALSE | F33: 0 | G33: 30 | K33: CPI US | L33: Divide
A34: 31 | B34: ='Read Stocks'!M33 -> ED | C34: ='Read Stocks'!N33 -> Consolidated Edison | D34: FALSE | F34: 0 | G34: 31 | K34: Euro | L34: Multiply
A35: 32 | B35: ='Read Stocks'!M34 -> TENA.KL | C35: ='Read Stocks'!N34 -> Tenaga | D35: FALSE | F35: 0 | G35: 32 | K35: INR | L35: Divide
A36: 33 | B36: ='Read Stocks'!M35 -> MAEOY | C36: ='Read Stocks'!N35 -> Meralco | D36: FALSE | F36: 0 | G36: 33 | K36: UK | L36: Multiply
A37: 34 | B37: ='Read Stocks'!M36 -> VWDRY | C37: ='Read Stocks'!N36 -> Vestas ADR | D37: FALSE | F37: 0 | G37: 34 | K37: CFH | L37: Divide
A38: 35 | B38: ='Read Stocks'!M37 -> VWS.CO | C38: ='Read Stocks'!N37 -> Vestas (Denmark) | D38: FALSE | F38: 0 | G38: 35 | K38: US NOM GNP | L38: Divide
A39: 36 | B39: ='Read Stocks'!M38 -> GE | C39: ='Read Stocks'!N38 -> General Electric | D39: FALSE | F39: 0 | G39: 36
A40: 37 | B40: ='Read Stocks'!M39 -> NDX1.DE | C40: ='Read Stocks'!N39 -> Nordex Wind SE: German On-Shore Wind | D40: FALSE | F40: 0 | G40: 37
A41: 38 | B41: ='Read Stocks'!M40 -> 601558.SS | C41: ='Read Stocks'!N40 -> Sinovel Wind: Chinese Wind Manufactrer | D41: FALSE | F41: 0 | G41: 38
A42: 39 | B42: ='Read Stocks'!M41 -> SUZLON.NS | C42: ='Read Stocks'!N41 -> Suzlon: Indian Wind Manufacturer | D42: FALSE | F42: 0 | G42: 39
A43: 40 | B43: ='Read Stocks'!M42 -> 002202.SZ | C43: ='Read Stocks'!N42 -> Goldwind: Chinese Wind Manufacturer | D43: FALSE | F43: 0 | G43: 40
A44: 41 | B44: ='Read Stocks'!M43 -> LB | C44: ='Read Stocks'!N43 -> Victoria Secret | D44: FALSE | F44: =F43+D44 -> 0 | G44: 41 | I44: =INDEX(B:B,H44) -> 
A45: 42 | B45: ='Read Stocks'!M44 -> MY | C45: ='Read Stocks'!N44 -> Ming Yang: Chinese Wind Manufacturer | D45: FALSE | F45: =F44+D45 -> 0 | G45: 42
A46: 43 | B46: ='Read Stocks'!M45 -> FSLR | C46: ='Read Stocks'!N45 -> First Solar (U.S.) | D46: FALSE | F46: 0 | G46: 43
A47: 44 | B47: ='Read Stocks'!M46 -> RECSOL.OL | C47: ='Read Stocks'!N46 -> REC: Solar Manufacturer Norway | D47: FALSE | F47: 0 | G47: 44
A48: 45 | B48: ='Read Stocks'!M47 -> SPWR | C48: ='Read Stocks'!N47 -> SunPower Corporation (U.S.) | D48: FALSE | F48: 0 | G48: 45
A49: 46 | B49: ='Read Stocks'!M48 -> TSL | C49: ='Read Stocks'!N48 -> Trina Solar Limited (China) | D49: FALSE | F49: =F48+D49 -> 0 | G49: 45 | I49: =INDEX(B:B,H49) -> 
A50: 47 | B50: ='Read Stocks'!M49 -> SCTY | C50: ='Read Stocks'!N49 -> Solar City | D50: FALSE | F50: 0 | G50: 45
A51: 48 | B51: ='Read Stocks'!M50 -> BN.PA | C51: ='Read Stocks'!N50 -> Dannone | D51: FALSE | F51: 0 | G51: 45
A52: 49 | B52: ='Read Stocks'!M51 -> PEP | C52: ='Read Stocks'!N51 -> Pepsi Co | D52: FALSE | F52: 0 | G52: 45
A53: 50 | B53: ='Read Stocks'!M52 -> CCE | C53: ='Read Stocks'!N52 -> Coca Cola | D53: FALSE | F53: 0 | G53: 45
A54: 51 | B54: ='Read Stocks'!M53 -> K | C54: ='Read Stocks'!N53 -> Kellog | D54: FALSE | F54: 0 | G54: 45
A55: 52 | B55: ='Read Stocks'!M54 -> GIS | C55: ='Read Stocks'!N54 -> General Mills | D55: FALSE | F55: 0 | G55: 45
A56: 53 | B56: ='Read Stocks'!M55 -> CAG | C56: ='Read Stocks'!N55 -> ConAgra | D56: FALSE | F56: 0 | G56: 45
A57: 54 | B57: ='Read Stocks'!M56 -> HNZ | C57: ='Read Stocks'!N56 -> Heinz | D57: FALSE | F57: 0 | G57: 45
A58: 55 | B58: ='Read Stocks'!M57 -> SLE | C58: ='Read Stocks'!N57 -> Sara Lee | D58: FALSE | F58: 0 | G58: 45
A59: 56 | B59: ='Read Stocks'!M58 -> CHK | C59: ='Read Stocks'!N58 -> Cheasapeak Energy | D59: FALSE | F59: 0 | G59: 45
A60: 57 | B60: ='Read Stocks'!M59 -> RRC | C60: ='Read Stocks'!N59 -> Range Resources | D60: FALSE | F60: 0 | G60: 45
A61: 58 | B61: ='Read Stocks'!M60 -> CLR | C61: ='Read Stocks'!N60 -> Contential Resources | D61: FALSE | F61: 0 | G61: 45
A62: 59 | B62: ='Read Stocks'!M61 -> SD | C62: ='Read Stocks'!N61 -> Sandy Ridge | D62: FALSE | F62: 0 | G62: 45
A63: 60 | B63: ='Read Stocks'!M62 -> MPO | C63: ='Read Stocks'!N62 -> Midstates Petroleum | D63: FALSE | F63: 0 | G63: 45
A64: 61 | B64: ='Read Stocks'!M63 -> RDS-B | C64: ='Read Stocks'!N63 -> Shell Oil | D64: FALSE | F64: 0 | G64: 45
A65: 62 | B65: ='Read Stocks'!M64 -> XOM | C65: ='Read Stocks'!N64 -> Exxon Mobil | D65: FALSE | F65: 0 | G65: 45
A66: 63 | B66: ='Read Stocks'!M65 -> CVX | C66: ='Read Stocks'!N65 -> Chevron | D66: FALSE | F66: 0 | G66: 45
A67: 64 | B67: ='Read Stocks'!M66 -> TOT | C67: ='Read Stocks'!N66 -> Total | D67: FALSE | F67: 0 | G67: 45
A68: 65 | B68: ='Read Stocks'!M67 -> BP | C68: ='Read Stocks'!N67 -> BP | D68: FALSE | F68: 0 | G68: 45
A69: 66 | B69: ='Read Stocks'!M68 -> GDP | C69: ='Read Stocks'!N68 -> Goodrich Petroleum Corp. | D69: FALSE | F69: 0 | G69: 45 | H69: =MATCH(G69,F$1:F$555,0) ->  | J69: =INDEX(C:C,H69) -> 
A70: 67 | B70: ='Read Stocks'!M69 -> SN | C70: ='Read Stocks'!N69 -> Sanchez Energy Corp. | D70: FALSE | F70: 0 | G70: 45
A71: 68 | B71: ='Read Stocks'!M70 -> CWEI | C71: ='Read Stocks'!N70 -> Clayton Williams Energy Inc. | D71: FALSE | F71: 0 | G71: 45
A72: 69 | B72: ='Read Stocks'!M71 -> CPE | C72: ='Read Stocks'!N71 -> Callon Petroleum Co. | D72: FALSE | F72: 0 | G72: 45
A73: 70 | B73: ='Read Stocks'!M72 -> C | C73: ='Read Stocks'!N72 -> Citibank | D73: FALSE | F73: 0 | G73: 45
A74: 71 | B74: ='Read Stocks'!M73 -> HEINY | C74: ='Read Stocks'!N73 -> Heineken | D74: FALSE | F74: 0 | G74: 45
A75: 72 | B75: ='Read Stocks'!M74 -> NYT | C75: ='Read Stocks'!N74 -> New York Times | D75: FALSE | F75: 0 | G75: 45
A76: 73 | B76: ='Read Stocks'!M75 -> BUD | C76: ='Read Stocks'!N75 -> Anheuser-Busch Inbev SA (USD) | D76: FALSE | F76: 0 | G76: 45
A77: 74 | B77: ='Read Stocks'!M76 -> KOF | C77: ='Read Stocks'!N76 -> Coca Cola | D77: FALSE | F77: 0 | G77: 45
A78: 75 | B78: ='Read Stocks'!M77 -> DEO | C78: ='Read Stocks'!N77 -> Diageo | D78: FALSE | F78: 0 | G78: 45
A79: 76 | B79: ='Read Stocks'!M78 -> ECL | C79: ='Read Stocks'!N78 -> Eco Lab | D79: FALSE | F79: 0 | G79: 45
A80: 77 | B80: ='Read Stocks'!M79 -> LNT | C80: ='Read Stocks'!N79 -> Alliant Energy | D80: FALSE | F80: 0 | G80: 45
A81: 78 | B81: ='Read Stocks'!M80 -> IBE.MC | C81: ='Read Stocks'!N80 -> Ibdrola | D81: FALSE | F81: 0 | G81: 45
A82: 79 | B82: ='Read Stocks'!M81 -> TENA.KL | C82: ='Read Stocks'!N81 -> Tenaga | D82: TRUE | F82: 1 | G82: 45
A83: 80 | B83: ='Read Stocks'!M82 -> MAEOY | C83: ='Read Stocks'!N82 -> Meralco | D83: FALSE | F83: 1 | G83: 45
A84: 81 | B84: ='Read Stocks'!M83 -> ED | C84: ='Read Stocks'!N83 -> ConEd | D84: FALSE | F84: 1 | G84: 45
A85: 82 | B85: ='Read Stocks'!M84 -> 015760.KS | C85: ='Read Stocks'!N84 -> Kepco | D85: FALSE | F85: 1 | G85: 45
A86: 83 | B86: ='Read Stocks'!M85 -> TKECF | C86: ='Read Stocks'!N85 -> Tepco | D86: FALSE | F86: 1 | G86: 45
A87: 84 | B87: ='Read Stocks'!M86 -> SO | C87: ='Read Stocks'!N86 -> Southern Companies | D87: FALSE | F87: 1 | G87: 45
A88: 85 | B88: ='Read Stocks'!M87 -> EDF.PA | C88: ='Read Stocks'!N87 -> EDF | D88: FALSE | F88: 1 | G88: 45
A89: 86 | B89: ='Read Stocks'!M88 -> ENGI.PA | C89: ='Read Stocks'!N88 -> Engie | D89: FALSE | F89: 1 | G89: 45
A90: 87 | B90: ='Read Stocks'!M89 -> NG.L | C90: ='Read Stocks'!N89 -> National Grid | D90: FALSE | F90: 1 | G90: 45
A91: 88 | B91: ='Read Stocks'!M90 -> ENEL.MI | C91: ='Read Stocks'!N90 -> Enel | D91: FALSE | F91: 1 | G91: 45
A92: 89 | B92: ='Read Stocks'!M91 -> EOAN.DE | C92: ='Read Stocks'!N91 -> E.on | D92: FALSE | F92: 1 | G92: 45
A93: 90 | B93: ='Read Stocks'!M92 -> EXC | C93: ='Read Stocks'!N92 -> Exelon | D93: FALSE | F93: 1 | G93: 45
A94: 91 | B94: ='Read Stocks'!M93 -> DTE | C94: ='Read Stocks'!N93 -> Detroit Edison | D94: FALSE | F94: 1 | G94: 45
A95: 92 | B95: ='Read Stocks'!M94 -> AES | C95: ='Read Stocks'!N94 -> AES | D95: FALSE | F95: 1 | G95: 45
A96: 93 | B96: ='Read Stocks'!M95 -> NRG | C96: ='Read Stocks'!N95 -> NRG Energy | D96: FALSE | F96: 1 | G96: 45
A97: 94 | B97: ='Read Stocks'!M96 -> PCG | C97: ='Read Stocks'!N96 -> PG&E | D97: FALSE | F97: 1 | G97: 45
A98: 95 | B98: ='Read Stocks'!M97 -> RWE.DE | C98: ='Read Stocks'!N97 -> RWE | D98: FALSE | F98: 1 | G98: 45
A99: 96 | B99: ='Read Stocks'!M98 -> MGEE | C99: ='Read Stocks'!N98 -> Madison Gas and Electric | D99: FALSE | F99: 1 | G99: 45
A100: 97 | B100: ='Read Stocks'!M99 -> WEC | C100: ='Read Stocks'!N99 -> Wisconsin Public Service | D100: FALSE | F100: 1 | G100: 45
A101: 98 | B101: ='Read Stocks'!M100 -> AEE | C101: ='Read Stocks'!N100 -> Ameren | D101: FALSE | F101: 1 | G101: 45
A102: 99 | B102: ='Read Stocks'!M101 -> CMS | C102: ='Read Stocks'!N101 -> CMS Energy | D102: FALSE | F102: 1 | G102: 45
A103: 100 | B103: ='Read Stocks'!M102 -> MMM | C103: ='Read Stocks'!N102 -> 3M | D103: FALSE | F103: 1 | G103: 45
A104: 101 | B104: ='Read Stocks'!M103 -> AAPL | C104: ='Read Stocks'!N103 -> Apple | D104: FALSE | F104: 1 | G104: 45
A105: 102 | B105: ='Read Stocks'!M104 -> BA | C105: ='Read Stocks'!N104 -> Boeing | D105: FALSE | F105: 1 | G105: 45
A106: 103 | B106: ='Read Stocks'!M105 -> CAT | C106: ='Read Stocks'!N105 -> Caterpillar | D106: FALSE | F106: 1 | G106: 45
A107: 104 | B107: ='Read Stocks'!M106 -> CVX | C107: ='Read Stocks'!N106 -> Chevron | D107: FALSE | F107: 1 | G107: 45
A108: 105 | B108: ='Read Stocks'!M107 -> CSCO | C108: ='Read Stocks'!N107 -> Cisco | D108: FALSE | F108: 1 | G108: 45
A109: 106 | B109: ='Read Stocks'!M108 -> KO | C109: ='Read Stocks'!N108 -> Coca-Cola | D109: FALSE | F109: 1 | G109: 45
A110: 107 | B110: ='Read Stocks'!M109 -> DIS | C110: ='Read Stocks'!N109 -> Disney | D110: FALSE | F110: 1 | G110: 45
A111: 108 | B111: ='Read Stocks'!M110 -> DWDP | C111: ='Read Stocks'!N110 -> E I du Pont de Nemours and Co | D111: FALSE | F111: 1 | G111: 45
A112: 109 | B112: ='Read Stocks'!M111 -> XOM | C112: ='Read Stocks'!N111 -> Exxon Mobil | D112: FALSE | F112: 1 | G112: 45
A113: 110 | B113: ='Read Stocks'!M112 -> GE | C113: ='Read Stocks'!N112 -> General Electric | D113: FALSE | F113: =F112+D113 -> 1 | G113: 45 | I113: =INDEX(B:B,H113) -> 
A114: 111 | B114: ='Read Stocks'!M113 -> HD | C114: ='Read Stocks'!N113 -> Home Depot | D114: FALSE | F114: 1 | G114: 45
A115: 112 | B115: ='Read Stocks'!M114 -> IBM | C115: ='Read Stocks'!N114 -> IBM | D115: FALSE | F115: 1 | G115: 45
A116: 113 | B116: ='Read Stocks'!M115 -> INTC | C116: ='Read Stocks'!N115 -> Intel | D116: FALSE | F116: 1 | G116: 45
A117: 114 | B117: ='Read Stocks'!M116 -> JNJ | C117: ='Read Stocks'!N116 -> Johnson & Johnson | D117: FALSE | F117: 1 | G117: 45
A118: 115 | B118: ='Read Stocks'!M117 -> MCD | C118: ='Read Stocks'!N117 -> McDonald's | D118: FALSE | F118: 1 | G118: 45
A119: 116 | B119: ='Read Stocks'!M118 -> MRK | C119: ='Read Stocks'!N118 -> Merck | D119: FALSE | F119: 1 | G119: 45
A120: 117 | B120: ='Read Stocks'!M119 -> MSFT | C120: ='Read Stocks'!N119 -> Microsoft | D120: FALSE | F120: 1 | G120: 45
A121: 118 | B121: ='Read Stocks'!M120 -> NKE | C121: ='Read Stocks'!N120 -> Nike | D121: FALSE | F121: 1 | G121: 45
A122: 119 | B122: ='Read Stocks'!M121 -> PFE | C122: ='Read Stocks'!N121 -> Pfizer | D122: FALSE | F122: 1 | G122: 45
A123: 120 | B123: ='Read Stocks'!M122 -> PG | C123: ='Read Stocks'!N122 -> Procter & Gamble | D123: FALSE | F123: 1 | G123: 45
A124: 121 | B124: ='Read Stocks'!M123 -> GDP Inf | C124: ='Read Stocks'!N123 -> Implicit Price Deflator | D124: FALSE | F124: 1 | G124: 45
A125: 122 | B125: ='Read Stocks'!M124 -> CPI US | C125: ='Read Stocks'!N124 -> Consumer Price Inflation | D125: FALSE | F125: 1 | G125: 45
A126: 123 | B126: ='Read Stocks'!M125 -> Euro | C126: ='Read Stocks'!N125 -> U.S. / Euro Foreign Exchange Rate (EXUSEU) | D126: FALSE | F126: 1 | G126: 45
A127: 124 | B127: ='Read Stocks'!M126 -> INR | C127: ='Read Stocks'!N126 -> India / U.S. Foreign Exchange Rate (DEXINUS) | D127: FALSE | F127: 1 | G127: 45
A128: 125 | B128: ='Read Stocks'!M127 -> UK | C128: ='Read Stocks'!N127 -> U.S. / U.K. Foreign Exchange Rate (EXUSUK) | D128: FALSE | F128: 1 | G128: 45
A129: 126 | B129: ='Read Stocks'!M128 -> CFH | C129: ='Read Stocks'!N128 -> Switzerland / U.S. Foreign Exchange Rate (DEXSZUS) | D129: FALSE | F129: 1 | G129: 45
A130: 127 | B130: ='Read Stocks'!M129 -> US NOM GNP | C130: ='Read Stocks'!N129 -> Gross National Product (GNP) | D130: FALSE | F130: 1 | G130: 45
A131: 128 | B131: ='Read Stocks'!M130 -> India Disc Rate | C131: ='Read Stocks'!N130 -> Interest Rates, Discount Rate for India (INTDSRINM193N) | D131: FALSE | F131: 1 | G131: 45
A132: 129 | B132: ='Read Stocks'!M131 -> India Gvt Bonds | C132: ='Read Stocks'!N131 -> Interest Rates, Government Securities, Government Bonds for India (INTGSBINM193N) | D132: FALSE | F132: 1 | G132: 45
A133: 130 | B133: ='Read Stocks'!M132 -> India 10 Yr Main | C133: ='Read Stocks'!N132 -> Interest Rates: Long-term government bond yields: 10-year: Main including benchmark for India (INDIRLTLT01STM) | D133: FALSE | F133: 1 | G133: 45 | H133: =MATCH(G133,F$1:F$555,0) ->  | J133: =INDEX(C:C,H133) -> 
A134: 131 | B134: ='Read Stocks'!M133 -> India Inflation | C134: ='Read Stocks'!N133 -> Consumer Price Index: Total All Items for India (CPALTT01INM659N) | D134: FALSE | F134: 1 | G134: 45
A135: 132 | B135: ='Read Stocks'!M134 -> 5 yr treasury | C135: ='Read Stocks'!N134 -> 5-Year Treasury Constant Maturity Rate (GS5) | D135: FALSE | F135: 1 | G135: 45
A136: 133 | B136: ='Read Stocks'!M135 -> 10 year treasury | C136: ='Read Stocks'!N135 -> 10-Year Treasury Constant Maturity Rate (GS10) | D136: FALSE | F136: 1 | G136: 45
A137: 134 | B137: ='Read Stocks'!M136 -> US Med Inc Nom | C137: ='Read Stocks'!N136 -> Median Household Income in the United States (MEHOINUSA646N) | D137: FALSE | F137: 1 | G137: 45
A138: 135 | B138: ='Read Stocks'!M137 -> Median Income | C138: ='Read Stocks'!N137 -> Employed full time: Median usual weekly real earnings: d over (LES1252881600Q) | D138: FALSE | F138: 1 | G138: 45
A139: 136 | B139: ='Read Stocks'!M138 -> Corp Profit | C139: ='Read Stocks'!N138 -> Corporate Profits | D139: FALSE | F139: 1 | G139: 45
A140: 137 | B140: ='Read Stocks'!M139 -> Corp Nonfin | C140: ='Read Stocks'!N139 -> Non Financial Corporate Profits | D140: FALSE | F140: 1 | G140: 45
A141: 138 | B141: ='Read Stocks'!M140 -> Corp Aft Tax | C141: ='Read Stocks'!N140 -> Corporate Profits After Tax | D141: FALSE | F141: 1 | G141: 45
A142: 139 | B142: ='Read Stocks'!M141 -> Corp Inf Adjusted | C142: ='Read Stocks'!N141 -> Corporate Profits with Inflation Adj | D142: FALSE | F142: 1 | G142: 45
A143: 140 | B143: ='Read Stocks'!M142 -> GDP Inflation Index | C143: ='Read Stocks'!N142 -> GDP Inflation Index | D143: FALSE | F143: 1 | G143: 45
A144: 141 | B144: ='Read Stocks'!M143 -> CPI US Index | C144: ='Read Stocks'!N143 -> CPI US Index | D144: FALSE | F144: 1 | G144: 45
A145: 142 | B145: ='Read Stocks'!M144 -> US GDP | C145: ='Read Stocks'!N144 -> US GDP Gross Domestic Product (GDP) | D145: FALSE | F145: 1 | G145: 45
A146: 143 | B146: ='Read Stocks'!M145 -> Median Family Income | C146: ='Read Stocks'!N145 -> Median Family Income in the United States (MEFAINUSA646N) | D146: FALSE | F146: 1 | G146: 45
A147: 144 | B147: ='Read Stocks'!M146 ->  | C147: ='Read Stocks'!N146 ->  | D147: FALSE | F147: 1 | G147: 45
A148: 145 | B148: ='Read Stocks'!M147 ->  | C148: ='Read Stocks'!N147 ->  | D148: FALSE | F148: 1 | G148: 45
A149: 146 | B149: ='Read Stocks'!M148 ->  | C149: ='Read Stocks'!N148 ->  | D149: FALSE | F149: 1 | G149: 45
A150: 147 | B150: ='Read Stocks'!M149 ->  | C150: ='Read Stocks'!N149 ->  | D150: FALSE | F150: 1 | G150: 45
A151: 148 | B151: ='Read Stocks'!M150 ->  | C151: ='Read Stocks'!N150 ->  | D151: FALSE | F151: 1 | G151: 45
A152: 149 | B152: ='Read Stocks'!M151 ->  | C152: ='Read Stocks'!N151 ->  | D152: FALSE | F152: 1 | G152: 45
A153: 150 | B153: ='Read Stocks'!M152 ->  | C153: ='Read Stocks'!N152 ->  | D153: FALSE | F153: 1 | G153: 45
A154: 151 | B154: ='Read Stocks'!M153 ->  | C154: ='Read Stocks'!N153 ->  | D154: FALSE | F154: 1 | G154: 45
A155: 152 | B155: ='Read Stocks'!M154 ->  | C155: ='Read Stocks'!N154 ->  | D155: FALSE | F155: 1 | G155: 45
A156: 153 | B156: ='Read Stocks'!M155 ->  | C156: ='Read Stocks'!N155 ->  | D156: FALSE | F156: 1 | G156: 45
A157: 154 | B157: ='Read Stocks'!M156 ->  | C157: ='Read Stocks'!N156 ->  | D157: FALSE | F157: 1 | G157: 45
A158: 155 | B158: ='Read Stocks'!M157 ->  | C158: ='Read Stocks'!N157 ->  | D158: FALSE | F158: 1 | G158: 45
A159: 156 | B159: ='Read Stocks'!M158 ->  | C159: ='Read Stocks'!N158 ->  | D159: FALSE | F159: 1 | G159: 45
A160: 157 | B160: ='Read Stocks'!M159 ->  | C160: ='Read Stocks'!N159 ->  | D160: FALSE | F160: 1 | G160: 45
A161: 158 | B161: ='Read Stocks'!M160 ->  | C161: ='Read Stocks'!N160 ->  | D161: FALSE | F161: 1 | G161: 45
A162: 159 | B162: ='Read Stocks'!M161 ->  | C162: ='Read Stocks'!N161 ->  | D162: FALSE | F162: 1 | G162: 45
A163: 160 | B163: ='Read Stocks'!M162 ->  | C163: ='Read Stocks'!N162 ->  | D163: FALSE | F163: 1 | G163: 45
A164: 161 | B164: ='Read Stocks'!M163 ->  | C164: ='Read Stocks'!N163 ->  | D164: FALSE | F164: 1 | G164: 45
A165: 162 | B165: ='Read Stocks'!M164 ->  | C165: ='Read Stocks'!N164 ->  | D165: FALSE | F165: 1 | G165: 45
A166: 163 | B166: ='Read Stocks'!M165 ->  | C166: ='Read Stocks'!N165 ->  | D166: FALSE | F166: 1 | G166: 45
A167: 164 | B167: ='Read Stocks'!M166 ->  | C167: ='Read Stocks'!N166 ->  | D167: FALSE | F167: 1 | G167: 45
A168: 165 | B168: ='Read Stocks'!M167 ->  | C168: ='Read Stocks'!N167 ->  | D168: FALSE | F168: 1 | G168: 45
A169: 166 | B169: ='Read Stocks'!M168 ->  | C169: ='Read Stocks'!N168 ->  | D169: FALSE | F169: 1 | G169: 45
A170: 167 | B170: ='Read Stocks'!M169 ->  | C170: ='Read Stocks'!N169 ->  | D170: FALSE | F170: 1 | G170: 45
A171: 168 | B171: ='Read Stocks'!M170 ->  | C171: ='Read Stocks'!N170 ->  | D171: FALSE | F171: 1 | G171: 45
A172: 169 | B172: ='Read Stocks'!M171 ->  | C172: ='Read Stocks'!N171 ->  | D172: FALSE | F172: 1 | G172: 45
A173: 170 | B173: ='Read Stocks'!M172 ->  | C173: ='Read Stocks'!N172 ->  | D173: FALSE | F173: 1 | G173: 45
A174: 171 | B174: ='Read Stocks'!M173 ->  | C174: ='Read Stocks'!N173 ->  | D174: FALSE | F174: 1 | G174: 45
A175: 172 | B175: ='Read Stocks'!M174 ->  | C175: ='Read Stocks'!N174 ->  | D175: FALSE | F175: 1 | G175: 45
A176: 173 | B176: ='Read Stocks'!M175 ->  | C176: ='Read Stocks'!N175 ->  | D176: FALSE | F176: 1 | G176: 45
A177: 174 | B177: ='Read Stocks'!M176 ->  | C177: ='Read Stocks'!N176 ->  | D177: FALSE | F177: =F176+D177 -> 1 | G177: 45 | I177: =INDEX(B:B,H177) -> 
A178: 175 | B178: ='Read Stocks'!M177 -> 0 | C178: ='Read Stocks'!N177 -> 0 | D178: FALSE | F178: 1 | G178: 45
A179: 176 | B179: ='Read Stocks'!M178 -> 0 | C179: ='Read Stocks'!N178 -> 0 | D179: FALSE | F179: 1 | G179: 45
A180: 177 | B180: ='Read Stocks'!M179 -> 0 | C180: ='Read Stocks'!N179 -> 0 | D180: FALSE | F180: 1 | G180: 45
A181: 178 | B181: ='Read Stocks'!M180 -> 0 | C181: ='Read Stocks'!N180 -> 0 | D181: FALSE | F181: 1 | G181: 45
A182: 179 | B182: ='Read Stocks'!M181 -> 0 | C182: ='Read Stocks'!N181 -> 0 | D182: FALSE | F182: 1 | G182: 45
A183: 180 | B183: ='Read Stocks'!M182 -> 0 | C183: ='Read Stocks'!N182 -> 0 | D183: FALSE | F183: 1 | G183: 45
A184: 181 | B184: ='Read Stocks'!M183 -> 0 | C184: ='Read Stocks'!N183 -> 0 | D184: FALSE | F184: 1 | G184: 45
A185: 182 | B185: ='Read Stocks'!M184 -> 0 | C185: ='Read Stocks'!N184 -> 0 | D185: FALSE | F185: 1 | G185: 45
A186: 183 | B186: ='Read Stocks'!M185 -> 0 | C186: ='Read Stocks'!N185 -> 0 | D186: FALSE | F186: 1 | G186: 45
A187: 184 | B187: ='Read Stocks'!M186 -> 0 | C187: ='Read Stocks'!N186 -> 0 | D187: FALSE | F187: 1 | G187: 45
A188: 185 | B188: ='Read Stocks'!M187 -> 0 | C188: ='Read Stocks'!N187 -> 0 | D188: FALSE | F188: 1 | G188: 45
A189: 186 | B189: ='Read Stocks'!M188 -> 0 | C189: ='Read Stocks'!N188 -> 0 | D189: FALSE | F189: 1 | G189: 45
A190: 187 | B190: ='Read Stocks'!M189 -> 0 | C190: ='Read Stocks'!N189 -> 0 | D190: FALSE | F190: 1 | G190: 45
A191: 188 | B191: ='Read Stocks'!M190 -> 0 | C191: ='Read Stocks'!N190 -> 0 | D191: FALSE | F191: 1 | G191: 45
A192: 189 | B192: ='Read Stocks'!M191 -> 0 | C192: ='Read Stocks'!N191 -> 0 | D192: FALSE | F192: 1 | G192: 45
A193: 190 | B193: ='Read Stocks'!M192 -> 0 | C193: ='Read Stocks'!N192 -> 0 | D193: FALSE | F193: 1 | G193: 45
A194: 191 | B194: ='Read Stocks'!M193 -> 0 | C194: ='Read Stocks'!N193 -> 0 | D194: FALSE | F194: 1 | G194: 45
A195: 192 | B195: ='Read Stocks'!M194 -> 0 | C195: ='Read Stocks'!N194 -> 0 | D195: FALSE | F195: 1 | G195: 45
D196: FALSE | F196: 1 | G196: 45
D197: FALSE | F197: 1 | G197: 45 | H197: =MATCH(G197,F$1:F$555,0) ->  | J197: =INDEX(C:C,H197) -> 
D198: FALSE | F198: 1 | G198: 45
D199: FALSE | F199: 1 | G199: 45
D200: FALSE | F200: 1 | G200: 45
... 100 more rows

Sheet Summary
C1: Selected Start | D1: =Forms!G9 -> 2006-01-01 | G1: Index No (Frms) | I1: =Forms!J4 -> 1 | L1: Graph Code for Index etc. --> | M1: =Forms!P7 -> 3 | N1: Height | O1: =COUNT(D10:D853) -> 165 | P1: Graph Cols | Q1: =COUNTIF('Multiple Stock Graph'!D:D,TRUE)+2 -> 3 | W1: Instructions at www.edbodmer.com | AS1: Periods in Yr | AU1: =IF(D6,52,12) -> 12
C2: End Date | D2: =EOMONTH(MIN(Forms!L9,MAX(A:A)),0) -> 2019-08-31 | G2: Col to Read | I2: =INDEX('Read Stocks'!O3:O202,Summary!I1) -> F | J2: Fin Value | K2: =LOOKUP(D2,$D$10:$D$837,K10:K837) -> 2.256640234 | N2: The Data Shaded in Grey is the Selection for the Graph | W2: Questions: e-mail edwardbodmer@gmail.com | AB2: =MIN(INDIRECT("'"&AB5&"'!A:A")) -> 2006-05-01 | AC2: =MIN(INDIRECT("'"&AC5&"'!A:A")) ->  | BN2: First two are inflation, next 5 are exchange rates with multiplication
C3: Start of Series | D3: =IFERROR(MIN(INDIRECT("'"&$G$7&"'!A:A")),start_of_date) -> 1950-01-01 | J3: IRR | K3: =(K2)^(1/($K$4-1))-1 -> 0.06640339041 | AH3: Exchange Rate Adjustments | AN3: Adjusted Values for Exchange Rate | AS3: Beta | AT3: =IFERROR(SLOPE(AT10:AT837,$AT$10:$AT$837),0) -> 1 | AU3: =IFERROR(SLOPE(AU12:AU837,AT12:AT837),0) -> 0.3869344386 | AV3: =IFERROR(SLOPE(AV12:AV837,AU12:AU837),0) -> 0 | AW3: 0 | AX3: 0 | AY3: 0 | AZ3: 0 | BA3: =LOOKUP($D$2,$D:$D,BA:BA) -> 2.643603417 | BB3: 1 | BC3: 1 | BD3: 1 | BE3: 1 | BF3: 1 | BG3: Raw Retrieval of Inflation and Exchange Indirect
C4: Final Start | D4: =MAX(D3,D1) -> 2006-01-01 | G4: No Re-calc | J4: Yrs for IRR | K4: =(D2-D4-1)/365.25 -> 13.65913758 | V4: Raw Values without Index, Inflation Adj from INDIRECT | AB4: Re-orded Lookup Value for Raw Value with Adjusted Date | AS4: Std Dev | AT4: =IFERROR(STDEV(AT10:AT837),0) -> 0.04184415417 | AU4: =IFERROR(STDEV(AU10:AU837),0) -> 0.05572420532 | AV4: 0 | AW4: 0 | AX4: 0 | AY4: 0 | AZ4: 0 | BA4: =IF(BA3<>1,(BA3)^(1/($K$4-1))-1,"") -> 0.07981936379 | BG4: Retrieves first six items | BN4: Exchange Rate with Lookup
D5: Monhly Switch | H5: Exchange Rate | I5: Base Value Adj | M5: Single | O5: Main | P5: Comparators from Choose and Data to Right | U5: Code | V5: =TRANSPOSE('Multiple Stock Graph'!I4:I9) -> TENA.KL | AB5: =V5 -> TENA.KL | AC5: =W5 ->  | AS5: Volatiltiy | AT5: =AT4*$AU$1^0.5 -> 0.1449524021 | AU5: =AU4*$AU$1^0.5 -> 0.1930343097 | AV5: 0 | AW5: 0 | AX5: 0 | AY5: 0 | AZ5: 0
A6: Base | D6: FALSE | F6: Base Stock | G6: Base Stock | H6: or Inflation | I6: For Exchange or Inf | J6: Change | K6: Index | M6: Graph | O6: Item | P6: First Comparator(Stats) | V6: =MATCH(V5,'Read Stocks'!$M:$M,0) -> 34 | W6: =MATCH(W5,'Read Stocks'!$M:$M,0) ->  | X6: =MATCH(X5,'Read Stocks'!$M:$M,0) ->  | Y6: =MATCH(Y5,'Read Stocks'!$M:$M,0) ->  | Z6: =MATCH(Z5,'Read Stocks'!$M:$M,0) ->  | AA6: =MATCH(AA5,'Read Stocks'!$M:$M,0) ->  | AH6: FALSE | AI6: FALSE | AJ6: FALSE | AK6: FALSE | AL6: FALSE | AM6: FALSE | AT6: Growth Rate | AU6: Growth Rate | BA6: Index | BG6: =BN6 -> GDP Inf | BH6: =BO6 -> CPI US | BI6: Euro | BJ6: INR | BK6: UK | BN6: =TRANSPOSE('Exchange Rates'!D13:D47) -> GDP Inf | BO6: CPI US | BP6: Euro | BQ6: INR | BR6: UK | BS6: CFH | BT6: US NOM GNP
A7: Date | B7: Monthly | C7: Weekely | D7: Month or Day | E7: Date Selected | F7: =Forms!K4 -> 0 | G7: =Forms!L4 -> S&P 500 | H7: Adjustment | I7: =G7 -> S&P 500 | J7: =G7 -> S&P 500 | K7: =J7 -> S&P 500 | L7: X-Axis | M7: =CHOOSE($M$1,G7,J7,K7) -> S&P 500 | N7: x-axis | O7: =INDEX('Read Stocks'!N3:N202,Summary!I1) -> US S&P 500 | P7: =TRANSPOSE('Multiple Stock Graph'!J4:J9) -> Tenaga | V7: =INDEX('Read Stocks'!$O:$O,Summary!V6) -> F | W7: =INDEX('Read Stocks'!$O:$O,Summary!W6) ->  | X7: =INDEX('Read Stocks'!$O:$O,Summary!X6) ->  | Y7: =INDEX('Read Stocks'!$O:$O,Summary!Y6) ->  | Z7: =INDEX('Read Stocks'!$O:$O,Summary!Z6) ->  | AA7: =INDEX('Read Stocks'!$O:$O,Summary!AA6) ->  | AH7: =TRANSPOSE('Multiple Stock Graph'!K16:K21) -> 0 | AI7: 0 | AJ7: 0 | AK7: 0 | AL7: 0 | AM7: 0 | AN7: =P7 -> Tenaga | AT7: =J7 -> S&P 500 | AU7: =V5 -> TENA.KL | BA7: =AU7 -> TENA.KL | BN7: B | BO7: B | BP7: B | BQ7: B | BR7: B | BS7: B | BT7: B
A8: Copied | B8: Date | C8: Date | D8: Date | E8: Switch | F8: Raw Data | G8: Raw Data | H8: ='Multiple Stock Graph'!K15 -> 0 | J8: LN Fnctn | P8: 1 | Q8: 2 | R8: 3 | S8: 4 | T8: 5 | U8: 6 | V8: 1 | W8: 2 | X8: 3 | Y8: 4 | Z8: 5 | AA8: 6 | AH8: =IFERROR(INDEX($BN$6:$BT$6,AH7),"") ->  | AI8: =IFERROR(INDEX($BN$6:$BT$6,AI7),"") ->  | AN8: 1 | AO8: 2 | AP8: 3 | AQ8: 4 | AR8: 5 | AS8: 6 | BN8: =TRANSPOSE('Multiple Stock Graph'!L32:L38) -> Divide | BO8: Divide | BP8: Multiply | BQ8: Divide | BR8: Multiply | BS8: Divide | BT8: Divide
F9: =I2 -> F | G9: =I2 -> F | K9: 1 | O9: =O7 -> US S&P 500 | P9: =P7 -> Tenaga | Q9: =Q7 ->  | BA9: 1 | BB9: 1 | BC9: 1 | BD9: 1 | BE9: 1 | BF9: 1
A10: 1950-01-01 | B10: =MAX(D3,D1) -> 2006-01-01 | C10: =B10 -> 2006-01-01 | D10: =IF($D$6,C10,B10) -> 2006-01-01 | E10: =AND(D10>=$D$4,D10<=$D$2) -> TRUE | F10: =LOOKUP(D10,A:A,G:G) -> 1280.079956 | G10: =IFERROR(LOOKUP($A10,INDIRECT("'"&G$7&"'!A:A"),INDIRECT("'"&G$7&"'!"&$G$9&":"&$G$9)),0) -> 17.049999 | H10: =IF(H$8,INDEX($BN10:$BT10,H$8),1) -> 1 | I10: =IF(ISNUMBER(F10),F10,I11)*H10 -> 1280.079956 | J10: =IFERROR(LN(G10/G9),FALSE) -> FALSE | K10: =IF($E10,(K9*(1+J10)),1) -> 1 | L10: =IF(E10,D10,NA()) -> 2006-01-01 | M10: =CHOOSE($M$1,I10,J10,K10) -> 1 | N10: =L10 -> 2006-01-01 | O10: =M10 -> 1 | P10: =CHOOSE($M$1,AN10,AU10,BA10) -> 1 | Q10: =CHOOSE($M$1,AO10,AV10,BB10) -> 1 | R10: =CHOOSE($M$1,AP10,AW10,BC10) -> 1 | S10: =CHOOSE($M$1,AQ10,AX10,BD10) -> 1 | T10: =CHOOSE($M$1,AR10,AY10,BE10) -> 1 | U10: =CHOOSE($M$1,AS10,AZ10,BF10) -> 1 | V10: =LOOKUP($A10,INDIRECT("'"&V$5&"'!A:A"),INDIRECT("'"&V$5&"'!"&V$7&":"&V$7)) ->  | W10: =LOOKUP($A10,INDIRECT("'"&W$5&"'!A:A"),INDIRECT("'"&W$5&"'!"&W$7&":"&W$7)) ->  | X10: =LOOKUP($A10,INDIRECT("'"&X$5&"'!A:A"),INDIRECT("'"&X$5&"'!"&X$7&":"&X$7)) ->  | AB10: =IF(ISNUMBER(LOOKUP($D10,$A:$A,V:V)),LOOKUP($D10,$A:$A,V:V),AB9) -> 0 | AC10: =IF(ISNUMBER(LOOKUP($D10,$A:$A,W:W)),LOOKUP($D10,$A:$A,W:W),AC9) -> 0 | AD10: 0 | AE10: 0 | AF10: 0 | AG10: 0 | AH10: =IF(AH$7,INDEX($BN10:$BT10,AH$7),1) -> 1 | AI10: =IF(AI$7,INDEX($BN10:$BT10,AI$7),1) -> 1 | AJ10: 1 | AK10: 1 | AL10: 1 | AM10: 1 | AN10: =IFERROR(IF(ISNUMBER(AB10)>0.1,AB10,AN11)*AH10,AN11) -> 0 | AO10: 0 | AP10: 0 | AQ10: 0 | AR10: 0 | AS10: 0 | AT10: =J10 -> FALSE | AU10: =IF(E10,IFERROR(LN(AN10/AN9),FALSE)) -> FALSE | AV10: =IF(E10,IFERROR(LN(AO10/AO9),FALSE)) -> FALSE | AW10: =IF(E10,IFERROR(LN(AP10/AP9),FALSE)) -> FALSE | AX10: =IF(E10,IFERROR(LN(AQ10/AQ9),FALSE)) -> FALSE | AY10: =IF(E10,IFERROR(LN(AR10/AR9),FALSE)) -> FALSE | AZ10: =IF(E10,IFERROR(LN(AS10/AS9),FALSE)) -> FALSE | BA10: 1 | BB10: 1 | BC10: 1 | BD10: 1 | BE10: 1 | BF10: 1 | BG10: =IFERROR(LOOKUP($A10,INDIRECT("'"&BN$6&"'!A:A"),INDIRECT("'"&BN$6&"'!"&BN$7&":"&BN$7)),0) -> 12.853 | BH10: =IFERROR(LOOKUP($A10,INDIRECT("'"&BO$6&"'!A:A"),INDIRECT("'"&BO$6&"'!"&BO$7&":"&BO$7)),0) -> 23.51 | BI10: 0 | BJ10: 0 | BK10: 0 | BL10: 0 | BM10: 282.056 | BN10: =IFERROR(IF(BN$8="Divide",1/LOOKUP($D10,$A:$A,BG:BG)*1,LOOKUP($D10,$A:$A,BG:BG)*1),BN9) -> 0.01122246288 | BO10: =IFERROR(IF(BO$8="Divide",1/LOOKUP($D10,$A:$A,BH:BH)*1,LOOKUP($D10,$A:$A,BH:BH)*1),BO9) -> 0.005017561465 | BP10: 1.2126 | BQ10: 0.02224694105 | BR10: 1.7686 | BS10: 0.7605719501 | BT10: 7.319188416e-05
A11: 1950-02-01 | B11: =IF(B10<=$D$2,EOMONTH(B10,1)) -> 2006-02-28 | C11: =IF(C10<=$D$2,C10+7) -> 2006-01-08 | D11: =IF($D$6,C11,B11) -> 2006-02-28 | E11: =AND(D11>=$D$4,D10<=$D$2) -> TRUE | F11: =LOOKUP(D11,A:A,G:G) -> 1280.660034 | G11: =IFERROR(LOOKUP($A11,INDIRECT("'"&G$7&"'!A:A"),INDIRECT("'"&G$7&"'!"&$G$9&":"&$G$9)),0) -> 17.219999 | H11: =IF(H$8,INDEX($BN11:$BT11,H$8),1) -> 1 | I11: =IF(ISNUMBER(F11),F11,I12)*H11 -> 1280.660034 | J11: =IFERROR(LN(I11/I10),FALSE) -> 0.0004530549858 | K11: =IF($E11,(K10*I11/I10),1) -> 1.000453158 | L11: =IF(E11,D11,NA()) -> 2006-02-28 | M11: =CHOOSE($M$1,I11,J11,K11) -> 1.000453158 | N11: =L11 -> 2006-02-28 | O11: =M11 -> 1.000453158 | P11: =IFERROR(CHOOSE($M$1,AN11,AU11,BA11),1) -> 1 | Q11: 1 | R11: 1 | S11: 1 | T11: 1 | U11: 1 | V11: =LOOKUP($A11,INDIRECT("'"&V$5&"'!A:A"),INDIRECT("'"&V$5&"'!"&V$7&":"&V$7)) ->  | Y11: =LOOKUP($A11,INDIRECT("'"&Y$5&"'!A:A"),INDIRECT("'"&Y$5&"'!"&Y$7&":"&Y$7)) ->  | AB11: =IF(ISNUMBER(LOOKUP($D11,$A:$A,V:V)),LOOKUP($D11,$A:$A,V:V),AB10) -> 0 | AC11: =IF(ISNUMBER(LOOKUP($D11,$A:$A,W:W)),LOOKUP($D11,$A:$A,W:W),AC10) -> 0 | AD11: =IF(ISNUMBER(LOOKUP($D11,$A:$A,X:X)),LOOKUP($D11,$A:$A,X:X),AD10) -> 0 | AE11: =IF(ISNUMBER(LOOKUP($D11,$A:$A,Y:Y)),LOOKUP($D11,$A:$A,Y:Y),AE10) -> 0 | AF11: =IF(ISNUMBER(LOOKUP($D11,$A:$A,Z:Z)),LOOKUP($D11,$A:$A,Z:Z),AF10) -> 0 | AG11: =IF(ISNUMBER(LOOKUP($D11,$A:$A,AA:AA)),LOOKUP($D11,$A:$A,AA:AA),AG10) -> 0 | AH11: =IF(AH$7,INDEX($BN11:$BT11,AH$7),1) -> 1 | AI11: 1 | AJ11: 1 | AK11: 1 | AL11: 1 | AM11: 1 | AN11: =IFERROR(IF(ISNUMBER(AB11)>0.1,AB11,AN12)*AH11,AN12) -> 0 | AO11: =IFERROR(IF(ISNUMBER(AC11)>0.1,AC11,AO12)*AI11,AO12) -> 0 | AP11: =IFERROR(IF(ISNUMBER(AD11)>0.1,AD11,AP12)*AJ11,AP12) -> 0 | AQ11: =IFERROR(IF(ISNUMBER(AE11)>0.1,AE11,AQ12)*AK11,AQ12) -> 0 | AR11: =IFERROR(IF(ISNUMBER(AF11)>0.1,AF11,AR12)*AL11,AR12) -> 0 | AS11: =IFERROR(IF(ISNUMBER(AG11)>0.1,AG11,AS12)*AM11,AS12) -> 0 | AT11: =J11 -> 0.0004530549858 | AU11: =IF(E11,IFERROR(LN(AN11/AN10),FALSE)) -> FALSE | AV11: =IF(E11,IFERROR(LN(AO11/AO10),FALSE)) -> FALSE | AW11: =IF(E11,IFERROR(LN(AP11/AP10),FALSE)) -> FALSE | AX11: =IF(E11,IFERROR(LN(AQ11/AQ10),FALSE)) -> FALSE | AY11: =IF(E11,IFERROR(LN(AR11/AR10),FALSE)) -> FALSE | AZ11: =IF(E11,IFERROR(LN(AS11/AS10),FALSE)) -> FALSE | BA11: =IFERROR(IF($E11,BA10*AN11/AN10,1),1) -> 1 | BB11: =IFERROR(IF($E11,BB10*AO11/AO10,1),1) -> 1 | BC11: =IFERROR(IF($E11,BC10*AP11/AP10,1),1) -> 1 | BD11: =IFERROR(IF($E11,BD10*AQ11/AQ10,1),1) -> 1 | BE11: 1 | BF11: 1 | BG11: =IFERROR(LOOKUP($A11,INDIRECT("'"&BN$6&"'!A:A"),INDIRECT("'"&BN$6&"'!"&BN$7&":"&BN$7)),0) -> 12.853 | BH11: =IFERROR(LOOKUP($A11,INDIRECT("'"&BO$6&"'!A:A"),INDIRECT("'"&BO$6&"'!"&BO$7&":"&BO$7)),0) -> 23.61 | BI11: =IFERROR(LOOKUP($A11,INDIRECT("'"&BP$6&"'!A:A"),INDIRECT("'"&BP$6&"'!"&BP$7&":"&BP$7)),0) -> 0 | BJ11: =IFERROR(LOOKUP($A11,INDIRECT("'"&BQ$6&"'!A:A"),INDIRECT("'"&BQ$6&"'!"&BQ$7&":"&BQ$7)),0) -> 0 | BK11: =IFERROR(LOOKUP($A11,INDIRECT("'"&BR$6&"'!A:A"),INDIRECT("'"&BR$6&"'!"&BR$7&":"&BR$7)),0) -> 0 | BL11: =IFERROR(LOOKUP($A11,INDIRECT("'"&BS$6&"'!A:A"),INDIRECT("'"&BS$6&"'!"&BS$7&":"&BS$7)),0) -> 0 | BM11: =IFERROR(LOOKUP($A11,INDIRECT("'"&BT$6&"'!A:A"),INDIRECT("'"&BT$6&"'!"&BT$7&":"&BT$7)),0) -> 282.056 | BN11: =IFERROR(IF(BN$8="Divide",1/LOOKUP($D11,$A:$A,BG:BG)*1,LOOKUP($D11,$A:$A,BG:BG)*1),BN10) -> 0.01122246288 | BO11: =IFERROR(IF(BO$8="Divide",1/LOOKUP($D11,$A:$A,BH:BH)*1,LOOKUP($D11,$A:$A,BH:BH)*1),BO10) -> 0.005015045135 | BP11: =IFERROR(IF(BP$8="Divide",1/LOOKUP($D11,$A:$A,BI:BI)*1,LOOKUP($D11,$A:$A,BI:BI)*1),BP10) -> 1.194 | BQ11: =IFERROR(IF(BQ$8="Divide",1/LOOKUP($D11,$A:$A,BJ:BJ)*1,LOOKUP($D11,$A:$A,BJ:BJ)*1),BQ10) -> 0.02266032178 | BR11: =IFERROR(IF(BR$8="Divide",1/LOOKUP($D11,$A:$A,BK:BK)*1,LOOKUP($D11,$A:$A,BK:BK)*1),BR10) -> 1.748 | BS11: =IFERROR(IF(BS$8="Divide",1/LOOKUP($D11,$A:$A,BL:BL)*1,LOOKUP($D11,$A:$A,BL:BL)*1),BS10) -> 0.7787555486 | BT11: =IFERROR(IF(BT$8="Divide",1/LOOKUP($D11,$A:$A,BM:BM)*1,LOOKUP($D11,$A:$A,BM:BM)*1),BT10) -> 7.319188416e-05
A12: 1950-03-01 | B12: =IF(B11<=$D$2,EOMONTH(B11,1)) -> 2006-03-31 | C12: =IF(C11<=$D$2,C11+7) -> 2006-01-15 | D12: =IF($D$6,C12,B12) -> 2006-03-31 | E12: =AND(D12>=$D$4,D11<=$D$2) -> TRUE | F12: 1294.869995 | G12: 17.290001 | H12: 1 | I12: 1294.869995 | J12: =IFERROR(LN(I12/I11),FALSE) -> 0.01103470356 | K12: =IF($E12,(K11*I12/I11),1) -> 1.011553996 | L12: 2006-03-31 | M12: 1.011553996 | N12: 2006-03-31 | O12: =M12 -> 1.011553996 | P12: =IFERROR(CHOOSE($M$1,AN12,AU12,BA12),1) -> 1 | Q12: =IFERROR(CHOOSE($M$1,AO12,AV12,BB12),1) -> 1 | R12: =IFERROR(CHOOSE($M$1,AP12,AW12,BC12),1) -> 1 | S12: =IFERROR(CHOOSE($M$1,AQ12,AX12,BD12),1) -> 1 | T12: =IFERROR(CHOOSE($M$1,AR12,AY12,BE12),1) -> 1 | U12: =IFERROR(CHOOSE($M$1,AS12,AZ12,BF12),1) -> 1 | AB12: 0 | AC12: 0 | AD12: 0 | AE12: 0 | AF12: 0 | AG12: 0 | AH12: 1 | AI12: 1 | AJ12: 1 | AK12: 1 | AL12: 1 | AM12: 1 | AN12: =IFERROR(IF(ISNUMBER(AB12)>0.1,AB12,AN13)*AH12,AN13) -> 0 | AO12: =IFERROR(IF(ISNUMBER(AC12)>0.1,AC12,AO13)*AI12,AO13) -> 0 | AP12: =IFERROR(IF(ISNUMBER(AD12)>0.1,AD12,AP13)*AJ12,AP13) -> 0 | AQ12: =IFERROR(IF(ISNUMBER(AE12)>0.1,AE12,AQ13)*AK12,AQ13) -> 0 | AR12: =IFERROR(IF(ISNUMBER(AF12)>0.1,AF12,AR13)*AL12,AR13) -> 0 | AS12: =IFERROR(IF(ISNUMBER(AG12)>0.1,AG12,AS13)*AM12,AS13) -> 0 | AT12: =J12 -> 0.01103470356 | AU12: FALSE | AV12: FALSE | AW12: FALSE | AX12: FALSE | AY12: FALSE | AZ12: FALSE | BA12: =IFERROR(IF($E12,BA11*AN12/AN11,1),1) -> 1 | BB12: =IFERROR(IF($E12,BB11*AO12/AO11,1),1) -> 1 | BC12: =IFERROR(IF($E12,BC11*AP12/AP11,1),1) -> 1 | BD12: =IFERROR(IF($E12,BD11*AQ12/AQ11,1),1) -> 1 | BE12: =IFERROR(IF($E12,BE11*AR12/AR11,1),1) -> 1 | BF12: =IFERROR(IF($E12,BF11*AS12/AS11,1),1) -> 1 | BG12: 12.853 | BH12: 23.64 | BI12: 0 | BJ12: 0 | BK12: 0 | BL12: 0 | BM12: 282.056 | BN12: 0.01122246288 | BO12: 0.005007511267 | BP12: 1.2028 | BQ12: 0.02254791432 | BR12: 1.7442 | BS12: 0.7595898215 | BT12: 7.319188416e-05
A13: 1950-04-01 | B13: 2006-04-30 | C13: 2006-01-22 | D13: =IF($D$6,C13,B13) -> 2006-04-30 | E13: TRUE | F13: 1310.609985 | G13: 18.07 | H13: 1 | I13: 1310.609985 | J13: 0.01208236609 | K13: =IF($E13,(K12*I13/I12),1) -> 1.023850095 | L13: =IF(E13,D13,NA()) -> 2006-04-30 | M13: =CHOOSE($M$1,I13,J13,K13) -> 1.023850095 | N13: =L13 -> 2006-04-30 | O13: =M13 -> 1.023850095 | P13: =IFERROR(CHOOSE($M$1,AN13,AU13,BA13),1) -> 1 | Q13: =IFERROR(CHOOSE($M$1,AO13,AV13,BB13),1) -> 1 | R13: =IFERROR(CHOOSE($M$1,AP13,AW13,BC13),1) -> 1 | S13: =IFERROR(CHOOSE($M$1,AQ13,AX13,BD13),1) -> 1 | T13: =IFERROR(CHOOSE($M$1,AR13,AY13,BE13),1) -> 1 | U13: =IFERROR(CHOOSE($M$1,AS13,AZ13,BF13),1) -> 1 | AB13: 0 | AC13: 0 | AD13: 0 | AE13: 0 | AF13: 0 | AG13: 0 | AH13: 1 | AI13: 1 | AJ13: 1 | AK13: 1 | AL13: 1 | AM13: 1 | AN13: 0 | AO13: 0 | AP13: 0 | AQ13: 0 | AR13: 0 | AS13: 0 | AT13: =J13 -> 0.01208236609 | AU13: FALSE | AV13: FALSE | AW13: FALSE | AX13: FALSE | AY13: FALSE | AZ13: FALSE | BA13: 1 | BB13: 1 | BC13: 1 | BD13: 1 | BE13: 1 | BF13: 1 | BG13: 12.897 | BH13: 23.65 | BI13: 0 | BJ13: 0 | BK13: 0 | BL13: 0 | BM13: 291.699 | BN13: 0.01112941281 | BO13: 0.004982561036 | BP13: 1.2273 | BQ13: 0.02248201439 | BR13: 1.768 | BS13: 0.7677543186 | BT13: 7.244824949e-05
A14: 1950-05-01 | B14: 2006-05-31 | C14: 2006-01-29 | D14: 2006-05-31 | E14: TRUE | F14: 1270.089966 | G14: 18.780001 | H14: 1 | I14: 1270.089966 | J14: -0.03140492891 | K14: 0.9921958078 | L14: 2006-05-31 | M14: 0.9921958078 | N14: 2006-05-31 | O14: 0.9921958078 | P14: 1 | Q14: 1 | R14: 1 | S14: 1 | T14: 1 | U14: 1 | AB14: 5.174755 | AC14: 0 | AD14: 0 | AE14: 0 | AF14: 0 | AG14: 0 | AH14: 1 | AI14: 1 | AJ14: 1 | AK14: 1 | AL14: 1 | AM14: 1 | AN14: 5.174755 | AO14: 0 | AP14: 0 | AQ14: 0 | AR14: 0 | AS14: 0 | AT14: -0.03140492891 | AU14: FALSE | AV14: FALSE | AW14: FALSE | AX14: FALSE | AY14: FALSE | AZ14: FALSE | BA14: 1 | BB14: 1 | BC14: 1 | BD14: 1 | BE14: 1 | BF14: 1 | BG14: 12.897 | BH14: 23.77 | BI14: 0 | BJ14: 0 | BK14: 0 | BL14: 0 | BM14: 291.699 | BN14: 0.01112941281 | BO14: 0.004967709886 | BP14: 1.2767 | BQ14: 0.02233638597 | BR14: 1.8687 | BS14: 0.8073631519 | BT14: 7.244824949e-05
A15: 1950-06-01 | B15: 2006-06-30 | C15: 2006-02-05 | D15: 2006-06-30 | E15: TRUE | F15: 1270.199951 | G15: 17.690001 | H15: 1 | I15: 1270.199951 | J15: 8.659247855e-05 | K15: 0.9922817282 | L15: 2006-06-30 | M15: 0.9922817282 | N15: 2006-06-30 | O15: 0.9922817282 | P15: 1.010989119 | Q15: 1 | R15: 1 | S15: 1 | T15: 1 | U15: 1 | AB15: 5.231621 | AC15: 0 | AD15: 0 | AE15: 0 | AF15: 0 | AG15: 0 | AH15: 1 | AI15: 1 | AJ15: 1 | AK15: 1 | AL15: 1 | AM15: 1 | AN15: 5.231621 | AO15: 0 | AP15: 0 | AQ15: 0 | AR15: 0 | AS15: 0 | AT15: 8.659247855e-05 | AU15: 0.01092917766 | AV15: FALSE | AW15: FALSE | AX15: FALSE | AY15: FALSE | AZ15: FALSE | BA15: 1.010989119 | BB15: 1 | BC15: 1 | BD15: 1 | BE15: 1 | BF15: 1 | BG15: 12.897 | BH15: 23.88 | BI15: 0 | BJ15: 0 | BK15: 0 | BL15: 0 | BM15: 291.699 | BN15: 0.01112941281 | BO15: 0.004955401388 | BP15: 1.2661 | BQ15: 0.02164970773 | BR15: 1.8435 | BS15: 0.8198737394 | BT15: 7.244824949e-05
A16: 1950-07-01 | B16: 2006-07-31 | C16: 2006-02-12 | D16: 2006-07-31 | E16: TRUE | F16: 1276.660034 | G16: 17.84 | H16: 1 | I16: 1276.660034 | J16: 0.005072989401 | K16: 0.9973283528 | L16: 2006-07-31 | M16: 0.9973283528 | N16: 2006-07-31 | O16: 0.9973283528 | P16: 1.005494366 | Q16: 1 | R16: 1 | S16: 1 | T16: 1 | U16: 1 | AB16: 5.203187 | AC16: 0 | AD16: 0 | AE16: 0 | AF16: 0 | AG16: 0 | AH16: 1 | AI16: 1 | AJ16: 1 | AK16: 1 | AL16: 1 | AM16: 1 | AN16: 5.203187 | AO16: 0 | AP16: 0 | AQ16: 0 | AR16: 0 | AS16: 0 | AT16: 0.005072989401 | AU16: -0.005449850227 | AV16: FALSE | AW16: FALSE | AX16: FALSE | AY16: FALSE | AZ16: FALSE | BA16: 1.005494366 | BB16: 1 | BC16: 1 | BD16: 1 | BE16: 1 | BF16: 1 | BG16: 13.177 | BH16: 24.07 | BI16: 0 | BJ16: 0 | BK16: 0 | BL16: 0 | BM16: 309.76 | BN16: 0.01105204408 | BO16: 0.004928536225 | BP16: 1.2681 | BQ16: 0.02180074123 | BR16: 1.8443 | BS16: 0.8165264963 | BT16: 7.19056862e-05
A17: 1950-08-01 | B17: 2006-08-31 | C17: 2006-02-19 | D17: 2006-08-31 | E17: TRUE | F17: 1303.819946 | G17: 18.42 | H17: 1 | I17: 1303.819946 | J17: 0.02105105654 | K17: 1.018545709 | L17: 2006-08-31 | M17: 1.018545709 | N17: 2006-08-31 | O17: 1.018545709 | P17: 1.005494366 | Q17: 1 | R17: 1 | S17: 1 | T17: 1 | U17: 1 | AB17: 5.203187 | AC17: 0 | AD17: 0 | AE17: 0 | AF17: 0 | AG17: 0 | AH17: 1 | AI17: 1 | AJ17: 1 | AK17: 1 | AL17: 1 | AM17: 1 | AN17: 5.203187 | AO17: 0 | AP17: 0 | AQ17: 0 | AR17: 0 | AS17: 0 | AT17: 0.02105105654 | AU17: 0 | AV17: FALSE | AW17: FALSE | AX17: FALSE | AY17: FALSE | AZ17: FALSE | BA17: 1.005494366 | BB17: 1 | BC17: 1 | BD17: 1 | BE17: 1 | BF17: 1 | BG17: 13.177 | BH17: 24.2 | BI17: 0 | BJ17: 0 | BK17: 0 | BL17: 0 | BM17: 309.76 | BN17: 0.01105204408 | BO17: 0.004906771344 | BP17: 1.281 | BQ17: 0.02150075253 | BR17: 1.8941 | BS17: 0.8118860112 | BT17: 7.19056862e-05
A18: 1950-09-01 | B18: 2006-09-30 | C18: 2006-02-26 | D18: 2006-09-30 | E18: TRUE | F18: 1335.849976 | G18: 19.450001 | H18: 1 | I18: 1335.849976 | J18: 0.02426939965 | K18: 1.043567607 | L18: 2006-09-30 | M18: 1.043567607 | N18: 2006-09-30 | O18: 1.043567607 | P18: 1.065934136 | Q18: 1 | R18: 1 | S18: 1 | T18: 1 | U18: 1 | AB18: 5.515948 | AC18: 0 | AD18: 0 | AE18: 0 | AF18: 0 | AG18: 0 | AH18: 1 | AI18: 1 | AJ18: 1 | AK18: 1 | AL18: 1 | AM18: 1 | AN18: 5.515948 | AO18: 0 | AP18: 0 | AQ18: 0 | AR18: 0 | AS18: 0 | AT18: 0.02426939965 | AU18: 0.0583722103 | AV18: FALSE | AW18: FALSE | AX18: FALSE | AY18: FALSE | AZ18: FALSE | BA18: 1.065934136 | BB18: 1 | BC18: 1 | BD18: 1 | BE18: 1 | BF18: 1 | BG18: 13.177 | BH18: 24.34 | BI18: 0 | BJ18: 0 | BK18: 0 | BL18: 0 | BM18: 309.76 | BN18: 0.01105204408 | BO18: 0.004930966469 | BP18: 1.2722 | BQ18: 0.02156101768 | BR18: 1.8839 | BS18: 0.812479688 | BT18: 7.19056862e-05
A19: 1950-10-01 | B19: 2006-10-31 | C19: 2006-03-05 | D19: 2006-10-31 | E19: TRUE | F19: 1377.939941 | G19: 19.530001 | H19: 1 | I19: 1377.939941 | J19: 0.03102181207 | K19: 1.076448338 | L19: 2006-10-31 | M19: 1.076448338 | N19: 2006-10-31 | O19: 1.076448338 | P19: 1.098901107 | Q19: 1 | R19: 1 | S19: 1 | T19: 1 | U19: 1 | AB19: 5.686544 | AC19: 0 | AD19: 0 | AE19: 0 | AF19: 0 | AG19: 0 | AH19: 1 | AI19: 1 | AJ19: 1 | AK19: 1 | AL19: 1 | AM19: 1 | AN19: 5.686544 | AO19: 0 | AP19: 0 | AQ19: 0 | AR19: 0 | AS19: 0 | AT19: 0.03102181207 | AU19: 0.03045914947 | AV19: FALSE | AW19: FALSE | AX19: FALSE | AY19: FALSE | AZ19: FALSE | BA19: 1.098901107 | BB19: 1 | BC19: 1 | BD19: 1 | BE19: 1 | BF19: 1 | BG19: 13.425 | BH19: 24.5 | BI19: 0 | BJ19: 0 | BK19: 0 | BL19: 0 | BM19: 321.554 | BN19: 0.0110113968 | BO19: 0.004952947003 | BP19: 1.2617 | BQ19: 0.02176278564 | BR19: 1.8765 | BS19: 0.7997440819 | BT19: 7.098513742e-05
A20: 1950-11-01 | B20: 2006-11-30 | C20: 2006-03-12 | D20: 2006-11-30 | E20: TRUE | F20: 1400.630005 | G20: 19.51 | H20: 1 | I20: 1400.630005 | J20: 0.01633255151 | K20: 1.094173843 | L20: 2006-11-30 | M20: 1.094173843 | N20: 2006-11-30 | O20: 1.094173843 | P20: 1.208791141 | Q20: 1 | R20: 1 | S20: 1 | T20: 1 | U20: 1 | AB20: 6.255198 | AC20: 0 | AD20: 0 | AE20: 0 | AF20: 0 | AG20: 0 | AH20: 1 | AI20: 1 | AJ20: 1 | AK20: 1 | AL20: 1 | AM20: 1 | AN20: 6.255198 | AO20: 0 | AP20: 0 | AQ20: 0 | AR20: 0 | AS20: 0 | AT20: 0.01633255151 | AU20: 0.09531011586 | AV20: FALSE | AW20: FALSE | AX20: FALSE | AY20: FALSE | AZ20: FALSE | BA20: 1.208791141 | BB20: 1 | BC20: 1 | BD20: 1 | BE20: 1 | BF20: 1 | BG20: 13.425 | BH20: 24.6 | BI20: 0 | BJ20: 0 | BK20: 0 | BL20: 0 | BM20: 321.554 | BN20: 0.0110113968 | BO20: 0.00495049505 | BP20: 1.2888 | BQ20: 0.02232641215 | BR20: 1.9125 | BS20: 0.8043111075 | BT20: 7.098513742e-05
A21: 1950-12-01 | B21: 2006-12-31 | C21: 2006-03-19 | D21: 2006-12-31 | E21: TRUE | F21: 1418.300049 | G21: 20.41 | H21: 1 | I21: 1418.300049 | J21: 0.0125368669 | K21: 1.107977703 | L21: 2006-12-31 | M21: 1.107977703 | N21: 2006-12-31 | O21: 1.107977703 | P21: 1.197802215 | Q21: 1 | R21: 1 | S21: 1 | T21: 1 | U21: 1 | AB21: 6.198333 | AC21: 0 | AD21: 0 | AE21: 0 | AF21: 0 | AG21: 0 | AH21: 1 | AI21: 1 | AJ21: 1 | AK21: 1 | AL21: 1 | AM21: 1 | AN21: 6.198333 | AO21: 0 | AP21: 0 | AQ21: 0 | AR21: 0 | AS21: 0 | AT21: 0.0125368669 | AU21: -0.009132413163 | AV21: FALSE | AW21: FALSE | AX21: FALSE | AY21: FALSE | AZ21: FALSE | BA21: 1.197802215 | BB21: 1 | BC21: 1 | BD21: 1 | BE21: 1 | BF21: 1 | BG21: 13.425 | BH21: 24.98 | BI21: 0 | BJ21: 0 | BK21: 0 | BL21: 0 | BM21: 321.554 | BN21: 0.0110113968 | BO21: 0.004923682915 | BP21: 1.3205 | BQ21: 0.02247191011 | BR21: 1.9629 | BS21: 0.8370302168 | BT21: 7.098513742e-05
A22: 1951-01-01 | B22: 2007-01-31 | C22: 2006-03-26 | D22: 2007-01-31 | E22: TRUE | F22: 1438.23999 | G22: 21.66 | H22: 1 | I22: 1438.23999 | J22: 0.01396113102 | K22: 1.123554809 | L22: 2007-01-31 | M22: 1.123554809 | N22: 2007-01-31 | O22: 1.123554809 | P22: 1.372909829 | Q22: 1 | R22: 1 | S22: 1 | T22: 1 | U22: 1 | AB22: 7.104472 | AC22: 0 | AD22: 0 | AE22: 0 | AF22: 0 | AG22: 0 | AH22: 1 | AI22: 1 | AJ22: 1 | AK22: 1 | AL22: 1 | AM22: 1 | AN22: 7.104472 | AO22: 0 | AP22: 0 | AQ22: 0 | AR22: 0 | AS22: 0 | AT22: 0.01396113102 | AU22: 0.13644406 | AV22: FALSE | AW22: FALSE | AX22: FALSE | AY22: FALSE | AZ22: FALSE | BA22: 1.372909829 | BB22: 1 | BC22: 1 | BD22: 1 | BE22: 1 | BF22: 1 | BG22: 13.909 | BH22: 25.38 | BI22: 0 | BJ22: 0 | BK22: 0 | BL22: 0 | BM22: 337.537 | BN22: 0.01090417412 | BO22: 0.004915526674 | BP22: 1.2993 | BQ22: 0.02247191011 | BR22: 1.9587 | BS22: 0.8370302168 | BT22: 7.012216052e-05
A23: 1951-02-01 | B23: 2007-02-28 | C23: 2006-04-02 | D23: 2007-02-28 | E23: TRUE | F23: 1406.819946 | G23: 21.799999 | H23: 1 | I23: 1406.819946 | J23: -0.0220883371 | K23: 1.099009433 | L23: 2007-02-28 | M23: 1.099009433 | N23: 2007-02-28 | O23: 1.099009433 | P23: 1.339424185 | Q23: 1 | R23: 1 | S23: 1 | T23: 1 | U23: 1 | AB23: 6.931192 | AC23: 0 | AD23: 0 | AE23: 0 | AF23: 0 | AG23: 0 | AH23: 1 | AI23: 1 | AJ23: 1 | AK23: 1 | AL23: 1 | AM23: 1 | AN23: 6.931192 | AO23: 0 | AP23: 0 | AQ23: 0 | AR23: 0 | AS23: 0 | AT23: -0.0220883371 | AU23: -0.02469264074 | AV23: FALSE | AW23: FALSE | AX23: FALSE | AY23: FALSE | AZ23: FALSE | BA23: 1.339424185 | BB23: 1 | BC23: 1 | BD23: 1 | BE23: 1 | BF23: 1 | BG23: 13.909 | BH23: 25.83 | BI23: 0 | BJ23: 0 | BK23: 0 | BL23: 0 | BM23: 337.537 | BN23: 0.01090417412 | BO23: 0.00489653619 | BP23: 1.308 | BQ23: 0.02272210861 | BR23: 1.9589 | BS23: 0.8046994448 | BT23: 7.012216052e-05
A24: 1951-03-01 | B24: 2007-03-31 | C24: 2006-04-09 | D24: 2007-03-31 | E24: TRUE | F24: 1420.859985 | G24: 21.4 | H24: 1 | I24: 1420.859985 | J24: 0.009930511743 | K24: 1.109977528 | L24: 2007-03-31 | M24: 1.109977528 | N24: 2007-03-31 | O24: 1.109977528 | P24: 1.272453285 | Q24: 1 | R24: 1 | S24: 1 | T24: 1 | U24: 1 | AB24: 6.584634 | AC24: 0 | AD24: 0 | AE24: 0 | AF24: 0 | AG24: 0 | AH24: 1 | AI24: 1 | AJ24: 1 | AK24: 1 | AL24: 1 | AM24: 1 | AN24: 6.584634 | AO24: 0 | AP24: 0 | AQ24: 0 | AR24: 0 | AS24: 0 | AT24: 0.009930511743 | AU24: -0.0512930514 | AV24: FALSE | AW24: FALSE | AX24: FALSE | AY24: FALSE | AZ24: FALSE | BA24: 1.272453285 | BB24: 1 | BC24: 1 | BD24: 1 | BE24: 1 | BF24: 1 | BG24: 13.909 | BH24: 25.88 | BI24: 0 | BJ24: 0 | BK24: 0 | BL24: 0 | BM24: 337.537 | BN24: 0.01090417412 | BO24: 0.004871205331 | BP24: 1.3246 | BQ24: 0.02267059624 | BR24: 1.9474 | BS24: 0.8179290038 | BT24: 7.012216052e-05
A25: 1951-04-01 | B25: 2007-04-30 | C25: 2006-04-16 | D25: 2007-04-30 | E25: TRUE | F25: 1482.369995 | G25: 22.43 | H25: 1 | I25: 1482.369995 | J25: 0.04237984342 | K25: 1.158029222 | L25: 2007-04-30 | M25: 1.158029222 | N25: 2007-04-30 | O25: 1.158029222 | P25: 1.272453285 | Q25: 1 | R25: 1 | S25: 1 | T25: 1 | U25: 1 | AB25: 6.584634 | AC25: 0 | AD25: 0 | AE25: 0 | AF25: 0 | AG25: 0 | AH25: 1 | AI25: 1 | AJ25: 1 | AK25: 1 | AL25: 1 | AM25: 1 | AN25: 6.584634 | AO25: 0 | AP25: 0 | AQ25: 0 | AR25: 0 | AS25: 0 | AT25: 0.04237984342 | AU25: 0 | AV25: FALSE | AW25: FALSE | AX25: FALSE | AY25: FALSE | AZ25: FALSE | BA25: 1.272453285 | BB25: 1 | BC25: 1 | BD25: 1 | BE25: 1 | BF25: 1 | BG25: 14.002 | BH25: 25.92 | BI25: 0 | BJ25: 0 | BK25: 0 | BL25: 0 | BM25: 345.973 | BN25: 0.01083411881 | BO25: 0.004856632217 | BP25: 1.3513 | BQ25: 0.02320185615 | BR25: 1.9879 | BS25: 0.8246742537 | BT25: 6.917162962e-05
A26: 1951-05-01 | B26: 2007-05-31 | C26: 2006-04-23 | D26: 2007-05-31 | E26: TRUE | F26: 1530.619995 | G26: 21.52 | H26: 1 | I26: 1530.619995 | J26: 0.03203072385 | K26: 1.19572218 | L26: 2007-05-31 | M26: 1.19572218 | N26: 2007-05-31 | O26: 1.19572218 | P26: 1.305938735 | Q26: 1 | R26: 1 | S26: 1 | T26: 1 | U26: 1 | Y26: =LOOKUP($A26,INDIRECT("'"&Y$5&"'!A:A"),INDIRECT("'"&Y$5&"'!"&Y$7&":"&Y$7)) ->  | AB26: 6.757913 | AC26: 0 | AD26: 0 | AE26: 0 | AF26: 0 | AG26: 0 | AH26: 1 | AI26: 1 | AJ26: 1 | AK26: 1 | AL26: 1 | AM26: 1 | AN26: 6.757913 | AO26: 0 | AP26: 0 | AQ26: 0 | AR26: 0 | AS26: 0 | AT26: 0.03203072385 | AU26: 0.02597536179 | AV26: FALSE | AW26: FALSE | AX26: FALSE | AY26: FALSE | AZ26: FALSE | BA26: 1.305938735 | BB26: 1 | BC26: 1 | BD26: 1 | BE26: 1 | BF26: 1 | BG26: 14.002 | BH26: 25.99 | BI26: 0 | BJ26: 0 | BK26: 0 | BL26: 0 | BM26: 345.973 | BN26: 0.01083411881 | BO26: 0.004836642403 | BP26: 1.3518 | BQ26: 0.0243902439 | BR26: 1.9842 | BS26: 0.8229775327 | BT26: 6.917162962e-05
A27: 1951-06-01 | B27: 2007-06-30 | C27: 2006-04-30 | D27: 2007-06-30 | E27: TRUE | F27: 1503.349976 | G27: 20.959999 | H27: 1 | I27: 1503.349976 | J27: -0.01797694352 | K27: 1.174418808 | L27: 2007-06-30 | M27: 1.174418808 | N27: 2007-06-30 | O27: 1.174418808 | P27: 1.286314425 | Q27: 1 | R27: 1 | S27: 1 | T27: 1 | U27: 1 | AB27: 6.656362 | AC27: 0 | AD27: 0 | AE27: 0 | AF27: 0 | AG27: 0 | AH27: 1 | AI27: 1 | AJ27: 1 | AK27: 1 | AL27: 1 | AM27: 1 | AN27: 6.656362 | AO27: 0 | AP27: 0 | AQ27: 0 | AR27: 0 | AS27: 0 | AT27: -0.01797694352 | AU27: -0.01514102552 | AV27: FALSE | AW27: FALSE | AX27: FALSE | AY27: FALSE | AZ27: FALSE | BA27: 1.286314425 | BB27: 1 | BC27: 1 | BD27: 1 | BE27: 1 | BF27: 1 | BG27: 14.002 | BH27: 25.93 | BI27: 0 | BJ27: 0 | BK27: 0 | BL27: 0 | BM27: 345.973 | BN27: 0.01083411881 | BO27: 0.004825463003 | BP27: 1.3421 | BQ27: 0.02483238143 | BR27: 1.9867 | BS27: 0.8130742337 | BT27: 6.917162962e-05
A28: 1951-07-01 | B28: 2007-07-31 | C28: 2006-05-07 | D28: 2007-07-31 | E28: TRUE | F28: 1455.27002 | G28: 22.4 | H28: 1 | I28: 1455.27002 | J28: -0.03250447113 | K28: 1.136858689 | L28: 2007-07-31 | M28: 1.136858689 | N28: 2007-07-31 | O28: 1.136858689 | P28: 1.2411805 | Q28: 1 | R28: 1 | S28: 1 | T28: 1 | U28: 1 | AB28: 6.422805 | AC28: 0 | AD28: 0 | AE28: 0 | AF28: 0 | AG28: 0 | AH28: 1 | AI28: 1 | AJ28: 1 | AK28: 1 | AL28: 1 | AM28: 1 | AN28: 6.422805 | AO28: 0 | AP28: 0 | AQ28: 0 | AR28: 0 | AS28: 0 | AT28: -0.03250447113 | AU28: -0.03571815089 | AV28: FALSE | AW28: FALSE | AX28: FALSE | AY28: FALSE | AZ28: FALSE | BA28: 1.2411805 | BB28: 1 | BC28: 1 | BD28: 1 | BE28: 1 | BF28: 1 | BG28: 14.01 | BH28: 25.91 | BI28: 0 | BJ28: 0 | BK28: 0 | BL28: 0 | BM28: 353.381 | BN28: 0.01077864965 | BO28: 0.004816886076 | BP28: 1.3726 | BQ28: 0.02464268112 | BR28: 2.0355 | BS28: 0.8169934641 | BT28: 6.818210486e-05
A29: 1951-08-01 | B29: 2007-08-31 | C29: 2006-05-14 | D29: 2007-08-31 | E29: TRUE | F29: 1473.98999 | G29: 23.280001 | H29: 1 | I29: 1473.98999 | J29: 0.01278153854 | K29: 1.151482752 | L29: 2007-08-31 | M29: 1.151482752 | N29: 2007-08-31 | O29: 1.151482752 | P29: 1.12270436 | Q29: 1 | R29: 1 | S29: 1 | T29: 1 | U29: 1 | AB29: 5.80972 | AC29: 0 | AD29: 0 | AE29: 0 | AF29: 0 | AG29: 0 | AH29: 1 | AI29: 1 | AJ29: 1 | AK29: 1 | AL29: 1 | AM29: 1 | AN29: 5.80972 | AO29: 0 | AP29: 0 | AQ29: 0 | AR29: 0 | AS29: 0 | AT29: 0.01278153854 | AU29: -0.1003225612 | AV29: FALSE | AW29: FALSE | AX29: FALSE | AY29: FALSE | AZ29: FALSE | BA29: 1.12270436 | BB29: 1 | BC29: 1 | BD29: 1 | BE29: 1 | BF29: 1 | BG29: 14.01 | BH29: 25.86 | BI29: 0 | BJ29: 0 | BK29: 0 | BL29: 0 | BM29: 353.381 | BN29: 0.01077864965 | BO29: 0.00481540158 | BP29: 1.3626 | BQ29: 0.0248447205 | BR29: 2.011 | BS29: 0.8324315325 | BT29: 6.818210486e-05
A30: 1951-09-01 | B30: 2007-09-30 | C30: 2006-05-21 | D30: 2007-09-30 | E30: TRUE | F30: 1526.75 | G30: 23.26 | H30: 1 | I30: 1526.75 | J30: 0.03516829042 | K30: 1.192698935 | L30: 2007-09-30 | M30: 1.192698935 | N30: 2007-09-30 | O30: 1.192698935 | P30: 1.079516035 | Q30: 1 | R30: 1 | S30: 1 | T30: 1 | U30: 1 | AB30: 5.586231 | AC30: 0 | AD30: 0 | AE30: 0 | AF30: 0 | AG30: 0 | AH30: 1 | AI30: 1 | AJ30: 1 | AK30: 1 | AL30: 1 | AM30: 1 | AN30: 5.586231 | AO30: 0 | AP30: 0 | AQ30: 0 | AR30: 0 | AS30: 0 | AT30: 0.03516829042 | AU30: -0.03922755688 | AV30: FALSE | AW30: FALSE | AX30: FALSE | AY30: FALSE | AZ30: FALSE | BA30: 1.079516035 | BB30: 1 | BC30: 1 | BD30: 1 | BE30: 1 | BF30: 1 | BG30: 14.01 | BH30: 26.03 | BI30: 0 | BJ30: 0 | BK30: 0 | BL30: 0 | BM30: 353.381 | BN30: 0.01077864965 | BO30: 0.004795082164 | BP30: 1.391 | BQ30: 0.0246123554 | BR30: 2.0184 | BS30: 0.8284317786 | BT30: 6.818210486e-05
A31: 1951-10-01 | B31: 2007-10-31 | C31: 2006-05-28 | D31: 2007-10-31 | E31: TRUE | F31: 1549.380005 | G31: 22.940001 | H31: 1 | I31: 1549.380005 | J31: 0.01471356102 | K31: 1.210377522 | L31: 2007-10-31 | M31: 1.210377522 | N31: 2007-10-31 | O31: 1.210377522 | P31: 1.068092886 | Q31: 1 | R31: 1 | S31: 1 | T31: 1 | U31: 1 | AB31: 5.527119 | AC31: 0 | AD31: 0 | AE31: 0 | AF31: 0 | AG31: 0 | AH31: 1 | AI31: 1 | AJ31: 1 | AK31: 1 | AL31: 1 | AM31: 1 | AN31: 5.527119 | AO31: 0 | AP31: 0 | AQ31: 0 | AR31: 0 | AS31: 0 | AT31: 0.01471356102 | AU31: -0.01063811676 | AV31: FALSE | AW31: FALSE | AX31: FALSE | AY31: FALSE | AZ31: FALSE | BA31: 1.068092886 | BB31: 1 | BC31: 1 | BD31: 1 | BE31: 1 | BF31: 1 | BG31: 14.17 | BH31: 26.16 | BI31: 0 | BJ31: 0 | BK31: 0 | BL31: 0 | BM31: 358.33 | BN31: 0.01073594933 | BO31: 0.004780343229 | BP31: 1.4233 | BQ31: 0.02518891688 | BR31: 2.0449 | BS31: 0.8559445348 | BT31: 6.729788946e-05
A32: 1951-11-01 | B32: 2007-11-30 | C32: 2006-06-04 | D32: 2007-11-30 | E32: TRUE | F32: 1481.140015 | G32: 22.879999 | H32: 1 | I32: 1481.140015 | J32: -0.04504278247 | K32: 1.15706836 | L32: 2007-11-30 | M32: 1.15706836 | N32: 2007-11-30 | O32: 1.15706836 | P32: 1.028110703 | Q32: 1 | R32: 1 | S32: 1 | T32: 1 | U32: 1 | AB32: 5.320221 | AC32: 0 | AD32: 0 | AE32: 0 | AF32: 0 | AG32: 0 | AH32: 1 | AI32: 1 | AJ32: 1 | AK32: 1 | AL32: 1 | AM32: 1 | AN32: 5.320221 | AO32: 0 | AP32: 0 | AQ32: 0 | AR32: 0 | AS32: 0 | AT32: -0.04504278247 | AU32: -0.03815185944 | AV32: FALSE | AW32: FALSE | AX32: FALSE | AY32: FALSE | AZ32: FALSE | BA32: 1.028110703 | BB32: 1 | BC32: 1 | BD32: 1 | BE32: 1 | BF32: 1 | BG32: 14.17 | BH32: 26.32 | BI32: 0 | BJ32: 0 | BK32: 0 | BL32: 0 | BM32: 358.33 | BN32: 0.01073594933 | BO32: 0.004743068006 | BP32: 1.4683 | BQ32: 0.02549719531 | BR32: 2.0701 | BS32: 0.8627383315 | BT32: 6.729788946e-05
A33: 1951-12-01 | B33: 2007-12-31 | C33: 2006-06-11 | D33: 2007-12-31 | E33: TRUE | F33: 1468.359985 | G33: 23.77 | H33: 1 | I33: 1468.359985 | J33: -0.008665950148 | K33: 1.147084585 | L33: 2007-12-31 | M33: 1.147084585 | N33: 2007-12-31 | O33: 1.147084585 | P33: 1.096651532 | Q33: 1 | R33: 1 | S33: 1 | T33: 1 | U33: 1 | AB33: 5.674903 | AC33: 0 | AD33: 0 | AE33: 0 | AF33: 0 | AG33: 0 | AH33: 1 | AI33: 1 | AJ33: 1 | AK33: 1 | AL33: 1 | AM33: 1 | AN33: 5.674903 | AO33: 0 | AP33: 0 | AQ33: 0 | AR33: 0 | AS33: 0 | AT33: -0.008665950148 | AU33: 0.06453862687 | AV33: FALSE | AW33: FALSE | AX33: FALSE | AY33: FALSE | AZ33: FALSE | BA33: 1.096651532 | BB33: 1 | BC33: 1 | BD33: 1 | BE33: 1 | BF33: 1 | BG33: 14.17 | BH33: 26.47 | BI33: 0 | BJ33: 0 | BK33: 0 | BL33: 0 | BM33: 358.33 | BN33: 0.01073594933 | BO33: 0.004729362246 | BP33: 1.4559 | BQ33: 0.02530364372 | BR33: 2.0161 | BS33: 0.8859750155 | BT33: 6.729788946e-05
A34: 1952-01-01 | B34: 2008-01-31 | C34: 2006-06-18 | D34: 2008-01-31 | E34: TRUE | F34: 1378.550049 | G34: 24.139999 | H34: 1 | I34: 1378.550049 | J34: -0.06311386384 | K34: 1.076924955 | L34: 2008-01-31 | M34: 1.076924955 | N34: 2008-01-31 | O34: 1.076924955 | P34: 1.067555276 | Q34: 1 | R34: 1 | S34: 1 | T34: 1 | U34: 1 | AB34: 5.524337 | AC34: 0 | AD34: 0 | AE34: 0 | AF34: 0 | AG34: 0 | AH34: 1 | AI34: 1 | AJ34: 1 | AK34: 1 | AL34: 1 | AM34: 1 | AN34: 5.524337 | AO34: 0 | AP34: 0 | AQ34: 0 | AR34: 0 | AS34: 0 | AT34: -0.06311386384 | AU34: -0.02689023051 | AV34: FALSE | AW34: FALSE | AX34: FALSE | AY34: FALSE | AZ34: FALSE | BA34: 1.067555276 | BB34: 1 | BC34: 1 | BD34: 1 | BE34: 1 | BF34: 1 | BG34: 14.163 | BH34: 26.45 | BI34: 0 | BJ34: 0 | BK34: 0 | BL34: 0 | BM34: 361.821 | BN34: 0.01069644557 | BO34: 0.004713112822 | BP34: 1.4728 | BQ34: 0.02530364372 | BR34: 1.9702 | BS34: 0.8859750155 | BT34: 6.750955041e-05
A35: 1952-02-01 | B35: 2008-02-29 | C35: 2006-06-25 | D35: 2008-02-29 | E35: TRUE | F35: 1330.630005 | G35: 23.26 | H35: 1 | I35: 1330.630005 | J35: -0.03537973963 | K35: 1.039489759 | L35: 2008-02-29 | M35: 1.039489759 | N35: 2008-02-29 | O35: 1.039489759 | P35: 1.055887863 | Q35: 1 | R35: 1 | S35: 1 | T35: 1 | U35: 1 | AB35: 5.463961 | AC35: 0 | AD35: 0 | AE35: 0 | AF35: 0 | AG35: 0 | AH35: 1 | AI35: 1 | AJ35: 1 | AK35: 1 | AL35: 1 | AM35: 1 | AN35: 5.463961 | AO35: 0 | AP35: 0 | AQ35: 0 | AR35: 0 | AS35: 0 | AT35: -0.03537973963 | AU35: -0.01098925559 | AV35: FALSE | AW35: FALSE | AX35: FALSE | AY35: FALSE | AZ35: FALSE | BA35: 1.055887863 | BB35: 1 | BC35: 1 | BD35: 1 | BE35: 1 | BF35: 1 | BG35: 14.163 | BH35: 26.41 | BI35: 0 | BJ35: 0 | BK35: 0 | BL35: 0 | BM35: 361.821 | BN35: 0.01069644557 | BO35: 0.004701744818 | BP35: 1.4759 | BQ35: 0.02556237219 | BR35: 1.9646 | BS35: 0.9241290084 | BT35: 6.750955041e-05
A36: 1952-03-01 | B36: 2008-03-31 | C36: 2006-07-02 | D36: 2008-03-31 | E36: TRUE | F36: 1322.699951 | G36: 24.370001 | H36: 1 | I36: 1322.699951 | J36: -0.005977453044 | K36: 1.033294791 | L36: 2008-03-31 | M36: 1.033294791 | N36: 2008-03-31 | O36: 1.033294791 | P36: 0.8575443668 | Q36: 1 | R36: 1 | S36: 1 | T36: 1 | U36: 1 | AB36: 4.437582 | AC36: 0 | AD36: 0 | AE36: 0 | AF36: 0 | AG36: 0 | AH36: 1 | AI36: 1 | AJ36: 1 | AK36: 1 | AL36: 1 | AM36: 1 | AN36: 4.437582 | AO36: 0 | AP36: 0 | AQ36: 0 | AR36: 0 | AS36: 0 | AT36: -0.005977453044 | AU36: -0.2080643511 | AV36: FALSE | AW36: FALSE | AX36: FALSE | AY36: FALSE | AZ36: FALSE | BA36: 0.8575443668 | BB36: 1 | BC36: 1 | BD36: 1 | BE36: 1 | BF36: 1 | BG36: 14.163 | BH36: 26.39 | BI36: 0 | BJ36: 0 | BK36: 0 | BL36: 0 | BM36: 361.821 | BN36: 0.01069644557 | BO36: 0.004684981822 | BP36: 1.552 | BQ36: 0.02502502503 | BR36: 2.0015 | BS36: 0.9583133685 | BT36: 6.750955041e-05
A37: 1952-04-01 | B37: 2008-04-30 | C37: 2006-07-09 | D37: 2008-04-30 | E37: TRUE | F37: 1385.589966 | G37: 23.32 | H37: 1 | I37: 1385.589966 | J37: 0.04645095217 | K37: 1.082424547 | L37: 2008-04-30 | M37: 1.082424547 | N37: 2008-04-30 | O37: 1.082424547 | P37: 0.7642060349 | Q37: 1 | R37: 1 | S37: 1 | T37: 1 | U37: 1 | AB37: 3.954579 | AC37: 0 | AD37: 0 | AE37: 0 | AF37: 0 | AG37: 0 | AH37: 1 | AI37: 1 | AJ37: 1 | AK37: 1 | AL37: 1 | AM37: 1 | AN37: 3.954579 | AO37: 0 | AP37: 0 | AQ37: 0 | AR37: 0 | AS37: 0 | AT37: 0.04645095217 | AU37: -0.1152354855 | AV37: FALSE | AW37: FALSE | AX37: FALSE | AY37: FALSE | AZ37: FALSE | BA37: 0.7642060349 | BB37: 1 | BC37: 1 | BD37: 1 | BE37: 1 | BF37: 1 | BG37: 14.18 | BH37: 26.46 | BI37: 0 | BJ37: 0 | BK37: 0 | BL37: 0 | BM37: 363.049 | BN37: 0.01063942973 | BO37: 0.004674164026 | BP37: 1.5754 | BQ37: 0.02507522568 | BR37: 1.9816 | BS37: 0.9893153937 | BT37: 6.679350754e-05
A38: 1952-05-01 | B38: 2008-05-31 | C38: 2006-07-16 | D38: 2008-05-31 | E38: TRUE | F38: 1400.380005 | G38: 23.860001 | H38: 1 | I38: 1400.380005 | J38: 0.01061761476 | K38: 1.093978543 | L38: 2008-05-31 | M38: 1.093978543 | N38: 2008-05-31 | O38: 1.093978543 | P38: 0.8225427098 | Q38: 1 | R38: 1 | S38: 1 | T38: 1 | U38: 1 | AB38: 4.256457 | AC38: 0 | AD38: 0 | AE38: 0 | AF38: 0 | AG38: 0 | AH38: 1 | AI38: 1 | AJ38: 1 | AK38: 1 | AL38: 1 | AM38: 1 | AN38: 4.256457 | AO38: 0 | AP38: 0 | AQ38: 0 | AR38: 0 | AS38: 0 | AT38: 0.01061761476 | AU38: 0.07356297608 | AV38: FALSE | AW38: FALSE | AX38: FALSE | AY38: FALSE | AZ38: FALSE | BA38: 0.8225427098 | BB38: 1 | BC38: 1 | BD38: 1 | BE38: 1 | BF38: 1 | BG38: 14.18 | BH38: 26.47 | BI38: 0 | BJ38: 0 | BK38: 0 | BL38: 0 | BM38: 363.049 | BN38: 0.01063942973 | BO38: 0.00464666741 | BP38: 1.5554 | BQ38: 0.02464268112 | BR38: 1.965 | BS38: 0.954380607 | BT38: 6.679350754e-05
A39: 1952-06-01 | B39: 2008-06-30 | C39: 2006-07-23 | D39: 2008-06-30 | E39: TRUE | F39: 1280 | G39: 24.959999 | H39: 1 | I39: 1280 | J39: -0.089883554 | K39: 0.9999375383 | L39: 2008-06-30 | M39: 0.9999375383 | N39: 2008-06-30 | O39: 0.9999375383 | P39: 0.9685567723 | Q39: 1 | R39: 1 | S39: 1 | T39: 1 | U39: 1 | AB39: 5.012044 | AC39: 0 | AD39: 0 | AE39: 0 | AF39: 0 | AG39: 0 | AH39: 1 | AI39: 1 | AJ39: 1 | AK39: 1 | AL39: 1 | AM39: 1 | AN39: 5.012044 | AO39: 0 | AP39: 0 | AQ39: 0 | AR39: 0 | AS39: 0 | AT39: -0.089883554 | AU39: 0.1634066918 | AV39: FALSE | AW39: FALSE | AX39: FALSE | AY39: FALSE | AZ39: FALSE | BA39: 0.9685567723 | BB39: 1 | BC39: 1 | BD39: 1 | BE39: 1 | BF39: 1 | BG39: 14.18 | BH39: 26.53 | BI39: 0 | BJ39: 0 | BK39: 0 | BL39: 0 | BM39: 363.049 | BN39: 0.01063942973 | BO39: 0.00459848342 | BP39: 1.5562 | BQ39: 0.02372479241 | BR39: 1.9664 | BS39: 0.95914061 | BT39: 6.679350754e-05
A40: 1952-07-01 | B40: 2008-07-31 | C40: 2006-07-30 | D40: 2008-07-31 | E40: TRUE | F40: 1267.380005 | G40: 25.4 | H40: 1 | I40: 1267.380005 | J40: -0.009908296541 | K40: 0.990078783 | L40: 2008-07-31 | M40: 0.990078783 | N40: 2008-07-31 | O40: 0.990078783 | P40: 0.9982671643 | Q40: 1 | R40: 1 | S40: 1 | T40: 1 | U40: 1 | AB40: 5.165788 | AC40: 0 | AD40: 0 | AE40: 0 | AF40: 0 | AG40: 0 | AH40: 1 | AI40: 1 | AJ40: 1 | AK40: 1 | AL40: 1 | AM40: 1 | AN40: 5.165788 | AO40: 0 | AP40: 0 | AQ40: 0 | AR40: 0 | AS40: 0 | AT40: -0.009908296541 | AU40: 0.03021384035 | AV40: FALSE | AW40: FALSE | AX40: FALSE | AY40: FALSE | AZ40: FALSE | BA40: 0.9982671643 | BB40: 1 | BC40: 1 | BD40: 1 | BE40: 1 | BF40: 1 | BG40: 14.339 | BH40: 26.68 | BI40: 0 | BJ40: 0 | BK40: 0 | BL40: 0 | BM40: 369.683 | BN40: 0.01056077727 | BO40: 0.004565876466 | BP40: 1.5759 | BQ40: 0.0231320842 | BR40: 1.9888 | BS40: 0.9820288716 | BT40: 6.657765235e-05
A41: 1952-08-01 | B41: 2008-08-31 | C41: 2006-08-06 | D41: 2008-08-31 | E41: TRUE | F41: 1282.829956 | G41: 25.030001 | H41: 1 | I41: 1282.829956 | J41: 0.01211675922 | K41: 1.002148303 | L41: 2008-08-31 | M41: 1.002148303 | N41: 2008-08-31 | O41: 1.002148303 | P41: 0.9388465734 | Q41: 1 | R41: 1 | S41: 1 | T41: 1 | U41: 1 | AB41: 4.858301 | AC41: 0 | AD41: 0 | AE41: 0 | AF41: 0 | AG41: 0 | AH41: 1 | AI41: 1 | AJ41: 1 | AK41: 1 | AL41: 1 | AM41: 1 | AN41: 4.858301 | AO41: 0 | AP41: 0 | AQ41: 0 | AR41: 0 | AS41: 0 | AT41: 0.01211675922 | AU41: -0.06136886796 | AV41: FALSE | AW41: FALSE | AX41: FALSE | AY41: FALSE | AZ41: FALSE | BA41: 0.9388465734 | BB41: 1 | BC41: 1 | BD41: 1 | BE41: 1 | BF41: 1 | BG41: 14.339 | BH41: 26.69 | BI41: 0 | BJ41: 0 | BK41: 0 | BL41: 0 | BM41: 369.683 | BN41: 0.01056077727 | BO41: 0.004572682793 | BP41: 1.4955 | BQ41: 0.02366303833 | BR41: 1.8865 | BS41: 0.9541984733 | BT41: 6.657765235e-05
A42: 1952-09-01 | B42: 2008-09-30 | C42: 2006-08-13 | D42: 2008-09-30 | E42: TRUE | F42: 1166.359985 | G42: 24.540001 | H42: 1 | I42: 1166.359985 | J42: -0.09518076534 | K42: 0.911161822 | L42: 2008-09-30 | M42: 0.911161822 | N42: 2008-09-30 | O42: 0.911161822 | P42: 0.8081209642 | Q42: 1 | R42: 1 | S42: 1 | T42: 1 | U42: 1 | AB42: 4.181828 | AC42: 0 | AD42: 0 | AE42: 0 | AF42: 0 | AG42: 0 | AH42: 1 | AI42: 1 | AJ42: 1 | AK42: 1 | AL42: 1 | AM42: 1 | AN42: 4.181828 | AO42: 0 | AP42: 0 | AQ42: 0 | AR42: 0 | AS42: 0 | AT42: -0.09518076534 | AU42: -0.1499403168 | AV42: FALSE | AW42: FALSE | AX42: FALSE | AY42: FALSE | AZ42: FALSE | BA42: 0.8081209642 | BB42: 1 | BC42: 1 | BD42: 1 | BE42: 1 | BF42: 1 | BG42: 14.339 | BH42: 26.63 | BI42: 0 | BJ42: 0 | BK42: 0 | BL42: 0 | BM42: 369.683 | BN42: 0.01056077727 | BO42: 0.004568776071 | BP42: 1.4342 | BQ42: 0.02366303833 | BR42: 1.7973 | BS42: 0.9541984733 | BT42: 6.657765235e-05
A43: 1952-10-01 | B43: 2008-10-31 | C43: 2006-08-20 | D43: 2008-10-31 | E43: TRUE | F43: 968.75 | G43: 24.52 | H43: 1 | I43: 968.75 | J43: -0.1856364736 | K43: 0.7567886642 | L43: 2008-10-31 | M43: 0.7567886642 | N43: 2008-10-31 | O43: 0.7567886642 | P43: 0.7071059403 | Q43: 1 | R43: 1 | S43: 1 | T43: 1 | U43: 1 | AB43: 3.6591 | AC43: 0 | AD43: 0 | AE43: 0 | AF43: 0 | AG43: 0 | AH43: 1 | AI43: 1 | AJ43: 1 | AK43: 1 | AL43: 1 | AM43: 1 | AN43: 3.6591 | AO43: 0 | AP43: 0 | AQ43: 0 | AR43: 0 | AS43: 0 | AT43: -0.1856364736 | AU43: -0.133531256 | AV43: FALSE | AW43: FALSE | AX43: FALSE | AY43: FALSE | AZ43: FALSE | BA43: 0.7071059403 | BB43: 1 | BC43: 1 | BD43: 1 | BE43: 1 | BF43: 1 | BG43: 14.378 | BH43: 26.69 | BI43: 0 | BJ43: 0 | BK43: 0 | BL43: 0 | BM43: 382.751 | BN43: 0.01052786726 | BO43: 0.004608401115 | BP43: 1.3266 | BQ43: 0.02151925974 | BR43: 1.6862 | BS43: 0.8921402444 | BT43: 6.818713058e-05
A44: 1952-11-01 | B44: 2008-11-30 | C44: 2006-08-27 | D44: 2008-11-30 | E44: TRUE | F44: 896.23999 | G44: 25.66 | H44: 1 | I44: 896.23999 | J44: -0.07779835757 | K44: 0.7001437573 | L44: 2008-11-30 | M44: 0.7001437573 | N44: 2008-11-30 | O44: 0.7001437573 | P44: 0.7011638232 | Q44: 1 | R44: 1 | S44: 1 | T44: 1 | U44: 1 | AB44: 3.628351 | AC44: 0 | AD44: 0 | AE44: 0 | AF44: 0 | AG44: 0 | AH44: 1 | AI44: 1 | AJ44: 1 | AK44: 1 | AL44: 1 | AM44: 1 | AN44: 3.628351 | AO44: 0 | AP44: 0 | AQ44: 0 | AR44: 0 | AS44: 0 | AT44: -0.07779835757 | AU44: -0.008438940443 | AV44: FALSE | AW44: FALSE | AX44: FALSE | AY44: FALSE | AZ44: FALSE | BA44: 0.7011638232 | BB44: 1 | BC44: 1 | BD44: 1 | BE44: 1 | BF44: 1 | BG44: 14.378 | BH44: 26.69 | BI44: 0 | BJ44: 0 | BK44: 0 | BL44: 0 | BM44: 382.751 | BN44: 0.01052786726 | BO44: 0.004691465755 | BP44: 1.2744 | BQ44: 0.02024291498 | BR44: 1.5327 | BS44: 0.8569714629 | BT44: 6.818713058e-05
A45: 1952-12-01 | B45: 2008-12-31 | C45: 2006-09-03 | D45: 2008-12-31 | E45: TRUE | F45: 903.25 | G45: 26.57 | H45: 1 | I45: 903.25 | J45: 0.007791146935 | K45: 0.7056199855 | L45: 2008-12-31 | M45: 0.7056199855 | N45: 2008-12-31 | O45: 0.7056199855 | P45: 0.7427582562 | Q45: 1 | R45: 1 | S45: 1 | T45: 1 | U45: 1 | AB45: 3.843592 | AC45: 0 | AD45: 0 | AE45: 0 | AF45: 0 | AG45: 0 | AH45: 1 | AI45: 1 | AJ45: 1 | AK45: 1 | AL45: 1 | AM45: 1 | AN45: 3.843592 | AO45: 0 | AP45: 0 | AQ45: 0 | AR45: 0 | AS45: 0 | AT45: 0.007791146935 | AU45: 0.05762907094 | AV45: FALSE | AW45: FALSE | AX45: FALSE | AY45: FALSE | AZ45: FALSE | BA45: 0.7427582562 | BB45: 1 | BC45: 1 | BD45: 1 | BE45: 1 | BF45: 1 | BG45: 14.378 | BH45: 26.71 | BI45: 0 | BJ45: 0 | BK45: 0 | BL45: 0 | BM45: 382.751 | BN45: 0.01052786726 | BO45: 0.004730413722 | BP45: 1.3511 | BQ45: 0.02002402883 | BR45: 1.4854 | BS45: 0.8280887711 | BT45: 6.818713058e-05
A46: 1953-01-01 | B46: 2009-01-31 | C46: 2006-09-10 | D46: 2009-01-31 | E46: TRUE | F46: 825.880005 | G46: 26.379999 | H46: 1 | I46: 825.880005 | J46: -0.08954987946 | K46: 0.6451784524 | L46: 2009-01-31 | M46: 0.6451784524 | N46: 2009-01-31 | O46: 0.6451784524 | P46: 0.7166080327 | Q46: 1 | R46: 1 | S46: 1 | T46: 1 | U46: 1 | AB46: 3.708271 | AC46: 0 | AD46: 0 | AE46: 0 | AF46: 0 | AG46: 0 | AH46: 1 | AI46: 1 | AJ46: 1 | AK46: 1 | AL46: 1 | AM46: 1 | AN46: 3.708271 | AO46: 0 | AP46: 0 | AQ46: 0 | AR46: 0 | AS46: 0 | AT46: -0.08954987946 | AU46: -0.03584161578 | AV46: FALSE | AW46: FALSE | AX46: FALSE | AY46: FALSE | AZ46: FALSE | BA46: 0.7166080327 | BB46: 1 | BC46: 1 | BD46: 1 | BE46: 1 | BF46: 1 | BG46: 14.381 | BH46: 26.64 | BI46: 0 | BJ46: 0 | BK46: 0 | BL46: 0 | BM46: 389.888 | BN46: 0.01052897574 | BO46: 0.004718472347 | BP46: 1.3244 | BQ46: 0.02002402883 | BR46: 1.4462 | BS46: 0.8280887711 | BT46: 6.891042692e-05
A47: 1953-02-01 | B47: 2009-02-28 | C47: 2006-09-17 | D47: 2009-02-28 | E47: TRUE | F47: 735.090027 | G47: 25.9 | H47: 1 | I47: 735.090027 | J47: -0.1164565131 | K47: 0.5742532125 | L47: 2009-02-28 | M47: 0.5742532125 | N47: 2009-02-28 | O47: 0.5742532125 | P47: 0.7773376711 | Q47: 1 | R47: 1 | S47: 1 | T47: 1 | U47: 1 | AB47: 4.022532 | AC47: 0 | AD47: 0 | AE47: 0 | AF47: 0 | AG47: 0 | AH47: 1 | AI47: 1 | AJ47: 1 | AK47: 1 | AL47: 1 | AM47: 1 | AN47: 4.022532 | AO47: 0 | AP47: 0 | AQ47: 0 | AR47: 0 | AS47: 0 | AT47: -0.1164565131 | AU47: 0.08134582485 | AV47: FALSE | AW47: FALSE | AX47: FALSE | AY47: FALSE | AZ47: FALSE | BA47: 0.7773376711 | BB47: 1 | BC47: 1 | BD47: 1 | BE47: 1 | BF47: 1 | BG47: 14.381 | BH47: 26.59 | BI47: 0 | BJ47: 0 | BK47: 0 | BL47: 0 | BM47: 389.888 | BN47: 0.01052897574 | BO47: 0.004701346936 | BP47: 1.2797 | BQ47: 0.0204792136 | BR47: 1.4422 | BS47: 0.8611780916 | BT47: 6.891042692e-05
A48: 1953-03-01 | B48: 2009-03-31 | C48: 2006-09-24 | D48: 2009-03-31 | E48: TRUE | F48: 797.869995 | G48: 25.290001 | H48: 1 | I48: 797.869995 | J48: 0.08195269322 | K48: 0.623296999 | L48: 2009-03-31 | M48: 0.623296999 | N48: 2009-03-31 | O48: 0.623296999 | P48: 0.7408998107 | Q48: 1 | R48: 1 | S48: 1 | T48: 1 | U48: 1 | AB48: 3.833975 | AC48: 0 | AD48: 0 | AE48: 0 | AF48: 0 | AG48: 0 | AH48: 1 | AI48: 1 | AJ48: 1 | AK48: 1 | AL48: 1 | AM48: 1 | AN48: 3.833975 | AO48: 0 | AP48: 0 | AQ48: 0 | AR48: 0 | AS48: 0 | AT48: 0.08195269322 | AU48: -0.04800943111 | AV48: FALSE | AW48: FALSE | AX48: FALSE | AY48: FALSE | AZ48: FALSE | BA48: 0.7408998107 | BB48: 1 | BC48: 1 | BD48: 1 | BE48: 1 | BF48: 1 | BG48: 14.381 | BH48: 26.63 | BI48: 0 | BJ48: 0 | BK48: 0 | BL48: 0 | BM48: 389.888 | BN48: 0.01052897574 | BO48: 0.004705993082 | BP48: 1.305 | BQ48: 0.01965408805 | BR48: 1.417 | BS48: 0.8567511995 | BT48: 6.891042692e-05
A49: 1953-04-01 | B49: 2009-04-30 | C49: 2006-10-01 | D49: 2009-04-30 | E49: TRUE | F49: 872.809998 | G49: 24.620001 | H49: 1 | I49: 872.809998 | J49: 0.0897722189 | K49: 0.6818402194 | L49: 2009-04-30 | M49: 0.6818402194 | N49: 2009-04-30 | O49: 0.6818402194 | P49: 0.8927236169 | Q49: 1 | R49: 1 | S49: 1 | T49: 1 | U49: 1 | AB49: 4.619626 | AC49: 0 | AD49: 0 | AE49: 0 | AF49: 0 | AG49: 0 | AH49: 1 | AI49: 1 | AJ49: 1 | AK49: 1 | AL49: 1 | AM49: 1 | AN49: 4.619626 | AO49: 0 | AP49: 0 | AQ49: 0 | AR49: 0 | AS49: 0 | AT49: 0.0897722189 | AU49: 0.1864116254 | AV49: FALSE | AW49: FALSE | AX49: FALSE | AY49: FALSE | AZ49: FALSE | BA49: 0.8927236169 | BB49: 1 | BC49: 1 | BD49: 1 | BE49: 1 | BF49: 1 | BG49: 14.409 | BH49: 26.69 | BI49: 0 | BJ49: 0 | BK49: 0 | BL49: 0 | BM49: 393.801 | BN49: 0.01054429659 | BO49: 0.004701258527 | BP49: 1.3199 | BQ49: 0.01980982567 | BR49: 1.4712 | BS49: 0.8722197994 | BT49: 6.911642461e-05
A50: 1953-05-01 | B50: 2009-05-31 | C50: 2006-10-08 | D50: 2009-05-31 | E50: TRUE | F50: 919.140015 | G50: 24.540001 | H50: 1 | I50: 919.140015 | J50: 0.05172057703 | K50: 0.7180332843 | L50: 2009-05-31 | M50: 0.7180332843 | N50: 2009-05-31 | O50: 0.7180332843 | P50: 0.9898907291 | Q50: 1 | R50: 1 | S50: 1 | T50: 1 | U50: 1 | AB50: 5.122442 | AC50: 0 | AD50: 0 | AE50: 0 | AF50: 0 | AG50: 0 | AH50: 1 | AI50: 1 | AJ50: 1 | AK50: 1 | AL50: 1 | AM50: 1 | AN50: 5.122442 | AO50: 0 | AP50: 0 | AQ50: 0 | AR50: 0 | AS50: 0 | AT50: 0.05172057703 | AU50: 0.103317529 | AV50: FALSE | AW50: FALSE | AX50: FALSE | AY50: FALSE | AZ50: FALSE | BA50: 0.9898907291 | BB50: 1 | BC50: 1 | BD50: 1 | BE50: 1 | BF50: 1 | BG50: 14.409 | BH50: 26.7 | BI50: 0 | BJ50: 0 | BK50: 0 | BL50: 0 | BM50: 393.801 | BN50: 0.01054429659 | BO50: 0.004694350818 | BP50: 1.3646 | BQ50: 0.02014098691 | BR50: 1.5418 | BS50: 0.8799718409 | BT50: 6.911642461e-05
A51: 1953-06-01 | B51: 2009-06-30 | C51: 2006-10-15 | D51: 2009-06-30 | E51: TRUE | F51: 919.320007 | G51: 24.139999 | H51: 1 | I51: 919.320007 | J51: 0.0001958073588 | K51: 0.7181738943 | L51: 2009-06-30 | M51: 0.7181738943 | N51: 2009-06-30 | O51: 0.7181738943 | P51: 0.9353146188 | Q51: 1 | R51: 1 | S51: 1 | T51: 1 | U51: 1 | AB51: 4.840024 | AC51: 0 | AD51: 0 | AE51: 0 | AF51: 0 | AG51: 0 | AH51: 1 | AI51: 1 | AJ51: 1 | AK51: 1 | AL51: 1 | AM51: 1 | AN51: 4.840024 | AO51: 0 | AP51: 0 | AQ51: 0 | AR51: 0 | AS51: 0 | AT51: 0.0001958073588 | AU51: -0.05671159908 | AV51: FALSE | AW51: FALSE | AX51: FALSE | AY51: FALSE | AZ51: FALSE | BA51: 0.9353146188 | BB51: 1 | BC51: 1 | BD51: 1 | BE51: 1 | BF51: 1 | BG51: 14.409 | BH51: 26.77 | BI51: 0 | BJ51: 0 | BK51: 0 | BL51: 0 | BM51: 393.801 | BN51: 0.01054429659 | BO51: 0.004655710229 | BP51: 1.4014 | BQ51: 0.02137665669 | BR51: 1.6369 | BS51: 0.9356287425 | BT51: 6.911642461e-05
A52: 1953-07-01 | B52: 2009-07-31 | C52: 2006-10-22 | D52: 2009-07-31 | E52: TRUE | F52: 987.47998 | G52: 24.75 | H52: 1 | I52: 987.47998 | J52: 0.07152194922 | K52: 0.7714205471 | L52: 2009-07-31 | M52: 0.7714205471 | N52: 2009-07-31 | O52: 0.7714205471 | P52: 0.9964460153 | Q52: 1 | R52: 1 | S52: 1 | T52: 1 | U52: 1 | AB52: 5.156364 | AC52: 0 | AD52: 0 | AE52: 0 | AF52: 0 | AG52: 0 | AH52: 1 | AI52: 1 | AJ52: 1 | AK52: 1 | AL52: 1 | AM52: 1 | AN52: 5.156364 | AO52: 0 | AP52: 0 | AQ52: 0 | AR52: 0 | AS52: 0 | AT52: 0.07152194922 | AU52: 0.06331200055 | AV52: FALSE | AW52: FALSE | AX52: FALSE | AY52: FALSE | AZ52: FALSE | BA52: 0.9964460153 | BB52: 1 | BC52: 1 | BD52: 1 | BE52: 1 | BF52: 1 | BG52: 14.47 | BH52: 26.79 | BI52: 0 | BJ52: 0 | BK52: 0 | BL52: 0 | BM52: 392.98 | BN52: 0.01053319008 | BO52: 0.004657097883 | BP52: 1.4092 | BQ52: 0.02094240838 | BR52: 1.6378 | BS52: 0.9328358209 | BT52: 6.853149546e-05
A53: 1953-08-01 | B53: 2009-08-31 | C53: 2006-10-29 | D53: 2009-08-31 | E53: TRUE | F53: 1020.619995 | G53: 23.32 | H53: 1 | I53: 1020.619995 | J53: 0.0330093367 | K53: 0.7973095667 | L53: 2009-08-31 | M53: 0.7973095667 | N53: 2009-08-31 | O53: 0.7973095667 | P53: 0.9805521228 | Q53: 1 | R53: 1 | S53: 1 | T53: 1 | U53: 1 | AB53: 5.074117 | AC53: 0 | AD53: 0 | AE53: 0 | AF53: 0 | AG53: 0 | AH53: 1 | AI53: 1 | AJ53: 1 | AK53: 1 | AL53: 1 | AM53: 1 | AN53: 5.074117 | AO53: 0 | AP53: 0 | AQ53: 0 | AR53: 0 | AS53: 0 | AT53: 0.0330093367 | AU53: -0.01607916031 | AV53: FALSE | AW53: FALSE | AX53: FALSE | AY53: FALSE | AZ53: FALSE | BA53: 0.9805521228 | BB53: 1 | BC53: 1 | BD53: 1 | BE53: 1 | BF53: 1 | BG53: 14.47 | BH53: 26.85 | BI53: 0 | BJ53: 0 | BK53: 0 | BL53: 0 | BM53: 392.98 | BN53: 0.01053319008 | BO53: 0.00464155585 | BP53: 1.4266 | BQ53: 0.02087246921 | BR53: 1.6532 | BS53: 0.9373828271 | BT53: 6.853149546e-05
A54: 1953-09-01 | B54: 2009-09-30 | C54: 2006-11-05 | D54: 2009-09-30 | E54: TRUE | F54: 1057.079956 | G54: 23.35 | H54: 1 | I54: 1057.079956 | J54: 0.03510006743 | K54: 0.825792132 | L54: 2009-09-30 | M54: 0.825792132 | N54: 2009-09-30 | O54: 0.825792132 | P54: 1.001336875 | Q54: 1 | R54: 1 | S54: 1 | T54: 1 | U54: 1 | AB54: 5.181673 | AC54: 0 | AD54: 0 | AE54: 0 | AF54: 0 | AG54: 0 | AH54: 1 | AI54: 1 | AJ54: 1 | AK54: 1 | AL54: 1 | AM54: 1 | AN54: 5.181673 | AO54: 0 | AP54: 0 | AQ54: 0 | AR54: 0 | AS54: 0 | AT54: 0.03510006743 | AU54: 0.02097545746 | AV54: FALSE | AW54: FALSE | AX54: FALSE | AY54: FALSE | AZ54: FALSE | BA54: 1.001336875 | BB54: 1 | BC54: 1 | BD54: 1 | BE54: 1 | BF54: 1 | BG54: 14.47 | BH54: 26.89 | BI54: 0 | BJ54: 0 | BK54: 0 | BL54: 0 | BM54: 392.98 | BN54: 0.01053319008 | BO54: 0.0046326108 | BP54: 1.4575 | BQ54: 0.02038735984 | BR54: 1.6323 | BS54: 0.9387027129 | BT54: 6.853149546e-05
A55: 1953-10-01 | B55: 2009-10-31 | C55: 2006-11-12 | D55: 2009-10-31 | E55: TRUE | F55: 1036.189941 | G55: 24.540001 | H55: 1 | I55: 1036.189941 | J55: -0.01995988054 | K55: 0.8094728272 | L55: 2009-10-31 | M55: 0.8094728272 | N55: 2009-10-31 | O55: 0.8094728272 | P55: 1.028234767 | Q55: 1 | R55: 1 | S55: 1 | T55: 1 | U55: 1 | AB55: 5.320863 | AC55: 0 | AD55: 0 | AE55: 0 | AF55: 0 | AG55: 0 | AH55: 1 | AI55: 1 | AJ55: 1 | AK55: 1 | AL55: 1 | AM55: 1 | AN55: 5.320863 | AO55: 0 | AP55: 0 | AQ55: 0 | AR55: 0 | AS55: 0 | AT55: -0.01995988054 | AU55: 0.02650753114 | AV55: FALSE | AW55: FALSE | AX55: FALSE | AY55: FALSE | AZ55: FALSE | BA55: 1.028234767 | BB55: 1 | BC55: 1 | BD55: 1 | BE55: 1 | BF55: 1 | BG55: 14.497 | BH55: 26.95 | BI55: 0 | BJ55: 0 | BK55: 0 | BL55: 0 | BM55: 387.798 | BN55: 0.01049769576 | BO55: 0.004618745641 | BP55: 1.4821 | BQ55: 0.02095557418 | BR55: 1.6212 | BS55: 0.9593246355 | BT55: 6.760541289e-05
A56: 1953-11-01 | B56: 2009-11-30 | C56: 2006-11-19 | D56: 2009-11-30 | E56: TRUE | F56: 1095.630005 | G56: 24.76 | H56: 1 | I56: 1095.630005 | J56: 0.05577907709 | K56: 0.8559074766 | L56: 2009-11-30 | M56: 0.8559074766 | N56: 2009-11-30 | O56: 0.8559074766 | P56: 1.02945724 | Q56: 1 | R56: 1 | S56: 1 | T56: 1 | U56: 1 | AB56: 5.327189 | AC56: 0 | AD56: 0 | AE56: 0 | AF56: 0 | AG56: 0 | AH56: 1 | AI56: 1 | AJ56: 1 | AK56: 1 | AL56: 1 | AM56: 1 | AN56: 5.327189 | AO56: 0 | AP56: 0 | AQ56: 0 | AR56: 0 | AS56: 0 | AT56: 0.05577907709 | AU56: 0.001188198695 | AV56: FALSE | AW56: FALSE | AX56: FALSE | AY56: FALSE | AZ56: FALSE | BA56: 1.02945724 | BB56: 1 | BC56: 1 | BD56: 1 | BE56: 1 | BF56: 1 | BG56: 14.497 | BH56: 26.85 | BI56: 0 | BJ56: 0 | BK56: 0 | BL56: 0 | BM56: 387.798 | BN56: 0.01049769576 | BO56: 0.00460333097 | BP56: 1.4908 | BQ56: 0.02132196162 | BR56: 1.6599 | BS56: 0.9767532721 | BT56: 6.760541289e-05
A57: 1953-12-01 | B57: 2009-12-31 | C57: 2006-11-26 | D57: 2009-12-31 | E57: TRUE | F57: 1115.099976 | G57: 24.809999 | H57: 1 | I57: 1115.099976 | J57: 0.01761452061 | K57: 0.8711174414 | L57: 2009-12-31 | M57: 0.8711174414 | N57: 2009-12-31 | O57: 0.8711174414 | P57: 1.027011907 | Q57: 1 | R57: 1 | S57: 1 | T57: 1 | U57: 1 | AB57: 5.314535 | AC57: 0 | AD57: 0 | AE57: 0 | AF57: 0 | AG57: 0 | AH57: 1 | AI57: 1 | AJ57: 1 | AK57: 1 | AL57: 1 | AM57: 1 | AN57: 5.314535 | AO57: 0 | AP57: 0 | AQ57: 0 | AR57: 0 | AS57: 0 | AT57: 0.01761452061 | AU57: -0.002378187212 | AV57: FALSE | AW57: FALSE | AX57: FALSE | AY57: FALSE | AZ57: FALSE | BA57: 1.027011907 | BB57: 1 | BC57: 1 | BD57: 1 | BE57: 1 | BF57: 1 | BG57: 14.497 | BH57: 26.87 | BI57: 0 | BJ57: 0 | BK57: 0 | BL57: 0 | BM57: 387.798 | BN57: 0.01049769576 | BO57: 0.004600937671 | BP57: 1.4579 | BQ57: 0.02164033759 | BR57: 1.6226 | BS57: 1.001602564 | BT57: 6.760541289e-05
A58: 1954-01-01 | B58: 2010-01-31 | C58: 2006-12-03 | D58: 2010-01-31 | E58: TRUE | F58: 1073.869995 | G58: 26.08 | H58: 1 | I58: 1073.869995 | J58: -0.03767512419 | K58: 0.8389085306 | L58: 2010-01-31 | M58: 0.8389085306 | N58: 2010-01-31 | O58: 0.8389085306 | P58: 0.9939191324 | Q58: 1 | R58: 1 | S58: 1 | T58: 1 | U58: 1 | AB58: 5.143288 | AC58: 0 | AD58: 0 | AE58: 0 | AF58: 0 | AG58: 0 | AH58: 1 | AI58: 1 | AJ58: 1 | AK58: 1 | AL58: 1 | AM58: 1 | AN58: 5.143288 | AO58: 0 | AP58: 0 | AQ58: 0 | AR58: 0 | AS58: 0 | AT58: -0.03767512419 | AU58: -0.03275295606 | AV58: FALSE | AW58: FALSE | AX58: FALSE | AY58: FALSE | AZ58: FALSE | BA58: 0.9939191324 | BB58: 1 | BC58: 1 | BD58: 1 | BE58: 1 | BF58: 1 | BG58: 14.543 | BH58: 26.94 | BI58: 0 | BJ58: 0 | BK58: 0 | BL58: 0 | BM58: 387.345 | BN58: 0.01047131384 | BO58: 0.00459795483 | BP58: 1.4266 | BQ58: 0.02164033759 | BR58: 1.6158 | BS58: 1.001602564 | BT58: 6.704461504e-05
A59: 1954-02-01 | B59: 2010-02-28 | C59: 2006-12-10 | D59: 2010-02-28 | E59: TRUE | F59: 1104.48999 | G59: 26.15 | H59: 1 | I59: 1104.48999 | J59: 0.02811473964 | K59: 0.8628289075 | L59: 2010-02-28 | M59: 0.8628289075 | N59: 2010-02-28 | O59: 0.8628289075 | P59: 0.991428 | Q59: 1 | R59: 1 | S59: 1 | T59: 1 | U59: 1 | AB59: 5.130397 | AC59: 0 | AD59: 0 | AE59: 0 | AF59: 0 | AG59: 0 | AH59: 1 | AI59: 1 | AJ59: 1 | AK59: 1 | AL59: 1 | AM59: 1 | AN59: 5.130397 | AO59: 0 | AP59: 0 | AQ59: 0 | AR59: 0 | AS59: 0 | AT59: 0.02811473964 | AU59: -0.002509519567 | AV59: FALSE | AW59: FALSE | AX59: FALSE | AY59: FALSE | AZ59: FALSE | BA59: 0.991428 | BB59: 1 | BC59: 1 | BD59: 1 | BE59: 1 | BF59: 1 | BG59: 14.543 | BH59: 26.99 | BI59: 0 | BJ59: 0 | BK59: 0 | BL59: 0 | BM59: 387.345 | BN59: 0.01047131384 | BO59: 0.004602335225 | BP59: 1.368 | BQ59: 0.02161227577 | BR59: 1.5618 | BS59: 0.9446438693 | BT59: 6.704461504e-05
A60: 1954-03-01 | B60: 2010-03-31 | C60: 2006-12-17 | D60: 2010-03-31 | E60: TRUE | F60: 1169.430054 | G60: 26.940001 | H60: 1 | I60: 1169.430054 | J60: 0.05713281588 | K60: 0.9135601636 | L60: 2010-03-31 | M60: 0.9135601636 | N60: 2010-03-31 | O60: 0.9135601636 | P60: 0.998901204 | Q60: 1 | R60: 1 | S60: 1 | T60: 1 | U60: 1 | AB60: 5.169069 | AC60: 0 | AD60: 0 | AE60: 0 | AF60: 0 | AG60: 0 | AH60: 1 | AI60: 1 | AJ60: 1 | AK60: 1 | AL60: 1 | AM60: 1 | AN60: 5.169069 | AO60: 0 | AP60: 0 | AQ60: 0 | AR60: 0 | AS60: 0 | AT60: 0.05713281588 | AU60: 0.007509550832 | AV60: FALSE | AW60: FALSE | AX60: FALSE | AY60: FALSE | AZ60: FALSE | BA60: 0.998901204 | BB60: 1 | BC60: 1 | BD60: 1 | BE60: 1 | BF60: 1 | BG60: 14.543 | BH60: 26.93 | BI60: 0 | BJ60: 0 | BK60: 0 | BL60: 0 | BM60: 387.345 | BN60: 0.01047131384 | BO60: 0.004600810663 | BP60: 1.357 | BQ60: 0.02173440556 | BR60: 1.5058 | BS60: 0.9236168837 | BT60: 6.704461504e-05
A61: 1954-04-01 | B61: 2010-04-30 | C61: 2006-12-24 | D61: 2010-04-30 | E61: TRUE | F61: 1186.689941 | G61: 28.26 | H61: 1 | I61: 1186.689941 | J61: 0.01465137242 | K61: 0.927043608 | L61: 2010-04-30 | M61: 0.927043608 | N61: 2010-04-30 | O61: 0.927043608 | P61: 1.058685677 | Q61: 1 | R61: 1 | S61: 1 | T61: 1 | U61: 1 | AB61: 5.478439 | AC61: 0 | AD61: 0 | AE61: 0 | AF61: 0 | AG61: 0 | AH61: 1 | AI61: 1 | AJ61: 1 | AK61: 1 | AL61: 1 | AM61: 1 | AN61: 5.478439 | AO61: 0 | AP61: 0 | AQ61: 0 | AR61: 0 | AS61: 0 | AT61: 0.01465137242 | AU61: 0.05812761143 | AV61: FALSE | AW61: FALSE | AX61: FALSE | AY61: FALSE | AZ61: FALSE | BA61: 1.058685677 | BB61: 1 | BC61: 1 | BD61: 1 | BE61: 1 | BF61: 1 | BG61: 14.556 | BH61: 26.86 | BI61: 0 | BJ61: 0 | BK61: 0 | BL61: 0 | BM61: 388.119 | BN61: 0.01042285524 | BO61: 0.004599752533 | BP61: 1.3417 | BQ61: 0.02232641215 | BR61: 1.5332 | BS61: 0.9470593806 | BT61: 6.613174025e-05
A62: 1954-05-01 | B62: 2010-05-31 | C62: 2006-12-31 | D62: 2010-05-31 | E62: TRUE | F62: 1089.410034 | G62: 29.190001 | H62: 1 | I62: 1089.410034 | J62: -0.08553157271 | K62: 0.8510484278 | L62: 2010-05-31 | M62: 0.8510484278 | N62: 2010-05-31 | O62: 0.8510484278 | P62: 1.04000286 | Q62: 1 | R62: 1 | S62: 1 | T62: 1 | U62: 1 | AB62: 5.38176 | AC62: 0 | AD62: 0 | AE62: 0 | AF62: 0 | AG62: 0 | AH62: 1 | AI62: 1 | AJ62: 1 | AK62: 1 | AL62: 1 | AM62: 1 | AN62: 5.38176 | AO62: 0 | AP62: 0 | AQ62: 0 | AR62: 0 | AS62: 0 | AT62: -0.08553157271 | AU62: -0.01780474814 | AV62: FALSE | AW62: FALSE | AX62: FALSE | AY62: FALSE | AZ62: FALSE | BA62: 1.04000286 | BB62: 1 | BC62: 1 | BD62: 1 | BE62: 1 | BF62: 1 | BG62: 14.556 | BH62: 26.93 | BI62: 0 | BJ62: 0 | BK62: 0 | BL62: 0 | BM62: 388.119 | BN62: 0.01042285524 | BO62: 0.004602144599 | BP62: 1.2563 | BQ62: 0.02262443439 | BR62: 1.4669 | BS62: 0.9287638154 | BT62: 6.613174025e-05
A63: 1954-06-01 | B63: 2010-06-30 | C63: 2007-01-07 | D63: 2010-06-30 | E63: TRUE | F63: 1030.709961 | G63: 29.209999 | H63: 1 | I63: 1030.709961 | J63: -0.05538844918 | K63: 0.8051918602 | L63: 2010-06-30 | M63: 0.8051918602 | N63: 2010-06-30 | O63: 0.8051918602 | P63: 1.056756503 | Q63: 1 | R63: 1 | S63: 1 | T63: 1 | U63: 1 | AB63: 5.468456 | AC63: 0 | AD63: 0 | AE63: 0 | AF63: 0 | AG63: 0 | AH63: 1 | AI63: 1 | AJ63: 1 | AK63: 1 | AL63: 1 | AM63: 1 | AN63: 5.468456 | AO63: 0 | AP63: 0 | AQ63: 0 | AR63: 0 | AS63: 0 | AT63: -0.05538844918 | AU63: 0.01598085146 | AV63: FALSE | AW63: FALSE | AX63: FALSE | AY63: FALSE | AZ63: FALSE | BA63: 1.056756503 | BB63: 1 | BC63: 1 | BD63: 1 | BE63: 1 | BF63: 1 | BG63: 14.556 | BH63: 26.94 | BI63: 0 | BJ63: 0 | BK63: 0 | BL63: 0 | BM63: 388.119 | BN63: 0.01042285524 | BO63: 0.004604072763 | BP63: 1.2223 | BQ63: 0.0212404418 | BR63: 1.4768 | BS63: 0.865950814 | BT63: 6.613174025e-05
A64: 1954-07-01 | B64: 2010-07-31 | C64: 2007-01-14 | D64: 2010-07-31 | E64: TRUE | F64: 1101.599976 | G64: 30.879999 | H64: 1 | I64: 1101.599976 | J64: 0.06651579933 | K64: 0.8605712251 | L64: 2010-07-31 | M64: 0.8605712251 | N64: 2010-07-31 | O64: 0.8605712251 | P64: 1.079374579 | Q64: 1 | R64: 1 | S64: 1 | T64: 1 | U64: 1 | AB64: 5.585499 | AC64: 0 | AD64: 0 | AE64: 0 | AF64: 0 | AG64: 0 | AH64: 1 | AI64: 1 | AJ64: 1 | AK64: 1 | AL64: 1 | AM64: 1 | AN64: 5.585499 | AO64: 0 | AP64: 0 | AQ64: 0 | AR64: 0 | AS64: 0 | AT64: 0.06651579933 | AU64: 0.02117746532 | AV64: FALSE | AW64: FALSE | AX64: FALSE | AY64: FALSE | AZ64: FALSE | BA64: 1.079374579 | BB64: 1 | BC64: 1 | BD64: 1 | BE64: 1 | BF64: 1 | BG64: 14.575 | BH64: 26.86 | BI64: 0 | BJ64: 0 | BK64: 0 | BL64: 0 | BM64: 393.034 | BN64: 0.0103926337 | BO64: 0.004595482641 | BP64: 1.2811 | BQ64: 0.02146383344 | BR64: 1.5304 | BS64: 0.9367681499 | BT64: 6.549191633e-05
A65: 1954-08-01 | B65: 2010-08-31 | C65: 2007-01-21 | D65: 2010-08-31 | E65: TRUE | F65: 1049.329956 | G65: 29.83 | H65: 1 | I65: 1049.329956 | J65: -0.04861182332 | K65: 0.8197378227 | L65: 2010-08-31 | M65: 0.8197378227 | N65: 2010-08-31 | O65: 0.8197378227 | P65: 1.113301209 | Q65: 1 | R65: 1 | S65: 1 | T65: 1 | U65: 1 | AB65: 5.761061 | AC65: 0 | AD65: 0 | AE65: 0 | AF65: 0 | AG65: 0 | AH65: 1 | AI65: 1 | AJ65: 1 | AK65: 1 | AL65: 1 | AM65: 1 | AN65: 5.761061 | AO65: 0 | AP65: 0 | AQ65: 0 | AR65: 0 | AS65: 0 | AT65: -0.04861182332 | AU65: 0.03094788414 | AV65: FALSE | AW65: FALSE | AX65: FALSE | AY65: FALSE | AZ65: FALSE | BA65: 1.113301209 | BB65: 1 | BC65: 1 | BD65: 1 | BE65: 1 | BF65: 1 | BG65: 14.575 | BH65: 26.85 | BI65: 0 | BJ65: 0 | BK65: 0 | BL65: 0 | BM65: 393.034 | BN65: 0.0103926337 | BO65: 0.00458877677 | BP65: 1.2903 | BQ65: 0.02157497303 | BR65: 1.5661 | BS65: 0.9606147935 | BT65: 6.549191633e-05
A66: 1954-09-01 | B66: 2010-09-30 | C66: 2007-01-28 | D66: 2010-09-30 | E66: TRUE | F66: 1141.199951 | G66: 32.310001 | H66: 1 | I66: 1141.199951 | J66: 0.08392847409 | K66: 0.8915067732 | L66: 2010-09-30 | M66: 0.8915067732 | N66: 2010-09-30 | O66: 0.8915067732 | P66: 1.108275271 | Q66: 1 | R66: 1 | S66: 1 | T66: 1 | U66: 1 | Y66: =LOOKUP($A66,INDIRECT("'"&Y$5&"'!A:A"),INDIRECT("'"&Y$5&"'!"&Y$7&":"&Y$7)) ->  | AB66: 5.735053 | AC66: 0 | AD66: 0 | AE66: 0 | AF66: 0 | AG66: 0 | AH66: =IF(AH$7,INDEX($BN66:$BT66,AH$7),1) -> 1 | AI66: 1 | AJ66: 1 | AK66: 1 | AL66: 1 | AM66: 1 | AN66: 5.735053 | AO66: 0 | AP66: 0 | AQ66: 0 | AR66: 0 | AS66: 0 | AT66: 0.08392847409 | AU66: -0.004524667096 | AV66: FALSE | AW66: FALSE | AX66: FALSE | AY66: FALSE | AZ66: FALSE | BA66: 1.108275271 | BB66: 1 | BC66: 1 | BD66: 1 | BE66: 1 | BF66: 1 | BG66: 14.575 | BH66: 26.81 | BI66: 0 | BJ66: 0 | BK66: 0 | BL66: 0 | BM66: 393.034 | BN66: 0.0103926337 | BO66: 0.004581376704 | BP66: 1.3103 | BQ66: 0.02139495079 | BR66: 1.5591 | BS66: 0.9853187506 | BT66: 6.549191633e-05
A67: 1954-10-01 | B67: 2010-10-31 | C67: 2007-02-04 | D67: 2010-10-31 | E67: TRUE | F67: 1183.26001 | G67: 31.68 | H67: 1 | I67: 1183.26001 | J67: 0.0361930521 | K67: 0.9243641418 | L67: 2010-10-31 | M67: 0.9243641418 | N67: 2010-10-31 | O67: 0.9243641418 | P67: 1.105761915 | Q67: 1 | R67: 1 | S67: 1 | T67: 1 | U67: 1 | AB67: 5.722047 | AC67: 0 | AD67: 0 | AE67: 0 | AF67: 0 | AG67: 0 | AH67: 1 | AI67: 1 | AJ67: 1 | AK67: 1 | AL67: 1 | AM67: 1 | AN67: 5.722047 | AO67: 0 | AP67: 0 | AQ67: 0 | AR67: 0 | AS67: 0 | AT67: 0.0361930521 | AU67: -0.002270383533 | AV67: FALSE | AW67: FALSE | AX67: FALSE | AY67: FALSE | AZ67: FALSE | BA67: 1.105761915 | BB67: 1 | BC67: 1 | BD67: 1 | BE67: 1 | BF67: 1 | BG67: 14.615 | BH67: 26.72 | BI67: 0 | BJ67: 0 | BK67: 0 | BL67: 0 | BM67: 402.077 | BN67: 0.01033452869 | BO67: 0.004565480403 | BP67: 1.3901 | BQ67: 0.02251745102 | BR67: 1.5867 | BS67: 1.024485196 | BT67: 6.474479931e-05
A68: 1954-11-01 | B68: 2010-11-30 | C68: 2007-02-11 | D68: 2010-11-30 | E68: TRUE | F68: 1180.550049 | G68: 34.240002 | H68: 1 | I68: 1180.550049 | J68: -0.002292876432 | K68: 0.922247117 | L68: 2010-11-30 | M68: 0.922247117 | N68: 2010-11-30 | O68: 0.922247117 | P68: 1.068065638 | Q68: 1 | R68: 1 | S68: 1 | T68: 1 | U68: 1 | AB68: 5.526978 | AC68: 0 | AD68: 0 | AE68: 0 | AF68: 0 | AG68: 0 | AH68: 1 | AI68: 1 | AJ68: 1 | AK68: 1 | AL68: 1 | AM68: 1 | AN68: 5.526978 | AO68: 0 | AP68: 0 | AQ68: 0 | AR68: 0 | AS68: 0 | AT68: -0.002292876432 | AU68: -0.03468541612 | AV68: FALSE | AW68: FALSE | AX68: FALSE | AY68: FALSE | AZ68: FALSE | BA68: 1.068065638 | BB68: 1 | BC68: 1 | BD68: 1 | BE68: 1 | BF68: 1 | BG68: 14.615 | BH68: 26.78 | BI68: 0 | BJ68: 0 | BK68: 0 | BL68: 0 | BM68: 402.077 | BN68: 0.01033452869 | BO68: 0.004553941436 | BP68: 1.3654 | BQ68: 0.02254283138 | BR68: 1.5961 | BS68: 1.006542526 | BT68: 6.474479931e-05
A69: 1954-12-01 | B69: 2010-12-31 | C69: 2007-02-18 | D69: 2010-12-31 | E69: TRUE | F69: 1257.640015 | G69: 35.98 | H69: 1 | I69: 1257.640015 | J69: 0.06325648764 | K69: 0.9824698911 | L69: 2010-12-31 | M69: 0.9824698911 | N69: 2010-12-31 | O69: 0.9824698911 | P69: 1.051730372 | Q69: 1 | R69: 1 | S69: 1 | T69: 1 | U69: 1 | AB69: 5.442447 | AC69: 0 | AD69: 0 | AE69: 0 | AF69: 0 | AG69: 0 | AH69: 1 | AI69: 1 | AJ69: 1 | AK69: 1 | AL69: 1 | AM69: 1 | AN69: 5.442447 | AO69: 0 | AP69: 0 | AQ69: 0 | AR69: 0 | AS69: 0 | AT69: 0.06325648764 | AU69: -0.01541241648 | AV69: FALSE | AW69: FALSE | AX69: FALSE | AY69: FALSE | AZ69: FALSE | BA69: 1.051730372 | BB69: 1 | BC69: 1 | BD69: 1 | BE69: 1 | BF69: 1 | BG69: 14.615 | BH69: 26.77 | BI69: 0 | BJ69: 0 | BK69: 0 | BL69: 0 | BM69: 402.077 | BN69: 0.01033452869 | BO69: 0.004535723357 | BP69: 1.3221 | BQ69: 0.02207992934 | BR69: 1.5595 | BS69: 1.00030009 | BT69: 6.474479931e-05
A70: 1955-01-01 | B70: 2011-01-31 | C70: 2007-02-25 | D70: 2011-01-31 | E70: TRUE | F70: 1286.119995 | G70: 36.630001 | H70: 1 | I70: 1286.119995 | J70: 0.02239296944 | K70: 1.004718486 | L70: 2011-01-31 | M70: 1.004718486 | N70: 2011-01-31 | O70: 1.004718486 | P70: 0.9946861252 | Q70: 1 | R70: 1 | S70: 1 | T70: 1 | U70: 1 | AB70: 5.147257 | AC70: 0 | AD70: 0 | AE70: 0 | AF70: 0 | AG70: 0 | AH70: 1 | AI70: 1 | AJ70: 1 | AK70: 1 | AL70: 1 | AM70: 1 | AN70: 5.147257 | AO70: 0 | AP70: 0 | AQ70: 0 | AR70: 0 | AS70: 0 | AT70: 0.02239296944 | AU70: -0.05576482448 | AV70: FALSE | AW70: FALSE | AX70: FALSE | AY70: FALSE | AZ70: FALSE | BA70: 0.9946861252 | BB70: 1 | BC70: 1 | BD70: 1 | BE70: 1 | BF70: 1 | BG70: 14.683 | BH70: 26.77 | BI70: 0 | BJ70: 0 | BK70: 0 | BL70: 0 | BM70: 415.496 | BN70: 0.01027928826 | BO70: 0.004521061364 | BP70: 1.3371 | BQ70: 0.02207992934 | BR70: 1.5782 | BS70: 1.00030009 | BT70: 6.450395651e-05
A71: 1955-02-01 | B71: 2011-02-28 | C71: 2007-03-04 | D71: 2011-02-28 | E71: TRUE | F71: 1327.219971 | G71: 36.759998 | H71: 1 | I71: 1327.219971 | J71: 0.03145657708 | K71: 1.036825836 | L71: 2011-02-28 | M71: 1.036825836 | N71: 2011-02-28 | O71: 1.036825836 | P71: 1.018946791 | Q71: 1 | R71: 1 | S71: 1 | T71: 1 | U71: 1 | AB71: 5.2728 | AC71: 0 | AD71: 0 | AE71: 0 | AF71: 0 | AG71: 0 | AH71: 1 | AI71: 1 | AJ71: 1 | AK71: 1 | AL71: 1 | AM71: 1 | AN71: 5.2728 | AO71: 0 | AP71: 0 | AQ71: 0 | AR71: 0 | AS71: 0 | AT71: 0.03145657708 | AU71: 0.02409757933 | AV71: FALSE | AW71: FALSE | AX71: FALSE | AY71: FALSE | AZ71: FALSE | BA71: 1.018946791 | BB71: 1 | BC71: 1 | BD71: 1 | BE71: 1 | BF71: 1 | BG71: 14.683 | BH71: 26.82 | BI71: 0 | BJ71: 0 | BK71: 0 | BL71: 0 | BM71: 415.496 | BN71: 0.01027928826 | BO71: 0.004506575093 | BP71: 1.3656 | BQ71: 0.02190580504 | BR71: 1.6124 | BS71: 1.065189604 | BT71: 6.450395651e-05
A72: 1955-03-01 | B72: 2011-03-31 | C72: 2007-03-11 | D72: 2011-03-31 | E72: TRUE | F72: 1325.829956 | G72: 36.580002 | H72: 1 | I72: 1325.829956 | J72: -0.00104786202 | K72: 1.035739955 | L72: 2011-03-31 | M72: 1.035739955 | N72: 2011-03-31 | O72: 1.035739955 | P72: 1.010859838 | Q72: 1 | R72: 1 | S72: 1 | T72: 1 | U72: 1 | AB72: 5.230952 | AC72: 0 | AD72: 0 | AE72: 0 | AF72: 0 | AG72: 0 | AH72: 1 | AI72: 1 | AJ72: 1 | AK72: 1 | AL72: 1 | AM72: 1 | AN72: 5.230952 | AO72: 0 | AP72: 0 | AQ72: 0 | AR72: 0 | AS72: 0 | AT72: -0.00104786202 | AU72: -0.007968242476 | AV72: FALSE | AW72: FALSE | AX72: FALSE | AY72: FALSE | AZ72: FALSE | BA72: 1.010859838 | BB72: 1 | BC72: 1 | BD72: 1 | BE72: 1 | BF72: 1 | BG72: 14.683 | BH72: 26.79 | BI72: 0 | BJ72: 0 | BK72: 0 | BL72: 0 | BM72: 415.496 | BN72: 0.01027928826 | BO72: 0.00448338011 | BP72: 1.402 | BQ72: 0.02231146809 | BR72: 1.6159 | BS72: 1.07712193 | BT72: 6.450395651e-05
A73: 1955-04-01 | B73: 2011-04-30 | C73: 2007-03-18 | D73: 2011-04-30 | E73: TRUE | F73: 1363.609985 | G73: 37.959999 | H73: 1 | I73: 1363.609985 | J73: 0.02809693855 | K73: 1.065253759 | L73: 2011-04-30 | M73: 1.065253759 | N73: 2011-04-30 | O73: 1.065253759 | P73: 0.9720429276 | Q73: 1 | R73: 1 | S73: 1 | T73: 1 | U73: 1 | AB73: 5.030084 | AC73: 0 | AD73: 0 | AE73: 0 | AF73: 0 | AG73: 0 | AH73: 1 | AI73: 1 | AJ73: 1 | AK73: 1 | AL73: 1 | AM73: 1 | AN73: 5.030084 | AO73: 0 | AP73: 0 | AQ73: 0 | AR73: 0 | AS73: 0 | AT73: 0.02809693855 | AU73: -0.03915660451 | AV73: FALSE | AW73: FALSE | AX73: FALSE | AY73: FALSE | AZ73: FALSE | BA73: 0.9720429276 | BB73: 1 | BC73: 1 | BD73: 1 | BE73: 1 | BF73: 1 | BG73: 14.744 | BH73: 26.79 | BI73: 0 | BJ73: 0 | BK73: 0 | BL73: 0 | BM73: 423.93 | BN73: 0.01021220972 | BO73: 0.004462433008 | BP73: 1.446 | BQ73: 0.02250225023 | BR73: 1.6379 | BS73: 1.081899816 | BT73: 6.362710647e-05
A74: 1955-05-01 | B74: 2011-05-31 | C74: 2007-03-25 | D74: 2011-05-31 | E74: TRUE | F74: 1345.199951 | G74: 37.91 | H74: 1 | I74: 1345.199951 | J74: -0.01359291933 | K74: 1.050871818 | L74: 2011-05-31 | M74: 1.050871818 | N74: 2011-05-31 | O74: 1.050871818 | P74: 1.149954152 | Q74: 1 | R74: 1 | S74: 1 | T74: 1 | U74: 1 | AB74: 5.950731 | AC74: 0 | AD74: 0 | AE74: 0 | AF74: 0 | AG74: 0 | AH74: 1 | AI74: 1 | AJ74: 1 | AK74: 1 | AL74: 1 | AM74: 1 | AN74: 5.950731 | AO74: 0 | AP74: 0 | AQ74: 0 | AR74: 0 | AS74: 0 | AT74: -0.01359291933 | AU74: 0.1680773854 | AV74: FALSE | AW74: FALSE | AX74: FALSE | AY74: FALSE | AZ74: FALSE | BA74: 1.149954152 | BB74: 1 | BC74: 1 | BD74: 1 | BE74: 1 | BF74: 1 | BG74: 14.744 | BH74: 26.77 | BI74: 0 | BJ74: 0 | BK74: 0 | BL74: 0 | BM74: 423.93 | BN74: 0.01021220972 | BO74: 0.00444827985 | BP74: 1.4335 | BQ74: 0.0226039783 | BR74: 1.6332 | BS74: 1.153934918 | BT74: 6.362710647e-05
A75: 1955-06-01 | B75: =IF(B74<=$D$2,EOMONTH(B74,1)) -> 2011-06-30 | C75: 2007-04-01 | D75: 2011-06-30 | E75: TRUE | F75: =LOOKUP(D75,A:A,G:G) -> 1320.640015 | G75: =IFERROR(LOOKUP($A75,INDIRECT("'"&G$7&"'!A:A"),INDIRECT("'"&G$7&"'!"&$G$9&":"&$G$9)),0) -> 41.029999 | H75: =IF(H$8,INDEX($BN75:$BT75,H$8),1) -> 1 | I75: =IF(ISNUMBER(F75),F75,I76)*H75 -> 1320.640015 | J75: -0.01842618552 | K75: 1.031685567 | L75: 2011-06-30 | M75: 1.031685567 | N75: 2011-06-30 | O75: 1.031685567 | P75: 1.103168749 | Q75: 1 | R75: 1 | S75: 1 | T75: 1 | U75: 1 | V75: =LOOKUP($A75,INDIRECT("'"&V$5&"'!A:A"),INDIRECT("'"&V$5&"'!"&V$7&":"&V$7)) ->  | AB75: =IF(ISNUMBER(LOOKUP($D75,$A:$A,V:V)),LOOKUP($D75,$A:$A,V:V),AB74) -> 5.708628 | AC75: =IF(ISNUMBER(LOOKUP($D75,$A:$A,W:W)),LOOKUP($D75,$A:$A,W:W),AC74) -> 0 | AD75: =IF(ISNUMBER(LOOKUP($D75,$A:$A,X:X)),LOOKUP($D75,$A:$A,X:X),AD74) -> 0 | AE75: =IF(ISNUMBER(LOOKUP($D75,$A:$A,Y:Y)),LOOKUP($D75,$A:$A,Y:Y),AE74) -> 0 | AF75: =IF(ISNUMBER(LOOKUP($D75,$A:$A,Z:Z)),LOOKUP($D75,$A:$A,Z:Z),AF74) -> 0 | AG75: =IF(ISNUMBER(LOOKUP($D75,$A:$A,AA:AA)),LOOKUP($D75,$A:$A,AA:AA),AG74) -> 0 | AH75: 1 | AI75: 1 | AJ75: 1 | AK75: 1 | AL75: 1 | AM75: 1 | AN75: 5.708628 | AO75: 0 | AP75: 0 | AQ75: 0 | AR75: 0 | AS75: 0 | AT75: -0.01842618552 | AU75: =IF(E75,IFERROR(LN(AN75/AN74),FALSE)) -> -0.04153535457 | AV75: =IF(E75,IFERROR(LN(AO75/AO74),FALSE)) -> FALSE | AW75: =IF(E75,IFERROR(LN(AP75/AP74),FALSE)) -> FALSE | AX75: =IF(E75,IFERROR(LN(AQ75/AQ74),FALSE)) -> FALSE | AY75: =IF(E75,IFERROR(LN(AR75/AR74),FALSE)) -> FALSE | AZ75: =IF(E75,IFERROR(LN(AS75/AS74),FALSE)) -> FALSE | BA75: 1.103168749 | BB75: 1 | BC75: 1 | BD75: 1 | BE75: 1 | BF75: 1 | BG75: =IFERROR(LOOKUP($A75,INDIRECT("'"&BN$6&"'!A:A"),INDIRECT("'"&BN$6&"'!"&BN$7&":"&BN$7)),0) -> 14.744 | BH75: =IFERROR(LOOKUP($A75,INDIRECT("'"&BO$6&"'!A:A"),INDIRECT("'"&BO$6&"'!"&BO$7&":"&BO$7)),0) -> 26.71 | BI75: =IFERROR(LOOKUP($A75,INDIRECT("'"&BP$6&"'!A:A"),INDIRECT("'"&BP$6&"'!"&BP$7&":"&BP$7)),0) -> 0 | BJ75: =IFERROR(LOOKUP($A75,INDIRECT("'"&BQ$6&"'!A:A"),INDIRECT("'"&BQ$6&"'!"&BQ$7&":"&BQ$7)),0) -> 0 | BK75: =IFERROR(LOOKUP($A75,INDIRECT("'"&BR$6&"'!A:A"),INDIRECT("'"&BR$6&"'!"&BR$7&":"&BR$7)),0) -> 0 | BL75: =IFERROR(LOOKUP($A75,INDIRECT("'"&BS$6&"'!A:A"),INDIRECT("'"&BS$6&"'!"&BS$7&":"&BS$7)),0) -> 0 | BM75: =IFERROR(LOOKUP($A75,INDIRECT("'"&BT$6&"'!A:A"),INDIRECT("'"&BT$6&"'!"&BT$7&":"&BT$7)),0) -> 423.93 | BN75: =IFERROR(IF(BN$8="Divide",1/LOOKUP($D75,$A:$A,BG:BG)*1,LOOKUP($D75,$A:$A,BG:BG)*1),BN74) -> 0.01021220972 | BO75: =IFERROR(IF(BO$8="Divide",1/LOOKUP($D75,$A:$A,BH:BH)*1,LOOKUP($D75,$A:$A,BH:BH)*1),BO74) -> 0.00444827985 | BP75: =IFERROR(IF(BP$8="Divide",1/LOOKUP($D75,$A:$A,BI:BI)*1,LOOKUP($D75,$A:$A,BI:BI)*1),BP74) -> 1.4403 | BQ75: =IFERROR(IF(BQ$8="Divide",1/LOOKUP($D75,$A:$A,BJ:BJ)*1,LOOKUP($D75,$A:$A,BJ:BJ)*1),BQ74) -> 0.0223015165 | BR75: =IFERROR(IF(BR$8="Divide",1/LOOKUP($D75,$A:$A,BK:BK)*1,LOOKUP($D75,$A:$A,BK:BK)*1),BR74) -> 1.6219 | BS75: =IFERROR(IF(BS$8="Divide",1/LOOKUP($D75,$A:$A,BL:BL)*1,LOOKUP($D75,$A:$A,BL:BL)*1),BS74) -> 1.190334484 | BT75: =IFERROR(IF(BT$8="Divide",1/LOOKUP($D75,$A:$A,BM:BM)*1,LOOKUP($D75,$A:$A,BM:BM)*1),BT74) -> 6.362710647e-05
A76: 1955-07-01 | B76: 2011-07-31 | C76: =IF(C75<=$D$2,C75+7) -> 2007-04-08 | D76: 2011-07-31 | E76: =AND(D76>=$D$4,D75<=$D$2) -> TRUE | F76: 1292.280029 | G76: 43.52 | H76: 1 | I76: 1292.280029 | J76: =IFERROR(LN(I76/I75),FALSE) -> -0.02170835635 | K76: 1.009530712 | L76: 2011-07-31 | M76: 1.009530712 | N76: 2011-07-31 | O76: 1.009530712 | P76: 0.9988811064 | Q76: 1 | R76: 1 | S76: 1 | T76: 1 | U76: 1 | AB76: 5.168965 | AC76: 0 | AD76: 0 | AE76: 0 | AF76: 0 | AG76: 0 | AH76: 1 | AI76: 1 | AJ76: 1 | AK76: 1 | AL76: 1 | AM76: 1 | AN76: =IFERROR(IF(ISNUMBER(AB76)>0.1,AB76,AN77)*AH76,AN77) -> 5.168965 | AO76: =IFERROR(IF(ISNUMBER(AC76)>0.1,AC76,AO77)*AI76,AO77) -> 0 | AP76: =IFERROR(IF(ISNUMBER(AD76)>0.1,AD76,AP77)*AJ76,AP77) -> 0 | AQ76: =IFERROR(IF(ISNUMBER(AE76)>0.1,AE76,AQ77)*AK76,AQ77) -> 0 | AR76: =IFERROR(IF(ISNUMBER(AF76)>0.1,AF76,AR77)*AL76,AR77) -> 0 | AS76: =IFERROR(IF(ISNUMBER(AG76)>0.1,AG76,AS77)*AM76,AS77) -> 0 | AT76: -0.02170835635 | AU76: -0.09930623953 | AV76: FALSE | AW76: FALSE | AX76: FALSE | AY76: FALSE | AZ76: FALSE | BA76: =IFERROR(IF($E76,BA75*AN76/AN75,1),1) -> 0.9988811064 | BB76: =IFERROR(IF($E76,BB75*AO76/AO75,1),1) -> 1 | BC76: =IFERROR(IF($E76,BC75*AP76/AP75,1),1) -> 1 | BD76: =IFERROR(IF($E76,BD75*AQ76/AQ75,1),1) -> 1 | BE76: =IFERROR(IF($E76,BE75*AR76/AR75,1),1) -> 1 | BF76: =IFERROR(IF($E76,BF75*AS76/AS75,1),1) -> 1 | BG76: 14.847 | BH76: 26.76 | BI76: 0 | BJ76: 0 | BK76: 0 | BL76: 0 | BM76: 432.668 | BN76: 0.01014682455 | BO76: 0.004436655649 | BP76: 1.4275 | BQ76: 0.02241147468 | BR76: 1.6158 | BS76: 1.179384361 | BT76: 6.314228331e-05
A77: 1955-08-01 | B77: 2011-08-31 | C77: 2007-04-15 | D77: =IF($D$6,C77,B77) -> 2011-08-31 | E77: TRUE | F77: 1218.890015 | G77: 43.18 | H77: 1 | I77: 1218.890015 | J77: -0.05846750175 | K77: =IF($E77,(K76*I77/I76),1) -> 0.9521983446 | L77: =IF(E77,D77,NA()) -> 2011-08-31 | M77: =CHOOSE($M$1,I77,J77,K77) -> 0.9521983446 | N77: =L77 -> 2011-08-31 | O77: =M77 -> 0.9521983446 | P77: =IFERROR(CHOOSE($M$1,AN77,AU77,BA77),1) -> 0.8554853322 | Q77: =IFERROR(CHOOSE($M$1,AO77,AV77,BB77),1) -> 1 | R77: =IFERROR(CHOOSE($M$1,AP77,AW77,BC77),1) -> 1 | S77: =IFERROR(CHOOSE($M$1,AQ77,AX77,BD77),1) -> 1 | T77: =IFERROR(CHOOSE($M$1,AR77,AY77,BE77),1) -> 1 | U77: =IFERROR(CHOOSE($M$1,AS77,AZ77,BF77),1) -> 1 | AB77: 4.426927 | AC77: 0 | AD77: 0 | AE77: 0 | AF77: 0 | AG77: 0 | AH77: 1 | AI77: 1 | AJ77: 1 | AK77: 1 | AL77: 1 | AM77: 1 | AN77: 4.426927 | AO77: 0 | AP77: 0 | AQ77: 0 | AR77: 0 | AS77: 0 | AT77: =J77 -> -0.05846750175 | AU77: -0.1549668112 | AV77: FALSE | AW77: FALSE | AX77: FALSE | AY77: FALSE | AZ77: FALSE | BA77: 0.8554853322 | BB77: 1 | BC77: 1 | BD77: 1 | BE77: 1 | BF77: 1 | BG77: 14.847 | BH77: 26.72 | BI77: 0 | BJ77: 0 | BK77: 0 | BL77: 0 | BM77: 432.668 | BN77: 0.01014682455 | BO77: 0.004422704395 | BP77: 1.4333 | BQ77: 0.0226963232 | BR77: 1.6356 | BS77: 1.279918085 | BT77: 6.314228331e-05
A78: 1955-09-01 | B78: 2011-09-30 | C78: 2007-04-22 | D78: 2011-09-30 | E78: TRUE | F78: 1131.420044 | G78: 43.669998 | H78: 1 | I78: 1131.420044 | J78: -0.07446710096 | K78: 0.8838666981 | L78: 2011-09-30 | M78: 0.8838666981 | N78: 2011-09-30 | O78: 0.8838666981 | P78: 0.8424493527 | Q78: 1 | R78: 1 | S78: 1 | T78: 1 | U78: 1 | AB78: 4.359469 | AC78: 0 | AD78: 0 | AE78: 0 | AF78: 0 | AG78: 0 | AH78: 1 | AI78: 1 | AJ78: 1 | AK78: 1 | AL78: 1 | AM78: 1 | AN78: 4.359469 | AO78: 0 | AP78: 0 | AQ78: 0 | AR78: 0 | AS78: 0 | AT78: -0.07446710096 | AU78: -0.01535540294 | AV78: FALSE | AW78: FALSE | AX78: FALSE | AY78: FALSE | AZ78: FALSE | BA78: 0.8424493527 | BB78: 1 | BC78: 1 | BD78: 1 | BE78: 1 | BF78: 1 | BG78: 14.847 | BH78: 26.85 | BI78: 0 | BJ78: 0 | BK78: 0 | BL78: 0 | BM78: 432.668 | BN78: 0.01014682455 | BO78: 0.004413121092 | BP78: 1.3747 | BQ78: 0.02190100745 | BR78: 1.5771 | BS78: 1.257703434 | BT78: 6.314228331e-05
A79: 1955-10-01 | B79: 2011-10-31 | C79: 2007-04-29 | D79: 2011-10-31 | E79: TRUE | F79: 1253.300049 | G79: 42.34 | H79: 1 | I79: 1253.300049 | J79: 0.1023065919 | K79: 0.9790795045 | L79: 2011-10-31 | M79: 0.9790795045 | N79: 2011-10-31 | O79: 0.9790795045 | P79: 0.9744384034 | Q79: 1 | R79: 1 | S79: 1 | T79: 1 | U79: 1 | AB79: 5.04248 | AC79: 0 | AD79: 0 | AE79: 0 | AF79: 0 | AG79: 0 | AH79: 1 | AI79: 1 | AJ79: 1 | AK79: 1 | AL79: 1 | AM79: 1 | AN79: 5.04248 | AO79: 0 | AP79: 0 | AQ79: 0 | AR79: 0 | AS79: 0 | AT79: 0.1023065919 | AU79: 0.1455477636 | AV79: FALSE | AW79: FALSE | AX79: FALSE | AY79: FALSE | AZ79: FALSE | BA79: 0.9744384034 | BB79: 1 | BC79: 1 | BD79: 1 | BE79: 1 | BF79: 1 | BG79: 14.995 | BH79: 26.82 | BI79: 0 | BJ79: 0 | BK79: 0 | BL79: 0 | BM79: 439.619 | BN79: 0.01013140431 | BO79: 0.00441014333 | BP79: 1.3732 | BQ79: 0.02038735984 | BR79: 1.5768 | BS79: 1.105216622 | BT79: 6.227000573e-05
A80: 1955-11-01 | B80: 2011-11-30 | C80: 2007-05-06 | D80: 2011-11-30 | E80: TRUE | F80: 1246.959961 | G80: 45.509998 | H80: 1 | I80: 1246.959961 | J80: -0.00507155381 | K80: 0.9741266201 | L80: 2011-11-30 | M80: 0.9741266201 | N80: 2011-11-30 | O80: 0.9741266201 | P80: 0.9206652296 | Q80: 1 | R80: 1 | S80: 1 | T80: 1 | U80: 1 | AB80: 4.764217 | AC80: 0 | AD80: 0 | AE80: 0 | AF80: 0 | AG80: 0 | AH80: 1 | AI80: 1 | AJ80: 1 | AK80: 1 | AL80: 1 | AM80: 1 | AN80: 4.764217 | AO80: 0 | AP80: 0 | AQ80: 0 | AR80: 0 | AS80: 0 | AT80: -0.00507155381 | AU80: -0.05676482414 | AV80: FALSE | AW80: FALSE | AX80: FALSE | AY80: FALSE | AZ80: FALSE | BA80: 0.9206652296 | BB80: 1 | BC80: 1 | BD80: 1 | BE80: 1 | BF80: 1 | BG80: 14.995 | BH80: 26.88 | BI80: 0 | BJ80: 0 | BK80: 0 | BL80: 0 | BM80: 439.619 | BN80: 0.01013140431 | BO80: 0.004402009077 | BP80: 1.3558 | BQ80: 0.02030044661 | BR80: 1.5806 | BS80: 1.123469273 | BT80: 6.227000573e-05
A81: 1955-12-01 | B81: 2011-12-31 | C81: 2007-05-13 | D81: 2011-12-31 | E81: TRUE | F81: 1257.599976 | G81: 45.48 | H81: 1 | I81: 1257.599976 | J81: 0.008496565686 | K81: 0.9824386126 | L81: 2011-12-31 | M81: 0.9824386126 | N81: 2011-12-31 | O81: 0.9824386126 | P81: 0.9614026171 | Q81: 1 | R81: 1 | S81: 1 | T81: 1 | U81: 1 | AB81: 4.975023 | AC81: 0 | AD81: 0 | AE81: 0 | AF81: 0 | AG81: 0 | AH81: 1 | AI81: 1 | AJ81: 1 | AK81: 1 | AL81: 1 | AM81: 1 | AN81: 4.975023 | AO81: 0 | AP81: 0 | AQ81: 0 | AR81: 0 | AS81: 0 | AT81: 0.008496565686 | AU81: 0.0432967933 | AV81: FALSE | AW81: FALSE | AX81: FALSE | AY81: FALSE | AZ81: FALSE | BA81: 0.9614026171 | BB81: 1 | BC81: 1 | BD81: 1 | BE81: 1 | BF81: 1 | BG81: 14.995 | BH81: 26.87 | BI81: 0 | BJ81: 0 | BK81: 0 | BL81: 0 | BM81: 439.619 | BN81: 0.01013140431 | BO81: 0.004400962931 | BP81: 1.3155 | BQ81: 0.01947040498 | BR81: 1.5587 | BS81: 1.09469075 | BT81: 6.227000573e-05
A82: 1956-01-01 | B82: 2012-01-31 | C82: 2007-05-20 | D82: 2012-01-31 | E82: TRUE | F82: 1312.410034 | G82: 43.82 | H82: 1 | I82: 1312.410034 | J82: 0.042660044 | K82: 1.025256296 | L82: 2012-01-31 | M82: 1.025256296 | N82: 2012-01-31 | O82: 1.025256296 | P82: 0.9776976881 | Q82: 1 | R82: 1 | S82: 1 | T82: 1 | U82: 1 | AB82: 5.059346 | AC82: 0 | AD82: 0 | AE82: 0 | AF82: 0 | AG82: 0 | AH82: 1 | AI82: 1 | AJ82: 1 | AK82: 1 | AL82: 1 | AM82: 1 | AN82: 5.059346 | AO82: 0 | AP82: 0 | AQ82: 0 | AR82: 0 | AS82: 0 | AT82: 0.042660044 | AU82: 0.01680723222 | AV82: FALSE | AW82: FALSE | AX82: FALSE | AY82: FALSE | AZ82: FALSE | BA82: 0.9776976881 | BB82: 1 | BC82: 1 | BD82: 1 | BE82: 1 | BF82: 1 | BG82: 15.144 | BH82: 26.83 | BI82: 0 | BJ82: 0 | BK82: 0 | BL82: 0 | BM82: 442.597 | BN82: 0.01006846557 | BO82: 0.004389006417 | BP82: 1.291 | BQ82: 0.01886436521 | BR82: 1.5524 | BS82: 1.066780457 | BT82: 6.147028815e-05
A83: 1956-02-01 | B83: 2012-02-29 | C83: 2007-05-27 | D83: 2012-02-29 | E83: TRUE | F83: 1365.680054 | G83: 45.34 | H83: 1 | I83: 1365.680054 | J83: 0.03978734502 | K83: 1.066870899 | L83: 2012-02-29 | M83: 1.066870899 | N83: 2012-02-29 | O83: 1.066870899 | P83: 1.023323423 | Q83: 1 | R83: 1 | S83: 1 | T83: 1 | U83: 1 | AB83: 5.295448 | AC83: 0 | AD83: 0 | AE83: 0 | AF83: 0 | AG83: 0 | AH83: 1 | AI83: 1 | AJ83: 1 | AK83: 1 | AL83: 1 | AM83: 1 | AN83: 5.295448 | AO83: 0 | AP83: 0 | AQ83: 0 | AR83: 0 | AS83: 0 | AT83: 0.03978734502 | AU83: 0.04561035766 | AV83: FALSE | AW83: FALSE | AX83: FALSE | AY83: FALSE | AZ83: FALSE | BA83: 1.023323423 | BB83: 1 | BC83: 1 | BD83: 1 | BE83: 1 | BF83: 1 | BG83: 15.144 | BH83: 26.86 | BI83: 0 | BJ83: 0 | BK83: 0 | BL83: 0 | BM83: 442.597 | BN83: 0.01006846557 | BO83: 0.004379645161 | BP83: 1.3238 | BQ83: 0.02029476111 | BR83: 1.5804 | BS83: 1.093972213 | BT83: 6.147028815e-05
A84: 1956-03-01 | B84: 2012-03-31 | C84: 2007-06-03 | D84: 2012-03-31 | E84: TRUE | F84: 1408.469971 | G84: 48.48 | H84: 1 | I84: 1408.469971 | J84: 0.03085147563 | K84: 1.100298434 | L84: 2012-03-31 | M84: 1.100298434 | N84: 2012-03-31 | O84: 1.100298434 | P84: 1.04776574 | Q84: 1 | R84: 1 | S84: 1 | T84: 1 | U84: 1 | AB84: 5.421931 | AC84: 0 | AD84: 0 | AE84: 0 | AF84: 0 | AG84: 0 | AH84: 1 | AI84: 1 | AJ84: 1 | AK84: 1 | AL84: 1 | AM84: 1 | AN84: 5.421931 | AO84: 0 | AP84: 0 | AQ84: 0 | AR84: 0 | AS84: 0 | AT84: 0.03085147563 | AU84: 0.02360444147 | AV84: FALSE | AW84: FALSE | AX84: FALSE | AY84: FALSE | AZ84: FALSE | BA84: 1.04776574 | BB84: 1 | BC84: 1 | BD84: 1 | BE84: 1 | BF84: 1 | BG84: 15.144 | BH84: 26.89 | BI84: 0 | BJ84: 0 | BK84: 0 | BL84: 0 | BM84: 442.597 | BN84: 0.01006846557 | BO84: 0.004370495658 | BP84: 1.3208 | BQ84: 0.02035002035 | BR84: 1.5824 | BS84: 1.104850293 | BT84: 6.147028815e-05
A85: 1956-04-01 | B85: 2012-04-30 | C85: 2007-06-10 | D85: 2012-04-30 | E85: TRUE | F85: 1397.910034 | G85: 48.380001 | H85: 1 | I85: 1397.910034 | J85: -0.007525699884 | K85: 1.092048999 | L85: 2012-04-30 | M85: 1.092048999 | N85: 2012-04-30 | O85: 1.092048999 | P85: 1.04776574 | Q85: 1 | R85: 1 | S85: 1 | T85: 1 | U85: 1 | AB85: 5.421931 | AC85: 0 | AD85: 0 | AE85: 0 | AF85: 0 | AG85: 0 | AH85: 1 | AI85: 1 | AJ85: 1 | AK85: 1 | AL85: 1 | AM85: 1 | AN85: 5.421931 | AO85: 0 | AP85: 0 | AQ85: 0 | AR85: 0 | AS85: 0 | AT85: -0.007525699884 | AU85: 0 | AV85: FALSE | AW85: FALSE | AX85: FALSE | AY85: FALSE | AZ85: FALSE | BA85: 1.04776574 | BB85: 1 | BC85: 1 | BD85: 1 | BE85: 1 | BF85: 1 | BG85: 15.234 | BH85: 26.93 | BI85: 0 | BJ85: 0 | BK85: 0 | BL85: 0 | BM85: 448.848 | BN85: 0.01002878261 | BO85: 0.004363249224 | BP85: 1.316 | BQ85: 0.01965022598 | BR85: 1.6 | BS85: 1.107910481 | BT85: 6.104865224e-05
A86: 1956-05-01 | B86: 2012-05-31 | C86: 2007-06-17 | D86: 2012-05-31 | E86: TRUE | F86: 1310.329956 | G86: 45.200001 | H86: 1 | I86: 1310.329956 | J86: -0.06469930807 | K86: 1.023631336 | L86: 2012-05-31 | M86: 1.023631336 | N86: 2012-05-31 | O86: 1.023631336 | P86: 1.086873871 | Q86: 1 | R86: 1 | S86: 1 | T86: 1 | U86: 1 | AB86: 5.624306 | AC86: 0 | AD86: 0 | AE86: 0 | AF86: 0 | AG86: 0 | AH86: 1 | AI86: 1 | AJ86: 1 | AK86: 1 | AL86: 1 | AM86: 1 | AN86: 5.624306 | AO86: 0 | AP86: 0 | AQ86: 0 | AR86: 0 | AS86: 0 | AT86: -0.06469930807 | AU86: 0.03664553764 | AV86: FALSE | AW86: FALSE | AX86: FALSE | AY86: FALSE | AZ86: FALSE | BA86: 1.086873871 | BB86: 1 | BC86: 1 | BD86: 1 | BE86: 1 | BF86: 1 | BG86: 15.234 | BH86: 27.03 | BI86: 0 | BJ86: 0 | BK86: 0 | BL86: 0 | BM86: 448.848 | BN86: 0.01002878261 | BO86: 0.004372291912 | BP86: 1.2806 | BQ86: 0.01904761905 | BR86: 1.5924 | BS86: 1.100473203 | BT86: 6.104865224e-05
A87: 1956-06-01 | B87: 2012-06-30 | C87: 2007-06-24 | D87: 2012-06-30 | E87: TRUE | F87: 1362.160034 | G87: 46.970001 | H87: 1 | I87: 1362.160034 | J87: 0.03879271978 | K87: 1.064121056 | L87: 2012-06-30 | M87: 1.064121056 | N87: 2012-06-30 | O87: 1.064121056 | P87: 1.098924683 | Q87: 1 | R87: 1 | S87: 1 | T87: 1 | U87: 1 | AB87: 5.686666 | AC87: 0 | AD87: 0 | AE87: 0 | AF87: 0 | AG87: 0 | AH87: 1 | AI87: 1 | AJ87: 1 | AK87: 1 | AL87: 1 | AM87: 1 | AN87: 5.686666 | AO87: 0 | AP87: 0 | AQ87: 0 | AR87: 0 | AS87: 0 | AT87: 0.03879271978 | AU87: 0.01102657346 | AV87: FALSE | AW87: FALSE | AX87: FALSE | AY87: FALSE | AZ87: FALSE | BA87: 1.098924683 | BB87: 1 | BC87: 1 | BD87: 1 | BE87: 1 | BF87: 1 | BG87: 15.234 | BH87: 27.15 | BI87: 0 | BJ87: 0 | BK87: 0 | BL87: 0 | BM87: 448.848 | BN87: 0.01002878261 | BO87: 0.004375908001 | BP87: 1.2541 | BQ87: 0.01803751804 | BR87: 1.5556 | BS87: 1.034019233 | BT87: 6.104865224e-05
A88: 1956-07-01 | B88: 2012-07-31 | C88: 2007-07-01 | D88: 2012-07-31 | E88: TRUE | F88: 1379.319946 | G88: 49.389999 | H88: 1 | I88: 1379.319946 | J88: 0.01251888486 | K88: 1.077526399 | L88: 2012-07-31 | M88: 1.077526399 | N88: 2012-07-31 | O88: 1.077526399 | P88: 1.100555099 | Q88: 1 | R88: 1 | S88: 1 | T88: 1 | U88: 1 | AB88: 5.695103 | AC88: 0 | AD88: 0 | AE88: 0 | AF88: 0 | AG88: 0 | AH88: 1 | AI88: 1 | AJ88: 1 | AK88: 1 | AL88: 1 | AM88: 1 | AN88: 5.695103 | AO88: 0 | AP88: 0 | AQ88: 0 | AR88: 0 | AS88: 0 | AT88: 0.01251888486 | AU88: 0.001482546614 | AV88: FALSE | AW88: FALSE | AX88: FALSE | AY88: FALSE | AZ88: FALSE | BA88: 1.100555099 | BB88: 1 | BC88: 1 | BD88: 1 | BE88: 1 | BF88: 1 | BG88: 15.425 | BH88: 27.29 | BI88: 0 | BJ88: 0 | BK88: 0 | BL88: 0 | BM88: 454.125 | BN88: 0.009977550511 | BO88: 0.00437464456 | BP88: 1.2278 | BQ88: 0.01799532122 | BR88: 1.5593 | BS88: 1.054296257 | BT88: 6.065823772e-05
A89: 1956-08-01 | B89: 2012-08-31 | C89: 2007-07-08 | D89: 2012-08-31 | E89: TRUE | F89: 1406.579956 | G89: 47.509998 | H89: 1 | I89: 1406.579956 | J89: 0.01957060987 | K89: 1.098821952 | L89: 2012-08-31 | M89: 1.098821952 | N89: 2012-08-31 | O89: 1.098821952 | P89: 1.115229223 | Q89: 1 | R89: 1 | S89: 1 | T89: 1 | U89: 1 | AB89: 5.771038 | AC89: 0 | AD89: 0 | AE89: 0 | AF89: 0 | AG89: 0 | AH89: 1 | AI89: 1 | AJ89: 1 | AK89: 1 | AL89: 1 | AM89: 1 | AN89: 5.771038 | AO89: 0 | AP89: 0 | AQ89: 0 | AR89: 0 | AS89: 0 | AT89: 0.01957060987 | AU89: 0.01324527758 | AV89: FALSE | AW89: FALSE | AX89: FALSE | AY89: FALSE | AZ89: FALSE | BA89: 1.115229223 | BB89: 1 | BC89: 1 | BD89: 1 | BE89: 1 | BF89: 1 | BG89: 15.425 | BH89: 27.31 | BI89: 0 | BJ89: 0 | BK89: 0 | BL89: 0 | BM89: 454.125 | BN89: 0.009977550511 | BO89: 0.004349376734 | BP89: 1.2406 | BQ89: 0.01802776275 | BR89: 1.5722 | BS89: 1.023855841 | BT89: 6.065823772e-05
A90: 1956-09-01 | B90: 2012-09-30 | C90: 2007-07-15 | D90: 2012-09-30 | E90: TRUE | F90: 1440.670044 | G90: 45.349998 | H90: 1 | I90: 1440.670044 | J90: 0.02394711887 | K90: 1.12545317 | L90: 2012-09-30 | M90: 1.12545317 | N90: 2012-09-30 | O90: 1.12545317 | P90: 1.111968199 | Q90: 1 | R90: 1 | S90: 1 | T90: 1 | U90: 1 | AB90: 5.754163 | AC90: 0 | AD90: 0 | AE90: 0 | AF90: 0 | AG90: 0 | AH90: 1 | AI90: 1 | AJ90: 1 | AK90: 1 | AL90: 1 | AM90: 1 | AN90: 5.754163 | AO90: 0 | AP90: 0 | AQ90: 0 | AR90: 0 | AS90: 0 | AT90: 0.02394711887 | AU90: -0.002928367507 | AV90: FALSE | AW90: FALSE | AX90: FALSE | AY90: FALSE | AZ90: FALSE | BA90: 1.111968199 | BB90: 1 | BC90: 1 | BD90: 1 | BE90: 1 | BF90: 1 | BG90: 15.425 | BH90: 27.35 | BI90: 0 | BJ90: 0 | BK90: 0 | BL90: 0 | BM90: 454.125 | BN90: 0.009977550511 | BO90: 0.004328723243 | BP90: 1.2885 | BQ90: 0.01801152738 | BR90: 1.6126 | BS90: 1.047559187 | BT90: 6.065823772e-05
A91: 1956-10-01 | B91: 2012-10-31 | C91: 2007-07-22 | D91: 2012-10-31 | E91: TRUE | F91: 1412.160034 | G91: 45.580002 | H91: 1 | I91: 1412.160034 | J91: -0.01998784252 | K91: 1.103181116 | L91: 2012-10-31 | M91: 1.103181116 | N91: 2012-10-31 | O91: 1.103181116 | P91: 1.133164179 | Q91: 1 | R91: 1 | S91: 1 | T91: 1 | U91: 1 | AB91: 5.863847 | AC91: 0 | AD91: 0 | AE91: 0 | AF91: 0 | AG91: 0 | AH91: 1 | AI91: 1 | AJ91: 1 | AK91: 1 | AL91: 1 | AM91: 1 | AN91: 5.863847 | AO91: 0 | AP91: 0 | AQ91: 0 | AR91: 0 | AS91: 0 | AT91: -0.01998784252 | AU91: 0.01888227999 | AV91: FALSE | AW91: FALSE | AX91: FALSE | AY91: FALSE | AZ91: FALSE | BA91: 1.133164179 | BB91: 1 | BC91: 1 | BD91: 1 | BE91: 1 | BF91: 1 | BG91: 15.487 | BH91: 27.51 | BI91: 0 | BJ91: 0 | BK91: 0 | BL91: 0 | BM91: 463.023 | BN91: 0.009926839195 | BO91: 0.004317080963 | BP91: 1.2974 | BQ91: 0.01906214258 | BR91: 1.608 | BS91: 1.066552901 | BT91: 6.030262874e-05
